Workbook

Sheet Control Panel
A1: 2 | B1: Questar Gas Company | F1: DEFICIENCY | G1: 1 | I1: UTAH ADJUSTED
B2: =F11&" - "&F16 -> Utah - JUN 2015 Adjusted Avg Results | F2: =Report!K13 -> 698308.5619 | G2: 2 | I2: WYO ADJUSTED
B3: ="12 Months Ended"&" : "& TEXT(F12,"mmm-yyyy") -> 12 Months Ended : Jun-2015 | F3: ROE | G3: 2
B4: ="Capital Structure"&" : "&F40 -> Capital Structure : AVG CAP STR | F4: =+Report!J78 -> 0.09772895262
B9: REPORT CHECK: MUST BE (0) ======> | C9: =IF((SUM(Report!F13:H73)-SUM(Report!I13:I73))<1,"0","ERROR") -> 0 | H9: JUN 2015 Unadjusted Avg Results | J9: JUN 2015 Adjusted Avg Results | M9: Line #
E10: =F10&" - "&"A" -> 2 - A | F10: 2 | H10: 1 | I10: =H10&" - "&"A" -> 1 - A | J10: 2 | K10: =J10&" - "&"A" -> 2 - A | M10: 1
B11: Jurisdiction | F11: =HLOOKUP($F$10,Scenarios,M11,FALSE) -> Utah | H11: Utah | J11: Utah | M11: =M10+1 -> 2
B12: Scenario Title 1 | F12: =HLOOKUP($F$10,Scenarios,M12,FALSE) -> 2015-06-30 | H12: 2015-06-30 | J12: 2015-06-30 | M12: =M11+1 -> 3
M13: 4
M14: 5
M15: 6
B16: Scenario Title 2 | F16: =HLOOKUP($F$10,Scenarios,M16,FALSE) -> JUN 2015 Adjusted Avg Results | H16: =+H9 -> JUN 2015 Unadjusted Avg Results | J16: =+J9 -> JUN 2015 Adjusted Avg Results | M16: 7
B17: Required Inputs and Factors | M17: 8
M18: 9
B19: Return On Equity | F19: =HLOOKUP($F$10,Scenarios,M19,FALSE) -> 0.0985 | H19: 0.0985 | J19: 0.0985 | M19: 10
M20: 11
B21: Lead-Lag Factor | F21: =HLOOKUP($F$10,Scenarios,M21,FALSE) -> 1.015 | H21: 1.015 | J21: 1.015 | M21: 12
B22: Bad Debt Ratio | F22: =HLOOKUP($F$10,Scenarios,M22,FALSE) -> 0.001630842348 | H22: =+'Bad Debt'!$E$17 -> 0.001630842348 | J22: =+'Bad Debt'!$E$17 -> 0.001630842348 | M22: 13
M23: 14
M24: 15
B25: Adjustments | C25: Go To Adjustment | M25: 16
M26: 17
A27: 1 | B27: =+F27 -> AVG RB JUN 2015 | C27: RATE BASE | E27: =HLOOKUP($E$10,Scenarios,M27,FALSE) -> Y | F27: =HLOOKUP($F$10,Scenarios,M27,FALSE) -> AVG RB JUN 2015 | H27: AVG RB JUN 2015 | I27: Y | J27: AVG RB JUN 2015 | K27: Y | M27: 18
A28: =+A27+1 -> 2 | B28: Energy Efficiency Services Adjustment | C28: Energy Efficiency Adj | E28: Y | F28: Energy Efficiency Services Adjustment | H28: Energy Efficiency Services Adjustment | I28: Y | J28: Energy Efficiency Services Adjustment | K28: Y | M28: 19
A29: =+A28+1 -> 3 | B29: Underground Storage | C29: Underground Storage | E29: Y | F29: Underground Storage | H29: Underground Storage | I29: Y | J29: Underground Storage | K29: Y | M29: 20
A30: 4 | B30: Wexpro | C30: 3-Wexpro'!A1 | E30: Y | F30: Wexpro | H30: Wexpro | I30: Y | J30: Wexpro | K30: Y | M30: 21
A31: 5 | B31: Bad Debt | C31: Bad Debt | E31: Y | F31: Bad Debt | H31: Bad Debt | I31: N | J31: Bad Debt | K31: Y | M31: 22
A32: 6 | B32: QGC Incentives | C32: Incentives | E32: Y | F32: QGC Incentives | H32: QGC Incentives | I32: N | J32: QGC Incentives | K32: Y | M32: 23
A33: 7 | B33: QGC Sporting Events | C33: Sporting Events | E33: Y | F33: QGC Sporting Events | H33: QGC Sporting Events | I33: N | J33: QGC Sporting Events | K33: Y | M33: 24
A34: 8 | B34: QGC Advertising | C34: Advertising | E34: Y | F34: QGC Advertising | H34: QGC Advertising | I34: N | J34: QGC Advertising | K34: Y | M34: 25
A35: 9 | B35: QGC Don & Membership | C35: Donations | E35: Y | F35: QGC Don & Membership | H35: QGC Don & Membership | I35: N | J35: QGC Don & Membership | K35: Y | M35: 26
A36: 10 | B36: QGC Reserve accrual | C36: RESERVE ACCRUAL | E36: Y | F36: QGC Reserve accrual | H36: QGC Reserve accrual | I36: N | J36: QGC Reserve accrual | K36: Y | M36: 27
A37: 11 | B37: =+F37 -> QGC Labor Adj | C37: Labor Adjustment | E37: Y | F37: QGC Labor Adj | H37: QGC Labor Adj | I37: N | J37: QGC Labor Adj | K37: Y | M37: 28
A38: 12 | B38: =+F38 -> Distrigas 2014 | C38: Distrigas & Pretax | F38: Distrigas 2014 | H38: Distrigas 2014 | J38: Distrigas 2014 | M38: 29
M39: 30
A40: =+A38+1 -> 13 | B40: =+F40 -> AVG CAP STR | C40: Capital Structure | F40: =HLOOKUP($F$10,Scenarios,M40,FALSE) -> AVG CAP STR | H40: AVG CAP STR | J40: AVG CAP STR | M40: 31

Sheet Summaries
A1: =+'Control Panel'!$B$1 -> Questar Gas Company
A2: =+'Control Panel'!$B$2 -> Utah - JUN 2015 Adjusted Avg Results
A3: =+'Control Panel'!$B$3 -> 12 Months Ended : Jun-2015
F4: =+Adjustments!F6 -> 1 | G4: =+Adjustments!G6 -> 2 | H4: =+Adjustments!H6 -> 3 | I4: =+Adjustments!I6 -> 4 | J4: =+Adjustments!J6 -> 5 | K4: =+Adjustments!K6 -> 6 | L4: =+Adjustments!L6 -> 7 | M4: =+Adjustments!M6 -> 8 | N4: =+Adjustments!N6 -> 9 | O4: =+Adjustments!O6 -> 10 | P4: =+Adjustments!P6 -> 11
F5: =+Adjustments!F8 -> Y | G5: =+Adjustments!G8 -> Y | H5: =+Adjustments!H8 -> Y | I5: =+Adjustments!I8 -> Y | J5: =+Adjustments!J8 -> Y | K5: =+Adjustments!K8 -> Y | L5: =+Adjustments!L8 -> Y | M5: =+Adjustments!M8 -> Y | N5: =+Adjustments!N8 -> Y | O5: =+Adjustments!O8 -> Y | P5: =+Adjustments!P8 -> Y
F6: =Adjustments!F9 -> AVG RB JUN 2015 | G6: =Adjustments!G9 -> Energy Efficiency Services Adjustment | H6: =Adjustments!H9 -> Underground Storage | I6: =Adjustments!I9 -> Wexpro | J6: =Adjustments!J9 -> Bad Debt | K6: =Adjustments!K9 -> QGC Incentives | L6: =Adjustments!L9 -> QGC Sporting Events | M6: =Adjustments!M9 -> QGC Advertising | N6: =Adjustments!N9 -> QGC Don & Membership | O6: =Adjustments!O9 -> QGC Reserve accrual | P6: =Adjustments!P9 -> QGC Labor Adj | R6: =Adjustments!R9 -> TOTAL QGC ADJUSTMENTS
A8: 1 | B8: NET INCOME SUMMARY
A10: =+A8+1 -> 2 | B10: Utility Operating Revenue
A11: =+A10+1 -> 3 | D11: System Distribution Non-Gas Revenue | F11: =Adjustments!F363+Adjustments!F365 -> 0 | G11: =Adjustments!G363+Adjustments!G365 -> -26950675.52 | H11: =Adjustments!H363+Adjustments!H365 -> 0 | I11: =Adjustments!I363+Adjustments!I365 -> 0 | J11: =Adjustments!J363+Adjustments!J365 -> 0 | K11: =Adjustments!K363+Adjustments!K365 -> 0 | L11: =Adjustments!L363+Adjustments!L365 -> 0 | M11: =Adjustments!M363+Adjustments!M365 -> 0 | N11: =Adjustments!N363+Adjustments!N365 -> 0 | O11: =Adjustments!O363+Adjustments!O365 -> 0 | P11: =Adjustments!P363+Adjustments!P365 -> 0 | R11: =Adjustments!R363+Adjustments!R365 -> -26950675.52
A12: 4 | D12: System Supplier Non-Gas Revenue | F12: =Adjustments!F364 -> 0 | G12: =Adjustments!G364 -> 0 | H12: =Adjustments!H364 -> 0 | I12: =Adjustments!I364 -> 0 | J12: =Adjustments!J364 -> 0 | K12: =Adjustments!K364 -> 0 | L12: =Adjustments!L364 -> 0 | M12: =Adjustments!M364 -> 0 | N12: =Adjustments!N364 -> 0 | O12: =Adjustments!O364 -> 0 | P12: =Adjustments!P364 -> 0 | R12: =Adjustments!R364 -> 0
A13: 5 | D13: System Commodity Revenue | F13: =Adjustments!F366 -> 0 | G13: =Adjustments!G366 -> 0 | H13: =Adjustments!H366 -> 0 | I13: =Adjustments!I366 -> 0 | J13: =Adjustments!J366 -> 0 | K13: =Adjustments!K366 -> 0 | L13: =Adjustments!L366 -> 0 | M13: =Adjustments!M366 -> 0 | N13: =Adjustments!N366 -> 0 | O13: =Adjustments!O366 -> 0 | P13: =Adjustments!P366 -> 0 | R13: =Adjustments!R366 -> 0
A14: 6 | D14: Pass-Through Related Other Revenue | F14: =Adjustments!F501+Adjustments!F505 -> 0 | G14: =Adjustments!G501+Adjustments!G505 -> 0 | H14: =Adjustments!H501+Adjustments!H505 -> 0 | I14: =Adjustments!I501+Adjustments!I505 -> 0 | J14: =Adjustments!J501+Adjustments!J505 -> 0 | K14: =Adjustments!K501+Adjustments!K505 -> 0 | L14: =Adjustments!L501+Adjustments!L505 -> 0 | M14: =Adjustments!M501+Adjustments!M505 -> 0 | N14: =Adjustments!N501+Adjustments!N505 -> 0 | O14: =Adjustments!O501+Adjustments!O505 -> 0 | P14: =Adjustments!P501+Adjustments!P505 -> 0 | R14: =Adjustments!R501+Adjustments!R505 -> 0
A15: 7 | D15: General Related Other Revenue | F15: =Adjustments!F502+Adjustments!F506 -> 0 | G15: =Adjustments!G502+Adjustments!G506 -> 0 | H15: =Adjustments!H502+Adjustments!H506 -> 0 | I15: =Adjustments!I502+Adjustments!I506 -> 0 | J15: =Adjustments!J502+Adjustments!J506 -> 0 | K15: =Adjustments!K502+Adjustments!K506 -> 0 | L15: =Adjustments!L502+Adjustments!L506 -> 0 | M15: =Adjustments!M502+Adjustments!M506 -> 0 | N15: =Adjustments!N502+Adjustments!N506 -> 0 | O15: =Adjustments!O502+Adjustments!O506 -> 0 | P15: =Adjustments!P502+Adjustments!P506 -> 0 | R15: =Adjustments!R502+Adjustments!R506 -> 0
A16: 8 | C16: Total Utility Operating Revenue | F16: =SUM(F11:F15) -> 0 | G16: =SUM(G11:G15) -> -26950675.52 | H16: 0 | I16: 0 | J16: 0 | K16: 0 | L16: 0 | M16: 0 | N16: 0 | O16: 0 | P16: =SUM(P11:P15) -> 0 | R16: =SUM(R11:R15) -> -26950675.52
A18: =+A16+1 -> 9 | B18: Utility Operating Expenses
A19: =+A18+1 -> 10 | C19: Gas Purchase Expenses
A20: =+A19+1 -> 11 | D20: Utah Gas Purchase Exp | F20: =Adjustments!F632+Adjustments!F635 -> 0 | G20: =Adjustments!G632+Adjustments!G635 -> 0 | H20: =Adjustments!H632+Adjustments!H635 -> 0 | I20: =Adjustments!I632+Adjustments!I635 -> 0 | J20: =Adjustments!J632+Adjustments!J635 -> 0 | K20: =Adjustments!K632+Adjustments!K635 -> 0 | L20: =Adjustments!L632+Adjustments!L635 -> 0 | M20: =Adjustments!M632+Adjustments!M635 -> 0 | N20: =Adjustments!N632+Adjustments!N635 -> 0 | O20: =Adjustments!O632+Adjustments!O635 -> 0 | P20: =Adjustments!P632+Adjustments!P635 -> 0 | R20: =Adjustments!R632+Adjustments!R635 -> 0
A21: =+A20+1 -> 12 | D21: Wyoming Gas Purchase Exp | F21: =Adjustments!F634+Adjustments!F636 -> 0 | G21: =Adjustments!G634+Adjustments!G636 -> 0 | H21: =Adjustments!H634+Adjustments!H636 -> 0 | I21: =Adjustments!I634+Adjustments!I636 -> 0 | J21: =Adjustments!J634+Adjustments!J636 -> 0 | K21: =Adjustments!K634+Adjustments!K636 -> 0 | L21: =Adjustments!L634+Adjustments!L636 -> 0 | M21: =Adjustments!M634+Adjustments!M636 -> 0 | N21: =Adjustments!N634+Adjustments!N636 -> 0 | O21: =Adjustments!O634+Adjustments!O636 -> 0 | P21: =Adjustments!P634+Adjustments!P636 -> 0 | R21: =Adjustments!R634+Adjustments!R636 -> 0
A22: =+A21+1 -> 13 | D22: Total Gas Purchase Expenses | F22: =SUM(F20:F21) -> 0 | G22: =SUM(G20:G21) -> 0 | H22: 0 | I22: 0 | J22: 0 | K22: 0 | L22: 0 | M22: 0 | N22: 0 | O22: 0 | P22: =SUM(P20:P21) -> 0 | R22: =SUM(R20:R21) -> 0
A24: =+A22+1 -> 14 | D24: Utah Gathering & CO2 | F24: =Adjustments!F631 -> 0 | G24: =Adjustments!G631 -> 0 | H24: =Adjustments!H631 -> 0 | I24: =Adjustments!I631 -> 0 | J24: =Adjustments!J631 -> 0 | K24: =Adjustments!K631 -> 0 | L24: =Adjustments!L631 -> 0 | M24: =Adjustments!M631 -> 0 | N24: =Adjustments!N631 -> 0 | O24: =Adjustments!O631 -> 0 | P24: =Adjustments!P631 -> 0 | R24: =Adjustments!R631 -> 0
A25: =+A24+1 -> 15 | D25: Wyoming Gathering & CO2 | F25: =Adjustments!F633 -> 0 | G25: =Adjustments!G633 -> 0 | H25: =Adjustments!H633 -> 0 | I25: =Adjustments!I633 -> 0 | J25: =Adjustments!J633 -> 0 | K25: =Adjustments!K633 -> 0 | L25: =Adjustments!L633 -> 0 | M25: =Adjustments!M633 -> 0 | N25: =Adjustments!N633 -> 0 | O25: =Adjustments!O633 -> 0 | P25: =Adjustments!P633 -> 0 | R25: =Adjustments!R633 -> 0
A26: =+A25+1 -> 16 | D26: Total Gathering & CO2 | F26: =SUM(F24:F25) -> 0 | G26: =SUM(G24:G25) -> 0 | H26: 0 | I26: 0 | J26: 0 | K26: 0 | L26: 0 | M26: 0 | N26: 0 | O26: 0 | P26: =SUM(P24:P25) -> 0 | R26: =SUM(R24:R25) -> 0
A28: =+A26+1 -> 17 | C28: O&M Expenses
A29: =+A28+1 -> 18 | D29: Production | F29: =Adjustments!F649 -> 0 | G29: =Adjustments!G649 -> 0 | H29: =Adjustments!H649 -> 0 | I29: =Adjustments!I649 -> 0 | J29: =Adjustments!J649 -> 0 | K29: =Adjustments!K649 -> 0 | L29: =Adjustments!L649 -> 0 | M29: =Adjustments!M649 -> 0 | N29: =Adjustments!N649 -> 0 | O29: =Adjustments!O649 -> 0 | P29: =Adjustments!P649 -> 0 | R29: =Adjustments!R649 -> 0
A30: 19 | D30: Distribution | F30: =Adjustments!F752 -> 0 | G30: =Adjustments!G752 -> 0 | H30: =Adjustments!H752 -> 0 | I30: =Adjustments!I752 -> 0 | J30: =Adjustments!J752 -> 0 | K30: =Adjustments!K752 -> 0 | L30: =Adjustments!L752 -> 0 | M30: =Adjustments!M752 -> 0 | N30: =Adjustments!N752 -> 0 | O30: =Adjustments!O752 -> 0 | P30: =Adjustments!P752 -> 0 | R30: =Adjustments!R752 -> 0
A31: 20 | D31: Customer Accounts | F31: =Adjustments!F805 -> 0 | G31: =Adjustments!G805 -> 0 | H31: =Adjustments!H805 -> 0 | I31: =Adjustments!I805 -> 0 | J31: =Adjustments!J805 -> -1051912.877 | K31: =Adjustments!K805 -> 0 | L31: =Adjustments!L805 -> 0 | M31: =Adjustments!M805 -> 0 | N31: =Adjustments!N805 -> 0 | O31: =Adjustments!O805 -> 0 | P31: =Adjustments!P805 -> 0 | R31: =Adjustments!R805 -> -1051912.877
A32: 21 | D32: Customer Service & Information | F32: =Adjustments!F833 -> 0 | G32: =Adjustments!G833 -> -26950675.52 | H32: =Adjustments!H833 -> 0 | I32: =Adjustments!I833 -> 0 | J32: =Adjustments!J833 -> 0 | K32: =Adjustments!K833 -> 0 | L32: =Adjustments!L833 -> 0 | M32: =Adjustments!M833 -> -22941.04467 | N32: =Adjustments!N833 -> 0 | O32: =Adjustments!O833 -> 0 | P32: =Adjustments!P833 -> 0 | R32: =Adjustments!R833 -> -26973616.56
A33: 22 | D33: Administrative & General | F33: =Adjustments!F889 -> 0 | G33: =Adjustments!G889 -> 0 | H33: =Adjustments!H889 -> 0 | I33: =Adjustments!I889 -> 0 | J33: =Adjustments!J889 -> 0 | K33: =Adjustments!K889 -> -3203728.645 | L33: =Adjustments!L889 -> -81518.74371 | M33: =Adjustments!M889 -> 0 | N33: =Adjustments!N889 -> -228710.9243 | O33: =Adjustments!O889 -> 388350.326 | P33: =Adjustments!P889 -> 3108418.312 | R33: =Adjustments!R889 -> -17189.6749
A34: 23 | D34: Total O&M Expense | F34: =SUM(F29:F33) -> 0 | G34: =SUM(G29:G33) -> -26950675.52 | H34: 0 | I34: 0 | J34: -1051912.877 | K34: -3203728.645 | L34: -81518.74371 | M34: -22941.04467 | N34: -228710.9243 | O34: 388350.326 | P34: =SUM(P29:P33) -> 3108418.312 | R34: =SUM(R29:R33) -> -28042719.12
A36: =+A34+1 -> 24 | C36: Other Operating Expenses
A37: =+A36+1 -> 25 | D37: Depreciation, Deplection, Amortization | F37: =Adjustments!F913 -> 0 | G37: =Adjustments!G913 -> 0 | H37: =Adjustments!H913 -> 0 | I37: =Adjustments!I913 -> 0 | J37: =Adjustments!J913 -> 0 | K37: =Adjustments!K913 -> 0 | L37: =Adjustments!L913 -> 0 | M37: =Adjustments!M913 -> 0 | N37: =Adjustments!N913 -> 0 | O37: =Adjustments!O913 -> 0 | P37: =Adjustments!P913 -> 0 | R37: =Adjustments!R913 -> 0
A38: =+A37+1 -> 26 | D38: Taxes Other Than Income Taxes | F38: =Adjustments!F921 -> 0 | G38: =Adjustments!G921 -> 0 | H38: =Adjustments!H921 -> 0 | I38: =Adjustments!I921 -> 0 | J38: =Adjustments!J921 -> 0 | K38: =Adjustments!K921 -> 0 | L38: =Adjustments!L921 -> 0 | M38: =Adjustments!M921 -> 0 | N38: =Adjustments!N921 -> 0 | O38: =Adjustments!O921 -> 0 | P38: =Adjustments!P921 -> 0 | R38: =Adjustments!R921 -> 0
A39: =+A38+1 -> 27 | D39: Income Taxes | F39: =Adjustments!F923+Adjustments!F925+Adjustments!F927+Adjustments!F929 -> 0 | G39: =Adjustments!G923+Adjustments!G925+Adjustments!G927+Adjustments!G929 -> 0 | H39: =Adjustments!H923+Adjustments!H925+Adjustments!H927+Adjustments!H929 -> 0 | I39: =Adjustments!I923+Adjustments!I925+Adjustments!I927+Adjustments!I929 -> 0 | J39: =Adjustments!J923+Adjustments!J925+Adjustments!J927+Adjustments!J929 -> 400520.8247 | K39: =Adjustments!K923+Adjustments!K925+Adjustments!K927+Adjustments!K929 -> 1219834.899 | L39: =Adjustments!L923+Adjustments!L925+Adjustments!L927+Adjustments!L929 -> 31038.64888 | M39: =Adjustments!M923+Adjustments!M925+Adjustments!M927+Adjustments!M929 -> 8734.911729 | N39: =Adjustments!N923+Adjustments!N925+Adjustments!N927+Adjustments!N929 -> 87082.77081 | O39: =Adjustments!O923+Adjustments!O925+Adjustments!O927+Adjustments!O929 -> -147866.2313 | P39: =Adjustments!P923+Adjustments!P925+Adjustments!P927+Adjustments!P929 -> -1183545.037 | R39: =Adjustments!R923+Adjustments!R925+Adjustments!R927+Adjustments!R929 -> 415800.7868
A40: =+A39+1 -> 28 | D40: Total Other Operating Expenses | F40: =SUM(F37:F39) -> 0 | G40: =SUM(G37:G39) -> 0 | H40: 0 | I40: 0 | J40: 400520.8247 | K40: 1219834.899 | L40: 31038.64888 | M40: 8734.911729 | N40: 87082.77081 | O40: -147866.2313 | P40: =SUM(P37:P39) -> -1183545.037 | R40: =SUM(R37:R39) -> 415800.7868
A43: =+A40+1 -> 29 | C43: Total Utility Operating Expenses | F43: =+F22+F26+F34+F40 -> 0 | G43: =+G22+G26+G34+G40 -> -26950675.52 | H43: 0 | I43: 0 | J43: -651392.0528 | K43: -1983893.746 | L43: -50480.09483 | M43: -14206.13294 | N43: -141628.1535 | O43: 240484.0947 | P43: =+P22+P26+P34+P40 -> 1924873.275 | R43: =+R22+R26+R34+R40 -> -27626918.33
A46: =+A43+1 -> 30 | B46: NET OPERATING INCOME | F46: =+F16-F43 -> 0 | G46: =+G16-G43 -> 0 | H46: 0 | I46: 0 | J46: 651392.0528 | K46: 1983893.746 | L46: 50480.09483 | M46: 14206.13294 | N46: 141628.1535 | O46: -240484.0947 | P46: =+P16-P43 -> -1924873.275 | R46: =+R16-R43 -> 676242.8102
A49: =+A46+1 -> 31 | B49: RATE BASE SUMMARY
A51: =+A49+1 -> 32 | B51: Net Utility Plant
A52: =+A51+1 -> 33 | C52: 101 | D52: Gas Plant In Service | F52: =Adjustments!F1095 -> -73965229.44 | G52: =Adjustments!G1095 -> 0 | H52: =Adjustments!H1095 -> 0 | I52: =Adjustments!I1095 -> -5037992.62 | J52: =Adjustments!J1095 -> 0 | K52: =Adjustments!K1095 -> 0 | L52: =Adjustments!L1095 -> 0 | M52: =Adjustments!M1095 -> 0 | N52: =Adjustments!N1095 -> 0 | O52: =Adjustments!O1095 -> 0 | P52: =Adjustments!P1095 -> 0 | R52: =Adjustments!R1095 -> -79003222.06
A53: 34 | C53: 105 | D53: Gas Plant Held For Future Use | F53: =Adjustments!F1099 -> 0 | G53: =Adjustments!G1099 -> 0 | H53: =Adjustments!H1099 -> 0 | I53: =Adjustments!I1099 -> 0 | J53: =Adjustments!J1099 -> 0 | K53: =Adjustments!K1099 -> 0 | L53: =Adjustments!L1099 -> 0 | M53: =Adjustments!M1099 -> 0 | N53: =Adjustments!N1099 -> 0 | O53: =Adjustments!O1099 -> 0 | P53: =Adjustments!P1099 -> 0 | R53: =Adjustments!R1099 -> 0
A54: 35 | C54: 106 | D54: Completed Construction Not Classified | F54: =Adjustments!F1106 -> -7378089.787 | G54: =Adjustments!G1106 -> 0 | H54: =Adjustments!H1106 -> 0 | I54: =Adjustments!I1106 -> 0 | J54: =Adjustments!J1106 -> 0 | K54: =Adjustments!K1106 -> 0 | L54: =Adjustments!L1106 -> 0 | M54: =Adjustments!M1106 -> 0 | N54: =Adjustments!N1106 -> 0 | O54: =Adjustments!O1106 -> 0 | P54: =Adjustments!P1106 -> 0 | R54: =Adjustments!R1106 -> -7378089.787
A55: 36 | C55: 108 | D55: Accumulated Depreciation | F55: =Adjustments!F1113 -> 19080639.1 | G55: =Adjustments!G1113 -> 0 | H55: =Adjustments!H1113 -> 0 | I55: =Adjustments!I1113 -> 4253223.177 | J55: =Adjustments!J1113 -> 0 | K55: =Adjustments!K1113 -> 0 | L55: =Adjustments!L1113 -> 0 | M55: =Adjustments!M1113 -> 0 | N55: =Adjustments!N1113 -> 0 | O55: =Adjustments!O1113 -> 0 | P55: =Adjustments!P1113 -> 0 | R55: =Adjustments!R1113 -> 23333862.28
A56: 37 | C56: 111 | D56: Accumulated Amort & Depletion | F56: =Adjustments!F1120 -> 9812.689167 | G56: =Adjustments!G1120 -> 0 | H56: =Adjustments!H1120 -> 0 | I56: =Adjustments!I1120 -> 384021.7544 | J56: =Adjustments!J1120 -> 0 | K56: =Adjustments!K1120 -> 0 | L56: =Adjustments!L1120 -> 0 | M56: =Adjustments!M1120 -> 0 | N56: =Adjustments!N1120 -> 0 | O56: =Adjustments!O1120 -> 0 | P56: =Adjustments!P1120 -> 0 | R56: =Adjustments!R1120 -> 393834.4436
A57: 38 | C57: 254 | D57: Other Regulatory Liabilities ARC | F57: =Adjustments!F1127 -> 4380342.75 | G57: =Adjustments!G1127 -> 0 | H57: =Adjustments!H1127 -> 0 | I57: =Adjustments!I1127 -> 0 | J57: =Adjustments!J1127 -> 0 | K57: =Adjustments!K1127 -> 0 | L57: =Adjustments!L1127 -> 0 | M57: =Adjustments!M1127 -> 0 | N57: =Adjustments!N1127 -> 0 | O57: =Adjustments!O1127 -> 0 | P57: =Adjustments!P1127 -> 0 | R57: =Adjustments!R1127 -> 4380342.75
A58: 39 | C58: Total Net Utility Plant | F58: =SUM(F52:F57) -> -57872524.68 | G58: =SUM(G52:G57) -> 0 | H58: 0 | I58: -400747.6893 | J58: 0 | K58: 0 | L58: 0 | M58: 0 | N58: 0 | O58: 0 | P58: =SUM(P52:P57) -> 0 | R58: =SUM(R52:R57) -> -58273272.37
A60: =+A58+1 -> 40 | B60: Other Rate Base Accounts
A61: =+A60+1 -> 41 | C61: 154 | D61: Materials & Supplies | F61: =Adjustments!F1145 -> 599626.0833 | G61: =Adjustments!G1145 -> 0 | H61: =Adjustments!H1145 -> 0 | I61: =Adjustments!I1145 -> 0 | J61: =Adjustments!J1145 -> 0 | K61: =Adjustments!K1145 -> 0 | L61: =Adjustments!L1145 -> 0 | M61: =Adjustments!M1145 -> 0 | N61: =Adjustments!N1145 -> 0 | O61: =Adjustments!O1145 -> 0 | P61: =Adjustments!P1145 -> 0 | R61: =Adjustments!R1145 -> 599626.0833
A62: 42 | C62: 164-1 | D62: Gas Stored Underground | F62: =Adjustments!F1149 -> 0 | G62: =Adjustments!G1149 -> 0 | H62: =Adjustments!H1149 -> -26098151.32 | I62: =Adjustments!I1149 -> 0 | J62: =Adjustments!J1149 -> 0 | K62: =Adjustments!K1149 -> 0 | L62: =Adjustments!L1149 -> 0 | M62: =Adjustments!M1149 -> 0 | N62: =Adjustments!N1149 -> 0 | O62: =Adjustments!O1149 -> 0 | P62: =Adjustments!P1149 -> 0 | R62: =Adjustments!R1149 -> -26098151.32
A63: 43 | C63: 165 | D63: Prepayments | F63: =Adjustments!F1153 -> -1181268.431 | G63: =Adjustments!G1153 -> 0 | H63: =Adjustments!H1153 -> 0 | I63: =Adjustments!I1153 -> 0 | J63: =Adjustments!J1153 -> 0 | K63: =Adjustments!K1153 -> 0 | L63: =Adjustments!L1153 -> 0 | M63: =Adjustments!M1153 -> 0 | N63: =Adjustments!N1153 -> 0 | O63: =Adjustments!O1153 -> 0 | P63: =Adjustments!P1153 -> 0 | R63: =Adjustments!R1153 -> -1181268.431
C64: 190 | D64: Accum Deferred Income Taxes | F64: =Adjustments!F1160+Adjustments!F1167 -> -145176.2767 | G64: =Adjustments!G1160+Adjustments!G1167 -> 0 | H64: =Adjustments!H1160+Adjustments!H1167 -> 0 | I64: =Adjustments!I1160+Adjustments!I1167 -> 0 | J64: =Adjustments!J1160+Adjustments!J1167 -> 0 | K64: =Adjustments!K1160+Adjustments!K1167 -> 0 | L64: =Adjustments!L1160+Adjustments!L1167 -> 0 | M64: =Adjustments!M1160+Adjustments!M1167 -> 0 | N64: =Adjustments!N1160+Adjustments!N1167 -> 0 | O64: =Adjustments!O1160+Adjustments!O1167 -> 0 | P64: =Adjustments!P1160+Adjustments!P1167 -> 0 | R64: =Adjustments!R1160+Adjustments!R1167 -> -145176.2767
A65: =+A63+1 -> 44 | C65: 235-1 | D65: Customer Deposits | F65: =Adjustments!F1172 -> -48703.22625 | G65: =Adjustments!G1172 -> 0 | H65: =Adjustments!H1172 -> 0 | I65: =Adjustments!I1172 -> 0 | J65: =Adjustments!J1172 -> 0 | K65: =Adjustments!K1172 -> 0 | L65: =Adjustments!L1172 -> 0 | M65: =Adjustments!M1172 -> 0 | N65: =Adjustments!N1172 -> 0 | O65: =Adjustments!O1172 -> 0 | P65: =Adjustments!P1172 -> 0 | R65: =Adjustments!R1172 -> -48703.22625
A66: 45 | C66: 252 | D66: Misc Customer Credits | F66: =Adjustments!F1177 -> 2395329.116 | G66: =Adjustments!G1177 -> 0 | H66: =Adjustments!H1177 -> 0 | I66: =Adjustments!I1177 -> 0 | J66: =Adjustments!J1177 -> 0 | K66: =Adjustments!K1177 -> 0 | L66: =Adjustments!L1177 -> 0 | M66: =Adjustments!M1177 -> 0 | N66: =Adjustments!N1177 -> 0 | O66: =Adjustments!O1177 -> 0 | P66: =Adjustments!P1177 -> 0 | R66: =Adjustments!R1177 -> 2395329.116
A67: 46 | C67: 253-1 | D67: Unclaimed Customer Deposits | F67: =Adjustments!F1181 -> 1013.11 | G67: =Adjustments!G1181 -> 0 | H67: =Adjustments!H1181 -> 0 | I67: =Adjustments!I1181 -> 0 | J67: =Adjustments!J1181 -> 0 | K67: =Adjustments!K1181 -> 0 | L67: =Adjustments!L1181 -> 0 | M67: =Adjustments!M1181 -> 0 | N67: =Adjustments!N1181 -> 0 | O67: =Adjustments!O1181 -> 0 | P67: =Adjustments!P1181 -> 0 | R67: =Adjustments!R1181 -> 1013.11
A68: 47 | C68: 255 | D68: Deferred Investment Tax Credits | F68: =Adjustments!F1188 -> -80753.57167 | G68: =Adjustments!G1188 -> 0 | H68: =Adjustments!H1188 -> 0 | I68: =Adjustments!I1188 -> 0 | J68: =Adjustments!J1188 -> 0 | K68: =Adjustments!K1188 -> 0 | L68: =Adjustments!L1188 -> 0 | M68: =Adjustments!M1188 -> 0 | N68: =Adjustments!N1188 -> 0 | O68: =Adjustments!O1188 -> 0 | P68: =Adjustments!P1188 -> 0 | R68: =Adjustments!R1188 -> -80753.57167
A69: 48 | C69: 282 | D69: Accum Deferred Income Taxes | F69: =(Adjustments!F1195+Adjustments!F1202+Adjustments!F1206) -> 15977300.71 | G69: =(Adjustments!G1195+Adjustments!G1202+Adjustments!G1206) -> 0 | H69: =(Adjustments!H1195+Adjustments!H1202+Adjustments!H1206) -> 0 | I69: =(Adjustments!I1195+Adjustments!I1202+Adjustments!I1206) -> 0 | J69: =(Adjustments!J1195+Adjustments!J1202+Adjustments!J1206) -> 0 | K69: =(Adjustments!K1195+Adjustments!K1202+Adjustments!K1206) -> 0 | L69: =(Adjustments!L1195+Adjustments!L1202+Adjustments!L1206) -> 0 | M69: =(Adjustments!M1195+Adjustments!M1202+Adjustments!M1206) -> 0 | N69: =(Adjustments!N1195+Adjustments!N1202+Adjustments!N1206) -> 0 | O69: =(Adjustments!O1195+Adjustments!O1202+Adjustments!O1206) -> 0 | P69: =(Adjustments!P1195+Adjustments!P1202+Adjustments!P1206) -> 0 | R69: =(Adjustments!R1195+Adjustments!R1202+Adjustments!R1206) -> 15977300.71
A70: 49 | D70: Working Capital - Cash | F70: =Adjustments!F1244 -> 0 | G70: =Adjustments!G1244 -> -74945.02919 | H70: =Adjustments!H1244 -> 0 | I70: =Adjustments!I1244 -> 0 | J70: =Adjustments!J1244 -> -1811.405297 | K70: =Adjustments!K1244 -> -5516.85521 | L70: =Adjustments!L1244 -> -140.3761541 | M70: =Adjustments!M1244 -> -39.50472586 | N70: =Adjustments!N1244 -> -393.8426734 | O70: =Adjustments!O1244 -> 668.7434415 | P70: =Adjustments!P1244 -> 5352.729791 | R70: =Adjustments!R1244 -> -76825.54001
A71: 50 | C71: Total Other Rate Base Accounts | F71: =SUM(F61:F70) -> 17517367.51 | G71: =SUM(G61:G70) -> -74945.02919 | H71: -26098151.32 | I71: 0 | J71: -1811.405297 | K71: -5516.85521 | L71: -140.3761541 | M71: -39.50472586 | N71: -393.8426734 | O71: 668.7434415 | P71: =SUM(P61:P70) -> 5352.729791 | R71: =SUM(R61:R70) -> -8657609.35
A74: =+A71+1 -> 51 | B74: TOTAL RATE BASE | F74: =+F58+F71 -> -40355157.17 | G74: =+G58+G71 -> -74945.02919 | H74: -26098151.32 | I74: -400747.6893 | J74: -1811.405297 | K74: -5516.85521 | L74: -140.3761541 | M74: -39.50472586 | N74: -393.8426734 | O74: 668.7434415 | P74: =+P58+P71 -> 5352.729791 | R74: =+R58+R71 -> -66930881.72

Sheet Adjustments
A1: ='Control Panel'!$B$1 -> Questar Gas Company | F1: =IF(F8="Y",1,0) -> 1 | G1: =IF(G8="Y",1,0) -> 1 | H1: 1 | I1: 1 | J1: 1 | K1: 1 | L1: 1 | M1: 1 | N1: 1 | O1: 1 | P1: =IF(P8="Y",1,0) -> 1
A2: ='Control Panel'!$B$2 -> Utah - JUN 2015 Adjusted Avg Results
A3: ='Control Panel'!$B$3 -> 12 Months Ended : Jun-2015
A4: FILLED AND EXTERNAL PARTY ADJUSTMENTS
F6: 1 | G6: 2 | H6: 3 | I6: 4 | J6: 5 | K6: 6 | L6: 7 | M6: 8 | N6: 9 | O6: 10 | P6: 11
F8: =VLOOKUP(F$6,'Control Panel'!$A$8:$F$54,5) -> Y | G8: =VLOOKUP(G$6,'Control Panel'!$A$8:$F$54,5) -> Y | H8: =VLOOKUP(H$6,'Control Panel'!$A$8:$F$54,5) -> Y | I8: =VLOOKUP(I$6,'Control Panel'!$A$8:$F$54,5) -> Y | J8: =VLOOKUP(J$6,'Control Panel'!$A$8:$F$54,5) -> Y | K8: =VLOOKUP(K$6,'Control Panel'!$A$8:$F$54,5) -> Y | L8: =VLOOKUP(L$6,'Control Panel'!$A$8:$F$54,5) -> Y | M8: =VLOOKUP(M$6,'Control Panel'!$A$8:$F$54,5) -> Y | N8: =VLOOKUP(N$6,'Control Panel'!$A$8:$F$54,5) -> Y | O8: =VLOOKUP(O$6,'Control Panel'!$A$8:$F$54,5) -> Y | P8: =VLOOKUP(P$6,'Control Panel'!$A$8:$F$54,5) -> Y
A9: FERC Acct | C9: Description | F9: =VLOOKUP(F$6,Adjustments,2) -> AVG RB JUN 2015 | G9: Energy Efficiency Services Adjustment | H9: Underground Storage | I9: Wexpro | J9: Bad Debt | K9: QGC Incentives | L9: QGC Sporting Events | M9: QGC Advertising | N9: QGC Don & Membership | O9: QGC Reserve accrual | P9: QGC Labor Adj | R9: TOTAL QGC ADJUSTMENTS | T9: RESULTING TOTAL | U9: CHECKS MUST BE (0)
A10: UTILITY OPERATING REVENUE
A11: TARIFF DTH SALES AND REVENUE
A15: Utah
B16: GS-R | C16: Distribution Non-Gas Rev | G16: =G1*Revenue!$I$15 -> 0 | R16: =SUM(F16:P16) -> 0 | T16: =SUM(R16:R16) -> 0 | U16: =+T16-'ROR-Model'!G16 -> 0
U17: =+T17-'ROR-Model'!G17 -> 0
C18: Supplier Non-Gas Revenue | G18: =G1*Revenue!$I$17 -> 0 | R18: =SUM(F18:P18) -> 0 | T18: =SUM(R18:R18) -> 0 | U18: =+T18-'ROR-Model'!G18 -> 0
U19: =+T19-'ROR-Model'!G19 -> 0
C20: Commodity Revenue | G20: =G1*Revenue!$I$19 -> 0 | R20: =SUM(F20:P20) -> 0 | T20: =SUM(R20:R20) -> 0 | U20: =+T20-'ROR-Model'!G20 -> 0
C21: Total Revenue | F21: =SUM(F16:F20) -> 0 | G21: =G1*SUM(G16:G20) -> 0 | H21: =SUM(H16:H20) -> 0 | I21: =SUM(I16:I20) -> 0 | J21: 0 | K21: 0 | L21: 0 | M21: 0 | N21: 0 | O21: =SUM(O16:O20) -> 0 | P21: =SUM(P16:P20) -> 0 | R21: =SUM(F21:P21) -> 0 | T21: =SUM(R21:R21) -> 0 | U21: =+T21-'ROR-Model'!G21 -> 0
U22: =+T22-'ROR-Model'!G22 -> 0
C23: Total Dth | G23: =G1*Revenue!$I$22 -> 0 | R23: =SUM(F23:P23) -> 0 | T23: =SUM(R23:R23) -> 0 | U23: =+T23-'ROR-Model'!G23 -> 0
U24: =+T24-'ROR-Model'!G24 -> 0
B25: GS-C | C25: Distribution Non-Gas Rev | G25: =G1*Revenue!$I$24 -> 0 | R25: =SUM(F25:P25) -> 0 | T25: =SUM(R25:R25) -> 0 | U25: =+T25-'ROR-Model'!G25 -> 0
U26: =+T26-'ROR-Model'!G26 -> 0
C27: Supplier Non-Gas Revenue | G27: =G1*Revenue!$I$26 -> 0 | R27: =SUM(F27:P27) -> 0 | T27: =SUM(R27:R27) -> 0 | U27: =+T27-'ROR-Model'!G27 -> 0
U28: =+T28-'ROR-Model'!G28 -> 0
C29: Commodity Revenue | G29: =G1*Revenue!$I$28 -> 0 | R29: =SUM(F29:P29) -> 0 | T29: =SUM(R29:R29) -> 0 | U29: =+T29-'ROR-Model'!G29 -> 0
C30: Total Revenue | F30: =SUM(F25:F29) -> 0 | G30: =G1*SUM(G25:G29) -> 0 | H30: =SUM(H25:H29) -> 0 | I30: =SUM(I25:I29) -> 0 | J30: 0 | K30: 0 | L30: 0 | M30: 0 | N30: 0 | O30: =SUM(O25:O29) -> 0 | P30: =SUM(P25:P29) -> 0 | R30: =SUM(F30:P30) -> 0 | T30: =SUM(R30:R30) -> 0 | U30: =+T30-'ROR-Model'!G30 -> 0
U31: =+T31-'ROR-Model'!G31 -> 0
C32: Total Dth | G32: =G1*Revenue!$I$31 -> 0 | R32: =SUM(F32:P32) -> 0 | T32: =SUM(R32:R32) -> 0 | U32: =+T32-'ROR-Model'!G32 -> 0
U33: =+T33-'ROR-Model'!G33 -> 0
B34: GSS | C34: Distribution Non-Gas Rev | G34: =G1*Revenue!$I$33 -> 0 | R34: =SUM(F34:P34) -> 0 | T34: =SUM(R34:R34) -> 0 | U34: =+T34-'ROR-Model'!G34 -> 0
U35: =+T35-'ROR-Model'!G35 -> 0
C36: Supplier Non-Gas Revenue | G36: =G1*Revenue!$I$35 -> 0 | R36: =SUM(F36:P36) -> 0 | T36: =SUM(R36:R36) -> 0 | U36: =+T36-'ROR-Model'!G36 -> 0
U37: =+T37-'ROR-Model'!G37 -> 0
C38: Commodity Revenue | G38: =G1*Revenue!$I$37 -> 0 | R38: =SUM(F38:P38) -> 0 | T38: =SUM(R38:R38) -> 0 | U38: =+T38-'ROR-Model'!G38 -> 0
C39: Total Revenue | F39: =SUM(F34:F38) -> 0 | G39: =G1*SUM(G34:G38) -> 0 | H39: =SUM(H34:H38) -> 0 | I39: =SUM(I34:I38) -> 0 | J39: 0 | K39: 0 | L39: 0 | M39: 0 | N39: 0 | O39: =SUM(O34:O38) -> 0 | P39: =SUM(P34:P38) -> 0 | R39: =SUM(F39:P39) -> 0 | T39: =SUM(R39:R39) -> 0 | U39: =+T39-'ROR-Model'!G39 -> 0
U40: =+T40-'ROR-Model'!G40 -> 0
C41: Total Dth | G41: =G1*Revenue!$I$40 -> 0 | R41: =SUM(F41:P41) -> 0 | T41: =SUM(R41:R41) -> 0 | U41: =+T41-'ROR-Model'!G41 -> 0
U42: =+T42-'ROR-Model'!G42 -> 0
B43: F-1 | C43: Distribution Non-Gas Rev | G43: =G1*Revenue!$I$42 -> 0 | R43: =SUM(F43:P43) -> 0 | T43: =SUM(R43:R43) -> 0 | U43: =+T43-'ROR-Model'!G43 -> 0
U44: =+T44-'ROR-Model'!G44 -> 0
C45: Supplier Non-Gas Revenue | G45: =G1*Revenue!$I$44 -> 0 | R45: =SUM(F45:P45) -> 0 | T45: =SUM(R45:R45) -> 0 | U45: =+T45-'ROR-Model'!G45 -> 0
U46: =+T46-'ROR-Model'!G46 -> 0
C47: Commodity Revenue | G47: =G1*Revenue!$I$46 -> 0 | R47: =SUM(F47:P47) -> 0 | T47: =SUM(R47:R47) -> 0 | U47: =+T47-'ROR-Model'!G47 -> 0
C48: Total Revenue | F48: =SUM(F43:F47) -> 0 | G48: =G1*SUM(G43:G47) -> 0 | H48: =SUM(H43:H47) -> 0 | I48: =SUM(I43:I47) -> 0 | J48: 0 | K48: 0 | L48: 0 | M48: 0 | N48: 0 | O48: =SUM(O43:O47) -> 0 | P48: =SUM(P43:P47) -> 0 | R48: =SUM(R43:R47) -> 0 | T48: =SUM(T43:T47) -> 0 | U48: =+T48-'ROR-Model'!G48 -> 0
U49: =+T49-'ROR-Model'!G49 -> 0
C50: Total Dth | G50: =G1*Revenue!$I$49 -> 0 | R50: =SUM(F50:P50) -> 0 | T50: =SUM(R50:R50) -> 0 | U50: =+T50-'ROR-Model'!G50 -> 0
U51: =+T51-'ROR-Model'!G51 -> 0
B52: F-3 | C52: Distribution Non-Gas Rev | G52: =G1*Revenue!$I$51 -> 0 | R52: =SUM(F52:P52) -> 0 | T52: =SUM(R52:R52) -> 0 | U52: =+T52-'ROR-Model'!G52 -> 0
C53: Supplier Non-Gas Revenue | R53: =SUM(F53:P53) -> 0 | T53: =SUM(R53:R53) -> 0 | U53: =+T53-'ROR-Model'!G53 -> 0
C54: Supplier Non-Gas Demand Revenue | G54: =G1*Revenue!$I$53 -> 0 | R54: =SUM(F54:P54) -> 0 | T54: =SUM(R54:R54) -> 0 | U54: =+T54-'ROR-Model'!G54 -> 0
C55: Commodity Tariff Revenue | R55: =SUM(F55:P55) -> 0 | T55: =SUM(R55:R55) -> 0 | U55: =+T55-'ROR-Model'!G55 -> 0
C56: Commodity Demand Revenue | G56: =G1*Revenue!$I$55 -> 0 | R56: =SUM(F56:P56) -> 0 | T56: =SUM(R56:R56) -> 0 | U56: =+T56-'ROR-Model'!G56 -> 0
C57: Total Revenue | F57: =SUM(F52:F56) -> 0 | G57: =G1*SUM(G52:G56) -> 0 | H57: =SUM(H52:H56) -> 0 | I57: =SUM(I52:I56) -> 0 | J57: 0 | K57: 0 | L57: 0 | M57: 0 | N57: 0 | O57: =SUM(O52:O56) -> 0 | P57: =SUM(P52:P56) -> 0 | R57: =SUM(R52:R56) -> 0 | T57: =SUM(T52:T56) -> 0 | U57: =+T57-'ROR-Model'!G57 -> 0
U58: =+T58-'ROR-Model'!G58 -> 0
C59: Total Sales Dth | G59: =G1*Revenue!$I$58 -> 0 | R59: =SUM(F59:P59) -> 0 | T59: =SUM(R59:R59) -> 0 | U59: =+T59-'ROR-Model'!G59 -> 0
U60: =+T60-'ROR-Model'!G60 -> 0
B61: NGV | C61: Distribution Non-Gas Rev | G61: =G1*Revenue!$I$60 -> 0 | R61: =SUM(F61:P61) -> 0 | T61: =SUM(R61:R61) -> 0 | U61: =+T61-'ROR-Model'!G61 -> 0
G62: =G1*Revenue!$I$61 -> 0 | U62: =+T62-'ROR-Model'!G62 -> 0
C63: Supplier Non-Gas Revenue | G63: =G1*Revenue!$I$62 -> 0 | R63: =SUM(F63:P63) -> 0 | T63: =SUM(R63:R63) -> 0 | U63: =+T63-'ROR-Model'!G63 -> 0
G64: =G1*Revenue!$I$63 -> 0 | U64: =+T64-'ROR-Model'!G64 -> 0
C65: Commodity Revenue | G65: =G1*Revenue!$I$64 -> 0 | R65: =SUM(F65:P65) -> 0 | T65: =SUM(R65:R65) -> 0 | U65: =+T65-'ROR-Model'!G65 -> 0
C66: Total Revenue | F66: =SUM(F61:F65) -> 0 | G66: =G1*SUM(G61:G65) -> 0 | H66: =SUM(H61:H65) -> 0 | I66: =SUM(I61:I65) -> 0 | J66: 0 | K66: 0 | L66: 0 | M66: 0 | N66: 0 | O66: =SUM(O61:O65) -> 0 | P66: =SUM(P61:P65) -> 0 | R66: =SUM(R61:R65) -> 0 | T66: =SUM(T61:T65) -> 0 | U66: =+T66-'ROR-Model'!G66 -> 0
U67: =+T67-'ROR-Model'!G67 -> 0
C68: Total Dth | G68: =G1*Revenue!$I$67 -> 0 | R68: =SUM(F68:P68) -> 0 | T68: =SUM(R68:R68) -> 0 | U68: =+T68-'ROR-Model'!G68 -> 0
U69: =+T69-'ROR-Model'!G69 -> 0
B70: F-4 | C70: Distribution Non-Gas Rev | G70: =G1*Revenue!$I$69 -> 0 | R70: =SUM(F70:P70) -> 0 | T70: =SUM(R70:R70) -> 0 | U70: =+T70-'ROR-Model'!G70 -> 0
U71: =+T71-'ROR-Model'!G71 -> 0
C72: Supplier Non-Gas Revenue | G72: =G1*Revenue!$I$71 -> 0 | R72: =SUM(F72:P72) -> 0 | T72: =SUM(R72:R72) -> 0 | U72: =+T72-'ROR-Model'!G72 -> 0
U73: =+T73-'ROR-Model'!G73 -> 0
C74: Commodity Revenue | G74: =G1*Revenue!$I$73 -> 0 | R74: =SUM(F74:P74) -> 0 | T74: =SUM(R74:R74) -> 0 | U74: =+T74-'ROR-Model'!G74 -> 0
C75: Total Revenue | F75: =SUM(F70:F74) -> 0 | G75: =G1*SUM(G70:G74) -> 0 | H75: =SUM(H70:H74) -> 0 | I75: =SUM(I70:I74) -> 0 | J75: 0 | K75: 0 | L75: 0 | M75: 0 | N75: 0 | O75: =SUM(O70:O74) -> 0 | P75: =SUM(P70:P74) -> 0 | R75: =SUM(R70:R74) -> 0 | T75: =SUM(T70:T74) -> 0 | U75: =+T75-'ROR-Model'!G75 -> 0
U76: =+T76-'ROR-Model'!G76 -> 0
C77: Total Dth | G77: =G1*Revenue!$I$76 -> 0 | R77: =SUM(F77:P77) -> 0 | T77: =SUM(R77:R77) -> 0 | U77: =+T77-'ROR-Model'!G77 -> 0
U78: =+T78-'ROR-Model'!G78 -> 0
B79: I-2 | C79: Distribution Non-Gas Rev | G79: =G1*Revenue!$I$78 -> 0 | R79: =SUM(F79:P79) -> 0 | T79: =SUM(R79:R79) -> 0 | U79: =+T79-'ROR-Model'!G79 -> 0
U80: =+T80-'ROR-Model'!G80 -> 0
C81: Supplier Non-Gas Revenue | G81: =G1*Revenue!$I$80 -> 0 | R81: =SUM(F81:P81) -> 0 | T81: =SUM(R81:R81) -> 0 | U81: =+T81-'ROR-Model'!G81 -> 0
U82: =+T82-'ROR-Model'!G82 -> 0
C83: Commodity Revenue | G83: =G1*Revenue!$I$82 -> 0 | R83: =SUM(F83:P83) -> 0 | T83: =SUM(R83:R83) -> 0 | U83: =+T83-'ROR-Model'!G83 -> 0
C84: Total Revenue | F84: =SUM(F79:F83) -> 0 | G84: =G1*SUM(G79:G83) -> 0 | H84: =SUM(H79:H83) -> 0 | I84: =SUM(I79:I83) -> 0 | J84: 0 | K84: 0 | L84: 0 | M84: 0 | N84: 0 | O84: =SUM(O79:O83) -> 0 | P84: =SUM(P79:P83) -> 0 | R84: =SUM(R79:R83) -> 0 | T84: =SUM(T79:T83) -> 0 | U84: =+T84-'ROR-Model'!G84 -> 0
U85: =+T85-'ROR-Model'!G85 -> 0
C86: Total Dth | G86: =G1*Revenue!$I$85 -> 0 | R86: =SUM(F86:P86) -> 0 | T86: =SUM(R86:R86) -> 0 | U86: =+T86-'ROR-Model'!G86 -> 0
U87: =+T87-'ROR-Model'!G87 -> 0
B88: I-4 | C88: Distribution Non-Gas Rev | G88: =G1*Revenue!$I$87 -> 0 | R88: =SUM(F88:P88) -> 0 | T88: =SUM(R88:R88) -> 0 | U88: =+T88-'ROR-Model'!G88 -> 0
U89: =+T89-'ROR-Model'!G89 -> 0
C90: Supplier Non-Gas Revenue | G90: =G1*Revenue!$I$89 -> 0 | R90: =SUM(F90:P90) -> 0 | T90: =SUM(R90:R90) -> 0 | U90: =+T90-'ROR-Model'!G90 -> 0
U91: =+T91-'ROR-Model'!G91 -> 0
C92: Commodity Revenue | G92: =G1*Revenue!$I$91 -> 0 | R92: =SUM(F92:P92) -> 0 | T92: =SUM(R92:R92) -> 0 | U92: =+T92-'ROR-Model'!G92 -> 0
C93: Total Revenue | F93: =SUM(F88:F92) -> 0 | G93: =G1*SUM(G88:G92) -> 0 | H93: =SUM(H88:H92) -> 0 | I93: =SUM(I88:I92) -> 0 | J93: 0 | K93: 0 | L93: 0 | M93: 0 | N93: 0 | O93: =SUM(O88:O92) -> 0 | P93: =SUM(P88:P92) -> 0 | R93: =SUM(R88:R92) -> 0 | T93: =SUM(T88:T92) -> 0 | U93: =+T93-'ROR-Model'!G93 -> 0
U94: =+T94-'ROR-Model'!G94 -> 0
C95: Total Dth | G95: =G1*Revenue!$I$94 -> 0 | R95: =SUM(F95:P95) -> 0 | T95: =SUM(R95:R95) -> 0 | U95: =+T95-'ROR-Model'!G95 -> 0
U96: =+T96-'ROR-Model'!G96 -> 0
B97: IS-2 | C97: Distribution Non-Gas Rev | G97: =G1*Revenue!$I$96 -> 0 | R97: =SUM(F97:P97) -> 0 | T97: =SUM(R97:R97) -> 0 | U97: =+T97-'ROR-Model'!G97 -> 0
U98: =+T98-'ROR-Model'!G98 -> 0
C99: Supplier Non-Gas Revenue | G99: =G1*Revenue!$I$98 -> 0 | R99: =SUM(F99:P99) -> 0 | T99: =SUM(R99:R99) -> 0 | U99: =+T99-'ROR-Model'!G99 -> 0
U100: =+T100-'ROR-Model'!G100 -> 0
C101: Commodity Revenue | G101: =G1*Revenue!$I$100 -> 0 | R101: =SUM(F101:P101) -> 0 | T101: =SUM(R101:R101) -> 0 | U101: =+T101-'ROR-Model'!G101 -> 0
C102: Total Revenue | F102: =SUM(F97:F101) -> 0 | G102: =G1*SUM(G97:G101) -> 0 | H102: =SUM(H97:H101) -> 0 | I102: =SUM(I97:I101) -> 0 | J102: 0 | K102: 0 | L102: 0 | M102: 0 | N102: 0 | O102: =SUM(O97:O101) -> 0 | P102: =SUM(P97:P101) -> 0 | R102: =SUM(R97:R101) -> 0 | T102: =SUM(T97:T101) -> 0 | U102: =+T102-'ROR-Model'!G102 -> 0
U103: =+T103-'ROR-Model'!G103 -> 0
C104: Total Dth | G104: =G1*Revenue!$I$103 -> 0 | R104: =SUM(F104:P104) -> 0 | T104: =SUM(R104:R104) -> 0 | U104: =+T104-'ROR-Model'!G104 -> 0
U105: =+T105-'ROR-Model'!G105 -> 0
B106: IS-4 | C106: Distribution Non-Gas Rev | G106: =G1*Revenue!$I$105 -> 0 | R106: =SUM(F106:P106) -> 0 | T106: =SUM(R106:R106) -> 0 | U106: =+T106-'ROR-Model'!G106 -> 0
U107: =+T107-'ROR-Model'!G107 -> 0
C108: Supplier Non-Gas Revenue | G108: =G1*Revenue!$I$107 -> 0 | R108: =SUM(F108:P108) -> 0 | T108: =SUM(R108:R108) -> 0 | U108: =+T108-'ROR-Model'!G108 -> 0
U109: =+T109-'ROR-Model'!G109 -> 0
C110: Commodity Revenue | G110: =G1*Revenue!$I$109 -> 0 | R110: =SUM(F110:P110) -> 0 | T110: =SUM(R110:R110) -> 0 | U110: =+T110-'ROR-Model'!G110 -> 0
C111: Total Revenue | F111: =SUM(F106:F110) -> 0 | G111: =G1*SUM(G106:G110) -> 0 | H111: =SUM(H106:H110) -> 0 | I111: =SUM(I106:I110) -> 0 | J111: 0 | K111: 0 | L111: 0 | M111: 0 | N111: 0 | O111: =SUM(O106:O110) -> 0 | P111: =SUM(P106:P110) -> 0 | R111: =SUM(R106:R110) -> 0 | T111: =SUM(T106:T110) -> 0 | U111: =+T111-'ROR-Model'!G111 -> 0
U112: =+T112-'ROR-Model'!G112 -> 0
C113: Total Dth | G113: =G1*Revenue!$I$112 -> 0 | R113: =SUM(F113:P113) -> 0 | T113: =SUM(R113:R113) -> 0 | U113: =+T113-'ROR-Model'!G113 -> 0
U114: =+T114-'ROR-Model'!G114 -> 0
B115: FT1-L | C115: Distribution Non-Gas Rev | G115: =G1*Revenue!$I$114 -> 0 | R115: =SUM(F115:P115) -> 0 | T115: =SUM(R115:R115) -> 0 | U115: =+T115-'ROR-Model'!G115 -> 0
U116: =+T116-'ROR-Model'!G116 -> 0
C117: Supplier Non-Gas Revenue | G117: =G1*Revenue!$I$116 -> 0 | R117: =SUM(F117:P117) -> 0 | T117: =SUM(R117:R117) -> 0 | U117: =+T117-'ROR-Model'!G117 -> 0
U118: =+T118-'ROR-Model'!G118 -> 0
C119: Commodity Revenue | G119: =G1*Revenue!$I$118 -> 0 | R119: =SUM(F119:P119) -> 0 | T119: =SUM(R119:R119) -> 0 | U119: =+T119-'ROR-Model'!G119 -> 0
C120: Total Revenue | F120: =SUM(F115:F119) -> 0 | G120: =G1*SUM(G115:G119) -> 0 | H120: =SUM(H115:H119) -> 0 | I120: =SUM(I115:I119) -> 0 | J120: 0 | K120: 0 | L120: 0 | M120: 0 | N120: 0 | O120: =SUM(O115:O119) -> 0 | P120: =SUM(P115:P119) -> 0 | R120: =SUM(R115:R119) -> 0 | T120: =SUM(T115:T119) -> 0 | U120: =+T120-'ROR-Model'!G120 -> 0
U121: =+T121-'ROR-Model'!G121 -> 0
C122: Total Dth | G122: =G1*Revenue!$I$121 -> 0 | R122: =SUM(F122:P122) -> 0 | T122: =SUM(R122:R122) -> 0 | U122: =+T122-'ROR-Model'!G122 -> 0
U123: =+T123-'ROR-Model'!G123 -> 0
B124: FT-1 | C124: Distribution Non-Gas Rev | G124: =G1*Revenue!$I$123 -> 0 | R124: =SUM(F124:P124) -> 0 | T124: =SUM(R124:R124) -> 0 | U124: =+T124-'ROR-Model'!G124 -> 0
U125: =+T125-'ROR-Model'!G125 -> 0
C126: Supplier Non-Gas Revenue | G126: =G1*Revenue!$I$125 -> 0 | R126: =SUM(F126:P126) -> 0 | T126: =SUM(R126:R126) -> 0 | U126: =+T126-'ROR-Model'!G126 -> 0
U127: =+T127-'ROR-Model'!G127 -> 0
C128: Commodity Revenue | G128: =G1*Revenue!$I$127 -> 0 | R128: =SUM(F128:P128) -> 0 | T128: =SUM(R128:R128) -> 0 | U128: =+T128-'ROR-Model'!G128 -> 0
C129: Total Revenue | F129: =SUM(F124:F128) -> 0 | G129: =G1*SUM(G124:G128) -> 0 | H129: =SUM(H124:H128) -> 0 | I129: =SUM(I124:I128) -> 0 | J129: 0 | K129: 0 | L129: 0 | M129: 0 | N129: 0 | O129: =SUM(O124:O128) -> 0 | P129: =SUM(P124:P128) -> 0 | R129: =SUM(R124:R128) -> 0 | T129: =SUM(T124:T128) -> 0 | U129: =+T129-'ROR-Model'!G129 -> 0
U130: =+T130-'ROR-Model'!G130 -> 0
C131: Total Dth | G131: =G1*Revenue!$I$130 -> 0 | R131: =SUM(F131:P131) -> 0 | T131: =SUM(R131:R131) -> 0 | U131: =+T131-'ROR-Model'!G131 -> 0
U132: =+T132-'ROR-Model'!G132 -> 0
B133: FT-2 | C133: Distribution Non-Gas Rev | G133: =G1*Revenue!$I$132 -> 0 | R133: =SUM(F133:P133) -> 0 | T133: =SUM(R133:R133) -> 0 | U133: =+T133-'ROR-Model'!G133 -> 0
U134: =+T134-'ROR-Model'!G134 -> 0
C135: Supplier Non-Gas Revenue | G135: =G1*Revenue!$I$134 -> 0 | R135: =SUM(F135:P135) -> 0 | T135: =SUM(R135:R135) -> 0 | U135: =+T135-'ROR-Model'!G135 -> 0
U136: =+T136-'ROR-Model'!G136 -> 0
C137: Commodity Revenue | G137: =G1*Revenue!$I$136 -> 0 | R137: =SUM(F137:P137) -> 0 | T137: =SUM(R137:R137) -> 0 | U137: =+T137-'ROR-Model'!G137 -> 0
C138: Total Revenue | F138: =SUM(F133:F137) -> 0 | G138: =G1*SUM(G133:G137) -> 0 | H138: =SUM(H133:H137) -> 0 | I138: =SUM(I133:I137) -> 0 | J138: 0 | K138: 0 | L138: 0 | M138: 0 | N138: 0 | O138: =SUM(O133:O137) -> 0 | P138: =SUM(P133:P137) -> 0 | R138: =SUM(R133:R137) -> 0 | T138: =SUM(T133:T137) -> 0 | U138: =+T138-'ROR-Model'!G138 -> 0
U139: =+T139-'ROR-Model'!G139 -> 0
C140: Total Dth | G140: =G1*Revenue!$I$139 -> 0 | R140: =SUM(F140:P140) -> 0 | T140: =SUM(R140:R140) -> 0 | U140: =+T140-'ROR-Model'!G140 -> 0
U141: =+T141-'ROR-Model'!G141 -> 0
B142: MT | C142: Distribution Non-Gas Rev | G142: =G1*Revenue!$I$141 -> 0 | R142: =SUM(F142:P142) -> 0 | T142: =SUM(R142:R142) -> 0 | U142: =+T142-'ROR-Model'!G142 -> 0
U143: =+T143-'ROR-Model'!G143 -> 0
C144: Supplier Non-Gas Revenue | G144: =G1*Revenue!$I$143 -> 0 | R144: =SUM(F144:P144) -> 0 | T144: =SUM(R144:R144) -> 0 | U144: =+T144-'ROR-Model'!G144 -> 0
U145: =+T145-'ROR-Model'!G145 -> 0
C146: Commodity Revenue | G146: =G1*Revenue!$I$145 -> 0 | R146: =SUM(F146:P146) -> 0 | T146: =SUM(R146:R146) -> 0 | U146: =+T146-'ROR-Model'!G146 -> 0
C147: Total Revenue | F147: =SUM(F142:F146) -> 0 | G147: =G1*SUM(G142:G146) -> 0 | H147: =SUM(H142:H146) -> 0 | I147: =SUM(I142:I146) -> 0 | J147: 0 | K147: 0 | L147: 0 | M147: 0 | N147: 0 | O147: =SUM(O142:O146) -> 0 | P147: =SUM(P142:P146) -> 0 | R147: =SUM(R142:R146) -> 0 | T147: =SUM(T142:T146) -> 0 | U147: =+T147-'ROR-Model'!G147 -> 0
U148: =+T148-'ROR-Model'!G148 -> 0
C149: Total Dth | G149: =G1*Revenue!$I$148 -> 0 | R149: =SUM(F149:P149) -> 0 | T149: =SUM(R149:R149) -> 0 | U149: =+T149-'ROR-Model'!G149 -> 0
U150: =+T150-'ROR-Model'!G150 -> 0
B151: FT-E | C151: Distribution Non-Gas Rev | G151: =G1*Revenue!$I$150 -> 0 | R151: =SUM(F151:P151) -> 0 | T151: =SUM(R151:R151) -> 0 | U151: =+T151-'ROR-Model'!G151 -> 0
U152: =+T152-'ROR-Model'!G152 -> 0
C153: Supplier Non-Gas Revenue | G153: =G1*Revenue!$I$152 -> 0 | R153: =SUM(F153:P153) -> 0 | T153: =SUM(R153:R153) -> 0 | U153: =+T153-'ROR-Model'!G153 -> 0
U154: =+T154-'ROR-Model'!G154 -> 0
C155: Commodity Revenue | G155: =G1*Revenue!$I$154 -> 0 | R155: =SUM(F155:P155) -> 0 | T155: =SUM(R155:R155) -> 0 | U155: =+T155-'ROR-Model'!G155 -> 0
C156: Total Revenue | F156: =SUM(F151:F155) -> 0 | G156: =G1*SUM(G151:G155) -> 0 | H156: =SUM(H151:H155) -> 0 | I156: =SUM(I151:I155) -> 0 | J156: 0 | K156: 0 | L156: 0 | M156: 0 | N156: 0 | O156: =SUM(O151:O155) -> 0 | P156: =SUM(P151:P155) -> 0 | R156: =SUM(R151:R155) -> 0 | T156: =SUM(T151:T155) -> 0 | U156: =+T156-'ROR-Model'!G156 -> 0
U157: =+T157-'ROR-Model'!G157 -> 0
C158: Total Dth | G158: =G1*Revenue!$I$157 -> 0 | R158: =SUM(F158:P158) -> 0 | T158: =SUM(R158:R158) -> 0 | U158: =+T158-'ROR-Model'!G158 -> 0
U159: =+T159-'ROR-Model'!G159 -> 0
B160: IT | C160: Distribution Non-Gas Rev | G160: =G1*Revenue!$I$159 -> 0 | R160: =SUM(F160:P160) -> 0 | T160: =SUM(R160:R160) -> 0 | U160: =+T160-'ROR-Model'!G160 -> 0
U161: =+T161-'ROR-Model'!G161 -> 0
C162: Supplier Non-Gas Revenue | G162: =G1*Revenue!$I$161 -> 0 | R162: =SUM(F162:P162) -> 0 | T162: =SUM(R162:R162) -> 0 | U162: =+T162-'ROR-Model'!G162 -> 0
U163: =+T163-'ROR-Model'!G163 -> 0
C164: Commodity Revenue | G164: =G1*Revenue!$I$163 -> 0 | R164: =SUM(F164:P164) -> 0 | T164: =SUM(R164:R164) -> 0 | U164: =+T164-'ROR-Model'!G164 -> 0
C165: Total Revenue | F165: =SUM(F160:F164) -> 0 | G165: =G1*SUM(G160:G164) -> 0 | H165: =SUM(H160:H164) -> 0 | I165: =SUM(I160:I164) -> 0 | J165: 0 | K165: 0 | L165: 0 | M165: 0 | N165: 0 | O165: =SUM(O160:O164) -> 0 | P165: =SUM(P160:P164) -> 0 | R165: =SUM(R160:R164) -> 0 | T165: =SUM(T160:T164) -> 0 | U165: =+T165-'ROR-Model'!G165 -> 0
U166: =+T166-'ROR-Model'!G166 -> 0
C167: Total Dth | G167: =G1*Revenue!$I$166 -> 0 | R167: =SUM(F167:P167) -> 0 | T167: =SUM(R167:R167) -> 0 | U167: =+T167-'ROR-Model'!G167 -> 0
U168: =+T168-'ROR-Model'!G168 -> 0
B169: IT-S | C169: Distribution Non-Gas Rev | G169: =G1*Revenue!$I$168 -> 0 | R169: =SUM(F169:P169) -> 0 | T169: =SUM(R169:R169) -> 0 | U169: =+T169-'ROR-Model'!G169 -> 0
U170: =+T170-'ROR-Model'!G170 -> 0
C171: Supplier Non-Gas Revenue | G171: =G1*Revenue!$I$170 -> 0 | R171: =SUM(F171:P171) -> 0 | T171: =SUM(R171:R171) -> 0 | U171: =+T171-'ROR-Model'!G171 -> 0
U172: =+T172-'ROR-Model'!G172 -> 0
C173: Commodity Revenue | G173: =G1*Revenue!$I$172 -> 0 | R173: =SUM(F173:P173) -> 0 | T173: =SUM(R173:R173) -> 0 | U173: =+T173-'ROR-Model'!G173 -> 0
C174: Total Revenue | F174: =SUM(F169:F173) -> 0 | G174: =G1*SUM(G169:G173) -> 0 | H174: =SUM(H169:H173) -> 0 | I174: =SUM(I169:I173) -> 0 | J174: 0 | K174: 0 | L174: 0 | M174: 0 | N174: 0 | O174: =SUM(O169:O173) -> 0 | P174: =SUM(P169:P173) -> 0 | R174: =SUM(R169:R173) -> 0 | T174: =SUM(T169:T173) -> 0 | U174: =+T174-'ROR-Model'!G174 -> 0
U175: =+T175-'ROR-Model'!G175 -> 0
C176: Total Dth | G176: =G1*Revenue!$I$175 -> 0 | R176: =SUM(F176:P176) -> 0 | T176: =SUM(R176:R176) -> 0 | U176: =+T176-'ROR-Model'!G176 -> 0
U177: =+T177-'ROR-Model'!G177 -> 0
B178: FT-2C | C178: Distribution Non-Gas Rev | G178: =G1*Revenue!$I$177 -> 0 | R178: =SUM(F178:P178) -> 0 | T178: =SUM(R178:R178) -> 0 | U178: =+T178-'ROR-Model'!G178 -> 0
U179: =+T179-'ROR-Model'!G179 -> 0
C180: Supplier Non-Gas Revenue | G180: =G1*Revenue!$I$179 -> 0 | R180: =SUM(F180:P180) -> 0 | T180: =SUM(R180:R180) -> 0 | U180: =+T180-'ROR-Model'!G180 -> 0
U181: =+T181-'ROR-Model'!G181 -> 0
C182: Commodity Revenue | G182: =G1*Revenue!$I$181 -> 0 | R182: =SUM(F182:P182) -> 0 | T182: =SUM(R182:R182) -> 0 | U182: =+T182-'ROR-Model'!G182 -> 0
C183: Total Revenue | F183: =SUM(F178:F182) -> 0 | G183: =G1*SUM(G178:G182) -> 0 | H183: =SUM(H178:H182) -> 0 | I183: =SUM(I178:I182) -> 0 | J183: 0 | K183: 0 | L183: 0 | M183: 0 | N183: 0 | O183: =SUM(O178:O182) -> 0 | P183: =SUM(P178:P182) -> 0 | R183: =SUM(R178:R182) -> 0 | T183: =SUM(T178:T182) -> 0 | U183: =+T183-'ROR-Model'!G183 -> 0
U184: =+T184-'ROR-Model'!G184 -> 0
C185: Total Dth | G185: =G1*Revenue!$I$184 -> 0 | R185: =SUM(F185:P185) -> 0 | T185: =SUM(R185:R185) -> 0 | U185: =+T185-'ROR-Model'!G185 -> 0
U186: =+T186-'ROR-Model'!G186 -> 0
B187: E-1 | C187: Distribution Non-Gas Rev | G187: =G1*Revenue!$I$186 -> 0 | R187: =SUM(F187:P187) -> 0 | T187: =SUM(R187:R187) -> 0 | U187: =+T187-'ROR-Model'!G187 -> 0
U188: =+T188-'ROR-Model'!G188 -> 0
C189: Supplier Non-Gas Revenue | G189: =G1*Revenue!$I$188 -> 0 | R189: =SUM(F189:P189) -> 0 | T189: =SUM(R189:R189) -> 0 | U189: =+T189-'ROR-Model'!G189 -> 0
U190: =+T190-'ROR-Model'!G190 -> 0
C191: Commodity Revenue | G191: =G1*Revenue!$I$190 -> 0 | R191: =SUM(F191:P191) -> 0 | T191: =SUM(R191:R191) -> 0 | U191: =+T191-'ROR-Model'!G191 -> 0
C192: Total Revenue | F192: =SUM(F187:F191) -> 0 | G192: =G1*SUM(G187:G191) -> 0 | H192: =SUM(H187:H191) -> 0 | I192: =SUM(I187:I191) -> 0 | J192: 0 | K192: 0 | L192: 0 | M192: 0 | N192: 0 | O192: =SUM(O187:O191) -> 0 | P192: =SUM(P187:P191) -> 0 | R192: =SUM(R187:R191) -> 0 | T192: =SUM(T187:T191) -> 0 | U192: =+T192-'ROR-Model'!G192 -> 0
U193: =+T193-'ROR-Model'!G193 -> 0
C194: Total Dth | G194: =G1*Revenue!$I$193 -> 0 | R194: =SUM(F194:P194) -> 0 | T194: =SUM(R194:R194) -> 0 | U194: =+T194-'ROR-Model'!G194 -> 0
U195: =+T195-'ROR-Model'!G195 -> 0
B196: CET | C196: Distribution Non-Gas Revenue | F196: 0 | G196: =G1*Revenue!$I$195 -> 0 | H196: 0 | I196: 0 | J196: 0 | K196: 0 | L196: 0 | M196: 0 | N196: 0 | O196: 0 | P196: 0 | R196: =SUM(F196:P196) -> 0 | T196: =SUM(R196:R196) -> 0 | U196: =+T196-'ROR-Model'!G196 -> 0
B197: DSM | C197: Distribution Non-Gas Revenue | F197: 0 | G197: ='ENERGY EFFICIENCY SERVICES ADJ'!E12 -> -26803015 | H197: 0 | I197: 0 | J197: 0 | K197: 0 | L197: 0 | M197: 0 | N197: 0 | O197: 0 | P197: 0 | R197: =SUM(F197:P197) -> -26803015 | T197: =SUM(R197:R197) -> -26803015 | U197: =+T197-'ROR-Model'!G197 -> 0
B198: Utah Totals | U198: =+T198-'ROR-Model'!G198 -> 0
U199: =+T199-'ROR-Model'!G199 -> 0
C200: Distribution Non-Gas Rev | F200: =+F16+F34+F43+F52+F61+F70+F79+F88+F97+F106+F115+F124+F133+F142+F151+F160+F169+F178+F187+F25+F196+F197 -> 0 | G200: =+G16+G34+G43+G52+G61+G70+G79+G88+G97+G106+G115+G124+G133+G142+G151+G160+G169+G178+G187+G25+G196+G197 -> -26803015 | H200: =+H16+H34+H43+H52+H61+H70+H79+H88+H97+H106+H115+H124+H133+H142+H151+H160+H169+H178+H187+H25+H196+H197 -> 0 | I200: 0 | J200: =+J16+J34+J43+J52+J61+J70+J79+J88+J97+J106+J115+J124+J133+J142+J151+J160+J169+J178+J187+J25+J196+J197 -> 0 | K200: 0 | L200: 0 | M200: 0 | N200: 0 | O200: 0 | P200: =+P16+P34+P43+P52+P61+P70+P79+P88+P97+P106+P115+P124+P133+P142+P151+P160+P169+P178+P187+P25+P196+P197 -> 0 | R200: =+R16+R34+R43+R52+R61+R70+R79+R88+R97+R106+R115+R124+R133+R142+R151+R160+R169+R178+R187+R25+R196+R197 -> -26803015 | T200: =+T16+T34+T43+T52+T61+T70+T79+T88+T97+T106+T115+T124+T133+T142+T151+T160+T169+T178+T187+T25+T196+T197 -> -26803015 | U200: =+T200-'ROR-Model'!G200 -> 0
C201: Supplier Non-Gas Revenue | F201: =F1*+F18+F36+F45+F54+F62+F63+F72+F81+F90+F99+F108+F117+F126+F135+F144+F153+F162+F171+F180+F189+F27 -> 0 | G201: =G1*+G18+G36+G45+G54+G62+G63+G72+G81+G90+G99+G108+G117+G126+G135+G144+G153+G162+G171+G180+G189+G27 -> 0 | H201: =H1*+H18+H36+H45+H54+H62+H63+H72+H81+H90+H99+H108+H117+H126+H135+H144+H153+H162+H171+H180+H189+H27 -> 0 | I201: =I1*+I18+I36+I45+I54+I62+I63+I72+I81+I90+I99+I108+I117+I126+I135+I144+I153+I162+I171+I180+I189+I27 -> 0 | J201: 0 | K201: 0 | L201: 0 | M201: 0 | N201: 0 | O201: 0 | P201: =P1*+P18+P36+P45+P54+P62+P63+P72+P81+P90+P99+P108+P117+P126+P135+P144+P153+P162+P171+P180+P189+P27 -> 0 | R201: =+R18+R36+R45+R54+R62+R63+R72+R81+R90+R99+R108+R117+R126+R135+R144+R153+R162+R171+R180+R189+R27 -> 0 | T201: =+T18+T36+T45+T54+T62+T63+T72+T81+T90+T99+T108+T117+T126+T135+T144+T153+T162+T171+T180+T189+T27 -> 0 | U201: =+T201-'ROR-Model'!G201 -> 0
C202: Commodity Revenue | F202: =F1*+F20+F38+F47+F56+F64+F65+F74+F83+F92+F101+F110+F119+F128+F137+F146+F155+F164+F173+F182+F191+F29 -> 0 | G202: =G1*+G20+G38+G47+G56+G64+G65+G74+G83+G92+G101+G110+G119+G128+G137+G146+G155+G164+G173+G182+G191+G29 -> 0 | H202: =H1*+H20+H38+H47+H56+H64+H65+H74+H83+H92+H101+H110+H119+H128+H137+H146+H155+H164+H173+H182+H191+H29 -> 0 | I202: =I1*+I20+I38+I47+I56+I64+I65+I74+I83+I92+I101+I110+I119+I128+I137+I146+I155+I164+I173+I182+I191+I29 -> 0 | J202: 0 | K202: 0 | L202: 0 | M202: 0 | N202: 0 | O202: 0 | P202: =P1*+P20+P38+P47+P56+P64+P65+P74+P83+P92+P101+P110+P119+P128+P137+P146+P155+P164+P173+P182+P191+P29 -> 0 | R202: =+R20+R38+R47+R56+R64+R65+R74+R83+R92+R101+R110+R119+R128+R137+R146+R155+R164+R173+R182+R191+R29 -> 0 | T202: =+T20+T38+T47+T56+T64+T65+T74+T83+T92+T101+T110+T119+T128+T137+T146+T155+T164+T173+T182+T191+T29 -> 0 | U202: =+T202-'ROR-Model'!G202 -> 0
C203: Total Utah Revenue | F203: =+F21+F39+F48+F57+F66+F75+F84+F93+F102+F111+F120+F129+F138+F147+F156+F165+F174+F183+F192+F30+F196+F197 -> 0 | G203: =+G21+G39+G48+G57+G66+G75+G84+G93+G102+G111+G120+G129+G138+G147+G156+G165+G174+G183+G192+G30+G196+G197 -> -26803015 | H203: =+H21+H39+H48+H57+H66+H75+H84+H93+H102+H111+H120+H129+H138+H147+H156+H165+H174+H183+H192+H30+H196+H197 -> 0 | I203: 0 | J203: 0 | K203: 0 | L203: 0 | M203: =+M21+M39+M48+M57+M66+M75+M84+M93+M102+M111+M120+M129+M138+M147+M156+M165+M174+M183+M192+M30+M196+M197 -> 0 | N203: =+N21+N39+N48+N57+N66+N75+N84+N93+N102+N111+N120+N129+N138+N147+N156+N165+N174+N183+N192+N30+N196+N197 -> 0 | O203: 0 | P203: =+P21+P39+P48+P57+P66+P75+P84+P93+P102+P111+P120+P129+P138+P147+P156+P165+P174+P183+P192+P30+P196+P197 -> 0 | R203: -26803015 | T203: -26803015
U204: =+T204-'ROR-Model'!G204 -> 0
C205: Sales Dth | F205: =F1*F23+F41+F50+F59+F68+F77+F86+F95+F104+F113+F194+F32 -> 0 | G205: =G1*G23+G41+G50+G59+G68+G77+G86+G95+G104+G113+G194+G32 -> 0 | H205: =H1*H23+H41+H50+H59+H68+H77+H86+H95+H104+H113+H194+H32 -> 0 | I205: =I1*I23+I41+I50+I59+I68+I77+I86+I95+I104+I113+I194+I32 -> 0 | J205: 0 | K205: 0 | L205: 0 | M205: 0 | N205: 0 | O205: 0 | P205: =P1*P23+P41+P50+P59+P68+P77+P86+P95+P104+P113+P194+P32 -> 0 | R205: =R23+R32+R41+R50+R59+R68+R77+R86+R95+R104+R113+R194 -> 0 | T205: =T23+T32+T41+T50+T59+T68+T77+T86+T95+T104+T113+T194 -> 0 | U205: =+T205-'ROR-Model'!G205 -> 0
... 1032 more rows

Sheet Report
A1: ='Control Panel'!$B$1 -> Questar Gas Company
A2: ='Control Panel'!$B$2 -> Utah - JUN 2015 Adjusted Avg Results
A3: ='Control Panel'!$B$3 -> 12 Months Ended : Jun-2015 | F3: =+'Control Panel'!$B$3 -> 12 Months Ended : Jun-2015
E4: =IF((SUM(Report!F13:H73)-SUM(Report!I13:I73))<1,"0","ERROR") -> 0
B5: (A) | F5: (B) | G5: (C) | H5: (D) | I5: (E) | J5: (F) | K5: (G) | L5: (H)
F6: =+'ROR-Model'!F7 -> Historical | H6: =+'ROR-Model'!H7 -> Imputed | I6: =+'ROR-Model'!I7 -> Adjusted | J6: =+'ROR-Model'!W9 -> Utah | L6: =+J6 -> Utah
E7: CHECKS MUST BE (0) | F7: =+'ROR-Model'!F8 -> 12 Months | G7: Adjustments | H7: =+'ROR-Model'!H8 -> Tax | I7: =+'ROR-Model'!I8 -> System | J7: Jurisdiction | L7: Jurisdiction | M7: CHECKS MUST BE (0)
B8: Description | F8: =+'ROR-Model'!F9 -> 2015-06-30 | G8: Total | H8: =+'ROR-Model'!H9 -> Adjustment | I8: =+'ROR-Model'!I9 -> Total | J8: DNG Related | K8: Deficiency | L8: Total
A10: 1 | B10: NET INCOME SUMMARY
A12: =+A10+1 -> 2 | B12: Utility Operating Revenue
A13: =+A12+1 -> 3 | D13: System Distribution Non-Gas Revenue | E13: =+F13+G13+H13-I13 -> 0 | F13: =+'ROR-Model'!F363+'ROR-Model'!F365 -> 350109989 | G13: =+'ROR-Model'!G363+'ROR-Model'!G365 -> -26950675.52 | H13: =+'ROR-Model'!H363+'ROR-Model'!H365 -> 0 | I13: =+'ROR-Model'!I363+'ROR-Model'!I365 -> 323159313.5 | J13: ='ROR-Model'!W368 -> 311151193.5 | K13: =+K44*Taxes!L29 -> 698308.5619 | L13: =SUM(J13:K13) -> 311849502.1 | M13: =+N13-I13 -> 0 | N13: =SUM(F13:H13) -> 323159313.5
A14: 4 | D14: System Supplier Non-Gas Revenue | E14: 0 | F14: =+'ROR-Model'!F364 -> 74781241.8 | G14: =+'ROR-Model'!G364 -> 0 | H14: =+'ROR-Model'!H364 -> 0 | I14: =+'ROR-Model'!I364 -> 74781241.8 | L14: =SUM(J14:K14) -> 0 | M14: =+N14-I14 -> 0 | N14: =SUM(F14:H14) -> 74781241.8
A15: 5 | D15: System Commodity Revenue | E15: 0 | F15: =+'ROR-Model'!F366 -> 478982267.5 | G15: =+'ROR-Model'!G366 -> 0 | H15: =+'ROR-Model'!H366 -> 0 | I15: =+'ROR-Model'!I366 -> 478982267.5 | L15: =SUM(J15:K15) -> 0 | M15: 0 | N15: 478982267.5
A16: 6 | D16: Pass-Through Related Other Revenue | E16: 0 | F16: ='ROR-Model'!F501+'ROR-Model'!F505 -> 27425971.27 | G16: ='ROR-Model'!G501+'ROR-Model'!G505 -> 0 | H16: ='ROR-Model'!H501+'ROR-Model'!H505 -> 0 | I16: ='ROR-Model'!I501+'ROR-Model'!I505 -> 27425971.27 | L16: =SUM(J16:K16) -> 0 | M16: 0 | N16: 27425971.27
A17: 7 | D17: General Related Other Revenue | E17: 0 | F17: ='ROR-Model'!F502+'ROR-Model'!F506 -> 4694728.595 | G17: ='ROR-Model'!G502+'ROR-Model'!G506 -> 0 | H17: ='ROR-Model'!H502+'ROR-Model'!H506 -> 0 | I17: ='ROR-Model'!I502+'ROR-Model'!I506 -> 4694728.595 | J17: ='ROR-Model'!W509 -> 4591230.28 | L17: =SUM(J17:K17) -> 4591230.28 | M17: 0 | N17: 4694728.595
A18: 8 | C18: Total Utility Operating Revenue | E18: 0 | F18: =SUM(F13:F17) -> 935994198.2 | G18: -26950675.52 | H18: 0 | I18: 909043522.7 | J18: 315742423.8 | K18: 698308.5619 | L18: 316440732.4 | M18: 0 | N18: 909043522.7
M19: 0 | N19: 0
A20: =+A18+1 -> 9 | B20: Utility Operating Expenses | M20: 0 | N20: 0
A21: =+A20+1 -> 10 | C21: Gas Purchase Expenses | M21: 0 | N21: 0
A22: =+A21+1 -> 11 | D22: Utah | E22: =+F22+G22+H22-I22 -> 0 | F22: ='ROR-Model'!F633+'ROR-Model'!F636 -> 560194444.2 | G22: ='ROR-Model'!G633+'ROR-Model'!G636 -> 0 | H22: ='ROR-Model'!H633+'ROR-Model'!H636 -> 0 | I22: ='ROR-Model'!I633+'ROR-Model'!I636 -> 560194444.2 | L22: =SUM(J22:K22) -> 0 | M22: 0 | N22: 560194444.2
A23: =+A22+1 -> 12 | D23: Wyoming | E23: =+F23+G23+H23-I23 -> 0 | F23: ='ROR-Model'!F635+'ROR-Model'!F637 -> 20995036.37 | G23: ='ROR-Model'!G635+'ROR-Model'!G637 -> 0 | H23: ='ROR-Model'!H635+'ROR-Model'!H637 -> 0 | I23: ='ROR-Model'!I635+'ROR-Model'!I637 -> 20995036.37 | L23: =SUM(J23:K23) -> 0 | M23: 0 | N23: 20995036.37
A24: =+A23+1 -> 13 | D24: Total | E24: =+F24+G24+H24-I24 -> 0 | F24: =SUM(F22:F23) -> 581189480.6 | G24: 0 | H24: 0 | I24: 581189480.6 | J24: 0 | K24: 0 | L24: 0 | M24: 0 | N24: 581189480.6
E25: =+F25+G25+H25-I25 -> 0 | M25: 0 | N25: =SUM(F25:H25) -> 0
A26: =A24+1 -> 14 | C26: O&M Expenses | M26: 0 | N26: 0
A27: =+A26+1 -> 15 | D27: Production | E27: =+F27+G27+H27-I27 -> 0 | F27: ='ROR-Model'!F650 -> -1173283.41 | G27: ='ROR-Model'!G650 -> 0 | H27: ='ROR-Model'!H650 -> 0 | I27: ='ROR-Model'!I650 -> -1173283.41 | J27: ='ROR-Model'!W650 -> -1129383.44 | L27: =SUM(J27:K27) -> -1129383.44 | M27: 0 | N27: -1173283.41
A28: 16 | D28: Distribution | E28: 0 | F28: ='ROR-Model'!F753 -> 58327231.34 | G28: ='ROR-Model'!G753 -> 0 | H28: ='ROR-Model'!H753 -> 0 | I28: ='ROR-Model'!I753 -> 58327231.34 | J28: ='ROR-Model'!W753 -> 55270752.73 | L28: =SUM(J28:K28) -> 55270752.73 | M28: 0 | N28: 58327231.34
A29: 17 | D29: Customer Accounts | E29: 0 | F29: ='ROR-Model'!F806 -> 24969099.68 | G29: ='ROR-Model'!G806 -> -1051912.877 | H29: ='ROR-Model'!H806 -> 0 | I29: ='ROR-Model'!I806 -> 23917186.8 | J29: ='ROR-Model'!W806 -> 23000316.84 | K29: =+K13*'Control Panel'!F22 -> 1138.831175 | L29: =SUM(J29:K29) -> 23001455.68 | M29: 0 | N29: 23917186.8
A30: 18 | D30: Customer Service & Information | E30: 0 | F30: ='ROR-Model'!F834 -> 32164499.73 | G30: ='ROR-Model'!G834 -> -26973616.56 | H30: ='ROR-Model'!H834 -> 0 | I30: ='ROR-Model'!I834 -> 5190883.165 | J30: ='ROR-Model'!W834 -> 5031234.59 | L30: =SUM(J30:K30) -> 5031234.59 | M30: 0 | N30: 5190883.165
A31: 19 | D31: Administrative & General | E31: 0 | F31: ='ROR-Model'!F902 -> 52299493.49 | G31: ='ROR-Model'!G902 -> -17189.6749 | H31: ='ROR-Model'!H902 -> 0 | I31: ='ROR-Model'!I902 -> 52282303.82 | J31: ='ROR-Model'!W902 -> 50333676.78 | L31: =SUM(J31:K31) -> 50333676.78 | M31: 0 | N31: 52282303.82
A32: 20 | D32: Total O&M Expense | E32: 0 | F32: =SUM(F27:F31) -> 166587040.8 | G32: -28042719.12 | H32: 0 | I32: 138544321.7 | J32: 132506597.5 | K32: 1138.831175 | L32: 132507736.3 | M32: 0 | N32: 138544321.7
M33: 0 | N33: 0
A34: =+A32+1 -> 21 | C34: Other Operating Expenses | M34: 0 | N34: 0
A35: =+A34+1 -> 22 | D35: Depreciation, Depletion, Amortization | E35: =+F35+G35+H35-I35 -> 0 | F35: ='ROR-Model'!F926 -> 53824923.36 | G35: ='ROR-Model'!G926 -> 0 | H35: ='ROR-Model'!H926 -> 0 | I35: ='ROR-Model'!I926 -> 53824923.36 | J35: ='ROR-Model'!W926 -> 51853899.82 | L35: =SUM(J35:K35) -> 51853899.82 | M35: 0 | N35: 53824923.36
A36: =+A35+1 -> 23 | D36: Taxes Other Than Income Taxes | E36: =+F36+G36+H36-I36 -> 0 | F36: ='ROR-Model'!F934 -> 17613482.75 | G36: ='ROR-Model'!G934 -> 0 | H36: ='ROR-Model'!H934 -> 0 | I36: ='ROR-Model'!I934 -> 17613482.75 | J36: ='ROR-Model'!W934 -> 17048525.28 | L36: =SUM(J36:K36) -> 17048525.28 | M36: 0 | N36: 17613482.75
A37: =+A36+1 -> 24 | D37: Income Taxes | E37: =+F37+G37+H37-I37 -> 0 | F37: ='ROR-Model'!F936+'ROR-Model'!F938+'ROR-Model'!F940+'ROR-Model'!F942 -> 33723161.14 | G37: ='ROR-Model'!G936+'ROR-Model'!G938+'ROR-Model'!G940+'ROR-Model'!G942 -> 415800.7868 | H37: ='ROR-Model'!H936+'ROR-Model'!H938+'ROR-Model'!H940+'ROR-Model'!H942 -> 540958.1901 | I37: ='ROR-Model'!I936+'ROR-Model'!I938+'ROR-Model'!I940+'ROR-Model'!I942 -> 34679920.12 | J37: ='ROR-Model'!W936 -> 33645426.17 | K37: =(K13-K29)*Taxes!L23 -> 265450.6865 | L37: =SUM(J37:K37) -> 33910876.86 | M37: 0 | N37: 34679920.12
A38: =+A37+1 -> 25 | D38: Total Other Operating Expenses | E38: =+F38+G38+H38-I38 -> 0 | F38: =SUM(F35:F37) -> 105161567.2 | G38: 415800.7868 | H38: 540958.1901 | I38: 106118326.2 | J38: 102547851.3 | K38: 265450.6865 | L38: 102813302 | M38: 0 | N38: 106118326.2
M39: 0 | N39: 0
M40: 0 | N40: 0
A41: =+A38+1 -> 26 | C41: Total Utility Operating Expenses | E41: =+F41+G41+H41-I41 -> 0 | F41: =+F24+F32+F38 -> 852938088.7 | G41: =+G24+G32+G38 -> -27626918.33 | H41: 540958.1901 | I41: 825852128.5 | J41: 235054448.8 | K41: 266589.5177 | L41: 235321038.3 | M41: 0 | N41: 825852128.5
M42: 0 | N42: 0
M43: 0 | N43: 0
A44: =+A41+1 -> 27 | B44: NET OPERATING INCOME | E44: =+F44+G44+H44-I44 -> 0 | F44: =+F18-F41 -> 83056109.5 | G44: =+G18-G41 -> 676242.8102 | H44: =+H18-H41 -> -540958.1901 | I44: =+I18-I41 -> 83191394.12 | J44: =+J18-J41 -> 80687975.05 | K44: =+L44-J44 -> 431719.0442 | L44: =L73*L76 -> 81119694.09 | M44: 0 | N44: 83191394.12
M45: 0
A47: =+A44+1 -> 28 | B47: RATE BASE SUMMARY
A49: =+A47+1 -> 29 | B49: Net Utility Plant
A50: =+A49+1 -> 30 | C50: 101 | D50: Gas Plant In Service | E50: =+F50+G50+H50-I50 -> 0 | F50: ='ROR-Model'!F1113 -> 2358570019 | G50: ='ROR-Model'!G1113 -> -79003222.06 | H50: ='ROR-Model'!H1113 -> 0 | I50: ='ROR-Model'!I1113 -> 2279566797 | J50: ='ROR-Model'!W1113 -> 2200714084 | L50: =SUM(J50:K50) -> 2200714084 | M50: =+N50-I50 -> 0 | N50: =SUM(F50:H50) -> 2279566797
A51: 31 | C51: 105 | D51: Gas Plant Held For Future Use | E51: 0 | F51: ='ROR-Model'!F1117 -> 5036.83 | G51: ='ROR-Model'!G1117 -> 0 | H51: ='ROR-Model'!H1117 -> 0 | I51: ='ROR-Model'!I1117 -> 5036.83 | J51: ='ROR-Model'!W1117 -> 5036.83 | L51: 5036.83 | M51: 0 | N51: 5036.83
A52: 32 | C52: 106 | D52: Completed Construction Not Classified | E52: 0 | F52: ='ROR-Model'!F1124 -> 17969187.38 | G52: ='ROR-Model'!G1124 -> -7378089.787 | H52: ='ROR-Model'!H1124 -> 0 | I52: ='ROR-Model'!I1124 -> 10591097.6 | J52: ='ROR-Model'!W1124 -> 9864598.034 | L52: 9864598.034 | M52: 0 | N52: 10591097.6
A53: 33 | C53: 108 | D53: Accumulated Depreciation | E53: 0 | F53: ='ROR-Model'!F1131 -> -792736194.4 | G53: ='ROR-Model'!G1131 -> 23333862.28 | H53: ='ROR-Model'!H1131 -> 0 | I53: ='ROR-Model'!I1131 -> -769402332.1 | J53: ='ROR-Model'!W1131 -> -736749562.4 | L53: -736749562.4 | M53: 0 | N53: -769402332.1
A54: 34 | C54: 111 | D54: Accumulated Amort & Depletion | E54: 0 | F54: ='ROR-Model'!F1138 -> -6175022.06 | G54: ='ROR-Model'!G1138 -> 393834.4436 | H54: ='ROR-Model'!H1138 -> 0 | I54: ='ROR-Model'!I1138 -> -5781187.616 | J54: ='ROR-Model'!W1138 -> -5556598.809 | L54: -5556598.809 | M54: 0 | N54: -5781187.616
A55: 35 | C55: 254 | D55: Other Regulatory Liabilities ARC | F55: ='ROR-Model'!F1145 -> -65281666 | G55: ='ROR-Model'!G1145 -> 4380342.75 | H55: ='ROR-Model'!H1145 -> 0 | I55: ='ROR-Model'!I1145 -> -60901323.25 | J55: ='ROR-Model'!W1145 -> -58920643.12 | L55: -58920643.12
A56: 36 | C56: Total Net Utility Plant | E56: 0 | F56: =SUM(F50:F55) -> 1512351361 | G56: -58273272.37 | H56: 0 | I56: 1454078089 | J56: =SUM(J50:J55) -> 1409356914 | K56: 0 | L56: 1409356914 | M56: 0 | N56: 1454078089
M57: 0
A58: =+A56+1 -> 37 | B58: Other Rate Base Accounts | M58: 0
A59: =+A58+1 -> 38 | C59: 154 | D59: Materials & Supplies | E59: =+F59+G59+H59-I59 -> 0 | F59: ='ROR-Model'!F1163 -> 18581343.26 | G59: ='ROR-Model'!G1163 -> 599626.0833 | H59: ='ROR-Model'!H1163 -> 0 | I59: ='ROR-Model'!I1163 -> 19180969.34 | J59: ='ROR-Model'!W1163 -> 18522212.31 | L59: =SUM(J59:K59) -> 18522212.31 | M59: 0 | N59: =SUM(F59:H59) -> 19180969.34
A60: 39 | C60: 164-1 | D60: Gas Stored Underground | E60: 0 | F60: ='ROR-Model'!F1167 -> 26098151.32 | G60: ='ROR-Model'!G1167 -> -26098151.32 | H60: ='ROR-Model'!H1167 -> 0 | I60: ='ROR-Model'!I1167 -> 0 | J60: ='ROR-Model'!W1167 -> 0 | L60: 0 | M60: 0 | N60: 0
A61: 40 | C61: 165 | D61: Prepayments | E61: 0 | F61: ='ROR-Model'!F1171 -> 4196506.72 | G61: ='ROR-Model'!G1171 -> -1181268.431 | H61: ='ROR-Model'!H1171 -> 0 | I61: ='ROR-Model'!I1171 -> 3015238.289 | J61: ='ROR-Model'!W1171 -> 2911682.029 | L61: 2911682.029 | M61: 0 | N61: 3015238.289
A62: 41 | C62: 190008 | D62: Accum Deferred Income Tax Federal | E62: 0 | F62: =+'ROR-Model'!F1178 -> 3315278.7 | G62: =+'ROR-Model'!G1178 -> -133714.9917 | H62: ='ROR-Model'!H1178 -> 0 | I62: =+'ROR-Model'!I1178 -> 3181563.708 | J62: =+'ROR-Model'!W1178 -> 3073956.437 | L62: 3073956.437 | M62: 0 | N62: 3181563.708
A63: 42 | C63: 190008 | D63: Accum Deferred Income Tax State | E63: 0 | F63: =+'ROR-Model'!F1185 -> 284165.86 | G63: =+'ROR-Model'!G1185 -> -11461.285 | H63: ='ROR-Model'!H1185 -> 0 | I63: =+'ROR-Model'!I1185 -> 272704.575 | J63: =+'ROR-Model'!W1185 -> 272704.575 | L63: 272704.575 | M63: 0 | N63: 272704.575
A64: 43 | C64: 235-1 | D64: Customer Deposits | E64: 0 | F64: ='ROR-Model'!F1190 -> -5947516.41 | G64: ='ROR-Model'!G1190 -> -48703.22625 | H64: ='ROR-Model'!H1190 -> 0 | I64: ='ROR-Model'!I1190 -> -5996219.636 | J64: ='ROR-Model'!W1190 -> -5769312.739 | L64: -5769312.739 | M64: 0 | N64: -5996219.636
A65: 44 | C65: 252 | D65: Contributions in Aid of Construction | E65: 0 | F65: =+'ROR-Model'!F1195 -> -32475582.13 | G65: ='ROR-Model'!G1195 -> 2395329.116 | H65: ='ROR-Model'!H1195 -> 0 | I65: ='ROR-Model'!I1195 -> -30080253.01 | J65: ='ROR-Model'!W1195 -> -29184417.38 | L65: -29184417.38 | M65: 0 | N65: -30080253.01
A66: 45 | C66: 253-1 | D66: Unclaimed Customer Deposits | E66: 0 | F66: ='ROR-Model'!F1199 -> -69474.26 | G66: ='ROR-Model'!G1199 -> 1013.11 | H66: ='ROR-Model'!H1199 -> 0 | I66: ='ROR-Model'!I1199 -> -68461.15 | J66: ='ROR-Model'!W1199 -> -66109.89947 | L66: -66109.89947 | M66: 0 | N66: -68461.15
A67: 46 | C67: 255 | D67: Deferred Investment Tax Credits | E67: 0 | F67: ='ROR-Model'!F1206 -> -289085.32 | G67: ='ROR-Model'!G1206 -> -80753.57167 | H67: ='ROR-Model'!H1206 -> 0 | I67: ='ROR-Model'!I1206 -> -369838.8917 | J67: ='ROR-Model'!W1206 -> -357304.8263 | L67: -357304.8263 | M67: 0 | N67: -369838.8917
A68: 47 | C68: 282 | D68: Accum Deferred Income Taxes | E68: 0 | F68: ='ROR-Model'!F1213+'ROR-Model'!F1220+'ROR-Model'!F1224 -> -378083394.9 | G68: ='ROR-Model'!G1213+'ROR-Model'!G1220+'ROR-Model'!G1224 -> 15977300.71 | H68: ='ROR-Model'!H1213+'ROR-Model'!H1220+'ROR-Model'!H1224 -> 0 | I68: ='ROR-Model'!I1213+'ROR-Model'!I1220+'ROR-Model'!I1224 -> -362106094.2 | J68: ='ROR-Model'!W1213+'ROR-Model'!W1220+'ROR-Model'!W1224 -> -350769328.4 | L68: -350769328.4 | M68: 0 | N68: -362106094.2
A69: 48 | D69: Working Capital - Cash | F69: ='ROR-Model'!F1264 -> 2222191.405 | G69: ='ROR-Model'!G1264 -> -76825.54001 | H69: ='ROR-Model'!H1264 -> 1504.308392 | I69: ='ROR-Model'!I1264 -> 2146870.173 | J69: ='ROR-Model'!W1264 -> 2067249.091 | L69: =SUM(J69:K69) -> 2067249.091 | M69: 0 | N69: 2146870.173
A70: 49 | C70: Total Other Rate Base Accounts | F70: =SUM(F59:F69) -> -362167415.7 | G70: -8657609.35 | H70: 1504.308392 | I70: =SUM(I59:I69) -> -370823520.8 | J70: =SUM(J59:J69) -> -359298668.8 | K70: 0 | L70: -359298668.8 | M70: 0 | N70: -370823520.8
M71: 0 | N71: 0
M72: 0 | N72: 0
A73: =+A70+1 -> 50 | B73: TOTAL RATE BASE | F73: =+F56+F70 -> 1150183945 | G73: =+G56+G70 -> -66930881.72 | H73: =+H56+H70 -> 1504.308392 | I73: =+I56+I70 -> 1083254568 | J73: =+J56+J70 -> 1050058246 | L73: =+L56+L70 -> 1050058246 | M73: 0 | N73: 1083254568
M74: 0
E75: =SUM(E13:E73) -> 0 | M75: 0 | N75: =SUM(F75:H75) -> 0
A76: =+A73+1 -> 51 | B76: RETURN ON RATE BASE | F76: =F44/F73 -> 0.07221115356 | I76: =I44/I73 -> 0.0767976398 | J76: =J44/J73 -> 0.07684142797 | L76: ='Capital Str'!F10 -> 0.07725256616 | M76: =+N76-I76 -> -0.00458648624 | N76: =SUM(F76:H76) -> 0.07221115356
N77: =SUM(F77:H77) -> 0
A78: =+A76+1 -> 52 | B78: RETURN ON EQUITY | F78: =(F76-'Capital Str'!$F$7)/'Capital Str'!$D$9 -> 0.0890453493 | I78: =(I76-'Capital Str'!$F$7)/'Capital Str'!$D$9 -> 0.09764683241 | J78: =(J76-'Capital Str'!$F$7)/'Capital Str'!$D$9 -> 0.09772895262 | L78: ='Capital Str'!E9 -> 0.0985 | M78: =+N78-I78 -> -0.008601483117 | N78: =SUM(F78:H78) -> 0.0890453493

Sheet ROR-Model
A1: ='Control Panel'!$B$1 -> Questar Gas Company | L1: Jurisdictional Allocation Base Summary
A2: ='Control Panel'!$B$2 -> Utah - JUN 2015 Adjusted Avg Results | K2: #1 | L2: Gross Plant | M2: ='Utah Allocation'!D18 -> 0.9656556963 | N2: ='Utah Allocation'!E18 -> 0.03434430369
A3: ='Control Panel'!$B$3 -> 12 Months Ended : Jun-2015 | K3: #2 | L3: Rate Base | M3: ='Utah Allocation'!D35 -> 0.9695885444 | N3: ='Utah Allocation'!E35 -> 0.03041145557
K4: #3 | L4: Sales | M4: ='Utah Allocation'!D46 -> 0.9625836608 | N4: ='Utah Allocation'!E46 -> 0.03741633917
K5: #4 | L5: Utah | M5: 1 | N5: 0 | P5: PT = Pass Through Item
K6: #5 | L6: Wyoming | M6: 0 | N6: 1
F7: Historical | G7: CASE | H7: Imputed | I7: Adjusted | Q7: Utah | T7: Wyoming | W7: HOT
A8: FERC | F8: 12 Months | G8: Adjustments | H8: Tax | I8: System | P8: Utah Method & Allocations | S8: Wyoming Method & Allocations | W8: This Scenario
A9: Account | C9: Description | F9: =+'Control Panel'!F12 -> 2015-06-30 | G9: Total | H9: Adjustment | I9: Total | L9: Alloc Base | M9: Utah | N9: Wyoming | Q9: General | R9: PT | T9: General | U9: PT | W9: =+'Control Panel'!F11 -> Utah
Q10: Utah | T10: Wyoming | Y10: 1
A11: UTILITY OPERATING REVENUE | Y11: =Y10+1 -> 2
Y12: =Y11+1 -> 3
A13: TARIFF DTH SALES AND REVENUE | Y13: 4
Y14: 5
A15: Utah | Y15: 6
B16: GSR | C16: Distribution Non-Gas Rev | E16: =+G16-Adjustments!G16 -> 0 | F16: =Revenue!$F$15 -> 273299812 | G16: =+Adjustments!T16 -> 0 | I16: =SUM($F$16:$H$16) -> 273299812 | J16: =+I16-'ROR-Model'!I16 -> 0 | L16: Utah | M16: =VLOOKUP($L16,$L$2:$N$7,2,FALSE)*I16 -> 273299812 | N16: =VLOOKUP($L16,$L$2:$N$7,3,FALSE)*I16 -> 0 | O16: =SUM(M16:N16)-I16 -> 0 | P16: G | Q16: =IF(P16="G",M16,IF(P16="PT",0,ERR)) -> 273299812 | R16: =IF(P16="PT",M16,IF(P16="G",0,ERR)) -> 0 | S16: G | T16: =IF(S16="G",N16,IF(S16="PT",0,ERR)) -> 0 | U16: =IF(S16="PT",N16,IF(S16="G",0,ERR)) -> 0 | W16: =HLOOKUP($W$9,'ROR-Model'!$Q$10:$U$1274,Y16) -> 273299812 | Y16: 7
E17: =+G17-Adjustments!G17 -> 0 | J17: =+I17-'ROR-Model'!I17 -> 0 | Y17: 8
C18: Supplier Non-Gas Revenue | E18: =+G18-Adjustments!G18 -> 0 | F18: =Revenue!$F$17 -> 70435477 | G18: =+Adjustments!T18 -> 0 | I18: =SUM($F$18:$H$18) -> 70435477 | J18: =+I18-'ROR-Model'!I18 -> 0 | L18: Utah | M18: =VLOOKUP($L18,$L$2:$N$7,2,FALSE)*I18 -> 70435477 | N18: =VLOOKUP($L18,$L$2:$N$7,3,FALSE)*I18 -> 0 | P18: PT | Q18: =IF(P18="G",M18,IF(P18="PT",0,ERR)) -> 0 | R18: =IF(P18="PT",M18,IF(P18="G",0,ERR)) -> 70435477 | S18: PT | T18: =IF(S18="G",N18,IF(S18="PT",0,ERR)) -> 0 | U18: =IF(S18="PT",N18,IF(S18="G",0,ERR)) -> 0 | W18: =HLOOKUP($W$9,'ROR-Model'!$Q$10:$U$1274,Y18) -> 0 | Y18: 9
E19: =+G19-Adjustments!G19 -> 0 | J19: =+I19-'ROR-Model'!I19 -> 0 | Y19: 10
C20: Commodity Revenue | E20: =+G20-Adjustments!G20 -> 0 | F20: =Revenue!$F$19 -> 420775067 | G20: =+Adjustments!T20 -> 0 | I20: =SUM($F$20:$H$20) -> 420775067 | J20: =+I20-'ROR-Model'!I20 -> 0 | L20: Utah | M20: =VLOOKUP($L20,$L$2:$N$7,2,FALSE)*I20 -> 420775067 | N20: =VLOOKUP($L20,$L$2:$N$7,3,FALSE)*I20 -> 0 | P20: PT | Q20: =IF(P20="G",M20,IF(P20="PT",0,ERR)) -> 0 | R20: =IF(P20="PT",M20,IF(P20="G",0,ERR)) -> 420775067 | S20: PT | T20: =IF(S20="G",N20,IF(S20="PT",0,ERR)) -> 0 | U20: =IF(S20="PT",N20,IF(S20="G",0,ERR)) -> 0 | W20: =HLOOKUP($W$9,'ROR-Model'!$Q$10:$U$1274,Y20) -> 0 | Y20: 11
C21: Total Revenue | E21: =+G21-Adjustments!G21 -> 0 | F21: =SUM(F16:F20) -> 764510356 | G21: =SUM(G16:G20) -> 0 | H21: =SUM(H16:H20) -> 0 | I21: =SUM(I16:I20) -> 764510356 | J21: =+I21-'ROR-Model'!I21 -> 0 | M21: =SUM(M16:M20) -> 764510356 | N21: =SUM(N16:N20) -> 0 | Q21: =SUM(Q16:Q20) -> 273299812 | R21: =SUM(R16:R20) -> 491210544 | T21: =SUM(T16:T20) -> 0 | U21: =SUM(U16:U20) -> 0 | W21: =HLOOKUP($W$9,'ROR-Model'!$Q$10:$U$1274,Y21) -> 273299812 | Y21: 12
E22: =+G22-Adjustments!G22 -> 0 | J22: =+I22-'ROR-Model'!I22 -> 0 | Y22: 13
C23: Total Dth | E23: =+G23-Adjustments!G23 -> 0 | F23: =Revenue!$F$22 -> 83206291 | G23: =+Adjustments!T23 -> 0 | I23: =SUM($F$23:$H$23) -> 83206291 | J23: =+I23-'ROR-Model'!I23 -> 0 | L23: Utah | M23: =VLOOKUP($L23,$L$2:$N$7,2,FALSE)*I23 -> 83206291 | N23: =VLOOKUP($L23,$L$2:$N$7,3,FALSE)*I23 -> 0 | P23: G | Q23: =IF(P23="G",M23,IF(P23="PT",0,ERR)) -> 83206291 | R23: =IF(P23="PT",M23,IF(P23="G",0,ERR)) -> 0 | S23: G | T23: =IF(S23="G",N23,IF(S23="PT",0,ERR)) -> 0 | U23: =IF(S23="PT",N23,IF(S23="G",0,ERR)) -> 0 | W23: =HLOOKUP($W$9,'ROR-Model'!$Q$10:$U$1274,Y23) -> 83206291 | Y23: 14
E24: =+G24-Adjustments!G24 -> 0 | J24: =+I24-'ROR-Model'!I24 -> 0 | Y24: 15
B25: GSC | C25: Distribution Non-Gas Rev | E25: =+G25-Adjustments!G25 -> 0 | F25: =Revenue!$F$24 -> 0 | G25: =+Adjustments!T25 -> 0 | I25: =SUM($F$25:$H$25) -> 0 | J25: =+I25-'ROR-Model'!I25 -> 0 | L25: Utah | M25: =VLOOKUP($L25,$L$2:$N$7,2,FALSE)*I25 -> 0 | N25: =VLOOKUP($L25,$L$2:$N$7,3,FALSE)*I25 -> 0 | P25: G | Q25: =IF(P25="G",M25,IF(P25="PT",0,ERR)) -> 0 | R25: =IF(P25="PT",M25,IF(P25="G",0,ERR)) -> 0 | S25: G | T25: =IF(S25="G",N25,IF(S25="PT",0,ERR)) -> 0 | U25: =IF(S25="PT",N25,IF(S25="G",0,ERR)) -> 0 | W25: =HLOOKUP($W$9,'ROR-Model'!$Q$10:$U$1274,Y25) -> 0 | Y25: 16
E26: =+G26-Adjustments!G26 -> 0 | J26: =+I26-'ROR-Model'!I26 -> 0 | Y26: 17
C27: Supplier Non-Gas Revenue | E27: =+G27-Adjustments!G27 -> 0 | F27: =Revenue!$F$26 -> 0 | G27: =+Adjustments!T27 -> 0 | I27: =SUM($F$27:$H$27) -> 0 | J27: =+I27-'ROR-Model'!I27 -> 0 | L27: Utah | M27: =VLOOKUP($L27,$L$2:$N$7,2,FALSE)*I27 -> 0 | N27: =VLOOKUP($L27,$L$2:$N$7,3,FALSE)*I27 -> 0 | P27: PT | Q27: =IF(P27="G",M27,IF(P27="PT",0,ERR)) -> 0 | R27: =IF(P27="PT",M27,IF(P27="G",0,ERR)) -> 0 | S27: PT | T27: =IF(S27="G",N27,IF(S27="PT",0,ERR)) -> 0 | U27: =IF(S27="PT",N27,IF(S27="G",0,ERR)) -> 0 | W27: =HLOOKUP($W$9,'ROR-Model'!$Q$10:$U$1274,Y27) -> 0 | Y27: 18
E28: =+G28-Adjustments!G28 -> 0 | J28: =+I28-'ROR-Model'!I28 -> 0 | Y28: 19
C29: Commodity Revenue | E29: =+G29-Adjustments!G29 -> 0 | F29: =Revenue!$F$28 -> 0 | G29: =+Adjustments!T29 -> 0 | I29: =SUM($F$29:$H$29) -> 0 | J29: =+I29-'ROR-Model'!I29 -> 0 | L29: Utah | M29: =VLOOKUP($L29,$L$2:$N$7,2,FALSE)*I29 -> 0 | N29: =VLOOKUP($L29,$L$2:$N$7,3,FALSE)*I29 -> 0 | P29: PT | Q29: =IF(P29="G",M29,IF(P29="PT",0,ERR)) -> 0 | R29: =IF(P29="PT",M29,IF(P29="G",0,ERR)) -> 0 | S29: PT | T29: =IF(S29="G",N29,IF(S29="PT",0,ERR)) -> 0 | U29: =IF(S29="PT",N29,IF(S29="G",0,ERR)) -> 0 | W29: =HLOOKUP($W$9,'ROR-Model'!$Q$10:$U$1274,Y29) -> 0 | Y29: 20
C30: Total Revenue | E30: =+G30-Adjustments!G30 -> 0 | F30: =SUM(F25:F29) -> 0 | G30: =SUM(G25:G29) -> 0 | H30: =SUM(H25:H29) -> 0 | I30: =SUM(I25:I29) -> 0 | J30: =+I30-'ROR-Model'!I30 -> 0 | M30: =SUM(M25:M29) -> 0 | N30: =SUM(N25:N29) -> 0 | Q30: =SUM(Q25:Q29) -> 0 | R30: =SUM(R25:R29) -> 0 | T30: =SUM(T25:T29) -> 0 | U30: =SUM(U25:U29) -> 0 | W30: =HLOOKUP($W$9,'ROR-Model'!$Q$10:$U$1274,Y30) -> 0 | Y30: 21
E31: =+G31-Adjustments!G31 -> 0 | J31: =+I31-'ROR-Model'!I31 -> 0 | Y31: 22
C32: Total Dth | E32: =+G32-Adjustments!G32 -> 0 | F32: =Revenue!$F$31 -> 0 | G32: =+Adjustments!T32 -> 0 | I32: =SUM(F32:H32) -> 0 | J32: =+I32-'ROR-Model'!I32 -> 0 | L32: Utah | M32: =VLOOKUP($L32,$L$2:$N$7,2,FALSE)*I32 -> 0 | N32: =VLOOKUP($L32,$L$2:$N$7,3,FALSE)*I32 -> 0 | P32: G | Q32: =IF(P32="G",M32,IF(P32="PT",0,ERR)) -> 0 | R32: =IF(P32="PT",M32,IF(P32="G",0,ERR)) -> 0 | S32: G | T32: =IF(S32="G",N32,IF(S32="PT",0,ERR)) -> 0 | U32: =IF(S32="PT",N32,IF(S32="G",0,ERR)) -> 0 | W32: =HLOOKUP($W$9,'ROR-Model'!$Q$10:$U$1274,Y32) -> 0 | Y32: 23
E33: =+G33-Adjustments!G33 -> 0 | J33: =+I33-'ROR-Model'!I33 -> 0 | Y33: 24
B34: GSS | C34: Distribution Non-Gas Rev | E34: =+G34-Adjustments!G34 -> 0 | F34: =Revenue!$F$33 -> 0 | G34: =+Adjustments!T34 -> 0 | I34: =SUM(F34:H34) -> 0 | J34: =+I34-'ROR-Model'!I34 -> 0 | L34: Utah | M34: =VLOOKUP($L34,$L$2:$N$7,2,FALSE)*I34 -> 0 | N34: =VLOOKUP($L34,$L$2:$N$7,3,FALSE)*I34 -> 0 | P34: G | Q34: =IF(P34="G",M34,IF(P34="PT",0,ERR)) -> 0 | R34: =IF(P34="PT",M34,IF(P34="G",0,ERR)) -> 0 | S34: G | T34: =IF(S34="G",N34,IF(S34="PT",0,ERR)) -> 0 | U34: =IF(S34="PT",N34,IF(S34="G",0,ERR)) -> 0 | W34: =HLOOKUP($W$9,'ROR-Model'!$Q$10:$U$1274,Y34) -> 0 | Y34: 25
E35: =+G35-Adjustments!G35 -> 0 | J35: =+I35-'ROR-Model'!I35 -> 0 | Y35: 26
C36: Supplier Non-Gas Revenue | E36: =+G36-Adjustments!G36 -> 0 | F36: =Revenue!$F$35 -> 0 | G36: =+Adjustments!T36 -> 0 | I36: =SUM($F$36:$H$36) -> 0 | J36: =+I36-'ROR-Model'!I36 -> 0 | L36: Utah | M36: =VLOOKUP($L36,$L$2:$N$7,2,FALSE)*I36 -> 0 | N36: =VLOOKUP($L36,$L$2:$N$7,3,FALSE)*I36 -> 0 | P36: PT | Q36: =IF(P36="G",M36,IF(P36="PT",0,ERR)) -> 0 | R36: =IF(P36="PT",M36,IF(P36="G",0,ERR)) -> 0 | S36: PT | T36: =IF(S36="G",N36,IF(S36="PT",0,ERR)) -> 0 | U36: =IF(S36="PT",N36,IF(S36="G",0,ERR)) -> 0 | W36: =HLOOKUP($W$9,'ROR-Model'!$Q$10:$U$1274,Y36) -> 0 | Y36: 27
E37: =+G37-Adjustments!G37 -> 0 | J37: =+I37-'ROR-Model'!I37 -> 0 | Y37: 28
C38: Commodity Revenue | E38: =+G38-Adjustments!G38 -> 0 | F38: =Revenue!$F$37 -> 0 | G38: =+Adjustments!T38 -> 0 | I38: =SUM($F$38:$H$38) -> 0 | J38: =+I38-'ROR-Model'!I38 -> 0 | L38: Utah | M38: =VLOOKUP($L38,$L$2:$N$7,2,FALSE)*I38 -> 0 | N38: =VLOOKUP($L38,$L$2:$N$7,3,FALSE)*I38 -> 0 | P38: PT | Q38: =IF(P38="G",M38,IF(P38="PT",0,ERR)) -> 0 | R38: =IF(P38="PT",M38,IF(P38="G",0,ERR)) -> 0 | S38: PT | T38: =IF(S38="G",N38,IF(S38="PT",0,ERR)) -> 0 | U38: =IF(S38="PT",N38,IF(S38="G",0,ERR)) -> 0 | W38: =HLOOKUP($W$9,'ROR-Model'!$Q$10:$U$1274,Y38) -> 0 | Y38: 29
C39: Total Revenue | E39: =+G39-Adjustments!G39 -> 0 | F39: =SUM(F34:F38) -> 0 | G39: =SUM(G34:G38) -> 0 | H39: =SUM(H34:H38) -> 0 | I39: =SUM(I34:I38) -> 0 | J39: =+I39-'ROR-Model'!I39 -> 0 | M39: =SUM(M34:M38) -> 0 | N39: =SUM(N34:N38) -> 0 | Q39: =SUM(Q34:Q38) -> 0 | R39: =SUM(R34:R38) -> 0 | T39: =SUM(T34:T38) -> 0 | U39: =SUM(U34:U38) -> 0 | W39: =HLOOKUP($W$9,'ROR-Model'!$Q$10:$U$1274,Y39) -> 0 | Y39: 30
E40: =+G40-Adjustments!G40 -> 0 | J40: =+I40-'ROR-Model'!I40 -> 0 | Y40: 31
C41: Total Dth | E41: =+G41-Adjustments!G41 -> 0 | F41: =Revenue!$F$40 -> 0 | G41: =+Adjustments!T41 -> 0 | I41: =SUM($F$41:$H$41) -> 0 | J41: =+I41-'ROR-Model'!I41 -> 0 | L41: Utah | M41: =VLOOKUP($L41,$L$2:$N$7,2,FALSE)*I41 -> 0 | N41: =VLOOKUP($L41,$L$2:$N$7,3,FALSE)*I41 -> 0 | P41: G | Q41: =IF(P41="G",M41,IF(P41="PT",0,ERR)) -> 0 | R41: =IF(P41="PT",M41,IF(P41="G",0,ERR)) -> 0 | S41: G | T41: =IF(S41="G",N41,IF(S41="PT",0,ERR)) -> 0 | U41: =IF(S41="PT",N41,IF(S41="G",0,ERR)) -> 0 | W41: =HLOOKUP($W$9,'ROR-Model'!$Q$10:$U$1274,Y41) -> 0 | Y41: 32
E42: =+G42-Adjustments!G42 -> 0 | J42: =+I42-'ROR-Model'!I42 -> 0 | Y42: 33
B43: F-1 | C43: Distribution Non-Gas Rev | E43: =+G43-Adjustments!G43 -> 0 | F43: =Revenue!$F$42 -> 3876580 | G43: =+Adjustments!T43 -> 0 | I43: =SUM($F$43:$H$43) -> 3876580 | J43: =+I43-'ROR-Model'!I43 -> 0 | L43: Utah | M43: =VLOOKUP($L43,$L$2:$N$7,2,FALSE)*I43 -> 3876580 | N43: =VLOOKUP($L43,$L$2:$N$7,3,FALSE)*I43 -> 0 | P43: G | Q43: =IF(P43="G",M43,IF(P43="PT",0,ERR)) -> 3876580 | R43: =IF(P43="PT",M43,IF(P43="G",0,ERR)) -> 0 | S43: G | T43: =IF(S43="G",N43,IF(S43="PT",0,ERR)) -> 0 | U43: =IF(S43="PT",N43,IF(S43="G",0,ERR)) -> 0 | W43: =HLOOKUP($W$9,'ROR-Model'!$Q$10:$U$1274,Y43) -> 3876580 | Y43: 34
E44: =+G44-Adjustments!G44 -> 0 | J44: =+I44-'ROR-Model'!I44 -> 0 | Y44: 35
C45: Supplier Non-Gas Revenue | E45: =+G45-Adjustments!G45 -> 0 | F45: =Revenue!$F$44 -> 3484211 | G45: =+Adjustments!T45 -> 0 | I45: =SUM($F$45:$H$45) -> 3484211 | J45: =+I45-'ROR-Model'!I45 -> 0 | L45: Utah | M45: =VLOOKUP($L45,$L$2:$N$7,2,FALSE)*I45 -> 3484211 | N45: =VLOOKUP($L45,$L$2:$N$7,3,FALSE)*I45 -> 0 | P45: PT | Q45: =IF(P45="G",M45,IF(P45="PT",0,ERR)) -> 0 | R45: =IF(P45="PT",M45,IF(P45="G",0,ERR)) -> 3484211 | S45: PT | T45: =IF(S45="G",N45,IF(S45="PT",0,ERR)) -> 0 | U45: =IF(S45="PT",N45,IF(S45="G",0,ERR)) -> 0 | W45: =HLOOKUP($W$9,'ROR-Model'!$Q$10:$U$1274,Y45) -> 0 | Y45: 36
E46: =+G46-Adjustments!G46 -> 0 | J46: =+I46-'ROR-Model'!I46 -> 0 | Y46: 37
C47: Commodity Revenue | E47: =+G47-Adjustments!G47 -> 0 | F47: =Revenue!$F$46 -> 24219009 | G47: =+Adjustments!T47 -> 0 | I47: =SUM($F$47:$H$47) -> 24219009 | J47: =+I47-'ROR-Model'!I47 -> 0 | L47: Utah | M47: =VLOOKUP($L47,$L$2:$N$7,2,FALSE)*I47 -> 24219009 | N47: =VLOOKUP($L47,$L$2:$N$7,3,FALSE)*I47 -> 0 | P47: PT | Q47: =IF(P47="G",M47,IF(P47="PT",0,ERR)) -> 0 | R47: =IF(P47="PT",M47,IF(P47="G",0,ERR)) -> 24219009 | S47: PT | T47: =IF(S47="G",N47,IF(S47="PT",0,ERR)) -> 0 | U47: =IF(S47="PT",N47,IF(S47="G",0,ERR)) -> 0 | W47: =HLOOKUP($W$9,'ROR-Model'!$Q$10:$U$1274,Y47) -> 0 | Y47: 38
C48: Total Revenue | E48: =+G48-Adjustments!G48 -> 0 | F48: =SUM(F43:F47) -> 31579800 | G48: =SUM(G43:G47) -> 0 | H48: =SUM(H43:H47) -> 0 | I48: =SUM(I43:I47) -> 31579800 | J48: =+I48-'ROR-Model'!I48 -> 0 | M48: =SUM(M43:M47) -> 31579800 | N48: =SUM(N43:N47) -> 0 | Q48: =SUM(Q43:Q47) -> 3876580 | R48: =SUM(R43:R47) -> 27703220 | T48: =SUM(T43:T47) -> 0 | U48: =SUM(U43:U47) -> 0 | W48: =HLOOKUP($W$9,'ROR-Model'!$Q$10:$U$1274,Y48) -> 3876580 | Y48: 39
E49: =+G49-Adjustments!G49 -> 0 | J49: =+I49-'ROR-Model'!I49 -> 0 | Y49: 40
C50: Total Dth | E50: =+G50-Adjustments!G50 -> 0 | F50: =Revenue!$F$49 -> 4788325 | G50: =+Adjustments!T50 -> 0 | I50: =SUM($F$50:$H$50) -> 4788325 | J50: =+I50-'ROR-Model'!I50 -> 0 | L50: Utah | M50: =VLOOKUP($L50,$L$2:$N$7,2,FALSE)*I50 -> 4788325 | N50: =VLOOKUP($L50,$L$2:$N$7,3,FALSE)*I50 -> 0 | P50: G | Q50: =IF(P50="G",M50,IF(P50="PT",0,ERR)) -> 4788325 | R50: =IF(P50="PT",M50,IF(P50="G",0,ERR)) -> 0 | S50: G | T50: =IF(S50="G",N50,IF(S50="PT",0,ERR)) -> 0 | U50: =IF(S50="PT",N50,IF(S50="G",0,ERR)) -> 0 | W50: =HLOOKUP($W$9,'ROR-Model'!$Q$10:$U$1274,Y50) -> 4788325 | Y50: 41
E51: =+G51-Adjustments!G51 -> 0 | J51: =+I51-'ROR-Model'!I51 -> 0 | Y51: 42
B52: F-3 | C52: Distribution Non-Gas Rev | E52: =+G52-Adjustments!G52 -> 0 | F52: =Revenue!$F$51 -> 0 | G52: =+Adjustments!T52 -> 0 | I52: =SUM($F$52:$H$52) -> 0 | J52: =+I52-'ROR-Model'!I52 -> 0 | L52: Utah | M52: =VLOOKUP($L52,$L$2:$N$7,2,FALSE)*I52 -> 0 | N52: =VLOOKUP($L52,$L$2:$N$7,3,FALSE)*I52 -> 0 | P52: G | Q52: =IF(P52="G",M52,IF(P52="PT",0,ERR)) -> 0 | R52: =IF(P52="PT",M52,IF(P52="G",0,ERR)) -> 0 | S52: G | T52: =IF(S52="G",N52,IF(S52="PT",0,ERR)) -> 0 | U52: =IF(S52="PT",N52,IF(S52="G",0,ERR)) -> 0 | W52: =HLOOKUP($W$9,'ROR-Model'!$Q$10:$U$1274,Y52) -> 0 | Y52: 43
C53: Supplier Non-Gas Revenue | E53: =+G53-Adjustments!G53 -> 0 | I53: =SUM($F$53:$H$53) -> 0 | J53: =+I53-'ROR-Model'!I53 -> 0 | L53: Utah | M53: =VLOOKUP($L53,$L$2:$N$7,2,FALSE)*I53 -> 0 | N53: =VLOOKUP($L53,$L$2:$N$7,3,FALSE)*I53 -> 0 | P53: PT | Q53: =IF(P53="G",M53,IF(P53="PT",0,ERR)) -> 0 | R53: =IF(P53="PT",M53,IF(P53="G",0,ERR)) -> 0 | S53: PT | T53: =IF(S53="G",N53,IF(S53="PT",0,ERR)) -> 0 | U53: =IF(S53="PT",N53,IF(S53="G",0,ERR)) -> 0 | W53: =HLOOKUP($W$9,'ROR-Model'!$Q$10:$U$1274,Y53) -> 0 | Y53: 44
C54: Supplier Non-Gas Demand Revenue | E54: =+G54-Adjustments!G54 -> 0 | F54: =Revenue!$F$53 -> 0 | G54: =+Adjustments!T54 -> 0 | I54: =SUM($F$54:$H$54) -> 0 | J54: =+I54-'ROR-Model'!I54 -> 0 | L54: Utah | M54: =VLOOKUP($L54,$L$2:$N$7,2,FALSE)*I54 -> 0 | N54: =VLOOKUP($L54,$L$2:$N$7,3,FALSE)*I54 -> 0 | P54: PT | Q54: =IF(P54="G",M54,IF(P54="PT",0,ERR)) -> 0 | R54: =IF(P54="PT",M54,IF(P54="G",0,ERR)) -> 0 | S54: PT | T54: =IF(S54="G",N54,IF(S54="PT",0,ERR)) -> 0 | U54: =IF(S54="PT",N54,IF(S54="G",0,ERR)) -> 0 | W54: =HLOOKUP($W$9,'ROR-Model'!$Q$10:$U$1274,Y54) -> 0 | Y54: 45
C55: Commodity Tariff Revenue | E55: =+G55-Adjustments!G55 -> 0 | I55: =SUM($F$55:$H$55) -> 0 | J55: =+I55-'ROR-Model'!I55 -> 0 | L55: Utah | M55: =VLOOKUP($L55,$L$2:$N$7,2,FALSE)*I55 -> 0 | N55: =VLOOKUP($L55,$L$2:$N$7,3,FALSE)*I55 -> 0 | P55: PT | Q55: =IF(P55="G",M55,IF(P55="PT",0,ERR)) -> 0 | R55: =IF(P55="PT",M55,IF(P55="G",0,ERR)) -> 0 | S55: PT | T55: =IF(S55="G",N55,IF(S55="PT",0,ERR)) -> 0 | U55: =IF(S55="PT",N55,IF(S55="G",0,ERR)) -> 0 | W55: =HLOOKUP($W$9,'ROR-Model'!$Q$10:$U$1274,Y55) -> 0 | Y55: 46
C56: Commodity Demand Revenue | E56: =+G56-Adjustments!G56 -> 0 | F56: =Revenue!$F$55 -> 0 | G56: =+Adjustments!T56 -> 0 | I56: =SUM($F$56:$H$56) -> 0 | J56: =+I56-'ROR-Model'!I56 -> 0 | L56: Utah | M56: =VLOOKUP($L56,$L$2:$N$7,2,FALSE)*I56 -> 0 | N56: =VLOOKUP($L56,$L$2:$N$7,3,FALSE)*I56 -> 0 | P56: PT | Q56: =IF(P56="G",M56,IF(P56="PT",0,ERR)) -> 0 | R56: =IF(P56="PT",M56,IF(P56="G",0,ERR)) -> 0 | S56: PT | T56: =IF(S56="G",N56,IF(S56="PT",0,ERR)) -> 0 | U56: =IF(S56="PT",N56,IF(S56="G",0,ERR)) -> 0 | W56: =HLOOKUP($W$9,'ROR-Model'!$Q$10:$U$1274,Y56) -> 0 | Y56: 47
C57: Total Revenue | E57: =+G57-Adjustments!G57 -> 0 | F57: =SUM(F52:F56) -> 0 | G57: =SUM(G52:G56) -> 0 | H57: =SUM(H52:H56) -> 0 | I57: =SUM(I52:I56) -> 0 | J57: =+I57-'ROR-Model'!I57 -> 0 | M57: =SUM(M52:M56) -> 0 | N57: =SUM(N52:N56) -> 0 | Q57: =SUM(Q52:Q56) -> 0 | R57: =SUM(R52:R56) -> 0 | T57: =SUM(T52:T56) -> 0 | U57: =SUM(U52:U56) -> 0 | W57: =HLOOKUP($W$9,'ROR-Model'!$Q$10:$U$1274,Y57) -> 0 | Y57: 48
E58: =+G58-Adjustments!G58 -> 0 | J58: =+I58-'ROR-Model'!I58 -> 0 | Y58: 49
C59: Total Sales Dth | E59: =+G59-Adjustments!G59 -> 0 | F59: =Revenue!$F$58 -> 0 | G59: =+Adjustments!T59 -> 0 | I59: =SUM($F$59:$H$59) -> 0 | J59: =+I59-'ROR-Model'!I59 -> 0 | L59: Utah | M59: =VLOOKUP($L59,$L$2:$N$7,2,FALSE)*I59 -> 0 | N59: =VLOOKUP($L59,$L$2:$N$7,3,FALSE)*I59 -> 0 | P59: G | Q59: =IF(P59="G",M59,IF(P59="PT",0,ERR)) -> 0 | R59: =IF(P59="PT",M59,IF(P59="G",0,ERR)) -> 0 | S59: G | T59: =IF(S59="G",N59,IF(S59="PT",0,ERR)) -> 0 | U59: =IF(S59="PT",N59,IF(S59="G",0,ERR)) -> 0 | W59: =HLOOKUP($W$9,'ROR-Model'!$Q$10:$U$1274,Y59) -> 0 | Y59: 50
E60: =+G60-Adjustments!G60 -> 0 | J60: =+I60-'ROR-Model'!I60 -> 0 | W60: =HLOOKUP($W$9,'ROR-Model'!$Q$10:$U$1274,Y60) -> 0 | Y60: 51
B61: NGV | C61: Distribution Non-Gas Rev | E61: =+G61-Adjustments!G61 -> 0 | F61: =Revenue!$F$60 -> 5745767.537 | G61: =+Adjustments!T61 -> 0 | I61: =SUM($F$61:$H$61) -> 5745767.537 | J61: =+I61-'ROR-Model'!I61 -> 0 | L61: Utah | M61: =VLOOKUP($L61,$L$2:$N$7,2,FALSE)*I61 -> 5745767.537 | N61: =VLOOKUP($L61,$L$2:$N$7,3,FALSE)*I61 -> 0 | P61: G | Q61: =IF(P61="G",M61,IF(P61="PT",0,ERR)) -> 5745767.537 | R61: =IF(P61="PT",M61,IF(P61="G",0,ERR)) -> 0 | S61: G | T61: =IF(S61="G",N61,IF(S61="PT",0,ERR)) -> 0 | U61: =IF(S61="PT",N61,IF(S61="G",0,ERR)) -> 0 | W61: =HLOOKUP($W$9,'ROR-Model'!$Q$10:$U$1274,Y61) -> 5745767.537 | Y61: 52
E62: =+G62-Adjustments!G62 -> 0 | F62: =Revenue!$F$61 -> 0 | J62: =+I62-'ROR-Model'!I62 -> 0 | W62: =HLOOKUP($W$9,'ROR-Model'!$Q$10:$U$1274,Y62) -> 0 | Y62: 53
C63: Supplier Non-Gas Revenue | E63: =+G63-Adjustments!G63 -> 0 | F63: =Revenue!$F$62 -> 435588.7988 | G63: =+Adjustments!T63 -> 0 | I63: =SUM($F$63:$H$63) -> 435588.7988 | J63: =+I63-'ROR-Model'!I63 -> 0 | L63: Utah | M63: =VLOOKUP($L63,$L$2:$N$7,2,FALSE)*I63 -> 435588.7988 | N63: =VLOOKUP($L63,$L$2:$N$7,3,FALSE)*I63 -> 0 | P63: PT | Q63: =IF(P63="G",M63,IF(P63="PT",0,ERR)) -> 0 | R63: =IF(P63="PT",M63,IF(P63="G",0,ERR)) -> 435588.7988 | S63: PT | T63: =IF(S63="G",N63,IF(S63="PT",0,ERR)) -> 0 | U63: =IF(S63="PT",N63,IF(S63="G",0,ERR)) -> 0 | W63: =HLOOKUP($W$9,'ROR-Model'!$Q$10:$U$1274,Y63) -> 0 | Y63: 54
E64: =+G64-Adjustments!G64 -> 0 | F64: =Revenue!$F$63 -> 0 | J64: =+I64-'ROR-Model'!I64 -> 0 | W64: =HLOOKUP($W$9,'ROR-Model'!$Q$10:$U$1274,Y64) -> 0 | Y64: 55
C65: Commodity Revenue | E65: =+G65-Adjustments!G65 -> 0 | F65: =Revenue!$F$64 -> 2954232.164 | G65: =+Adjustments!T65 -> 0 | I65: =SUM($F$65:$H$65) -> 2954232.164 | J65: =+I65-'ROR-Model'!I65 -> 0 | L65: Utah | M65: =VLOOKUP($L65,$L$2:$N$7,2,FALSE)*I65 -> 2954232.164 | N65: =VLOOKUP($L65,$L$2:$N$7,3,FALSE)*I65 -> 0 | P65: PT | Q65: =IF(P65="G",M65,IF(P65="PT",0,ERR)) -> 0 | R65: =IF(P65="PT",M65,IF(P65="G",0,ERR)) -> 2954232.164 | S65: PT | T65: =IF(S65="G",N65,IF(S65="PT",0,ERR)) -> 0 | U65: =IF(S65="PT",N65,IF(S65="G",0,ERR)) -> 0 | W65: =HLOOKUP($W$9,'ROR-Model'!$Q$10:$U$1274,Y65) -> 0 | Y65: 56
C66: Total Revenue | E66: =+G66-Adjustments!G66 -> 0 | F66: =SUM(F61:F65) -> 9135588.5 | G66: =SUM(G61:G65) -> 0 | H66: =SUM(H61:H65) -> 0 | I66: =SUM(I61:I65) -> 9135588.5 | J66: =+I66-'ROR-Model'!I66 -> 0 | M66: =SUM(M61:M65) -> 9135588.5 | N66: =SUM(N61:N65) -> 0 | Q66: =SUM(Q61:Q65) -> 5745767.537 | R66: =SUM(R61:R65) -> 3389820.963 | T66: =SUM(T61:T65) -> 0 | U66: =SUM(U61:U65) -> 0 | W66: =HLOOKUP($W$9,'ROR-Model'!$Q$10:$U$1274,Y66) -> 5745767.537 | Y66: 57
E67: =+G67-Adjustments!G67 -> 0 | J67: =+I67-'ROR-Model'!I67 -> 0 | Y67: 58
C68: Total Dth | E68: =+G68-Adjustments!G68 -> 0 | F68: =Revenue!$F$67 -> 582252.31 | G68: =+Adjustments!T68 -> 0 | I68: =SUM($F$68:$H$68) -> 582252.31 | J68: =+I68-'ROR-Model'!I68 -> 0 | L68: Utah | M68: =VLOOKUP($L68,$L$2:$N$7,2,FALSE)*I68 -> 582252.31 | N68: =VLOOKUP($L68,$L$2:$N$7,3,FALSE)*I68 -> 0 | P68: G | Q68: =IF(P68="G",M68,IF(P68="PT",0,ERR)) -> 582252.31 | R68: =IF(P68="PT",M68,IF(P68="G",0,ERR)) -> 0 | S68: G | T68: =IF(S68="G",N68,IF(S68="PT",0,ERR)) -> 0 | U68: =IF(S68="PT",N68,IF(S68="G",0,ERR)) -> 0 | W68: =HLOOKUP($W$9,'ROR-Model'!$Q$10:$U$1274,Y68) -> 582252.31 | Y68: 59
E69: =+G69-Adjustments!G69 -> 0 | J69: =+I69-'ROR-Model'!I69 -> 0 | Y69: 60
B70: F-4 | C70: Distribution Non-Gas Rev | E70: =+G70-Adjustments!G70 -> 0 | F70: =Revenue!$F$69 -> 0 | G70: =+Adjustments!T70 -> 0 | I70: =SUM($F$70:$H$70) -> 0 | J70: =+I70-'ROR-Model'!I70 -> 0 | L70: Utah | M70: =VLOOKUP($L70,$L$2:$N$7,2,FALSE)*I70 -> 0 | N70: =VLOOKUP($L70,$L$2:$N$7,3,FALSE)*I70 -> 0 | P70: G | Q70: =IF(P70="G",M70,IF(P70="PT",0,ERR)) -> 0 | R70: =IF(P70="PT",M70,IF(P70="G",0,ERR)) -> 0 | S70: G | T70: =IF(S70="G",N70,IF(S70="PT",0,ERR)) -> 0 | U70: =IF(S70="PT",N70,IF(S70="G",0,ERR)) -> 0 | W70: =HLOOKUP($W$9,'ROR-Model'!$Q$10:$U$1274,Y70) -> 0 | Y70: 61
E71: =+G71-Adjustments!G71 -> 0 | J71: =+I71-'ROR-Model'!I71 -> 0 | Y71: 62
C72: Supplier Non-Gas Revenue | E72: =+G72-Adjustments!G72 -> 0 | F72: =Revenue!$F$71 -> 0 | G72: =+Adjustments!T72 -> 0 | I72: =SUM($F$72:$H$72) -> 0 | J72: =+I72-'ROR-Model'!I72 -> 0 | L72: Utah | M72: =VLOOKUP($L72,$L$2:$N$7,2,FALSE)*I72 -> 0 | N72: =VLOOKUP($L72,$L$2:$N$7,3,FALSE)*I72 -> 0 | P72: PT | Q72: =IF(P72="G",M72,IF(P72="PT",0,ERR)) -> 0 | R72: =IF(P72="PT",M72,IF(P72="G",0,ERR)) -> 0 | S72: PT | T72: =IF(S72="G",N72,IF(S72="PT",0,ERR)) -> 0 | U72: =IF(S72="PT",N72,IF(S72="G",0,ERR)) -> 0 | W72: =HLOOKUP($W$9,'ROR-Model'!$Q$10:$U$1274,Y72) -> 0 | Y72: 63
E73: =+G73-Adjustments!G73 -> 0 | J73: =+I73-'ROR-Model'!I73 -> 0 | Y73: 64
C74: Commodity Revenue | E74: =+G74-Adjustments!G74 -> 0 | F74: =Revenue!$F$73 -> 0 | G74: =+Adjustments!T74 -> 0 | I74: =SUM($F$74:$H$74) -> 0 | J74: =+I74-'ROR-Model'!I74 -> 0 | L74: Utah | M74: =VLOOKUP($L74,$L$2:$N$7,2,FALSE)*I74 -> 0 | N74: =VLOOKUP($L74,$L$2:$N$7,3,FALSE)*I74 -> 0 | P74: PT | Q74: =IF(P74="G",M74,IF(P74="PT",0,ERR)) -> 0 | R74: =IF(P74="PT",M74,IF(P74="G",0,ERR)) -> 0 | S74: PT | T74: =IF(S74="G",N74,IF(S74="PT",0,ERR)) -> 0 | U74: =IF(S74="PT",N74,IF(S74="G",0,ERR)) -> 0 | W74: =HLOOKUP($W$9,'ROR-Model'!$Q$10:$U$1274,Y74) -> 0 | Y74: 65
C75: Total Revenue | E75: =+G75-Adjustments!G75 -> 0 | F75: =SUM(F70:F74) -> 0 | G75: =SUM(G70:G74) -> 0 | H75: =SUM(H70:H74) -> 0 | I75: =SUM(I70:I74) -> 0 | J75: =+I75-'ROR-Model'!I75 -> 0 | M75: =SUM(M70:M74) -> 0 | N75: =SUM(N70:N74) -> 0 | Q75: =SUM(Q70:Q74) -> 0 | R75: =SUM(R70:R74) -> 0 | T75: =SUM(T70:T74) -> 0 | U75: =SUM(U70:U74) -> 0 | W75: =HLOOKUP($W$9,'ROR-Model'!$Q$10:$U$1274,Y75) -> 0 | Y75: 66
E76: =+G76-Adjustments!G76 -> 0 | J76: =+I76-'ROR-Model'!I76 -> 0 | Y76: =Y75+1 -> 67
C77: Total Dth | E77: =+G77-Adjustments!G77 -> 0 | F77: =Revenue!$F$76 -> 0 | G77: =+Adjustments!T77 -> 0 | I77: =SUM($F$77:$H$77) -> 0 | J77: =+I77-'ROR-Model'!I77 -> 0 | L77: Utah | M77: =VLOOKUP($L77,$L$2:$N$7,2,FALSE)*I77 -> 0 | N77: =VLOOKUP($L77,$L$2:$N$7,3,FALSE)*I77 -> 0 | P77: G | Q77: =IF(P77="G",M77,IF(P77="PT",0,ERR)) -> 0 | R77: =IF(P77="PT",M77,IF(P77="G",0,ERR)) -> 0 | S77: G | T77: =IF(S77="G",N77,IF(S77="PT",0,ERR)) -> 0 | U77: =IF(S77="PT",N77,IF(S77="G",0,ERR)) -> 0 | W77: =HLOOKUP($W$9,'ROR-Model'!$Q$10:$U$1274,Y77) -> 0 | Y77: 68
E78: =+G78-Adjustments!G78 -> 0 | J78: =+I78-'ROR-Model'!I78 -> 0 | Y78: 69
B79: Blank | C79: Distribution Non-Gas Rev | E79: =+G79-Adjustments!G79 -> 0 | F79: =Revenue!$F$78 -> 0 | G79: =+Adjustments!T79 -> 0 | I79: =SUM($F$79:$H$79) -> 0 | J79: =+I79-'ROR-Model'!I79 -> 0 | L79: Utah | M79: =VLOOKUP($L79,$L$2:$N$7,2,FALSE)*I79 -> 0 | N79: =VLOOKUP($L79,$L$2:$N$7,3,FALSE)*I79 -> 0 | P79: G | Q79: =IF(P79="G",M79,IF(P79="PT",0,ERR)) -> 0 | R79: =IF(P79="PT",M79,IF(P79="G",0,ERR)) -> 0 | S79: G | T79: =IF(S79="G",N79,IF(S79="PT",0,ERR)) -> 0 | U79: =IF(S79="PT",N79,IF(S79="G",0,ERR)) -> 0 | W79: =HLOOKUP($W$9,'ROR-Model'!$Q$10:$U$1274,Y79) -> 0 | Y79: 70
E80: =+G80-Adjustments!G80 -> 0 | J80: =+I80-'ROR-Model'!I80 -> 0 | Y80: 71
C81: Supplier Non-Gas Revenue | E81: =+G81-Adjustments!G81 -> 0 | F81: =Revenue!$F$80 -> 0 | G81: =+Adjustments!T81 -> 0 | I81: =SUM($F$81:$H$81) -> 0 | J81: =+I81-'ROR-Model'!I81 -> 0 | L81: Utah | M81: =VLOOKUP($L81,$L$2:$N$7,2,FALSE)*I81 -> 0 | N81: =VLOOKUP($L81,$L$2:$N$7,3,FALSE)*I81 -> 0 | P81: PT | Q81: =IF(P81="G",M81,IF(P81="PT",0,ERR)) -> 0 | R81: =IF(P81="PT",M81,IF(P81="G",0,ERR)) -> 0 | S81: PT | T81: =IF(S81="G",N81,IF(S81="PT",0,ERR)) -> 0 | U81: =IF(S81="PT",N81,IF(S81="G",0,ERR)) -> 0 | W81: =HLOOKUP($W$9,'ROR-Model'!$Q$10:$U$1274,Y81) -> 0 | Y81: 72
E82: =+G82-Adjustments!G82 -> 0 | J82: =+I82-'ROR-Model'!I82 -> 0 | Y82: 73
C83: Commodity Revenue | E83: =+G83-Adjustments!G83 -> 0 | F83: =Revenue!$F$82 -> 0 | G83: =+Adjustments!T83 -> 0 | I83: =SUM($F$83:$H$83) -> 0 | J83: =+I83-'ROR-Model'!I83 -> 0 | L83: Utah | M83: =VLOOKUP($L83,$L$2:$N$7,2,FALSE)*I83 -> 0 | N83: =VLOOKUP($L83,$L$2:$N$7,3,FALSE)*I83 -> 0 | P83: PT | Q83: =IF(P83="G",M83,IF(P83="PT",0,ERR)) -> 0 | R83: =IF(P83="PT",M83,IF(P83="G",0,ERR)) -> 0 | S83: PT | T83: =IF(S83="G",N83,IF(S83="PT",0,ERR)) -> 0 | U83: =IF(S83="PT",N83,IF(S83="G",0,ERR)) -> 0 | W83: =HLOOKUP($W$9,'ROR-Model'!$Q$10:$U$1274,Y83) -> 0 | Y83: 74
C84: Total Revenue | E84: =+G84-Adjustments!G84 -> 0 | F84: =SUM(F79:F83) -> 0 | G84: =SUM(G79:G83) -> 0 | H84: =SUM(H79:H83) -> 0 | I84: =SUM(I79:I83) -> 0 | J84: =+I84-'ROR-Model'!I84 -> 0 | M84: =SUM(M79:M83) -> 0 | N84: =SUM(N79:N83) -> 0 | Q84: =SUM(Q79:Q83) -> 0 | R84: =SUM(R79:R83) -> 0 | T84: =SUM(T79:T83) -> 0 | U84: =SUM(U79:U83) -> 0 | W84: =HLOOKUP($W$9,'ROR-Model'!$Q$10:$U$1274,Y84) -> 0 | Y84: 75
E85: =+G85-Adjustments!G85 -> 0 | J85: =+I85-'ROR-Model'!I85 -> 0 | Y85: 76
C86: Total Dth | E86: =+G86-Adjustments!G86 -> 0 | F86: =Revenue!$F$85 -> 0 | G86: =+Adjustments!T86 -> 0 | I86: =SUM($F$86:$H$86) -> 0 | J86: =+I86-'ROR-Model'!I86 -> 0 | L86: Utah | M86: =VLOOKUP($L86,$L$2:$N$7,2,FALSE)*I86 -> 0 | N86: =VLOOKUP($L86,$L$2:$N$7,3,FALSE)*I86 -> 0 | P86: G | Q86: =IF(P86="G",M86,IF(P86="PT",0,ERR)) -> 0 | R86: =IF(P86="PT",M86,IF(P86="G",0,ERR)) -> 0 | S86: G | T86: =IF(S86="G",N86,IF(S86="PT",0,ERR)) -> 0 | U86: =IF(S86="PT",N86,IF(S86="G",0,ERR)) -> 0 | W86: =HLOOKUP($W$9,'ROR-Model'!$Q$10:$U$1274,Y86) -> 0 | Y86: 77
E87: =+G87-Adjustments!G87 -> 0 | J87: =+I87-'ROR-Model'!I87 -> 0 | Y87: 78
B88: I-4 | C88: Distribution Non-Gas Rev | E88: =+G88-Adjustments!G88 -> 0 | F88: =Revenue!$F$87 -> 0 | G88: =+Adjustments!T88 -> 0 | I88: =SUM($F$88:$H$88) -> 0 | J88: =+I88-'ROR-Model'!I88 -> 0 | L88: Utah | M88: =VLOOKUP($L88,$L$2:$N$7,2,FALSE)*I88 -> 0 | N88: =VLOOKUP($L88,$L$2:$N$7,3,FALSE)*I88 -> 0 | P88: G | Q88: =IF(P88="G",M88,IF(P88="PT",0,ERR)) -> 0 | R88: =IF(P88="PT",M88,IF(P88="G",0,ERR)) -> 0 | S88: G | T88: =IF(S88="G",N88,IF(S88="PT",0,ERR)) -> 0 | U88: =IF(S88="PT",N88,IF(S88="G",0,ERR)) -> 0 | W88: =HLOOKUP($W$9,'ROR-Model'!$Q$10:$U$1274,Y88) -> 0 | Y88: 79
E89: =+G89-Adjustments!G89 -> 0 | J89: =+I89-'ROR-Model'!I89 -> 0 | Y89: 80
C90: Supplier Non-Gas Revenue | E90: =+G90-Adjustments!G90 -> 0 | F90: =Revenue!$F$89 -> 0 | G90: =+Adjustments!T90 -> 0 | I90: =SUM($F$90:$H$90) -> 0 | J90: =+I90-'ROR-Model'!I90 -> 0 | L90: Utah | M90: =VLOOKUP($L90,$L$2:$N$7,2,FALSE)*I90 -> 0 | N90: =VLOOKUP($L90,$L$2:$N$7,3,FALSE)*I90 -> 0 | P90: PT | Q90: =IF(P90="G",M90,IF(P90="PT",0,ERR)) -> 0 | R90: =IF(P90="PT",M90,IF(P90="G",0,ERR)) -> 0 | S90: PT | T90: =IF(S90="G",N90,IF(S90="PT",0,ERR)) -> 0 | U90: =IF(S90="PT",N90,IF(S90="G",0,ERR)) -> 0 | W90: =HLOOKUP($W$9,'ROR-Model'!$Q$10:$U$1274,Y90) -> 0 | Y90: 81
E91: =+G91-Adjustments!G91 -> 0 | J91: =+I91-'ROR-Model'!I91 -> 0 | Y91: 82
C92: Commodity Revenue | E92: =+G92-Adjustments!G92 -> 0 | F92: =Revenue!$F$91 -> 0 | G92: =+Adjustments!T92 -> 0 | I92: =SUM($F$92:$H$92) -> 0 | J92: =+I92-'ROR-Model'!I92 -> 0 | L92: Utah | M92: =VLOOKUP($L92,$L$2:$N$7,2,FALSE)*I92 -> 0 | N92: =VLOOKUP($L92,$L$2:$N$7,3,FALSE)*I92 -> 0 | P92: PT | Q92: =IF(P92="G",M92,IF(P92="PT",0,ERR)) -> 0 | R92: =IF(P92="PT",M92,IF(P92="G",0,ERR)) -> 0 | S92: PT | T92: =IF(S92="G",N92,IF(S92="PT",0,ERR)) -> 0 | U92: =IF(S92="PT",N92,IF(S92="G",0,ERR)) -> 0 | W92: =HLOOKUP($W$9,'ROR-Model'!$Q$10:$U$1274,Y92) -> 0 | Y92: 83
C93: Total Revenue | E93: =+G93-Adjustments!G93 -> 0 | F93: =SUM(F88:F92) -> 0 | G93: =SUM(G88:G92) -> 0 | H93: =SUM(H88:H92) -> 0 | I93: =SUM(I88:I92) -> 0 | J93: =+I93-'ROR-Model'!I93 -> 0 | M93: =SUM(M88:M92) -> 0 | N93: =SUM(N88:N92) -> 0 | Q93: =SUM(Q88:Q92) -> 0 | R93: =SUM(R88:R92) -> 0 | T93: =SUM(T88:T92) -> 0 | U93: =SUM(U88:U92) -> 0 | W93: =HLOOKUP($W$9,'ROR-Model'!$Q$10:$U$1274,Y93) -> 0 | Y93: 84
E94: =+G94-Adjustments!G94 -> 0 | J94: =+I94-'ROR-Model'!I94 -> 0 | Y94: 85
C95: Total Dth | E95: =+G95-Adjustments!G95 -> 0 | F95: =Revenue!$F$94 -> 0 | G95: =+Adjustments!T95 -> 0 | I95: =SUM($F$95:$H$95) -> 0 | J95: =+I95-'ROR-Model'!I95 -> 0 | L95: Utah | M95: =VLOOKUP($L95,$L$2:$N$7,2,FALSE)*I95 -> 0 | N95: =VLOOKUP($L95,$L$2:$N$7,3,FALSE)*I95 -> 0 | P95: G | Q95: =IF(P95="G",M95,IF(P95="PT",0,ERR)) -> 0 | R95: =IF(P95="PT",M95,IF(P95="G",0,ERR)) -> 0 | S95: G | T95: =IF(S95="G",N95,IF(S95="PT",0,ERR)) -> 0 | U95: =IF(S95="PT",N95,IF(S95="G",0,ERR)) -> 0 | W95: =HLOOKUP($W$9,'ROR-Model'!$Q$10:$U$1274,Y95) -> 0 | Y95: 86
E96: =+G96-Adjustments!G96 -> 0 | J96: =+I96-'ROR-Model'!I96 -> 0 | Y96: 87
B97: Blank | C97: Distribution Non-Gas Rev | E97: =+G97-Adjustments!G97 -> 0 | F97: =Revenue!$F$96 -> 903258 | G97: =+Adjustments!T97 -> 0 | I97: =SUM($F$97:$H$97) -> 903258 | J97: =+I97-'ROR-Model'!I97 -> 0 | L97: Utah | M97: =VLOOKUP($L97,$L$2:$N$7,2,FALSE)*I97 -> 903258 | N97: =VLOOKUP($L97,$L$2:$N$7,3,FALSE)*I97 -> 0 | P97: G | Q97: =IF(P97="G",M97,IF(P97="PT",0,ERR)) -> 903258 | R97: =IF(P97="PT",M97,IF(P97="G",0,ERR)) -> 0 | S97: G | T97: =IF(S97="G",N97,IF(S97="PT",0,ERR)) -> 0 | U97: =IF(S97="PT",N97,IF(S97="G",0,ERR)) -> 0 | W97: =HLOOKUP($W$9,'ROR-Model'!$Q$10:$U$1274,Y97) -> 903258 | Y97: 88
E98: =+G98-Adjustments!G98 -> 0 | J98: =+I98-'ROR-Model'!I98 -> 0 | Y98: 89
C99: Supplier Non-Gas Revenue | E99: =+G99-Adjustments!G99 -> 0 | F99: =Revenue!$F$98 -> 424366 | G99: =+Adjustments!T99 -> 0 | I99: =SUM($F$99:$H$99) -> 424366 | J99: =+I99-'ROR-Model'!I99 -> 0 | L99: Utah | M99: =VLOOKUP($L99,$L$2:$N$7,2,FALSE)*I99 -> 424366 | N99: =VLOOKUP($L99,$L$2:$N$7,3,FALSE)*I99 -> 0 | P99: PT | Q99: =IF(P99="G",M99,IF(P99="PT",0,ERR)) -> 0 | R99: =IF(P99="PT",M99,IF(P99="G",0,ERR)) -> 424366 | S99: PT | T99: =IF(S99="G",N99,IF(S99="PT",0,ERR)) -> 0 | U99: =IF(S99="PT",N99,IF(S99="G",0,ERR)) -> 0 | W99: =HLOOKUP($W$9,'ROR-Model'!$Q$10:$U$1274,Y99) -> 0 | Y99: 90
E100: =+G100-Adjustments!G100 -> 0 | J100: =+I100-'ROR-Model'!I100 -> 0 | Y100: 91
C101: Commodity Revenue | E101: =+G101-Adjustments!G101 -> 0 | F101: =Revenue!$F$100 -> 11043171 | G101: =+Adjustments!T101 -> 0 | I101: =SUM($F$101:$H$101) -> 11043171 | J101: =+I101-'ROR-Model'!I101 -> 0 | L101: Utah | M101: =VLOOKUP($L101,$L$2:$N$7,2,FALSE)*I101 -> 11043171 | N101: =VLOOKUP($L101,$L$2:$N$7,3,FALSE)*I101 -> 0 | P101: PT | Q101: =IF(P101="G",M101,IF(P101="PT",0,ERR)) -> 0 | R101: =IF(P101="PT",M101,IF(P101="G",0,ERR)) -> 11043171 | S101: PT | T101: =IF(S101="G",N101,IF(S101="PT",0,ERR)) -> 0 | U101: =IF(S101="PT",N101,IF(S101="G",0,ERR)) -> 0 | W101: =HLOOKUP($W$9,'ROR-Model'!$Q$10:$U$1274,Y101) -> 0 | Y101: 92
C102: Total Revenue | E102: =+G102-Adjustments!G102 -> 0 | F102: =SUM(F97:F101) -> 12370795 | G102: =SUM(G97:G101) -> 0 | H102: =SUM(H97:H101) -> 0 | I102: =SUM(I97:I101) -> 12370795 | J102: =+I102-'ROR-Model'!I102 -> 0 | M102: =SUM(M97:M101) -> 12370795 | N102: =SUM(N97:N101) -> 0 | Q102: =SUM(Q97:Q101) -> 903258 | R102: =SUM(R97:R101) -> 11467537 | T102: =SUM(T97:T101) -> 0 | U102: =SUM(U97:U101) -> 0 | W102: =HLOOKUP($W$9,'ROR-Model'!$Q$10:$U$1274,Y102) -> 903258 | Y102: 93
E103: =+G103-Adjustments!G103 -> 0 | J103: =+I103-'ROR-Model'!I103 -> 0 | Y103: 94
C104: Total Dth | E104: =+G104-Adjustments!G104 -> 0 | F104: =Revenue!$F$103 -> 2368396 | G104: =+Adjustments!T104 -> 0 | I104: =SUM($F$104:$H$104) -> 2368396 | J104: =+I104-'ROR-Model'!I104 -> 0 | L104: Utah | M104: =VLOOKUP($L104,$L$2:$N$7,2,FALSE)*I104 -> 2368396 | N104: =VLOOKUP($L104,$L$2:$N$7,3,FALSE)*I104 -> 0 | P104: G | Q104: =IF(P104="G",M104,IF(P104="PT",0,ERR)) -> 2368396 | R104: =IF(P104="PT",M104,IF(P104="G",0,ERR)) -> 0 | S104: G | T104: =IF(S104="G",N104,IF(S104="PT",0,ERR)) -> 0 | U104: =IF(S104="PT",N104,IF(S104="G",0,ERR)) -> 0 | W104: =HLOOKUP($W$9,'ROR-Model'!$Q$10:$U$1274,Y104) -> 2368396 | Y104: 95
E105: =+G105-Adjustments!G105 -> 0 | J105: =+I105-'ROR-Model'!I105 -> 0 | Y105: 96
B106: IS-4 | C106: Distribution Non-Gas Rev | E106: =+G106-Adjustments!G106 -> 0 | F106: =Revenue!$F$105 -> 0 | G106: =+Adjustments!T106 -> 0 | I106: =SUM($F$106:$H$106) -> 0 | J106: =+I106-'ROR-Model'!I106 -> 0 | L106: Utah | M106: =VLOOKUP($L106,$L$2:$N$7,2,FALSE)*I106 -> 0 | N106: =VLOOKUP($L106,$L$2:$N$7,3,FALSE)*I106 -> 0 | P106: G | Q106: =IF(P106="G",M106,IF(P106="PT",0,ERR)) -> 0 | R106: =IF(P106="PT",M106,IF(P106="G",0,ERR)) -> 0 | S106: G | T106: =IF(S106="G",N106,IF(S106="PT",0,ERR)) -> 0 | U106: =IF(S106="PT",N106,IF(S106="G",0,ERR)) -> 0 | W106: =HLOOKUP($W$9,'ROR-Model'!$Q$10:$U$1274,Y106) -> 0 | Y106: 97
E107: =+G107-Adjustments!G107 -> 0 | J107: =+I107-'ROR-Model'!I107 -> 0 | Y107: 98
C108: Supplier Non-Gas Revenue | E108: =+G108-Adjustments!G108 -> 0 | F108: =Revenue!$F$107 -> 0 | G108: =+Adjustments!T108 -> 0 | I108: =SUM($F$108:$H$108) -> 0 | J108: =+I108-'ROR-Model'!I108 -> 0 | L108: Utah | M108: =VLOOKUP($L108,$L$2:$N$7,2,FALSE)*I108 -> 0 | N108: =VLOOKUP($L108,$L$2:$N$7,3,FALSE)*I108 -> 0 | P108: PT | Q108: =IF(P108="G",M108,IF(P108="PT",0,ERR)) -> 0 | R108: =IF(P108="PT",M108,IF(P108="G",0,ERR)) -> 0 | S108: PT | T108: =IF(S108="G",N108,IF(S108="PT",0,ERR)) -> 0 | U108: =IF(S108="PT",N108,IF(S108="G",0,ERR)) -> 0 | W108: =HLOOKUP($W$9,'ROR-Model'!$Q$10:$U$1274,Y108) -> 0 | Y108: 99
E109: =+G109-Adjustments!G109 -> 0 | J109: =+I109-'ROR-Model'!I109 -> 0 | Y109: 100
C110: Commodity Revenue | E110: =+G110-Adjustments!G110 -> 0 | F110: =Revenue!$F$109 -> 0 | G110: =+Adjustments!T110 -> 0 | I110: =SUM($F$110:$H$110) -> 0 | J110: =+I110-'ROR-Model'!I110 -> 0 | L110: Utah | M110: =VLOOKUP($L110,$L$2:$N$7,2,FALSE)*I110 -> 0 | N110: =VLOOKUP($L110,$L$2:$N$7,3,FALSE)*I110 -> 0 | P110: PT | Q110: =IF(P110="G",M110,IF(P110="PT",0,ERR)) -> 0 | R110: =IF(P110="PT",M110,IF(P110="G",0,ERR)) -> 0 | S110: PT | T110: =IF(S110="G",N110,IF(S110="PT",0,ERR)) -> 0 | U110: =IF(S110="PT",N110,IF(S110="G",0,ERR)) -> 0 | W110: =HLOOKUP($W$9,'ROR-Model'!$Q$10:$U$1274,Y110) -> 0 | Y110: 101
C111: Total Revenue | E111: =+G111-Adjustments!G111 -> 0 | F111: =SUM(F106:F110) -> 0 | G111: =SUM(G106:G110) -> 0 | H111: =SUM(H106:H110) -> 0 | I111: =SUM(I106:I110) -> 0 | J111: =+I111-'ROR-Model'!I111 -> 0 | M111: =SUM(M106:M110) -> 0 | N111: =SUM(N106:N110) -> 0 | Q111: =SUM(Q106:Q110) -> 0 | R111: =SUM(R106:R110) -> 0 | T111: =SUM(T106:T110) -> 0 | U111: =SUM(U106:U110) -> 0 | W111: =HLOOKUP($W$9,'ROR-Model'!$Q$10:$U$1274,Y111) -> 0 | Y111: 102
E112: =+G112-Adjustments!G112 -> 0 | J112: =+I112-'ROR-Model'!I112 -> 0 | Y112: 103
C113: Total Dth | E113: =+G113-Adjustments!G113 -> 0 | F113: =Revenue!$F$112 -> 0 | G113: =+Adjustments!T113 -> 0 | I113: =SUM($F$113:$H$113) -> 0 | J113: =+I113-'ROR-Model'!I113 -> 0 | L113: Utah | M113: =VLOOKUP($L113,$L$2:$N$7,2,FALSE)*I113 -> 0 | N113: =VLOOKUP($L113,$L$2:$N$7,3,FALSE)*I113 -> 0 | P113: G | Q113: =IF(P113="G",M113,IF(P113="PT",0,ERR)) -> 0 | R113: =IF(P113="PT",M113,IF(P113="G",0,ERR)) -> 0 | S113: G | T113: =IF(S113="G",N113,IF(S113="PT",0,ERR)) -> 0 | U113: =IF(S113="PT",N113,IF(S113="G",0,ERR)) -> 0 | W113: =HLOOKUP($W$9,'ROR-Model'!$Q$10:$U$1274,Y113) -> 0 | Y113: 104
E114: =+G114-Adjustments!G114 -> 0 | J114: =+I114-'ROR-Model'!I114 -> 0 | Y114: 105
B115: FT1-L | C115: Distribution Non-Gas Rev | E115: =+G115-Adjustments!G115 -> 0 | F115: =Revenue!$F$114 -> 0 | G115: =+Adjustments!T115 -> 0 | I115: =SUM($F$115:$H$115) -> 0 | J115: =+I115-'ROR-Model'!I115 -> 0 | L115: Utah | M115: =VLOOKUP($L115,$L$2:$N$7,2,FALSE)*I115 -> 0 | N115: =VLOOKUP($L115,$L$2:$N$7,3,FALSE)*I115 -> 0 | P115: G | Q115: =IF(P115="G",M115,IF(P115="PT",0,ERR)) -> 0 | R115: =IF(P115="PT",M115,IF(P115="G",0,ERR)) -> 0 | S115: G | T115: =IF(S115="G",N115,IF(S115="PT",0,ERR)) -> 0 | U115: =IF(S115="PT",N115,IF(S115="G",0,ERR)) -> 0 | W115: =HLOOKUP($W$9,'ROR-Model'!$Q$10:$U$1274,Y115) -> 0 | Y115: 106
E116: =+G116-Adjustments!G116 -> 0 | J116: =+I116-'ROR-Model'!I116 -> 0 | Y116: 107
C117: Supplier Non-Gas Revenue | E117: =+G117-Adjustments!G117 -> 0 | F117: =Revenue!$F$116 -> 0 | G117: =+Adjustments!T117 -> 0 | I117: =SUM($F$117:$H$117) -> 0 | J117: =+I117-'ROR-Model'!I117 -> 0 | L117: Utah | M117: =VLOOKUP($L117,$L$2:$N$7,2,FALSE)*I117 -> 0 | N117: =VLOOKUP($L117,$L$2:$N$7,3,FALSE)*I117 -> 0 | P117: PT | Q117: =IF(P117="G",M117,IF(P117="PT",0,ERR)) -> 0 | R117: =IF(P117="PT",M117,IF(P117="G",0,ERR)) -> 0 | S117: PT | T117: =IF(S117="G",N117,IF(S117="PT",0,ERR)) -> 0 | U117: =IF(S117="PT",N117,IF(S117="G",0,ERR)) -> 0 | W117: =HLOOKUP($W$9,'ROR-Model'!$Q$10:$U$1274,Y117) -> 0 | Y117: 108
E118: =+G118-Adjustments!G118 -> 0 | J118: =+I118-'ROR-Model'!I118 -> 0 | Y118: 109
C119: Commodity Revenue | E119: =+G119-Adjustments!G119 -> 0 | F119: =Revenue!$F$118 -> 0 | G119: =+Adjustments!T119 -> 0 | I119: =SUM($F$119:$H$119) -> 0 | J119: =+I119-'ROR-Model'!I119 -> 0 | L119: Utah | M119: =VLOOKUP($L119,$L$2:$N$7,2,FALSE)*I119 -> 0 | N119: =VLOOKUP($L119,$L$2:$N$7,3,FALSE)*I119 -> 0 | P119: PT | Q119: =IF(P119="G",M119,IF(P119="PT",0,ERR)) -> 0 | R119: =IF(P119="PT",M119,IF(P119="G",0,ERR)) -> 0 | S119: PT | T119: =IF(S119="G",N119,IF(S119="PT",0,ERR)) -> 0 | U119: =IF(S119="PT",N119,IF(S119="G",0,ERR)) -> 0 | W119: =HLOOKUP($W$9,'ROR-Model'!$Q$10:$U$1274,Y119) -> 0 | Y119: 110
C120: Total Revenue | E120: =+G120-Adjustments!G120 -> 0 | F120: =SUM(F115:F119) -> 0 | G120: =SUM(G115:G119) -> 0 | H120: =SUM(H115:H119) -> 0 | I120: =SUM(I115:I119) -> 0 | J120: =+I120-'ROR-Model'!I120 -> 0 | M120: =SUM(M115:M119) -> 0 | N120: =SUM(N115:N119) -> 0 | Q120: =SUM(Q115:Q119) -> 0 | R120: =SUM(R115:R119) -> 0 | T120: =SUM(T115:T119) -> 0 | U120: =SUM(U115:U119) -> 0 | W120: =HLOOKUP($W$9,'ROR-Model'!$Q$10:$U$1274,Y120) -> 0 | Y120: 111
E121: =+G121-Adjustments!G121 -> 0 | J121: =+I121-'ROR-Model'!I121 -> 0 | Y121: 112
C122: Total Dth | E122: =+G122-Adjustments!G122 -> 0 | F122: =Revenue!$F$121 -> 0 | G122: =+Adjustments!T122 -> 0 | I122: =SUM($F$122:$H$122) -> 0 | J122: =+I122-'ROR-Model'!I122 -> 0 | L122: Utah | M122: =VLOOKUP($L122,$L$2:$N$7,2,FALSE)*I122 -> 0 | N122: =VLOOKUP($L122,$L$2:$N$7,3,FALSE)*I122 -> 0 | P122: G | Q122: =IF(P122="G",M122,IF(P122="PT",0,ERR)) -> 0 | R122: =IF(P122="PT",M122,IF(P122="G",0,ERR)) -> 0 | S122: G | T122: =IF(S122="G",N122,IF(S122="PT",0,ERR)) -> 0 | U122: =IF(S122="PT",N122,IF(S122="G",0,ERR)) -> 0 | W122: =HLOOKUP($W$9,'ROR-Model'!$Q$10:$U$1274,Y122) -> 0 | Y122: 113
E123: =+G123-Adjustments!G123 -> 0 | J123: =+I123-'ROR-Model'!I123 -> 0 | Y123: 114
B124: FT-1 | C124: Distribution Non-Gas Rev | E124: =+G124-Adjustments!G124 -> 0 | F124: =Revenue!$F$123 -> 5771367 | G124: =+Adjustments!T124 -> 0 | I124: =SUM($F$124:$H$124) -> 5771367 | J124: =+I124-'ROR-Model'!I124 -> 0 | L124: Utah | M124: =VLOOKUP($L124,$L$2:$N$7,2,FALSE)*I124 -> 5771367 | N124: =VLOOKUP($L124,$L$2:$N$7,3,FALSE)*I124 -> 0 | P124: G | Q124: =IF(P124="G",M124,IF(P124="PT",0,ERR)) -> 5771367 | R124: =IF(P124="PT",M124,IF(P124="G",0,ERR)) -> 0 | S124: G | T124: =IF(S124="G",N124,IF(S124="PT",0,ERR)) -> 0 | U124: =IF(S124="PT",N124,IF(S124="G",0,ERR)) -> 0 | W124: =HLOOKUP($W$9,'ROR-Model'!$Q$10:$U$1274,Y124) -> 5771367 | Y124: 115
E125: =+G125-Adjustments!G125 -> 0 | J125: =+I125-'ROR-Model'!I125 -> 0 | Y125: 116
C126: Supplier Non-Gas Revenue | E126: =+G126-Adjustments!G126 -> 0 | F126: =Revenue!$F$125 -> 0 | G126: =+Adjustments!T126 -> 0 | I126: =SUM($F$126:$H$126) -> 0 | J126: =+I126-'ROR-Model'!I126 -> 0 | L126: Utah | M126: =VLOOKUP($L126,$L$2:$N$7,2,FALSE)*I126 -> 0 | N126: =VLOOKUP($L126,$L$2:$N$7,3,FALSE)*I126 -> 0 | P126: PT | Q126: =IF(P126="G",M126,IF(P126="PT",0,ERR)) -> 0 | R126: =IF(P126="PT",M126,IF(P126="G",0,ERR)) -> 0 | S126: PT | T126: =IF(S126="G",N126,IF(S126="PT",0,ERR)) -> 0 | U126: =IF(S126="PT",N126,IF(S126="G",0,ERR)) -> 0 | W126: =HLOOKUP($W$9,'ROR-Model'!$Q$10:$U$1274,Y126) -> 0 | Y126: 117
E127: =+G127-Adjustments!G127 -> 0 | J127: =+I127-'ROR-Model'!I127 -> 0 | Y127: 118
C128: Commodity Revenue | E128: =+G128-Adjustments!G128 -> 0 | F128: =Revenue!$F$127 -> 0 | G128: =+Adjustments!T128 -> 0 | I128: =SUM($F$128:$H$128) -> 0 | J128: =+I128-'ROR-Model'!I128 -> 0 | L128: Utah | M128: =VLOOKUP($L128,$L$2:$N$7,2,FALSE)*I128 -> 0 | N128: =VLOOKUP($L128,$L$2:$N$7,3,FALSE)*I128 -> 0 | P128: PT | Q128: =IF(P128="G",M128,IF(P128="PT",0,ERR)) -> 0 | R128: =IF(P128="PT",M128,IF(P128="G",0,ERR)) -> 0 | S128: PT | T128: =IF(S128="G",N128,IF(S128="PT",0,ERR)) -> 0 | U128: =IF(S128="PT",N128,IF(S128="G",0,ERR)) -> 0 | W128: =HLOOKUP($W$9,'ROR-Model'!$Q$10:$U$1274,Y128) -> 0 | Y128: 119
C129: Total Revenue | E129: =+G129-Adjustments!G129 -> 0 | F129: =SUM(F124:F128) -> 5771367 | G129: =SUM(G124:G128) -> 0 | H129: =SUM(H124:H128) -> 0 | I129: =SUM(I124:I128) -> 5771367 | J129: =+I129-'ROR-Model'!I129 -> 0 | M129: =SUM(M124:M128) -> 5771367 | N129: =SUM(N124:N128) -> 0 | Q129: =SUM(Q124:Q128) -> 5771367 | R129: =SUM(R124:R128) -> 0 | T129: =SUM(T124:T128) -> 0 | U129: =SUM(U124:U128) -> 0 | W129: =HLOOKUP($W$9,'ROR-Model'!$Q$10:$U$1274,Y129) -> 5771367 | Y129: 120
E130: =+G130-Adjustments!G130 -> 0 | J130: =+I130-'ROR-Model'!I130 -> 0 | Y130: 121
C131: Total Dth | E131: =+G131-Adjustments!G131 -> 0 | F131: =Revenue!$F$130 -> 41978841 | G131: =+Adjustments!T131 -> 0 | I131: =SUM($F$131:$H$131) -> 41978841 | J131: =+I131-'ROR-Model'!I131 -> 0 | L131: Utah | M131: =VLOOKUP($L131,$L$2:$N$7,2,FALSE)*I131 -> 41978841 | N131: =VLOOKUP($L131,$L$2:$N$7,3,FALSE)*I131 -> 0 | P131: G | Q131: =IF(P131="G",M131,IF(P131="PT",0,ERR)) -> 41978841 | R131: =IF(P131="PT",M131,IF(P131="G",0,ERR)) -> 0 | S131: G | T131: =IF(S131="G",N131,IF(S131="PT",0,ERR)) -> 0 | U131: =IF(S131="PT",N131,IF(S131="G",0,ERR)) -> 0 | W131: =HLOOKUP($W$9,'ROR-Model'!$Q$10:$U$1274,Y131) -> 41978841 | Y131: 122
E132: =+G132-Adjustments!G132 -> 0 | J132: =+I132-'ROR-Model'!I132 -> 0 | Y132: 123
B133: FT-2 | C133: Distribution Non-Gas Rev | E133: =+G133-Adjustments!G133 -> 0 | F133: =Revenue!$F$132 -> 0 | G133: =+Adjustments!T133 -> 0 | I133: =SUM($F$133:$H$133) -> 0 | J133: =+I133-'ROR-Model'!I133 -> 0 | L133: Utah | M133: =VLOOKUP($L133,$L$2:$N$7,2,FALSE)*I133 -> 0 | N133: =VLOOKUP($L133,$L$2:$N$7,3,FALSE)*I133 -> 0 | P133: G | Q133: =IF(P133="G",M133,IF(P133="PT",0,ERR)) -> 0 | R133: =IF(P133="PT",M133,IF(P133="G",0,ERR)) -> 0 | S133: G | T133: =IF(S133="G",N133,IF(S133="PT",0,ERR)) -> 0 | U133: =IF(S133="PT",N133,IF(S133="G",0,ERR)) -> 0 | W133: =HLOOKUP($W$9,'ROR-Model'!$Q$10:$U$1274,Y133) -> 0 | Y133: 124
E134: =+G134-Adjustments!G134 -> 0 | J134: =+I134-'ROR-Model'!I134 -> 0 | Y134: 125
C135: Supplier Non-Gas Revenue | E135: =+G135-Adjustments!G135 -> 0 | F135: =Revenue!$F$134 -> 0 | G135: =+Adjustments!T135 -> 0 | I135: =SUM($F$135:$H$135) -> 0 | J135: =+I135-'ROR-Model'!I135 -> 0 | L135: Utah | M135: =VLOOKUP($L135,$L$2:$N$7,2,FALSE)*I135 -> 0 | N135: =VLOOKUP($L135,$L$2:$N$7,3,FALSE)*I135 -> 0 | P135: PT | Q135: =IF(P135="G",M135,IF(P135="PT",0,ERR)) -> 0 | R135: =IF(P135="PT",M135,IF(P135="G",0,ERR)) -> 0 | S135: PT | T135: =IF(S135="G",N135,IF(S135="PT",0,ERR)) -> 0 | U135: =IF(S135="PT",N135,IF(S135="G",0,ERR)) -> 0 | W135: =HLOOKUP($W$9,'ROR-Model'!$Q$10:$U$1274,Y135) -> 0 | Y135: 126
E136: =+G136-Adjustments!G136 -> 0 | J136: =+I136-'ROR-Model'!I136 -> 0 | Y136: 127
C137: Commodity Revenue | E137: =+G137-Adjustments!G137 -> 0 | F137: =Revenue!$F$136 -> 0 | G137: =+Adjustments!T137 -> 0 | I137: =SUM($F$137:$H$137) -> 0 | J137: =+I137-'ROR-Model'!I137 -> 0 | L137: Utah | M137: =VLOOKUP($L137,$L$2:$N$7,2,FALSE)*I137 -> 0 | N137: =VLOOKUP($L137,$L$2:$N$7,3,FALSE)*I137 -> 0 | P137: PT | Q137: =IF(P137="G",M137,IF(P137="PT",0,ERR)) -> 0 | R137: =IF(P137="PT",M137,IF(P137="G",0,ERR)) -> 0 | S137: PT | T137: =IF(S137="G",N137,IF(S137="PT",0,ERR)) -> 0 | U137: =IF(S137="PT",N137,IF(S137="G",0,ERR)) -> 0 | W137: =HLOOKUP($W$9,'ROR-Model'!$Q$10:$U$1274,Y137) -> 0 | Y137: 128
C138: Total Revenue | E138: =+G138-Adjustments!G138 -> 0 | F138: =SUM(F133:F137) -> 0 | G138: =SUM(G133:G137) -> 0 | H138: =SUM(H133:H137) -> 0 | I138: =SUM(I133:I137) -> 0 | J138: =+I138-'ROR-Model'!I138 -> 0 | M138: =SUM(M133:M137) -> 0 | N138: =SUM(N133:N137) -> 0 | Q138: =SUM(Q133:Q137) -> 0 | R138: =SUM(R133:R137) -> 0 | T138: =SUM(T133:T137) -> 0 | U138: =SUM(U133:U137) -> 0 | W138: =HLOOKUP($W$9,'ROR-Model'!$Q$10:$U$1274,Y138) -> 0 | Y138: 129
E139: =+G139-Adjustments!G139 -> 0 | J139: =+I139-'ROR-Model'!I139 -> 0 | Y139: 130
C140: Total Dth | E140: =+G140-Adjustments!G140 -> 0 | F140: =Revenue!$F$139 -> 0 | G140: =+Adjustments!T140 -> 0 | I140: =SUM($F$140:$H$140) -> 0 | J140: =+I140-'ROR-Model'!I140 -> 0 | L140: Utah | M140: =VLOOKUP($L140,$L$2:$N$7,2,FALSE)*I140 -> 0 | N140: =VLOOKUP($L140,$L$2:$N$7,3,FALSE)*I140 -> 0 | P140: G | Q140: =IF(P140="G",M140,IF(P140="PT",0,ERR)) -> 0 | R140: =IF(P140="PT",M140,IF(P140="G",0,ERR)) -> 0 | S140: G | T140: =IF(S140="G",N140,IF(S140="PT",0,ERR)) -> 0 | U140: =IF(S140="PT",N140,IF(S140="G",0,ERR)) -> 0 | W140: =HLOOKUP($W$9,'ROR-Model'!$Q$10:$U$1274,Y140) -> 0 | Y140: =Y139+1 -> 131
E141: =+G141-Adjustments!G141 -> 0 | J141: =+I141-'ROR-Model'!I141 -> 0 | Y141: 132
B142: MT | C142: Distribution Non-Gas Rev | E142: =+G142-Adjustments!G142 -> 0 | F142: =Revenue!$F$141 -> 33875 | G142: =+Adjustments!T142 -> 0 | I142: =SUM($F$142:$H$142) -> 33875 | J142: =+I142-'ROR-Model'!I142 -> 0 | L142: Utah | M142: =VLOOKUP($L142,$L$2:$N$7,2,FALSE)*I142 -> 33875 | N142: =VLOOKUP($L142,$L$2:$N$7,3,FALSE)*I142 -> 0 | P142: G | Q142: =IF(P142="G",M142,IF(P142="PT",0,ERR)) -> 33875 | R142: =IF(P142="PT",M142,IF(P142="G",0,ERR)) -> 0 | S142: G | T142: =IF(S142="G",N142,IF(S142="PT",0,ERR)) -> 0 | U142: =IF(S142="PT",N142,IF(S142="G",0,ERR)) -> 0 | W142: =HLOOKUP($W$9,'ROR-Model'!$Q$10:$U$1274,Y142) -> 33875 | Y142: 133
E143: =+G143-Adjustments!G143 -> 0 | J143: =+I143-'ROR-Model'!I143 -> 0 | Y143: 134
C144: Supplier Non-Gas Revenue | E144: =+G144-Adjustments!G144 -> 0 | F144: =Revenue!$F$143 -> 1865 | G144: =+Adjustments!T144 -> 0 | I144: =SUM($F$144:$H$144) -> 1865 | J144: =+I144-'ROR-Model'!I144 -> 0 | L144: Utah | M144: =VLOOKUP($L144,$L$2:$N$7,2,FALSE)*I144 -> 1865 | N144: =VLOOKUP($L144,$L$2:$N$7,3,FALSE)*I144 -> 0 | P144: PT | Q144: =IF(P144="G",M144,IF(P144="PT",0,ERR)) -> 0 | R144: =IF(P144="PT",M144,IF(P144="G",0,ERR)) -> 1865 | S144: PT | T144: =IF(S144="G",N144,IF(S144="PT",0,ERR)) -> 0 | U144: =IF(S144="PT",N144,IF(S144="G",0,ERR)) -> 0 | W144: =HLOOKUP($W$9,'ROR-Model'!$Q$10:$U$1274,Y144) -> 0 | Y144: 135
E145: =+G145-Adjustments!G145 -> 0 | J145: =+I145-'ROR-Model'!I145 -> 0 | Y145: 136
C146: Commodity Revenue | E146: =+G146-Adjustments!G146 -> 0 | F146: =Revenue!$F$145 -> 0 | G146: =+Adjustments!T146 -> 0 | I146: =SUM($F$146:$H$146) -> 0 | J146: =+I146-'ROR-Model'!I146 -> 0 | L146: Utah | M146: =VLOOKUP($L146,$L$2:$N$7,2,FALSE)*I146 -> 0 | N146: =VLOOKUP($L146,$L$2:$N$7,3,FALSE)*I146 -> 0 | P146: PT | Q146: =IF(P146="G",M146,IF(P146="PT",0,ERR)) -> 0 | R146: =IF(P146="PT",M146,IF(P146="G",0,ERR)) -> 0 | S146: PT | T146: =IF(S146="G",N146,IF(S146="PT",0,ERR)) -> 0 | U146: =IF(S146="PT",N146,IF(S146="G",0,ERR)) -> 0 | W146: =HLOOKUP($W$9,'ROR-Model'!$Q$10:$U$1274,Y146) -> 0 | Y146: 137
C147: Total Revenue | E147: =+G147-Adjustments!G147 -> 0 | F147: =SUM(F142:F146) -> 35740 | G147: =SUM(G142:G146) -> 0 | H147: =SUM(H142:H146) -> 0 | I147: =SUM(I142:I146) -> 35740 | J147: =+I147-'ROR-Model'!I147 -> 0 | M147: =SUM(M142:M146) -> 35740 | N147: =SUM(N142:N146) -> 0 | Q147: =SUM(Q142:Q146) -> 33875 | R147: =SUM(R142:R146) -> 1865 | T147: =SUM(T142:T146) -> 0 | U147: =SUM(U142:U146) -> 0 | W147: =HLOOKUP($W$9,'ROR-Model'!$Q$10:$U$1274,Y147) -> 33875 | Y147: 138
E148: =+G148-Adjustments!G148 -> 0 | J148: =+I148-'ROR-Model'!I148 -> 0 | Y148: 139
C149: Total Dth | E149: =+G149-Adjustments!G149 -> 0 | F149: =Revenue!$F$148 -> 31077 | G149: =+Adjustments!T149 -> 0 | I149: =SUM($F$149:$H$149) -> 31077 | J149: =+I149-'ROR-Model'!I149 -> 0 | L149: Utah | M149: =VLOOKUP($L149,$L$2:$N$7,2,FALSE)*I149 -> 31077 | N149: =VLOOKUP($L149,$L$2:$N$7,3,FALSE)*I149 -> 0 | P149: G | Q149: =IF(P149="G",M149,IF(P149="PT",0,ERR)) -> 31077 | R149: =IF(P149="PT",M149,IF(P149="G",0,ERR)) -> 0 | S149: G | T149: =IF(S149="G",N149,IF(S149="PT",0,ERR)) -> 0 | U149: =IF(S149="PT",N149,IF(S149="G",0,ERR)) -> 0 | W149: =HLOOKUP($W$9,'ROR-Model'!$Q$10:$U$1274,Y149) -> 31077 | Y149: 140
E150: =+G150-Adjustments!G150 -> 0 | J150: =+I150-'ROR-Model'!I150 -> 0 | Y150: 141
B151: Blank | C151: Distribution Non-Gas Rev | E151: =+G151-Adjustments!G151 -> 0 | F151: =Revenue!$F$150 -> 0 | G151: =+Adjustments!T151 -> 0 | I151: =SUM($F$151:$H$151) -> 0 | J151: =+I151-'ROR-Model'!I151 -> 0 | L151: Utah | M151: =VLOOKUP($L151,$L$2:$N$7,2,FALSE)*I151 -> 0 | N151: =VLOOKUP($L151,$L$2:$N$7,3,FALSE)*I151 -> 0 | P151: G | Q151: =IF(P151="G",M151,IF(P151="PT",0,ERR)) -> 0 | R151: =IF(P151="PT",M151,IF(P151="G",0,ERR)) -> 0 | S151: G | T151: =IF(S151="G",N151,IF(S151="PT",0,ERR)) -> 0 | U151: =IF(S151="PT",N151,IF(S151="G",0,ERR)) -> 0 | W151: =HLOOKUP($W$9,'ROR-Model'!$Q$10:$U$1274,Y151) -> 0 | Y151: 142
E152: =+G152-Adjustments!G152 -> 0 | J152: =+I152-'ROR-Model'!I152 -> 0 | Y152: 143
C153: Supplier Non-Gas Revenue | E153: =+G153-Adjustments!G153 -> 0 | F153: =Revenue!$F$152 -> 0 | G153: =+Adjustments!T153 -> 0 | I153: =SUM($F$153:$H$153) -> 0 | J153: =+I153-'ROR-Model'!I153 -> 0 | L153: Utah | M153: =VLOOKUP($L153,$L$2:$N$7,2,FALSE)*I153 -> 0 | N153: =VLOOKUP($L153,$L$2:$N$7,3,FALSE)*I153 -> 0 | P153: PT | Q153: =IF(P153="G",M153,IF(P153="PT",0,ERR)) -> 0 | R153: =IF(P153="PT",M153,IF(P153="G",0,ERR)) -> 0 | S153: PT | T153: =IF(S153="G",N153,IF(S153="PT",0,ERR)) -> 0 | U153: =IF(S153="PT",N153,IF(S153="G",0,ERR)) -> 0 | W153: =HLOOKUP($W$9,'ROR-Model'!$Q$10:$U$1274,Y153) -> 0 | Y153: 144
E154: =+G154-Adjustments!G154 -> 0 | J154: =+I154-'ROR-Model'!I154 -> 0 | Y154: 145
C155: Commodity Revenue | E155: =+G155-Adjustments!G155 -> 0 | F155: =Revenue!$F$154 -> 0 | G155: =+Adjustments!T155 -> 0 | I155: =SUM($F$155:$H$155) -> 0 | J155: =+I155-'ROR-Model'!I155 -> 0 | L155: Utah | M155: =VLOOKUP($L155,$L$2:$N$7,2,FALSE)*I155 -> 0 | N155: =VLOOKUP($L155,$L$2:$N$7,3,FALSE)*I155 -> 0 | P155: PT | Q155: =IF(P155="G",M155,IF(P155="PT",0,ERR)) -> 0 | R155: =IF(P155="PT",M155,IF(P155="G",0,ERR)) -> 0 | S155: PT | T155: =IF(S155="G",N155,IF(S155="PT",0,ERR)) -> 0 | U155: =IF(S155="PT",N155,IF(S155="G",0,ERR)) -> 0 | W155: =HLOOKUP($W$9,'ROR-Model'!$Q$10:$U$1274,Y155) -> 0 | Y155: 146
C156: Total Revenue | E156: =+G156-Adjustments!G156 -> 0 | F156: =SUM(F151:F155) -> 0 | G156: =SUM(G151:G155) -> 0 | H156: =SUM(H151:H155) -> 0 | I156: =SUM(I151:I155) -> 0 | J156: =+I156-'ROR-Model'!I156 -> 0 | M156: =SUM(M151:M155) -> 0 | N156: =SUM(N151:N155) -> 0 | Q156: =SUM(Q151:Q155) -> 0 | R156: =SUM(R151:R155) -> 0 | T156: =SUM(T151:T155) -> 0 | U156: =SUM(U151:U155) -> 0 | W156: =HLOOKUP($W$9,'ROR-Model'!$Q$10:$U$1274,Y156) -> 0 | Y156: 147
E157: =+G157-Adjustments!G157 -> 0 | J157: =+I157-'ROR-Model'!I157 -> 0 | Y157: 148
C158: Total Dth | E158: =+G158-Adjustments!G158 -> 0 | F158: =Revenue!$F$157 -> 0 | G158: =+Adjustments!T158 -> 0 | I158: =SUM($F$158:$H$158) -> 0 | J158: =+I158-'ROR-Model'!I158 -> 0 | L158: Utah | M158: =VLOOKUP($L158,$L$2:$N$7,2,FALSE)*I158 -> 0 | N158: =VLOOKUP($L158,$L$2:$N$7,3,FALSE)*I158 -> 0 | P158: G | Q158: =IF(P158="G",M158,IF(P158="PT",0,ERR)) -> 0 | R158: =IF(P158="PT",M158,IF(P158="G",0,ERR)) -> 0 | S158: G | T158: =IF(S158="G",N158,IF(S158="PT",0,ERR)) -> 0 | U158: =IF(S158="PT",N158,IF(S158="G",0,ERR)) -> 0 | W158: =HLOOKUP($W$9,'ROR-Model'!$Q$10:$U$1274,Y158) -> 0 | Y158: 149
E159: =+G159-Adjustments!G159 -> 0 | J159: =+I159-'ROR-Model'!I159 -> 0 | Y159: 150
B160: IT | C160: Distribution Non-Gas Rev | E160: =+G160-Adjustments!G160 -> 0 | F160: =Revenue!$F$159 -> 13385306 | G160: =+Adjustments!T160 -> 0 | I160: =SUM($F$160:$H$160) -> 13385306 | J160: =+I160-'ROR-Model'!I160 -> 0 | L160: Utah | M160: =VLOOKUP($L160,$L$2:$N$7,2,FALSE)*I160 -> 13385306 | N160: =VLOOKUP($L160,$L$2:$N$7,3,FALSE)*I160 -> 0 | P160: G | Q160: =IF(P160="G",M160,IF(P160="PT",0,ERR)) -> 13385306 | R160: =IF(P160="PT",M160,IF(P160="G",0,ERR)) -> 0 | S160: G | T160: =IF(S160="G",N160,IF(S160="PT",0,ERR)) -> 0 | U160: =IF(S160="PT",N160,IF(S160="G",0,ERR)) -> 0 | W160: =HLOOKUP($W$9,'ROR-Model'!$Q$10:$U$1274,Y160) -> 13385306 | Y160: 151
E161: =+G161-Adjustments!G161 -> 0 | J161: =+I161-'ROR-Model'!I161 -> 0 | Y161: 152
C162: Supplier Non-Gas Revenue | E162: =+G162-Adjustments!G162 -> 0 | F162: =Revenue!$F$161 -> 0 | G162: =+Adjustments!T162 -> 0 | I162: =SUM($F$162:$H$162) -> 0 | J162: =+I162-'ROR-Model'!I162 -> 0 | L162: Utah | M162: =VLOOKUP($L162,$L$2:$N$7,2,FALSE)*I162 -> 0 | N162: =VLOOKUP($L162,$L$2:$N$7,3,FALSE)*I162 -> 0 | P162: PT | Q162: =IF(P162="G",M162,IF(P162="PT",0,ERR)) -> 0 | R162: =IF(P162="PT",M162,IF(P162="G",0,ERR)) -> 0 | S162: PT | T162: =IF(S162="G",N162,IF(S162="PT",0,ERR)) -> 0 | U162: =IF(S162="PT",N162,IF(S162="G",0,ERR)) -> 0 | W162: =HLOOKUP($W$9,'ROR-Model'!$Q$10:$U$1274,Y162) -> 0 | Y162: 153
E163: =+G163-Adjustments!G163 -> 0 | J163: =+I163-'ROR-Model'!I163 -> 0 | Y163: 154
C164: Commodity Revenue | E164: =+G164-Adjustments!G164 -> 0 | F164: =Revenue!$F$163 -> 0 | G164: =+Adjustments!T164 -> 0 | I164: =SUM($F$164:$H$164) -> 0 | J164: =+I164-'ROR-Model'!I164 -> 0 | L164: Utah | M164: =VLOOKUP($L164,$L$2:$N$7,2,FALSE)*I164 -> 0 | N164: =VLOOKUP($L164,$L$2:$N$7,3,FALSE)*I164 -> 0 | P164: PT | Q164: =IF(P164="G",M164,IF(P164="PT",0,ERR)) -> 0 | R164: =IF(P164="PT",M164,IF(P164="G",0,ERR)) -> 0 | S164: PT | T164: =IF(S164="G",N164,IF(S164="PT",0,ERR)) -> 0 | U164: =IF(S164="PT",N164,IF(S164="G",0,ERR)) -> 0 | W164: =HLOOKUP($W$9,'ROR-Model'!$Q$10:$U$1274,Y164) -> 0 | Y164: 155
C165: Total Revenue | E165: =+G165-Adjustments!G165 -> 0 | F165: =SUM(F160:F164) -> 13385306 | G165: =SUM(G160:G164) -> 0 | H165: =SUM(H160:H164) -> 0 | I165: =SUM(I160:I164) -> 13385306 | J165: =+I165-'ROR-Model'!I165 -> 0 | M165: =SUM(M160:M164) -> 13385306 | N165: =SUM(N160:N164) -> 0 | Q165: =SUM(Q160:Q164) -> 13385306 | R165: =SUM(R160:R164) -> 0 | T165: =SUM(T160:T164) -> 0 | U165: =SUM(U160:U164) -> 0 | W165: =HLOOKUP($W$9,'ROR-Model'!$Q$10:$U$1274,Y165) -> 13385306 | Y165: 156
E166: =+G166-Adjustments!G166 -> 0 | J166: =+I166-'ROR-Model'!I166 -> 0 | Y166: 157
C167: Total Dth | E167: =+G167-Adjustments!G167 -> 0 | F167: =Revenue!$F$166 -> 36622120 | G167: =+Adjustments!T167 -> 0 | I167: =SUM($F$167:$H$167) -> 36622120 | J167: =+I167-'ROR-Model'!I167 -> 0 | L167: Utah | M167: =VLOOKUP($L167,$L$2:$N$7,2,FALSE)*I167 -> 36622120 | N167: =VLOOKUP($L167,$L$2:$N$7,3,FALSE)*I167 -> 0 | P167: G | Q167: =IF(P167="G",M167,IF(P167="PT",0,ERR)) -> 36622120 | R167: =IF(P167="PT",M167,IF(P167="G",0,ERR)) -> 0 | S167: G | T167: =IF(S167="G",N167,IF(S167="PT",0,ERR)) -> 0 | U167: =IF(S167="PT",N167,IF(S167="G",0,ERR)) -> 0 | W167: =HLOOKUP($W$9,'ROR-Model'!$Q$10:$U$1274,Y167) -> 36622120 | Y167: 158
E168: =+G168-Adjustments!G168 -> 0 | J168: =+I168-'ROR-Model'!I168 -> 0 | Y168: 159
B169: IT-S | C169: Distribution Non-Gas Rev | E169: =+G169-Adjustments!G169 -> 0 | F169: =Revenue!$F$168 -> 0 | G169: =+Adjustments!T169 -> 0 | I169: =SUM($F$169:$H$169) -> 0 | J169: =+I169-'ROR-Model'!I169 -> 0 | L169: Utah | M169: =VLOOKUP($L169,$L$2:$N$7,2,FALSE)*I169 -> 0 | N169: =VLOOKUP($L169,$L$2:$N$7,3,FALSE)*I169 -> 0 | P169: G | Q169: =IF(P169="G",M169,IF(P169="PT",0,ERR)) -> 0 | R169: =IF(P169="PT",M169,IF(P169="G",0,ERR)) -> 0 | S169: G | T169: =IF(S169="G",N169,IF(S169="PT",0,ERR)) -> 0 | U169: =IF(S169="PT",N169,IF(S169="G",0,ERR)) -> 0 | W169: =HLOOKUP($W$9,'ROR-Model'!$Q$10:$U$1274,Y169) -> 0 | Y169: 160
E170: =+G170-Adjustments!G170 -> 0 | J170: =+I170-'ROR-Model'!I170 -> 0 | Y170: 161
C171: Supplier Non-Gas Revenue | E171: =+G171-Adjustments!G171 -> 0 | F171: =Revenue!$F$170 -> 0 | G171: =+Adjustments!T171 -> 0 | I171: =SUM($F$171:$H$171) -> 0 | J171: =+I171-'ROR-Model'!I171 -> 0 | L171: Utah | M171: =VLOOKUP($L171,$L$2:$N$7,2,FALSE)*I171 -> 0 | N171: =VLOOKUP($L171,$L$2:$N$7,3,FALSE)*I171 -> 0 | P171: PT | Q171: =IF(P171="G",M171,IF(P171="PT",0,ERR)) -> 0 | R171: =IF(P171="PT",M171,IF(P171="G",0,ERR)) -> 0 | S171: PT | T171: =IF(S171="G",N171,IF(S171="PT",0,ERR)) -> 0 | U171: =IF(S171="PT",N171,IF(S171="G",0,ERR)) -> 0 | W171: =HLOOKUP($W$9,'ROR-Model'!$Q$10:$U$1274,Y171) -> 0 | Y171: 162
E172: =+G172-Adjustments!G172 -> 0 | J172: =+I172-'ROR-Model'!I172 -> 0 | Y172: 163
C173: Commodity Revenue | E173: =+G173-Adjustments!G173 -> 0 | F173: =Revenue!$F$172 -> 0 | G173: =+Adjustments!T173 -> 0 | I173: =SUM($F$173:$H$173) -> 0 | J173: =+I173-'ROR-Model'!I173 -> 0 | L173: Utah | M173: =VLOOKUP($L173,$L$2:$N$7,2,FALSE)*I173 -> 0 | N173: =VLOOKUP($L173,$L$2:$N$7,3,FALSE)*I173 -> 0 | P173: PT | Q173: =IF(P173="G",M173,IF(P173="PT",0,ERR)) -> 0 | R173: =IF(P173="PT",M173,IF(P173="G",0,ERR)) -> 0 | S173: PT | T173: =IF(S173="G",N173,IF(S173="PT",0,ERR)) -> 0 | U173: =IF(S173="PT",N173,IF(S173="G",0,ERR)) -> 0 | W173: =HLOOKUP($W$9,'ROR-Model'!$Q$10:$U$1274,Y173) -> 0 | Y173: 164
C174: Total Revenue | E174: =+G174-Adjustments!G174 -> 0 | F174: =SUM(F169:F173) -> 0 | G174: =SUM(G169:G173) -> 0 | H174: =SUM(H169:H173) -> 0 | I174: =SUM(I169:I173) -> 0 | J174: =+I174-'ROR-Model'!I174 -> 0 | M174: =SUM(M169:M173) -> 0 | N174: =SUM(N169:N173) -> 0 | Q174: =SUM(Q169:Q173) -> 0 | R174: =SUM(R169:R173) -> 0 | T174: =SUM(T169:T173) -> 0 | U174: =SUM(U169:U173) -> 0 | W174: =HLOOKUP($W$9,'ROR-Model'!$Q$10:$U$1274,Y174) -> 0 | Y174: 165
E175: =+G175-Adjustments!G175 -> 0 | J175: =+I175-'ROR-Model'!I175 -> 0 | Y175: 166
C176: Total Dth | E176: =+G176-Adjustments!G176 -> 0 | F176: =Revenue!$F$175 -> 0 | G176: =+Adjustments!T176 -> 0 | I176: =SUM($F$176:$H$176) -> 0 | J176: =+I176-'ROR-Model'!I176 -> 0 | L176: Utah | M176: =VLOOKUP($L176,$L$2:$N$7,2,FALSE)*I176 -> 0 | N176: =VLOOKUP($L176,$L$2:$N$7,3,FALSE)*I176 -> 0 | P176: G | Q176: =IF(P176="G",M176,IF(P176="PT",0,ERR)) -> 0 | R176: =IF(P176="PT",M176,IF(P176="G",0,ERR)) -> 0 | S176: G | T176: =IF(S176="G",N176,IF(S176="PT",0,ERR)) -> 0 | U176: =IF(S176="PT",N176,IF(S176="G",0,ERR)) -> 0 | W176: =HLOOKUP($W$9,'ROR-Model'!$Q$10:$U$1274,Y176) -> 0 | Y176: 167
E177: =+G177-Adjustments!G177 -> 0 | J177: =+I177-'ROR-Model'!I177 -> 0 | Y177: 168
B178: FT-2C | C178: Distribution Non-Gas Rev | E178: =+G178-Adjustments!G178 -> 0 | F178: =Revenue!$F$177 -> 0 | G178: =+Adjustments!T178 -> 0 | I178: =SUM($F$178:$H$178) -> 0 | J178: =+I178-'ROR-Model'!I178 -> 0 | L178: Utah | M178: =VLOOKUP($L178,$L$2:$N$7,2,FALSE)*I178 -> 0 | N178: =VLOOKUP($L178,$L$2:$N$7,3,FALSE)*I178 -> 0 | P178: G | Q178: =IF(P178="G",M178,IF(P178="PT",0,ERR)) -> 0 | R178: =IF(P178="PT",M178,IF(P178="G",0,ERR)) -> 0 | S178: G | T178: =IF(S178="G",N178,IF(S178="PT",0,ERR)) -> 0 | U178: =IF(S178="PT",N178,IF(S178="G",0,ERR)) -> 0 | W178: =HLOOKUP($W$9,'ROR-Model'!$Q$10:$U$1274,Y178) -> 0 | Y178: 169
E179: =+G179-Adjustments!G179 -> 0 | J179: =+I179-'ROR-Model'!I179 -> 0 | Y179: 170
C180: Supplier Non-Gas Revenue | E180: =+G180-Adjustments!G180 -> 0 | F180: =Revenue!$F$179 -> 0 | G180: =+Adjustments!T180 -> 0 | I180: =SUM($F$180:$H$180) -> 0 | J180: =+I180-'ROR-Model'!I180 -> 0 | L180: Utah | M180: =VLOOKUP($L180,$L$2:$N$7,2,FALSE)*I180 -> 0 | N180: =VLOOKUP($L180,$L$2:$N$7,3,FALSE)*I180 -> 0 | P180: PT | Q180: =IF(P180="G",M180,IF(P180="PT",0,ERR)) -> 0 | R180: =IF(P180="PT",M180,IF(P180="G",0,ERR)) -> 0 | S180: PT | T180: =IF(S180="G",N180,IF(S180="PT",0,ERR)) -> 0 | U180: =IF(S180="PT",N180,IF(S180="G",0,ERR)) -> 0 | W180: =HLOOKUP($W$9,'ROR-Model'!$Q$10:$U$1274,Y180) -> 0 | Y180: 171
E181: =+G181-Adjustments!G181 -> 0 | J181: =+I181-'ROR-Model'!I181 -> 0 | Y181: 172
C182: Commodity Revenue | E182: =+G182-Adjustments!G182 -> 0 | F182: =Revenue!$F$181 -> 0 | G182: =+Adjustments!T182 -> 0 | I182: =SUM($F$182:$H$182) -> 0 | J182: =+I182-'ROR-Model'!I182 -> 0 | L182: Utah | M182: =VLOOKUP($L182,$L$2:$N$7,2,FALSE)*I182 -> 0 | N182: =VLOOKUP($L182,$L$2:$N$7,3,FALSE)*I182 -> 0 | P182: PT | Q182: =IF(P182="G",M182,IF(P182="PT",0,ERR)) -> 0 | R182: =IF(P182="PT",M182,IF(P182="G",0,ERR)) -> 0 | S182: PT | T182: =IF(S182="G",N182,IF(S182="PT",0,ERR)) -> 0 | U182: =IF(S182="PT",N182,IF(S182="G",0,ERR)) -> 0 | W182: =HLOOKUP($W$9,'ROR-Model'!$Q$10:$U$1274,Y182) -> 0 | Y182: 173
C183: Total Revenue | E183: =+G183-Adjustments!G183 -> 0 | F183: =SUM(F178:F182) -> 0 | G183: =SUM(G178:G182) -> 0 | H183: =SUM(H178:H182) -> 0 | I183: =SUM(I178:I182) -> 0 | J183: =+I183-'ROR-Model'!I183 -> 0 | M183: =SUM(M178:M182) -> 0 | N183: =SUM(N178:N182) -> 0 | Q183: =SUM(Q178:Q182) -> 0 | R183: =SUM(R178:R182) -> 0 | T183: =SUM(T178:T182) -> 0 | U183: =SUM(U178:U182) -> 0 | W183: =HLOOKUP($W$9,'ROR-Model'!$Q$10:$U$1274,Y183) -> 0 | Y183: 174
E184: =+G184-Adjustments!G184 -> 0 | J184: =+I184-'ROR-Model'!I184 -> 0 | Y184: 175
C185: Total Dth | E185: =+G185-Adjustments!G185 -> 0 | F185: =Revenue!$F$184 -> 0 | G185: =+Adjustments!T185 -> 0 | I185: =SUM($F$185:$H$185) -> 0 | J185: =+I185-'ROR-Model'!I185 -> 0 | L185: Utah | M185: =VLOOKUP($L185,$L$2:$N$7,2,FALSE)*I185 -> 0 | N185: =VLOOKUP($L185,$L$2:$N$7,3,FALSE)*I185 -> 0 | P185: G | Q185: =IF(P185="G",M185,IF(P185="PT",0,ERR)) -> 0 | R185: =IF(P185="PT",M185,IF(P185="G",0,ERR)) -> 0 | S185: G | T185: =IF(S185="G",N185,IF(S185="PT",0,ERR)) -> 0 | U185: =IF(S185="PT",N185,IF(S185="G",0,ERR)) -> 0 | W185: =HLOOKUP($W$9,'ROR-Model'!$Q$10:$U$1274,Y185) -> 0 | Y185: 176
E186: =+G186-Adjustments!G186 -> 0 | J186: =+I186-'ROR-Model'!I186 -> 0 | Y186: 177
B187: Blank | C187: Distribution Non-Gas Rev | E187: =+G187-Adjustments!G187 -> 0 | F187: =Revenue!$F$186 -> 0 | G187: =+Adjustments!T187 -> 0 | I187: =SUM($F$187:$H$187) -> 0 | J187: =+I187-'ROR-Model'!I187 -> 0 | L187: Utah | M187: =VLOOKUP($L187,$L$2:$N$7,2,FALSE)*I187 -> 0 | N187: =VLOOKUP($L187,$L$2:$N$7,3,FALSE)*I187 -> 0 | P187: G | Q187: =IF(P187="G",M187,IF(P187="PT",0,ERR)) -> 0 | R187: =IF(P187="PT",M187,IF(P187="G",0,ERR)) -> 0 | S187: G | T187: =IF(S187="G",N187,IF(S187="PT",0,ERR)) -> 0 | U187: =IF(S187="PT",N187,IF(S187="G",0,ERR)) -> 0 | W187: =HLOOKUP($W$9,'ROR-Model'!$Q$10:$U$1274,Y187) -> 0 | Y187: 178
E188: =+G188-Adjustments!G188 -> 0 | J188: =+I188-'ROR-Model'!I188 -> 0 | Y188: 179
C189: Supplier Non-Gas Revenue | E189: =+G189-Adjustments!G189 -> 0 | F189: =Revenue!$F$188 -> 0 | G189: =+Adjustments!T189 -> 0 | I189: =SUM($F$189:$H$189) -> 0 | J189: =+I189-'ROR-Model'!I189 -> 0 | L189: Utah | M189: =VLOOKUP($L189,$L$2:$N$7,2,FALSE)*I189 -> 0 | N189: =VLOOKUP($L189,$L$2:$N$7,3,FALSE)*I189 -> 0 | P189: PT | Q189: =IF(P189="G",M189,IF(P189="PT",0,ERR)) -> 0 | R189: =IF(P189="PT",M189,IF(P189="G",0,ERR)) -> 0 | S189: PT | T189: =IF(S189="G",N189,IF(S189="PT",0,ERR)) -> 0 | U189: =IF(S189="PT",N189,IF(S189="G",0,ERR)) -> 0 | W189: =HLOOKUP($W$9,'ROR-Model'!$Q$10:$U$1274,Y189) -> 0 | Y189: 180
E190: =+G190-Adjustments!G190 -> 0 | J190: =+I190-'ROR-Model'!I190 -> 0 | Y190: 181
C191: Commodity Revenue | E191: =+G191-Adjustments!G191 -> 0 | F191: =Revenue!$F$190 -> 0 | G191: =+Adjustments!T191 -> 0 | I191: =SUM($F$191:$H$191) -> 0 | J191: =+I191-'ROR-Model'!I191 -> 0 | L191: Utah | M191: =VLOOKUP($L191,$L$2:$N$7,2,FALSE)*I191 -> 0 | N191: =VLOOKUP($L191,$L$2:$N$7,3,FALSE)*I191 -> 0 | P191: PT | Q191: =IF(P191="G",M191,IF(P191="PT",0,ERR)) -> 0 | R191: =IF(P191="PT",M191,IF(P191="G",0,ERR)) -> 0 | S191: PT | T191: =IF(S191="G",N191,IF(S191="PT",0,ERR)) -> 0 | U191: =IF(S191="PT",N191,IF(S191="G",0,ERR)) -> 0 | W191: =HLOOKUP($W$9,'ROR-Model'!$Q$10:$U$1274,Y191) -> 0 | Y191: 182
C192: Total Revenue | E192: =+G192-Adjustments!G192 -> 0 | F192: =SUM(F187:F191) -> 0 | G192: =SUM(G187:G191) -> 0 | H192: =SUM(H187:H191) -> 0 | I192: =SUM(I187:I191) -> 0 | J192: =+I192-'ROR-Model'!I192 -> 0 | M192: =SUM(M187:M191) -> 0 | N192: =SUM(N187:N191) -> 0 | Q192: =SUM(Q187:Q191) -> 0 | R192: =SUM(R187:R191) -> 0 | T192: =SUM(T187:T191) -> 0 | U192: =SUM(U187:U191) -> 0 | W192: =HLOOKUP($W$9,'ROR-Model'!$Q$10:$U$1274,Y192) -> 0 | Y192: 183
E193: =+G193-Adjustments!G193 -> 0 | J193: =+I193-'ROR-Model'!I193 -> 0 | Y193: 184
C194: Total Dth | E194: =+G194-Adjustments!G194 -> 0 | F194: =Revenue!$F$193 -> 0 | G194: =+Adjustments!T194 -> 0 | I194: =SUM($F$194:$H$194) -> 0 | J194: =+I194-'ROR-Model'!I194 -> 0 | L194: Utah | M194: =VLOOKUP($L194,$L$2:$N$7,2,FALSE)*I194 -> 0 | N194: =VLOOKUP($L194,$L$2:$N$7,3,FALSE)*I194 -> 0 | P194: G | Q194: =IF(P194="G",M194,IF(P194="PT",0,ERR)) -> 0 | R194: =IF(P194="PT",M194,IF(P194="G",0,ERR)) -> 0 | S194: G | T194: =IF(S194="G",N194,IF(S194="PT",0,ERR)) -> 0 | U194: =IF(S194="PT",N194,IF(S194="G",0,ERR)) -> 0 | W194: =HLOOKUP($W$9,'ROR-Model'!$Q$10:$U$1274,Y194) -> 0 | Y194: 185
E195: =+G195-Adjustments!G195 -> 0 | J195: =+I195-'ROR-Model'!I195 -> 0 | Y195: 186
B196: CET | C196: Distribution Non-Gas Revenue | E196: =+G196-Adjustments!G196 -> 0 | F196: =Revenue!$F$195 -> 8135228 | G196: =+Adjustments!T196 -> 0 | I196: =SUM($F$196:$H$196) -> 8135228 | J196: =+I196-'ROR-Model'!I196 -> 0 | L196: Utah | M196: =VLOOKUP($L196,$L$2:$N$7,2,FALSE)*I196 -> 8135228 | N196: =VLOOKUP($L196,$L$2:$N$7,3,FALSE)*I196 -> 0 | P196: G | Q196: =IF(P196="G",M196,IF(P196="PT",0,ERR)) -> 8135228 | R196: =IF(P196="PT",M196,IF(P196="G",0,ERR)) -> 0 | S196: G | T196: =IF(S196="G",N196,IF(S196="PT",0,ERR)) -> 0 | U196: =IF(S196="PT",N196,IF(S196="G",0,ERR)) -> 0 | W196: =HLOOKUP($W$9,'ROR-Model'!$Q$10:$U$1274,Y196) -> 8135228 | Y196: 187
B197: DSM | C197: Distribution Non-Gas Revenue | E197: =+G197-Adjustments!G197 -> 0 | F197: =Revenue!$F$196 -> 26803015 | G197: =+Adjustments!T197 -> -26803015 | I197: =SUM($F$197:$H$197) -> 0 | J197: =+I197-'ROR-Model'!I197 -> 0 | L197: Utah | M197: =VLOOKUP($L197,$L$2:$N$7,2,FALSE)*I197 -> 0 | N197: =VLOOKUP($L197,$L$2:$N$7,3,FALSE)*I197 -> 0 | P197: G | Q197: =IF(P197="G",M197,IF(P197="PT",0,ERR)) -> 0 | R197: =IF(P197="PT",M197,IF(P197="G",0,ERR)) -> 0 | S197: G | T197: =IF(S197="G",N197,IF(S197="PT",0,ERR)) -> 0 | U197: =IF(S197="PT",N197,IF(S197="G",0,ERR)) -> 0 | W197: =HLOOKUP($W$9,'ROR-Model'!$Q$10:$U$1274,Y197) -> 0 | Y197: 188
B198: Utah Totals | E198: =+G198-Adjustments!G198 -> 0 | J198: =+I198-'ROR-Model'!I198 -> 0 | Y198: 189
E199: =+G199-Adjustments!G199 -> 0 | J199: =+I199-'ROR-Model'!I199 -> 0 | Y199: 190
C200: Distribution Non-Gas Rev | E200: =+G200-Adjustments!G200 -> 0 | F200: =+F16+F34+F43+F52+F61+F70+F79+F88+F97+F106+F115+F124+F133+F142+F151+F160+F169+F178+F187+F25+F196+F197 -> 337954208.5 | G200: =+G16+G34+G43+G52+G61+G70+G79+G88+G97+G106+G115+G124+G133+G142+G151+G160+G169+G178+G187+G25+G196+G197 -> -26803015 | H200: =+H16+H34+H43+H52+H61+H70+H79+H88+H97+H106+H115+H124+H133+H142+H151+H160+H169+H178+H187+H25+H196+H197 -> 0 | I200: =+I16+I34+I43+I52+I61+I70+I79+I88+I97+I106+I115+I124+I133+I142+I151+I160+I169+I178+I187+I25+I196+I197 -> 311151193.5 | J200: =+I200-'ROR-Model'!I200 -> 0 | M200: =+M16+M34+M43+M52+M61+M70+M79+M88+M97+M106+M115+M124+M133+M142+M151+M160+M169+M178+M187+M25+M196+M197 -> 311151193.5 | N200: =+N16+N34+N43+N52+N61+N70+N79+N88+N97+N106+N115+N124+N133+N142+N151+N160+N169+N178+N187+N25+N196+N197 -> 0 | Q200: =+Q16+Q34+Q43+Q52+Q61+Q70+Q79+Q88+Q97+Q106+Q115+Q124+Q133+Q142+Q151+Q160+Q169+Q178+Q187+Q25+Q196+Q197 -> 311151193.5 | R200: =+R16+R34+R43+R52+R61+R70+R79+R88+R97+R106+R115+R124+R133+R142+R151+R160+R169+R178+R187+R25+R196 -> 0 | T200: =+T16+T34+T43+T52+T61+T70+T79+T88+T97+T106+T115+T124+T133+T142+T151+T160+T169+T178+T187+T25+T196 -> 0 | U200: =+U16+U34+U43+U52+U61+U70+U79+U88+U97+U106+U115+U124+U133+U142+U151+U160+U169+U178+U187+U25+U196 -> 0 | W200: =HLOOKUP($W$9,'ROR-Model'!$Q$10:$U$1274,Y200) -> 311151193.5 | Y200: 191
... 1074 more rows

Sheet Taxes
B1: ='Control Panel'!$B$2 -> Utah - JUN 2015 Adjusted Avg Results
B2: ='Control Panel'!$B$3 -> 12 Months Ended : Jun-2015
B3: ='Control Panel'!$B$4 -> Capital Structure : AVG CAP STR
C7: Imputed Tax Adjustment | J7: Calculation of Effective Income Tax Rate and Gross-Up Factors
C8: A | D8: B | E8: C | F8: B | J8: 3 Factor | K8: 3 Factor | L8: A | N8: B | O8: C | P8: D | Q8: E | R8: F | S8: G | T8: H
C9: System | D9: Utah | E9: Wyoming | F9: ='Control Panel'!F11 -> Utah | J9: Combined
C10: Total | D10: Jurisdiction | E10: Jurisdiction | F10: Jurisdiction | J10: (Updated Oct 2011) | L10: Total | N10: Colorado | O10: Idaho | P10: Montana | Q10: Nevada | R10: New Mexico | S10: Utah | T10: Wyoming
B11: ALGEBRAIC METHOD - SOLVING FOR TWO UNKNOWNS | I11: 1 | J11: State Tax Rates | N11: 0.0463 | O11: 0.076 | P11: 0.0675 | Q11: 0 | R11: 0.076 | S11: 0.05 | T11: 0
B12: Federal Income Tax Rate | C12: =$L$20 -> 0.35 | D12: =$L$20 -> 0.35 | E12: =$L$20 -> 0.35 | F12: =HLOOKUP($F$9,Taxes,4) -> 0.35 | G12: tF | I12: 2 | J12: Weighting of states
B13: State Income Tax Rate | C13: =$L$18 -> 0.047315 | D13: =$L$18 -> 0.047315 | E13: =$L$18 -> 0.047315 | F13: =HLOOKUP($F$9,Taxes,5) -> 0.047315 | G13: tS | I13: 3 | K13: Ave Investment | L13: =SUM(N13:T13) -> 1768926531 | N13: 22235378 | O13: 5360115 | P13: 122837 | Q13: 0 | R13: 250626 | S13: 1623836109 | T13: 117121466
B14: Weight of Debt in Capital Structure | C14: ='Capital Str'!$D$7 -> 0.4667796033 | D14: ='Capital Str'!$D$7 -> 0.4667796033 | E14: ='Capital Str'!$D$7 -> 0.4667796033 | F14: =HLOOKUP($F$9,Taxes,6) -> 0.4667796033 | G14: wD | I14: 4 | K14: Gross Receipts | L14: =SUM(N14:T14) -> 910210111 | N14: 6392473 | O14: 1636056 | P14: 137002 | Q14: 0 | R14: 61429 | S14: 848697972 | T14: 53285179
B15: Cost of Debt | C15: ='Capital Str'!$E$7 -> 0.05298080059 | D15: ='Capital Str'!$E$7 -> 0.05298080059 | E15: ='Capital Str'!$E$7 -> 0.05298080059 | F15: =HLOOKUP($F$9,Taxes,7) -> 0.05298080059 | G15: rD | I15: 5 | K15: Wages | L15: =SUM(N15:T15) -> 89591975 | N15: 0 | O15: 0 | P15: 0 | Q15: 0 | R15: 0 | S15: 86208516 | T15: 3383459
B16: Net Lead Lag Days | C16: ='Control Panel'!$F$21 -> 1.015 | D16: ='Control Panel'!$F$21 -> 1.015 | E16: ='Control Panel'!$F$21 -> 1.015 | F16: =HLOOKUP($F$9,Taxes,8) -> 1.015 | G16: NLD | I16: 6 | K16: % Average | L16: =SUM(N16:T16) -> 1.000046 | N16: 0.006531 | O16: 0.001656 | P16: 7.3e-05 | Q16: 0 | R16: 7e-05 | S16: 0.937544 | T16: 0.054172
B17: Revenues | C17: ='ROR-Model'!I512 -> 909043522.7 | D17: ='ROR-Model'!M512 -> 875936868 | E17: ='ROR-Model'!N512-'ROR-Model'!N325 -> 32967472.62 | F17: =HLOOKUP($F$9,Taxes,9) -> 875936868 | G17: R
B18: Gas Expenses | C18: ='ROR-Model'!I640 -> 581189480.6 | D18: ='ROR-Model'!M640 -> 560194444.2 | E18: ='ROR-Model'!N640 -> 20995036.37 | F18: =HLOOKUP($F$9,Taxes,10) -> 560194444.2 | G18: GAS | I18: 7 | K18: Ave State Rate | L18: =SUM(N18:T18) -> 0.047315 | N18: =ROUND(N16*N$11,6) -> 0.000302 | O18: 0.000126 | P18: 5e-06 | Q18: 0 | R18: 5e-06 | S18: 0.046877 | T18: 0
B19: O&M Expenses | C19: ='ROR-Model'!I905 -> 138544321.7 | D19: ='ROR-Model'!Q905 -> 132506597.5 | E19: ='ROR-Model'!N905 -> 6037724.21 | F19: =HLOOKUP($F$9,Taxes,11) -> 132506597.5 | G19: O&M
B20: Depreciation | C20: ='ROR-Model'!I917 -> 53806209.49 | D20: ='ROR-Model'!Q917 -> 51835886.16 | E20: ='ROR-Model'!W917 -> 51835886.16 | F20: =HLOOKUP($F$9,Taxes,12) -> 51835886.16 | G20: DEPR | I20: 8 | J20: Federal Tax Rate | L20: 0.35
B21: Amortization | C21: ='ROR-Model'!I924 -> 18713.87 | D21: ='ROR-Model'!Q924 -> 18013.66549 | E21: ='ROR-Model'!W924 -> 18013.66549 | F21: =HLOOKUP($F$9,Taxes,13) -> 18013.66549 | G21: AMORT
B22: Non-Income Taxes | C22: ='ROR-Model'!I934 -> 17613482.75 | D22: ='ROR-Model'!Q934 -> 17048525.28 | E22: ='ROR-Model'!W934 -> 17048525.28 | F22: =HLOOKUP($F$9,Taxes,14) -> 17048525.28 | G22: NIT
B23: Rate Base excluding CWC | C23: ='ROR-Model'!I1242 -> 1081107698 | D23: ='ROR-Model'!Q1242 -> 1047990997 | E23: ='ROR-Model'!W1242 -> 1047990997 | F23: =HLOOKUP($F$9,Taxes,15) -> 1047990997 | G23: RB* | I23: 9 | J23: Combined Federal & State Tax Rate | L23: =L20*(1-L18)+L18 -> 0.38075475 | N23: Combined Rate = Average State Rate + (Federal Rate * (1 - Average State Rate))
B24: Deferred Income Taxes | C24: 0 | D24: ='ROR-Model'!W958 -> 0 | E24: ='ROR-Model'!X958 -> 0 | F24: =HLOOKUP($F$9,Taxes,16) -> 0 | G24: DIT | J24: (Updated Oct 2011)
B25: Deferred Income Taxes - Credit | C25: ='ROR-Model'!I960 -> 0 | D25: ='ROR-Model'!W960 -> 0 | E25: ='ROR-Model'!X960 -> 0 | F25: =HLOOKUP($F$9,Taxes,17) -> 0 | G25: DITCr
B26: CWC = CWC* + (NLD/365)∙IT | C26: CWC is a function of IT, and | I26: 10 | J26: Gross-Up Factors | L26: UT | N26: WY
B27: IT = IT* - (tS+tF∙(1-tS))∙rD∙wD∙CWC | C27: IT is a function of CWC | I27: 11 | K27: Tax Factor | L27: =(Taxes!$L$23/(1-Taxes!$L$23)) -> 0.6148690684 | N27: =(Taxes!$L$20/(1-Taxes!$L$20)) -> 0.5384615385 | O27: Tax Factor = (Tax Rate/(1 - Tax Rate))
B28: where IT = SIT + FIT + DIT + DITCr, and | I28: 12 | K28: Gross-Up Factor | L28: =1/(1-Taxes!$L$23) -> 1.614869068 | N28: =1/(1-Taxes!$L$20) -> 1.538461538 | O28: Gross-Up Factor = 1 / (1 - Tax Rate))
B29: CWC* = | C29: =($C16/365)*(C18+C19+C22) -> 2050431.491 | D29: =($D16/365)*(D18+D19+D22) -> 1973687.152 | E29: =($D16/365)*(E18+E19+E22) -> 122582.2059 | F29: =HLOOKUP($F$9,Taxes,21) -> 1973687.152 | I29: 13 | K29: Tax & Bad Debt Gross-Up Factor | L29: =1/(1-(Taxes!$L$23+('Control Panel'!$F$22*(1-Taxes!$L$23)))) -> 1.617506967 | N29: =1/(1-(Taxes!$L$20+('Control Panel'!$F$22*(1-Taxes!$L$20)))) -> 1.540974625 | O29: Tax & Bad Debt Gross-Up Factor = 1 / (1 - (Tax Rate + (Bad Debt Rate * (1 - Tax Rate))))
B30: IT* = | C30: =($C13+$C12*(1-$C13))*(C17-SUM(C18:C22)-$C15*$C14*C23) -> 34700135.48 | D30: =($C13+$C12*(1-$C13))*(D17-SUM(D18:D22)-$C15*$C14*D23) -> 33664891.8 | E30: =($C13+$C12*(1-$C13))*(E17-SUM(E18:E22)-$C15*$C14*E23) -> -33843349.64 | F30: =HLOOKUP($F$9,Taxes,22) -> 33664891.8 | I30: 14 | K30: Tax & Bad Debt Factor | L30: =L29-1 -> 0.6175069673 | N30: =N29-1 -> 0.5409746251
B31: Solution:
B32: CWC = | C32: =(C29+($C16/365)*C30)/(1+($C16/365)*($C13+$C12*(1-$C13))*$C15*$C14) -> 2146870.173 | D32: =(D29+($C16/365)*D30)/(1+($C16/365)*($C13+$C12*(1-$C13))*$C15*$C14) -> 2067249.091 | E32: =(E29+($C16/365)*E30)/(1+($C16/365)*($C13+$C12*(1-$C13))*$C15*$C14) -> 28469.13197 | F32: =HLOOKUP($F$9,Taxes,24) -> 2067249.091
B33: SIT = | C33: =$C13*(C17-SUM(C18:C22)-$C15*$C14*(C23+C32)) -> 4309546.815 | D33: =$C13*(D17-SUM(D18:D22)-$C15*$C14*(D23+D32)) -> 4180994.037 | E33: =$C13*(E17-SUM(E18:E22)-$C15*$C14*(E23+E32)) -> -4205622.575 | F33: =HLOOKUP($F$9,Taxes,25) -> 4180994.037
B34: FIT = | C34: =$C12*(C17-SUM(C18:C22)-$C15*$C14*(C23+C32)-C33)-C24-C25 -> 30370373.3 | D34: =$C12*(D17-SUM(D18:D22)-$C15*$C14*(D23+D32)-D33)-D24-D25 -> 29464432.13 | E34: =$C12*(E17-SUM(E18:E22)-$C15*$C14*(E23+E32)-E33)-E24-E25 -> -29637995.14 | F34: =HLOOKUP($F$9,Taxes,26) -> 29464432.13
B35: IT = | C35: =C34+C33+C25+C24 -> 34679920.12 | D35: =D34+D33+D25+D24 -> 33645426.17 | E35: =E34+E33+E25+E24 -> -33843617.71 | F35: =HLOOKUP($F$9,Taxes,27) -> 33645426.17
B38: Historically Adjusted Income Taxes | C38: =SUM('ROR-Model'!F936:G945) -> 34138961.93
B39: Tax Adjustment | C39: =C35-C38 -> 540958.1901
B40: RATE BASE METHOD
B41: System Average Rate Base | C41: ='ROR-Model'!I1274 -> 1083254568 | D41: ='ROR-Model'!Q1274 -> 1050058246 | E41: ='ROR-Model'!T1274 -> 32973364.74 | F41: =HLOOKUP($F$9,Taxes,33) -> 1050058246
B42: Adj System Return On Rate Base | C42: =Report!I76 -> 0.0767976398 | D42: =D43/D41 -> 0.07684142797 | E42: =E43/E41 -> 1.130268243 | F42: =HLOOKUP($F$9,Taxes,34) -> 0.07684142797
B43: Allowed Return | C43: =+C41*C42 -> 83191394.12 | D43: ='ROR-Model'!W512-'ROR-Model'!W956 -> 80687975.05 | E43: ='ROR-Model'!T512-'ROR-Model'!T956 -> 37268747.03 | F43: =HLOOKUP($F$9,Taxes,35) -> 80687975.05
B45: System Average Rate Base | C45: =C41 -> 1083254568 | D45: =D41 -> 1050058246 | E45: =E41 -> 32973364.74 | F45: =HLOOKUP($F$9,Taxes,37) -> 1050058246
B46: System Weighted Cost Of Debt | C46: =+'Capital Str'!$F$12 -> 0.02473035708 | D46: =+'Capital Str'!$F$12 -> 0.02473035708 | E46: =+'Capital Str'!$F$12 -> 0.02473035708 | F46: =HLOOKUP($F$9,Taxes,38) -> 0.02473035708
B47: Imputed Interest Cost | C47: =+C45*C46 -> 26789272.28 | D47: =+D45*D46 -> 25968315.37 | E47: =+E45*E46 -> 815443.0843 | F47: =HLOOKUP($F$9,Taxes,39) -> 25968315.37
B49: Taxable Return | C49: =+C43-C47 -> 56402121.85 | D49: =+D43-D47 -> 54719659.67 | E49: =+E43-E47 -> 36453303.95 | F49: =HLOOKUP($F$9,Taxes,41) -> 54719659.67
B50: Tax Factor (Tax Rate/(1-Tax Rate)) | C50: =$L$27 -> 0.6148690684 | D50: =$L$27 -> 0.6148690684 | E50: =$L$27 -> 0.6148690684 | F50: =HLOOKUP($F$9,Taxes,42) -> 0.6148690684
B51: Income Tax on Return | C51: =+C49*C50 -> 34679920.12 | D51: =+D49*D50 -> 33645426.17 | E51: =+E49*E50 -> 22414009.04 | F51: =HLOOKUP($F$9,Taxes,43) -> 33645426.17
B52: OPERATING INCOME METHOD
B53: Total Utility Operating Revenue | C53: =C17 -> 909043522.7 | D53: =D17 -> 875936868 | E53: 32967472.62 | F53: =HLOOKUP($F$9,Taxes,45) -> 875936868
B54: Gas Purchase Expenses | C54: 581189480.6 | D54: 560194444.2 | E54: 20995036.37 | F54: =HLOOKUP($F$9,Taxes,46) -> 560194444.2
B55: O&M Expenses | C55: 138544321.7 | D55: =D19 -> 132506597.5 | E55: 6037724.21 | F55: =HLOOKUP($F$9,Taxes,47) -> 132506597.5
B56: Depreciation | C56: 53806209.49 | D56: 51835886.16 | E56: 51835886.16 | F56: =HLOOKUP($F$9,Taxes,48) -> 51835886.16
B57: Amortization | C57: 18713.87 | D57: 18013.66549 | E57: 18013.66549 | F57: =HLOOKUP($F$9,Taxes,49) -> 18013.66549
B58: Taxes Other Than Income | C58: 17613482.75 | D58: 17048525.28 | E58: 17048525.28 | F58: =HLOOKUP($F$9,Taxes,50) -> 17048525.28
B59: Net Utility Income Before Tax | C59: =C53-SUM(C54:C58) -> 117871314.2 | D59: =D53-SUM(D54:D58) -> 114333401.2 | E59: =E53-SUM(E54:E58) -> -62967713.06 | F59: =HLOOKUP($F$9,Taxes,51) -> 114333401.2
B61: Rate Base | C61: ='ROR-Model'!I1274 -> 1083254568 | D61: ='ROR-Model'!M1274 -> 1050058246 | E61: ='ROR-Model'!T1274 -> 32973364.74 | F61: =HLOOKUP($F$9,Taxes,53) -> 1050058246
B62: Proposed Weighted Cost of Debt | C62: =C46 -> 0.02473035708 | D62: =D46 -> 0.02473035708 | E62: =E46 -> 0.02473035708 | F62: =HLOOKUP($F$9,Taxes,54) -> 0.02473035708
B63: Imputed Interest | C63: =C61*C62 -> 26789272.28 | D63: =D61*D62 -> 25968315.37 | E63: =E61*E62 -> 815443.0843 | F63: =HLOOKUP($F$9,Taxes,55) -> 25968315.37
B65: State Taxable Income | C65: =C59-C63 -> 91082041.96 | D65: =D59-D63 -> 88365085.84 | E65: =E59-E63 -> -63783156.15 | F65: =HLOOKUP($F$9,Taxes,57) -> 88365085.84
B66: State Income Tax Rate | C66: =$L$18 -> 0.047315 | D66: =$L$18 -> 0.047315 | E66: =$L$18 -> 0.047315 | F66: =HLOOKUP($F$9,Taxes,58) -> 0.047315
B67: State Income Tax | C67: =C65*C66 -> 4309546.815 | D67: =D65*D66 -> 4180994.037 | E67: =E65*E66 -> -3017900.033 | F67: =HLOOKUP($F$9,Taxes,59) -> 4180994.037
B69: Federal Taxable Income | C69: =C65-C67-(C24+C25)/C12 -> 86772495.15 | D69: =D65-D67-(D24+D25)/D12 -> 84184091.81 | E69: =E65-E67-(E24+E25)/E12 -> -60765256.11 | F69: =HLOOKUP($F$9,Taxes,61) -> 84184091.81
B70: Federal Income Tax Rate | C70: =$L$20 -> 0.35 | D70: =$L$20 -> 0.35 | E70: =$L$20 -> 0.35 | F70: =HLOOKUP($F$9,Taxes,62) -> 0.35
B71: Federal Income Tax | C71: =C69*C70 -> 30370373.3 | D71: =D69*D70 -> 29464432.13 | E71: =E69*E70 -> -21267839.64 | F71: =HLOOKUP($F$9,Taxes,63) -> 29464432.13
B73: Deferred Income Taxes | C73: =C24 -> 0 | D73: 0 | E73: 0 | F73: =HLOOKUP($F$9,Taxes,65) -> 0
B74: Deferred Income Taxes - Credit | C74: 0 | D74: 0 | E74: 0 | F74: =HLOOKUP($F$9,Taxes,66) -> 0
B75: Total Income Tax | C75: =C74+C73+C71+C67 -> 34679920.12 | D75: =D74+D73+D71+D67 -> 33645426.17 | E75: =E74+E73+E71+E67 -> -24285739.67 | F75: =HLOOKUP($F$9,Taxes,67) -> 33645426.17

Sheet Rate Base
B1: Rate Base
B2: ='Control Panel'!$B$1 -> Questar Gas Company | AF2: Rate Base | AJ2: A | AK2: B | AL2: (A - B)
B3: ='Control Panel'!$B$2 -> Utah - JUN 2015 Adjusted Avg Results | AF3: ='Control Panel'!$B$1 -> Questar Gas Company
B4: ='Control Panel'!$B$3 -> 12 Months Ended : Jun-2015 | AB4: ADJ From Avg | AF4: ='Control Panel'!$B$2 -> Utah - JUN 2015 Adjusted Avg Results
V5: 13 Month | AB5: to Vear End | AF5: ='Control Panel'!$B$3 -> 12 Months Ended : Jun-2015
V6: Average | AK6: 13 Month
V7: All Accounts | AA7: HOT | AB7: HOT | AK7: Average | AL7: 13 Month
V8: =+T9 -> 2015-06-15 | Y8: YE RB JUN 2015 | Z8: AVG RB JUN 2015 | AA8: =+'Control Panel'!B27 -> AVG RB JUN 2015 | AC8: 1 | AD8: 1 | AJ8: Balance | AK8: All Accounts | AL8: Average
B9: FERC Acct | D9: Description | H9: 2014-06-20 | I9: 2014-07-20 | J9: 2014-08-19 | K9: 2014-09-18 | L9: 2014-10-18 | M9: 2014-11-17 | N9: 2014-12-17 | O9: 2015-01-16 | P9: 2015-02-15 | Q9: 2015-03-17 | R9: 2015-04-16 | S9: 2015-05-16 | T9: 2015-06-15 | AB9: Adjustment | AC9: =+AC8+1 -> 2 | AD9: =+AD8+1 -> 2 | AF9: FERC Acct | AH9: Description | AJ9: ='Control Panel'!F12 -> 2015-06-30 | AK9: =+'Control Panel'!B27 -> AVG RB JUN 2015 | AL9: Adjustment
A10: 939 | B10: UTILITY RATE BASE | AC10: 3 | AD10: 3 | AF10: UTILITY RATE BASE
A11: =+A10+1 -> 940 | B11: NET UTILITY PLANT | AC11: =+AC10+1 -> 4 | AD11: 4 | AF11: NET UTILITY PLANT
A12: =+A11+1 -> 941 | B12: Gas Plant In Service | AC12: 5 | AD12: 5 | AF12: Gas Plant In Service
A13: 942 | C13: Intangible Plant | AC13: 6 | AD13: 6 | AG13: Intangible Plant
A14: 943 | B14: 302 | C14: Franchises & Consents | AC14: 7 | AD14: 7 | AF14: 302 | AG14: Franchises & Consents
A15: 944 | C15: Distribution - Wyoming | H15: 10883.08 | I15: 10883.08 | J15: 10883.08 | K15: 10883.08 | L15: 10883.08 | M15: 10883.08 | N15: 10883.08 | O15: 10883.08 | P15: 10883.08 | Q15: 10883.08 | R15: 10883.08 | S15: 10883.08 | T15: 10883.08 | V15: =(SUM(I15:S15)+(0.5*T15)+(0.5*H15))/12 -> 10883.08 | Y15: =T15 -> 10883.08 | Z15: =V15 -> 10883.08 | AA15: =HLOOKUP($AA$8,RateBaseScenarios,AC15,FALSE) -> 10883.08 | AB15: =AA15-T15 -> 0 | AC15: 8 | AD15: 3 | AE15: 0 | AG15: Distribution - Wyoming | AJ15: =+T15 -> 10883.08 | AK15: =AA15 -> 10883.08 | AL15: =AK15-AJ15 -> 0 | AM15: =+AJ15-T15 -> 0
A16: 945 | C16: Distribution - Utah | H16: 58742.88 | I16: 58742.88 | J16: 58742.88 | K16: 58742.88 | L16: 58742.88 | M16: 58742.88 | N16: 58742.88 | O16: 58742.88 | P16: 58742.88 | Q16: 58742.88 | R16: 58742.88 | S16: 58742.88 | T16: 58742.88 | V16: =(SUM(I16:S16)+(0.5*T16)+(0.5*H16))/12 -> 58742.88 | Y16: =T16 -> 58742.88 | Z16: 58742.88 | AA16: 58742.88 | AB16: =AA16-T16 -> 0 | AC16: 9 | AD16: 4 | AE16: 0 | AG16: Distribution - Utah | AJ16: =+T16 -> 58742.88 | AK16: =AA16 -> 58742.88 | AL16: =AK16-AJ16 -> 0 | AM16: 0
A17: 946 | AA17: 0 | AC17: 10 | AD17: 5 | AE17: 0 | AM17: 0
A18: 947 | C18: Total Intangible Plant | H18: =SUM(H15:H17) -> 69625.96 | I18: =SUM(I15:I17) -> 69625.96 | J18: 69625.96 | K18: 69625.96 | L18: 69625.96 | M18: 69625.96 | N18: 69625.96 | O18: 69625.96 | P18: 69625.96 | Q18: 69625.96 | R18: 69625.96 | S18: 69625.96 | T18: 69625.96 | V18: =SUM(V15:V16) -> 69625.96 | Y18: =T18 -> 69625.96 | Z18: 69625.96 | AA18: 69625.96 | AB18: =SUM(AB15:AB17) -> 0 | AC18: 11 | AD18: 6 | AE18: 0 | AG18: Total Intangible Plant | AJ18: =+T18 -> 69625.96 | AK18: =+V18 -> 69625.96 | AL18: =AK18-AJ18 -> 0 | AM18: 0
A19: 948 | AA19: 0 | AC19: 12 | AD19: 7 | AE19: 0 | AM19: 0
A20: 949 | C20: Production & Gathering Plant | AA20: 0 | AC20: 13 | AD20: 8 | AE20: 0 | AG20: Production & Gathering Plant | AM20: 0
A21: 950 | B21: 325 | C21: Land & Land Rights | H21: 6266900.69 | I21: 6266900.69 | J21: 6266900.69 | K21: 6266900.69 | L21: 6266900.69 | M21: 6266900.69 | N21: 6266900.69 | O21: 6266900.69 | P21: 6266900.69 | Q21: 6266900.69 | R21: 6266900.69 | S21: 6266900.69 | T21: 6266900.69 | V21: =(SUM(I21:S21)+(0.5*T21)+(0.5*H21))/12 -> 6266900.69 | Y21: =T21 -> 6266900.69 | Z21: 6266900.69 | AA21: 6266900.69 | AB21: =AA21-T21 -> 0 | AC21: 14 | AD21: 9 | AE21: 0 | AF21: 325 | AG21: Land & Land Rights | AJ21: =+T21 -> 6266900.69 | AK21: =AA21 -> 6266900.69 | AL21: =AK21-AJ21 -> 0 | AM21: 0
A22: 951 | B22: 326...9 | C22: Structures | H22: 1437567.99 | I22: 1437567.99 | J22: 1437567.99 | K22: 1437567.99 | L22: 1437567.99 | M22: 1437567.99 | N22: 1437567.99 | O22: 1437567.99 | P22: 1437567.99 | Q22: 1437567.99 | R22: 1437567.99 | S22: 1437567.99 | T22: 1437567.99 | V22: =(SUM(I22:S22)+(0.5*T22)+(0.5*H22))/12 -> 1437567.99 | Y22: 1437567.99 | Z22: 1437567.99 | AA22: 1437567.99 | AB22: 0 | AC22: 15 | AD22: 10 | AE22: 5239.437917 | AF22: 326...9 | AG22: Structures | AJ22: 1437567.99 | AK22: 1437567.99 | AL22: 0 | AM22: 0
A23: 952 | B23: 330 | C23: Gas Wells - Construction | H23: 52175293.81 | I23: 52175293.81 | J23: 52175293.81 | K23: 52175293.81 | L23: 52175293.81 | M23: 52175293.81 | N23: 52175293.81 | O23: 52175293.81 | P23: 52175293.81 | Q23: 52175293.81 | R23: 52175293.81 | S23: 52175293.81 | T23: 52175293.81 | V23: =(SUM(I23:S23)+(0.5*T23)+(0.5*H23))/12 -> 52175293.81 | Y23: 52175293.81 | Z23: 52175293.81 | AA23: 52175293.81 | AB23: 0 | AC23: 16 | AD23: 11 | AE23: 923815.1025 | AF23: 330 | AG23: Gas Wells - Construction | AJ23: 52175293.81 | AK23: 52175293.81 | AL23: 0 | AM23: 0
A24: 953 | B24: 331 | C24: Gas Wells - Equipment | H24: 17216356.88 | I24: 17216356.88 | J24: 17216356.88 | K24: 17216356.88 | L24: 17216356.88 | M24: 17216356.88 | N24: 17216356.88 | O24: 17216356.88 | P24: 17216356.88 | Q24: 17216356.88 | R24: 17216356.88 | S24: 17216356.88 | T24: 17216356.88 | V24: 17216356.88 | Y24: 17216356.88 | Z24: 17216356.88 | AA24: 17216356.88 | AB24: 0 | AC24: 17 | AD24: 12 | AE24: 274625.3921 | AF24: 331 | AG24: Gas Wells - Equipment | AJ24: 17216356.88 | AK24: 17216356.88 | AL24: 0 | AM24: 0
A25: 954 | B25: 332...4 | C25: Field Lines & Comp, Meas & Reg St Eqpt | H25: 2693816.12 | I25: 2693816.12 | J25: 2693816.12 | K25: 2693816.12 | L25: 2693816.12 | M25: 2693816.12 | N25: 2693816.12 | O25: 2693816.12 | P25: 2693816.12 | Q25: 2693816.12 | R25: 2693816.12 | S25: 2693816.12 | T25: 2693816.12 | V25: 2693816.12 | Y25: 2693816.12 | Z25: 2693816.12 | AA25: 2693816.12 | AB25: 0 | AC25: 18 | AD25: 13 | AE25: 5745.58375 | AF25: 332...4 | AG25: Field Lines & Comp, Meas & Reg St Eqpt | AJ25: 2693816.12 | AK25: 2693816.12 | AL25: 0 | AM25: 0
A26: 955 | B26: 336 | C26: Purification Equipment | H26: 57014.71 | I26: 57014.71 | J26: 57014.71 | K26: 57014.71 | L26: 57014.71 | M26: 57014.71 | N26: 57014.71 | O26: 57014.71 | P26: 57014.71 | Q26: 57014.71 | R26: 57014.71 | S26: 57014.71 | T26: 57014.71 | V26: 57014.71 | Y26: 57014.71 | Z26: 57014.71 | AA26: 57014.71 | AB26: 0 | AC26: 19 | AD26: 14 | AE26: 0 | AF26: 336 | AG26: Purification Equipment | AJ26: 57014.71 | AK26: 57014.71 | AL26: 0 | AM26: 0
A27: 956 | B27: 337 | C27: Other Equipment | H27: 121186.63 | I27: 121186.63 | J27: 121186.63 | K27: 121186.63 | L27: 121186.63 | M27: 121186.63 | N27: 121186.63 | O27: 121186.63 | P27: 121186.63 | Q27: 121186.63 | R27: 121186.63 | S27: 121186.63 | T27: 121186.63 | V27: 121186.63 | Y27: 121186.63 | Z27: 121186.63 | AA27: 121186.63 | AB27: 0 | AC27: 20 | AD27: 15 | AE27: 0 | AF27: 337 | AG27: Other Equipment | AJ27: 121186.63 | AK27: 121186.63 | AL27: 0 | AM27: 0
A28: 957 | AA28: 0 | AC28: 21 | AD28: 16 | AE28: 0 | AM28: 0
A29: 958 | C29: Total Production & Gathering Plant | H29: =SUM(H21:H27) -> 79968136.83 | I29: =SUM(I21:I27) -> 79968136.83 | J29: 79968136.83 | K29: 79968136.83 | L29: 79968136.83 | M29: 79968136.83 | N29: 79968136.83 | O29: 79968136.83 | P29: 79968136.83 | Q29: 79968136.83 | R29: 79968136.83 | S29: 79968136.83 | T29: 79968136.83 | V29: =SUM(V21:V27) -> 79968136.83 | Y29: =T29 -> 79968136.83 | Z29: 79968136.83 | AA29: 79968136.83 | AB29: =SUM(AB21:AB27) -> 0 | AC29: 22 | AD29: 17 | AE29: 1209425.516 | AG29: Total Production & Gathering Plant | AJ29: =SUM(AJ21:AJ27) -> 79968136.83 | AK29: =SUM(AK21:AK27) -> 79968136.83 | AL29: =SUM(AL21:AL27) -> 0 | AM29: 0
A30: 959 | AA30: 0 | AC30: 23 | AD30: 18 | AE30: 0 | AM30: 0
A31: 960 | C31: Distribution Plant | AA31: 0 | AC31: 24 | AD31: 19 | AE31: 0 | AG31: Distribution Plant | AM31: 0
A32: 961 | B32: 374 | C32: Land & Land Rights | AA32: 0 | AC32: 25 | AD32: 20 | AE32: 0 | AF32: 374 | AG32: Land & Land Rights | AM32: 0
A33: 962 | D33: Wyoming | H33: 361364.44 | I33: 361364.44 | J33: 361364.44 | K33: 361364.44 | L33: 361364.44 | M33: 381894.39 | N33: 381894.39 | O33: 381894.39 | P33: 381894.39 | Q33: 400188.28 | R33: 400188.28 | S33: 400188.28 | T33: 400188.28 | V33: =(SUM(I33:S33)+(0.5*T33)+(0.5*H33))/12 -> 379531.3767 | Y33: =T33 -> 400188.28 | Z33: 379531.3767 | AA33: 379531.3767 | AB33: =AA33-T33 -> -20656.90333 | AC33: 26 | AD33: 21 | AE33: -27652.10083 | AH33: Wyoming | AJ33: =+T33 -> 400188.28 | AK33: =AA33 -> 379531.3767 | AL33: =AK33-AJ33 -> -20656.90333 | AM33: 0
A34: 963 | D34: Utah | H34: 13714884.27 | I34: 14388070 | J34: 14576087.81 | K34: 15057646.82 | L34: 15057646.82 | M34: 15564264.28 | N34: 16452627.14 | O34: 16453519.21 | P34: 16453519.21 | Q34: 16770722.2 | R34: 16771174.02 | S34: 16771388.12 | T34: 16771388.12 | V34: =(SUM(I34:S34)+(0.5*T34)+(0.5*H34))/12 -> 15796650.15 | Y34: =T34 -> 16771388.12 | Z34: 15796650.15 | AA34: 15796650.15 | AB34: =AA34-T34 -> -974737.9679 | AC34: 27 | AD34: 22 | AE34: -1314080.404 | AH34: Utah | AJ34: =+T34 -> 16771388.12 | AK34: =AA34 -> 15796650.15 | AL34: =AK34-AJ34 -> -974737.9679 | AM34: 0
A35: 964 | D35: Total | H35: =SUM(H33:H34) -> 14076248.71 | I35: =SUM(I33:I34) -> 14749434.44 | J35: 14937452.25 | K35: 15419011.26 | L35: 15419011.26 | M35: 15946158.67 | N35: 16834521.53 | O35: 16835413.6 | P35: 16835413.6 | Q35: 17170910.48 | R35: 17171362.3 | S35: 17171576.4 | T35: 17171576.4 | V35: =SUM(V33:V34) -> 16176181.53 | Y35: =T35 -> 17171576.4 | Z35: 16176181.53 | AA35: 16176181.53 | AB35: =SUM(AB33:AB34) -> -995394.8712 | AC35: 28 | AD35: 23 | AE35: -1341732.505 | AH35: Total | AJ35: =SUM(AJ33:AJ34) -> 17171576.4 | AK35: =SUM(AK33:AK34) -> 16176181.53 | AL35: -995394.8712 | AM35: 0
A36: 965 | AA36: 0 | AC36: 29 | AD36: 24 | AE36: 0 | AM36: 0
A37: 966 | B37: 375 | C37: Structures & Improvements | AA37: 0 | AC37: 30 | AD37: 25 | AE37: 0 | AF37: 375 | AG37: Structures & Improyements | AM37: 0
A38: 967 | D38: Wyoming | H38: 721780.23 | I38: 721780.23 | J38: 717226.15 | K38: 717226.15 | L38: 717226.15 | M38: 717226.15 | N38: 717226.15 | O38: 717226.15 | P38: 871199.46 | Q38: 866096.88 | R38: 866243.66 | S38: 943906.23 | T38: 943906.23 | V38: =(SUM(I38:S38)+(0.5*T38)+(0.5*H38))/12 -> 783785.5492 | Y38: =T38 -> 943906.23 | Z38: 783785.5492 | AA38: 783785.5492 | AB38: =AA38-T38 -> -160120.6808 | AC38: 31 | AD38: 26 | AE38: -134296.7737 | AH38: Wyoming | AJ38: =+T38 -> 943906.23 | AK38: =AA38 -> 783785.5492 | AL38: =AK38-AJ38 -> -160120.6808 | AM38: 0
A39: 968 | D39: Utah | H39: 11660031.16 | I39: 11712193.54 | J39: 11712952.97 | K39: 11715155.21 | L39: 11748425.27 | M39: 11817112.62 | N39: 11933293.41 | O39: 11989968.78 | P39: 14733261.66 | Q39: 14850891.31 | R39: 14875361.47 | S39: 14874161.47 | T39: 15006285.34 | V39: =(SUM(I39:S39)+(0.5*T39)+(0.5*H39))/12 -> 12941328 | Y39: =T39 -> 15006285.34 | Z39: 12941328 | AA39: 12941328 | AB39: =AA39-T39 -> -2064957.343 | AC39: 32 | AD39: 27 | AE39: -7334.262083 | AH39: Utah | AJ39: =+T39 -> 15006285.34 | AK39: =AA39 -> 12941328 | AL39: =AK39-AJ39 -> -2064957.343 | AM39: 0
A40: 969 | D40: Total | H40: =SUM(H38:H39) -> 12381811.39 | I40: =SUM(I38:I39) -> 12433973.77 | J40: 12430179.12 | K40: 12432381.36 | L40: 12465651.42 | M40: 12534338.77 | N40: 12650519.56 | O40: 12707194.93 | P40: 15604461.12 | Q40: 15716988.19 | R40: 15741605.13 | S40: 15818067.7 | T40: 15950191.57 | V40: =SUM(V38:V39) -> 13725113.55 | Y40: =T40 -> 15950191.57 | Z40: 13725113.55 | AA40: 13725113.55 | AB40: =SUM(AB38:AB39) -> -2225078.024 | AC40: 33 | AD40: 28 | AE40: -141631.0358 | AH40: Total | AJ40: =SUM(AJ38:AJ39) -> 15950191.57 | AK40: =SUM(AK38:AK39) -> 13725113.55 | AL40: -2225078.024 | AM40: 0
A41: 970 | AA41: 0 | AC41: 34 | AD41: 29 | AE41: 0 | AM41: 0
A42: 971 | B42: 376 | C42: Mains | AA42: 0 | AC42: 35 | AD42: 30 | AE42: 0 | AF42: 376 | AG42: Mains | AM42: 0
A43: 972 | D43: Dist - Wy - Mains - SD | AA43: 0 | AC43: 36 | AD43: 31 | AE43: 0 | AG43: Dist - Wy - Mains - SD | AM43: 0
A44: 973 | D44: Dist - Wy - Mains - LD | AA44: 0 | AC44: 37 | AD44: 32 | AE44: 0 | AG44: Dist - Wy - Mains - LD | AM44: 0
A45: 974 | D45: Dist - Wy - Mains - Feeders | AA45: 0 | AC45: 38 | AD45: 33 | AE45: 0 | AG45: Dist - Wy - Mains - Feeders | AM45: 0
A46: 975 | D46: Total Wyoming | H46: 33270608.65 | I46: 33080212.1 | J46: 33041505.96 | K46: 33590552.92 | L46: 33591506.12 | M46: 33858502.07 | N46: 34121858.45 | O46: 34128475 | P46: 34234962.28 | Q46: 34518784.01 | R46: 34519290.61 | S46: 34633610.57 | T46: 34870592.9 | V46: =(SUM(I46:S46)+(0.5*T46)+(0.5*H46))/12 -> 33949155.07 | Y46: =T46 -> 34870592.9 | Z46: 33949155.07 | AA46: 33949155.07 | AB46: =AA46-T46 -> -921437.8279 | AC46: 39 | AD46: 34 | AE46: -894926.4358 | AG46: Total Wyoming | AH46: Wyoming | AJ46: =+T46 -> 34870592.9 | AK46: =AA46 -> 33949155.07 | AL46: =AK46-AJ46 -> -921437.8279 | AM46: 0
A47: =+A46+1 -> 976 | D47: Dist - Ut - Mains - SD | AA47: 0 | AC47: =+AC46+1 -> 40 | AD47: =+AD46+1 -> 35 | AE47: 0 | AG47: Dist - Ut - Mains - SD | AM47: 0
A48: 977 | D48: Dist - Ut - Mains - LD | AA48: 0 | AC48: 41 | AD48: 36 | AE48: 0 | AG48: Dist - Ut - Mains - LD | AM48: 0
A49: 978 | D49: Dist - Ut - Mains - Feeders | AA49: 0 | AC49: 42 | AD49: 37 | AE49: 0 | AG49: Dist - Ut - Mains - Feeders | AM49: 0
A50: 979 | D50: Total Utah | H50: 1106805124 | I50: 1107192093 | J50: 1108599961 | K50: 1131855852 | L50: 1163061684 | M50: 1169234827 | N50: 1178719177 | O50: 1179529359 | P50: 1185206633 | Q50: 1198670518 | R50: 1204699135 | S50: 1209014579 | T50: 1211569343 | V50: =(SUM(I50:S50)+(0.5*T50)+(0.5*H50))/12 -> 1166247588 | Y50: =T50 -> 1211569343 | Z50: 1166247588 | AA50: 1166247588 | AB50: =AA50-T50 -> -45321755.16 | AC50: 43 | AD50: 38 | AE50: -50963272.61 | AG50: Total Utah | AJ50: =+T50 -> 1211569343 | AK50: =AA50 -> 1166247588 | AL50: =AK50-AJ50 -> -45321755.16 | AM50: 0
A51: =+A50+1 -> 980 | D51: Total | H51: =SUM(H46:H50) -> 1140075732 | I51: =SUM(I46:I50) -> 1140272305 | J51: 1141641467 | K51: 1165446405 | L51: 1196653191 | M51: 1203093329 | N51: 1212841035 | O51: 1213657834 | P51: 1219441596 | Q51: 1233189302 | R51: 1239218426 | S51: 1243648190 | T51: 1246439936 | V51: =SUM(V46:V50) -> 1200196743 | Y51: =T51 -> 1246439936 | Z51: 1200196743 | AA51: 1200196743 | AB51: =AB50+AB46 -> -46243192.98 | AC51: 44 | AD51: 39 | AE51: -51858199.05 | AH51: Total | AJ51: =+T51 -> 1246439936 | AK51: =AA51 -> 1200196743 | AL51: =AK51-AJ51 -> -46243192.98 | AM51: 0
A52: =+A51+1 -> 981 | AA52: 0 | AC52: 45 | AD52: 40 | AE52: 0 | AM52: 0
A53: 982 | B53: 377 | C53: Compressor Station Equipment | AA53: 0 | AC53: 46 | AD53: 41 | AE53: 0 | AF53: 377 | AG53: Compressor Station Equipment | AM53: 0
A54: 983 | D54: Wyoming | H54: 0 | I54: 0 | J54: 0 | K54: 0 | L54: 0 | M54: 0 | N54: 0 | O54: 0 | P54: 0 | Q54: 0 | R54: 0 | S54: 0 | T54: 0 | V54: =(SUM(I54:S54)+(0.5*T54)+(0.5*H54))/12 -> 0 | AA54: 0 | AC54: 47 | AD54: 42 | AE54: 0 | AH54: Wyoming | AJ54: =+T54 -> 0 | AK54: =AA54 -> 0 | AL54: =AK54-AJ54 -> 0 | AM54: 0
A55: 984 | D55: Utah | H55: 17742002.32 | I55: 17742002.32 | J55: 17742228.7 | K55: 17742228.7 | L55: 17742228.7 | M55: 17742228.7 | N55: 18154668.64 | O55: 18154668.64 | P55: 18154668.64 | Q55: 18154668.64 | R55: 18183537.4 | S55: 18190277.74 | T55: 18192571.45 | V55: =(SUM(I55:S55)+(0.5*T55)+(0.5*H55))/12 -> 17972557.81 | Y55: =T55 -> 18192571.45 | Z55: 17972557.81 | AA55: 17972557.81 | AB55: =AA55-T55 -> -220013.6412 | AC55: 48 | AD55: 43 | AE55: -249398.5921 | AH55: Utah | AJ55: =+T55 -> 18192571.45 | AK55: =AA55 -> 17972557.81 | AL55: =AK55-AJ55 -> -220013.6412 | AM55: 0
A56: 985 | D56: Total | H56: =SUM(H54:H55) -> 17742002.32 | I56: =SUM(I54:I55) -> 17742002.32 | J56: 17742228.7 | K56: 17742228.7 | L56: 17742228.7 | M56: 17742228.7 | N56: 18154668.64 | O56: 18154668.64 | P56: 18154668.64 | Q56: 18154668.64 | R56: 18183537.4 | S56: 18190277.74 | T56: 18192571.45 | V56: =SUM(V54:V55) -> 17972557.81 | Y56: =T56 -> 18192571.45 | Z56: 17972557.81 | AA56: 17972557.81 | AB56: =SUM(AB54:AB55) -> -220013.6412 | AC56: 49 | AD56: 44 | AE56: -249398.5921 | AH56: Total | AJ56: =+T56 -> 18192571.45 | AK56: =AA56 -> 17972557.81 | AL56: =AK56-AJ56 -> -220013.6412 | AM56: 0
A57: 986 | AA57: 0 | AC57: 50 | AD57: 45 | AE57: 0 | AM57: 0
A58: 987 | B58: 378 | C58: Measuring & Regulation Station Equip | AA58: 0 | AC58: 51 | AD58: 46 | AE58: 0 | AF58: 378 | AG58: Measuring & Regulation Station Equip | AM58: 0
A59: 988 | D59: Wyoming | H59: 5329343.01 | I59: 5334339.69 | J59: 5315594.5 | K59: 5354943.39 | L59: 5354408.39 | M59: 6194071.52 | N59: 6275909.74 | O59: 6488955.88 | P59: 6451531.52 | Q59: 6420397.35 | R59: 6421157.23 | S59: 6504225.07 | T59: 6504342.47 | V59: =(SUM(I59:S59)+(0.5*T59)+(0.5*H59))/12 -> 6002698.085 | Y59: =T59 -> 6504342.47 | Z59: 6002698.085 | AA59: 6002698.085 | AB59: =AA59-T59 -> -501644.385 | AC59: 52 | AD59: 47 | AE59: -1233591.014 | AH59: Wyoming | AJ59: =+T59 -> 6504342.47 | AK59: =AA59 -> 6002698.085 | AL59: =AK59-AJ59 -> -501644.385 | AM59: 0
A60: 989 | D60: Utah | H60: 74940570 | I60: 75054943.28 | J60: 75380820.51 | K60: 75396209.55 | L60: 75526253.42 | M60: 76217550.6 | N60: 76788067.05 | O60: 76890036.68 | P60: 77003120.66 | Q60: 78178648.13 | R60: 78210174.33 | S60: 78500991.62 | T60: 78668073.7 | V60: =(SUM(I60:S60)+(0.5*T60)+(0.5*H60))/12 -> 76662594.81 | Y60: =T60 -> 78668073.7 | Z60: 76662594.81 | AA60: 76662594.81 | AB60: =AA60-T60 -> -2005478.893 | AC60: 53 | AD60: 48 | AE60: -933290.6754 | AH60: Utah | AJ60: =+T60 -> 78668073.7 | AK60: =AA60 -> 76662594.81 | AL60: =AK60-AJ60 -> -2005478.893 | AM60: 0
A61: 990 | D61: Total | H61: =SUM(H59:H60) -> 80269913.01 | I61: =SUM(I59:I60) -> 80389282.97 | J61: 80696415.01 | K61: 80751152.94 | L61: 80880661.81 | M61: 82411622.12 | N61: 83063976.79 | O61: 83378992.56 | P61: 83454652.18 | Q61: 84599045.48 | R61: 84631331.56 | S61: 85005216.69 | T61: 85172416.17 | V61: =SUM(V59:V60) -> 82665292.89 | Y61: =T61 -> 85172416.17 | Z61: 82665292.89 | AA61: 82665292.89 | AB61: =SUM(AB59:AB60) -> -2507123.278 | AC61: 54 | AD61: 49 | AE61: -2166881.69 | AH61: Total | AJ61: =+T61 -> 85172416.17 | AK61: =AA61 -> 82665292.89 | AL61: =AK61-AJ61 -> -2507123.278 | AM61: 0
A62: 991 | AA62: 0 | AC62: 55 | AD62: 50 | AE62: 0 | AM62: 0
A63: 992 | B63: 380 | C63: Services | AA63: 0 | AC63: 56 | AD63: 51 | AE63: 0 | AF63: 380 | AG63: Services | AM63: 0
A64: 993 | D64: Wyoming | H64: 16240875.56 | I64: 16320576.25 | J64: 16365247.61 | K64: 16393742.73 | L64: 16435995.38 | M64: 16698714.26 | N64: 16772047.64 | O64: 16722941.59 | P64: 16779702.21 | Q64: 16960115.71 | R64: 16985078.97 | S64: 17029541.37 | T64: 17129766.59 | V64: =(SUM(I64:S64)+(0.5*T64)+(0.5*H64))/12 -> 16679085.4 | Y64: =T64 -> 17129766.59 | Z64: 16679085.4 | AA64: 16679085.4 | AB64: =AA64-T64 -> -450681.1904 | AC64: 57 | AD64: 52 | AE64: -962477.6888 | AH64: Wyoming | AJ64: =+T64 -> 17129766.59 | AK64: =AA64 -> 16679085.4 | AL64: =AK64-AJ64 -> -450681.1904 | AM64: 0
A65: 994 | D65: Utah | H65: 327440763.5 | I65: 328245780.1 | J65: 328632238.1 | K65: 329260526.5 | L65: 330185592.2 | M65: 329665476.4 | N65: 333057164 | O65: 332877469.2 | P65: 335121064.4 | Q65: 340030226.8 | R65: 341438871.3 | S65: 345567302.8 | T65: 346375857.3 | V65: =(SUM(I65:S65)+(0.5*T65)+(0.5*H65))/12 -> 334249168.5 | Y65: =T65 -> 346375857.3 | Z65: 334249168.5 | AA65: 334249168.5 | AB65: =AA65-T65 -> -12126688.77 | AC65: 58 | AD65: 53 | AE65: -5231149.137 | AH65: Utah | AJ65: =+T65 -> 346375857.3 | AK65: =AA65 -> 334249168.5 | AL65: =AK65-AJ65 -> -12126688.77 | AM65: 0
A66: 995 | D66: Total | H66: =SUM(H64:H65) -> 343681639.1 | I66: =SUM(I64:I65) -> 344566356.3 | J66: 344997485.7 | K66: 345654269.3 | L66: 346621587.6 | M66: 346364190.7 | N66: 349829211.7 | O66: 349600410.8 | P66: 351900766.6 | Q66: 356990342.5 | R66: 358423950.2 | S66: 362596844.1 | T66: 363505623.9 | V66: =SUM(V64:V65) -> 350928253.9 | Y66: =T66 -> 363505623.9 | Z66: 350928253.9 | AA66: 350928253.9 | AB66: =SUM(AB64:AB65) -> -12577369.96 | AC66: 59 | AD66: 54 | AE66: -6193626.825 | AH66: Total | AJ66: =+T66 -> 363505623.9 | AK66: =AA66 -> 350928253.9 | AL66: =AK66-AJ66 -> -12577369.96 | AM66: 0
A67: 996 | AA67: 0 | AC67: 60 | AD67: 55 | AE67: 0 | AM67: 0
A68: 997 | B68: 381...2 | C68: Meters & Meter Installation | AA68: 0 | AC68: 61 | AD68: 56 | AE68: 0 | AF68: 381...2 | AG68: Meters & Meter Installation | AM68: 0
A69: 998 | D69: Wyoming | H69: 8548706.494 | I69: 8535838.064 | J69: 8534583.804 | K69: 8649358.034 | L69: 8666784.594 | M69: 8678974.554 | N69: 8688637.394 | O69: 8735216.524 | P69: 8770831.524 | Q69: 8798058.224 | R69: 8850369.704 | S69: 8868015.144 | T69: 8892452.884 | V69: =(SUM(I69:S69)+(0.5*T69)+(0.5*H69))/12 -> 8708103.938 | Y69: =T69 -> 8892452.884 | Z69: 8708103.938 | AA69: 8708103.938 | AB69: =AA69-T69 -> -184348.9462 | AC69: 62 | AD69: 57 | AE69: -332098.9666 | AH69: Wyoming | AJ69: =+T69 -> 8892452.884 | AK69: =AA69 -> 8708103.938 | AL69: =AK69-AJ69 -> -184348.9462 | AM69: 0
A70: 999 | D70: Utah | H70: 271105230 | I70: 270931419.7 | J70: 270807793.1 | K70: 274096181.4 | L70: 272774669.4 | M70: 273024925.6 | N70: 273408946.6 | O70: 274458101.9 | P70: 276554253.5 | Q70: 278399086.2 | R70: 279188540.2 | S70: 279907173.7 | T70: 280533278.3 | V70: =(SUM(I70:S70)+(0.5*T70)+(0.5*H70))/12 -> 274947528.8 | Y70: =T70 -> 280533278.3 | Z70: 274947528.8 | AA70: 274947528.8 | AB70: =AA70-T70 -> -5585749.545 | AC70: 63 | AD70: 58 | AE70: -1803810.01 | AH70: Utah | AJ70: =+T70 -> 280533278.3 | AK70: =AA70 -> 274947528.8 | AL70: =AK70-AJ70 -> -5585749.545 | AM70: 0
A71: 1000 | D71: Total | H71: =SUM(H69:H70) -> 279653936.5 | I71: =SUM(I69:I70) -> 279467257.8 | J71: 279342376.9 | K71: 282745539.4 | L71: 281441454 | M71: 281703900.2 | N71: 282097584 | O71: 283193318.4 | P71: 285325085 | Q71: 287197144.4 | R71: 288038910 | S71: 288775188.9 | T71: 289425731.2 | V71: =SUM(V69:V70) -> 283655632.7 | Y71: =T71 -> 289425731.2 | Z71: 283655632.7 | AA71: 283655632.7 | AB71: =SUM(AB69:AB70) -> -5770098.491 | AC71: 64 | AD71: 59 | AE71: -2135908.977 | AH71: Total | AJ71: =+T71 -> 289425731.2 | AK71: =AA71 -> 283655632.7 | AL71: =AK71-AJ71 -> -5770098.491 | AM71: 0
A72: 1001 | AA72: 0 | AC72: 65 | AD72: 60 | AE72: 0 | AM72: 0
A73: 1002 | B73: 383...4 | C73: House Regulators & Reg Installations | AA73: 0 | AC73: 66 | AD73: 61 | AE73: 0 | AF73: 383...4 | AG73: House Regulators & Reg Installations | AM73: 0
A74: 1003 | D74: Wyoming | H74: 914729.58 | I74: 914729.58 | J74: 914729.58 | K74: 914729.58 | L74: 914729.58 | M74: 647686.5 | N74: 904120.82 | O74: 903671.56 | P74: 899916.04 | Q74: 899150.9 | R74: 893724.42 | S74: 887753.61 | T74: 887753.61 | V74: =(SUM(I74:S74)+(0.5*T74)+(0.5*H74))/12 -> 883015.3138 | Y74: =T74 -> 887753.61 | Z74: 883015.3138 | AA74: 883015.3138 | AB74: =AA74-T74 -> -4738.29625 | AC74: 67 | AD74: 62 | AE74: 0.7600000002 | AH74: Wyoming | AJ74: =+T74 -> 887753.61 | AK74: =AA74 -> 883015.3138 | AL74: =AK74-AJ74 -> -4738.29625 | AM74: 0
A75: 1004 | D75: Utah | H75: 14020519.54 | I75: 14020519.54 | J75: 14020519.54 | K75: 13993509.2 | L75: 13985312.92 | M75: 14180494.6 | N75: 13894040.07 | O75: 13869699.99 | P75: 13869587.53 | Q75: 13835819.39 | R75: 13828884.39 | S75: 13828884.39 | T75: 13828884.39 | V75: =(SUM(I75:S75)+(0.5*T75)+(0.5*H75))/12 -> 13937664.46 | Y75: =T75 -> 13828884.39 | Z75: 13937664.46 | AA75: 13937664.46 | AB75: =AA75-T75 -> 108780.0704 | AC75: 68 | AD75: 63 | AE75: 1219.142917 | AH75: Utah | AJ75: =+T75 -> 13828884.39 | AK75: =AA75 -> 13937664.46 | AL75: =AK75-AJ75 -> 108780.0704 | AM75: 0
A76: 1005 | D76: Total | H76: =SUM(H74:H75) -> 14935249.12 | I76: =SUM(I74:I75) -> 14935249.12 | J76: 14935249.12 | K76: 14908238.78 | L76: 14900042.5 | M76: 14828181.1 | N76: 14798160.89 | O76: 14773371.55 | P76: 14769503.57 | Q76: 14734970.29 | R76: 14722608.81 | S76: 14716638 | T76: 14716638 | V76: =SUM(V74:V75) -> 14820679.77 | Y76: =T76 -> 14716638 | Z76: 14820679.77 | AA76: 14820679.77 | AB76: =SUM(AB74:AB75) -> 104041.7742 | AC76: 69 | AD76: 64 | AE76: 1219.902917 | AH76: Total | AJ76: =+T76 -> 14716638 | AK76: =AA76 -> 14820679.77 | AL76: =AK76-AJ76 -> 104041.7742 | AM76: 0
A77: 1006 | AA77: 0 | AC77: 70 | AD77: 65 | AE77: 0 | AM77: 0
A78: 1007 | B78: 387 | C78: Other Equipment | AA78: 0 | AC78: 71 | AD78: 66 | AE78: 0 | AF78: 387 | AG78: Other Equipment | AM78: 0
A79: 1008 | D79: Wyoming | H79: 52618.85 | I79: 52618.85 | J79: 52618.85 | K79: 52618.85 | L79: 56482.77 | M79: 52618.85 | N79: 52618.85 | O79: 52618.85 | P79: 52618.85 | Q79: 76118.65 | R79: 76118.65 | S79: 76118.65 | T79: 76118.65 | V79: =(SUM(I79:S79)+(0.5*T79)+(0.5*H79))/12 -> 59794.95167 | Y79: =T79 -> 76118.65 | Z79: =V79 -> 59794.95167 | AA79: =HLOOKUP($AA$8,RateBaseScenarios,AC79,FALSE) -> 59794.95167 | AB79: =AA79-T79 -> -16323.69833 | AC79: 72 | AD79: 67 | AE79: 0 | AH79: Wyoming | AJ79: =+T79 -> 76118.65 | AK79: =AA79 -> 59794.95167 | AL79: =AK79-AJ79 -> -16323.69833 | AM79: =+AJ79-T79 -> 0
A80: 1009 | D80: Utah | H80: 1531223 | I80: 906448.28 | J80: 700967.14 | K80: 700967.14 | L80: 779169.25 | M80: 815969.38 | N80: 991700.26 | O80: 994458.45 | P80: 994458.45 | Q80: 1158704.32 | R80: 1160614.96 | S80: 1346450.74 | T80: 1349835.08 | V80: =(SUM(I80:S80)+(0.5*T80)+(0.5*H80))/12 -> 999203.1175 | Y80: =T80 -> 1349835.08 | Z80: 999203.1175 | AA80: 999203.1175 | AB80: =AA80-T80 -> -350631.9625 | AC80: 73 | AD80: 68 | AE80: 322301.1179 | AH80: Utah | AJ80: =+T80 -> 1349835.08 | AK80: =AA80 -> 999203.1175 | AL80: =AK80-AJ80 -> -350631.9625 | AM80: 0
A81: 1010 | D81: Total | H81: =SUM(H79:H80) -> 1583841.85 | I81: =SUM(I79:I80) -> 959067.13 | J81: 753585.99 | K81: 753585.99 | L81: 835652.02 | M81: 868588.23 | N81: 1044319.11 | O81: 1047077.3 | P81: 1047077.3 | Q81: 1234822.97 | R81: 1236733.61 | S81: 1422569.39 | T81: 1425953.73 | V81: =SUM(V79:V80) -> 1058998.069 | Y81: =T81 -> 1425953.73 | Z81: 1058998.069 | AA81: 1058998.069 | AB81: =SUM(AB79:AB80) -> -366955.6608 | AC81: 74 | AD81: 69 | AE81: 322301.1179 | AH81: Total | AJ81: =+T81 -> 1425953.73 | AK81: =AA81 -> 1058998.069 | AL81: =AK81-AJ81 -> -366955.6608 | AM81: 0
A82: 1011 | AA82: 0 | AC82: 75 | AD82: 70 | AE82: 0 | AM82: 0
A83: 1012 | B83: 388 | C83: Asset Retirement Costs | AA83: 0 | AC83: 76 | AD83: 71 | AE83: 0 | AF83: 388 | AG83: Asset Retirement Costs | AM83: 0
A84: 1013 | D84: Wyoming | H84: 7220 | I84: 7220 | J84: 7220 | K84: 7220 | L84: 7220 | M84: 7220 | N84: 7220 | O84: 7220 | P84: 7220 | Q84: 7220 | R84: 7220 | S84: 7220 | T84: 7220 | V84: =(SUM(I84:S84)+(0.5*T84)+(0.5*H84))/12 -> 7220 | Y84: =T84 -> 7220 | Z84: 7220 | AA84: 7220 | AB84: =AA84-T84 -> 0 | AC84: 77 | AD84: 72 | AE84: 0 | AH84: Wyoming | AJ84: =+T84 -> 7220 | AK84: =AA84 -> 7220 | AL84: =AK84-AJ84 -> 0 | AM84: 0
A85: 1014 | D85: Utah | H85: 319038 | I85: 319038 | J85: 319038 | K85: 319038 | L85: 319038 | M85: 319038 | N85: 319038 | O85: 319038 | P85: 305101.6 | Q85: 305101.6 | R85: 286172.69 | S85: 290689.26 | T85: 290689.26 | V85: =(SUM(I85:S85)+(0.5*T85)+(0.5*H85))/12 -> 310432.8983 | Y85: =T85 -> 290689.26 | Z85: 310432.8983 | AA85: 310432.8983 | AB85: =AA85-T85 -> 19743.63833 | AC85: 78 | AD85: 73 | AE85: 1182.583333 | AH85: Utah | AJ85: =+T85 -> 290689.26 | AK85: =AA85 -> 310432.8983 | AL85: =AK85-AJ85 -> 19743.63833 | AM85: 0
A86: 1015 | D86: Total | H86: =SUM(H84:H85) -> 326258 | I86: =SUM(I84:I85) -> 326258 | J86: 326258 | K86: 326258 | L86: 326258 | M86: 326258 | N86: 326258 | O86: 326258 | P86: 312321.6 | Q86: 312321.6 | R86: 293392.69 | S86: 297909.26 | T86: 297909.26 | V86: =SUM(V84:V85) -> 317652.8983 | Y86: =T86 -> 297909.26 | Z86: 317652.8983 | AA86: 317652.8983 | AB86: =AA86-T86 -> 19743.63833 | AC86: 79 | AD86: 74 | AE86: 1182.583333 | AH86: Total | AJ86: =+T86 -> 297909.26 | AK86: =AA86 -> 317652.8983 | AL86: =AK86-AJ86 -> 19743.63833 | AM86: 0
A87: 1016 | AA87: 0 | AC87: 80 | AD87: 75 | AE87: 0 | AM87: 0
A88: 1017 | C88: Total Distribution Plant | H88: =H81+H76+H71+H66+H61+H56+H51+H40+H35+H86 -> 1904726632 | I88: 1905841187 | J88: 1907802698 | K88: 1936179071 | L88: 1967285738 | M88: 1975818796 | N88: 1991640255 | O88: 1993674540 | P88: 2006845545 | Q88: 2029300517 | R88: 2037661857 | S88: 2047642478 | T88: =T81+T76+T71+T66+T61+T56+T51+T40+T35+T86 -> 2052298548 | V88: =V81+V76+V71+V66+V61+V56+V51+V40+V35+V86 -> 1981517106 | Y88: =T88 -> 2052298548 | Z88: 1981517106 | AA88: 1981517106 | AB88: =AB81+AB76+AB71+AB66+AB61+AB56+AB51+AB40+AB35+AB86 -> -70781441.5 | AC88: 81 | AD88: 76 | AE88: -63762675.07 | AG88: Total Distribution Plant | AJ88: =+T88 -> 2052298548 | AK88: =AA88 -> 1981517106 | AL88: =AK88-AJ88 -> -70781441.5 | AM88: 0
A89: 1018 | AA89: 0 | AC89: 82 | AD89: 77 | AE89: 0 | AM89: 0
A90: 1019 | B90: General Plant | AA90: 0 | AC90: 83 | AD90: 78 | AE90: 0 | AM90: 0
A91: 1020 | B91: 389 | C91: Land & Land Rights | AA91: 0 | AC91: 84 | AD91: 79 | AE91: 0 | AF91: 389 | AG91: Land & Land Rights | AM91: 0
A92: 1021 | D92: Wyoming | H92: 11584.02 | I92: 11584.02 | J92: 11584.02 | K92: 11584.02 | L92: 11584.02 | M92: 11584.02 | N92: 11584.02 | O92: 11584.02 | P92: 11584.02 | Q92: 11584.02 | R92: 11584.02 | S92: 11584.02 | T92: 11584.02 | V92: =(SUM(I92:S92)+(0.5*T92)+(0.5*H92))/12 -> 11584.02 | Y92: =T92 -> 11584.02 | Z92: 11584.02 | AA92: 11584.02 | AB92: =AA92-T92 -> 0 | AC92: 85 | AD92: 80 | AE92: 3793.95 | AH92: Distribution - Wyoming | AJ92: =+T92 -> 11584.02 | AK92: =AA92 -> 11584.02 | AL92: =AK92-AJ92 -> 0 | AM92: 0
A93: 1022 | D93: Utah | H93: 2703949.33 | I93: 2707795.83 | J93: 2707795.83 | K93: 2707795.83 | L93: 2707795.83 | M93: 2707795.83 | N93: 2707795.83 | O93: 2707795.83 | P93: 2707795.83 | Q93: 2707795.83 | R93: 2707795.83 | S93: 3779827.51 | T93: 3779827.51 | V93: =(SUM(I93:S93)+(0.5*T93)+(0.5*H93))/12 -> 2841639.519 | Y93: =T93 -> 3779827.51 | Z93: 2841639.519 | AA93: 2841639.519 | AB93: =AA93-T93 -> -938187.9908 | AC93: 86 | AD93: 81 | AE93: -251183.3104 | AH93: Distribution - Utah | AJ93: =+T93 -> 3779827.51 | AK93: =AA93 -> 2841639.519 | AL93: =AK93-AJ93 -> -938187.9908 | AM93: 0
A94: 1023 | D94: Total | H94: =SUM(H92:H93) -> 2715533.35 | I94: =SUM(I92:I93) -> 2719379.85 | J94: 2719379.85 | K94: 2719379.85 | L94: 2719379.85 | M94: 2719379.85 | N94: 2719379.85 | O94: 2719379.85 | P94: 2719379.85 | Q94: 2719379.85 | R94: 2719379.85 | S94: 3791411.53 | T94: 3791411.53 | V94: =SUM(V92:V93) -> 2853223.539 | Y94: =T94 -> 3791411.53 | Z94: 2853223.539 | AA94: 2853223.539 | AB94: =AA94-T94 -> -938187.9908 | AC94: 87 | AD94: 82 | AE94: -247389.3604 | AH94: Total | AJ94: =+T94 -> 3791411.53 | AK94: =AA94 -> 2853223.539 | AL94: =AK94-AJ94 -> -938187.9908 | AM94: 0
A95: 1024 | AA95: 0 | AC95: 88 | AD95: 83 | AE95: 0 | AM95: 0
A96: 1025 | B96: 390 | C96: Structures & Improvements | AA96: 0 | AC96: 89 | AD96: 84 | AE96: 0 | AF96: 390 | AG96: Structures & Improyements | AM96: 0
A97: 1026 | D97: Wyoming | H97: 111749.71 | I97: 111749.71 | J97: 111749.71 | K97: 111749.71 | L97: 111749.71 | M97: 111749.71 | N97: 120846.7 | O97: 120846.7 | P97: 120846.7 | Q97: 142988.51 | R97: 142988.51 | S97: 142988.51 | T97: 144504.59 | V97: =(SUM(I97:S97)+(0.5*T97)+(0.5*H97))/12 -> 123198.4442 | Y97: =T97 -> 144504.59 | Z97: 123198.4442 | AA97: 123198.4442 | AB97: =AA97-T97 -> -21306.14583 | AC97: 90 | AD97: 85 | AE97: 0 | AH97: Distribution - Wyoming | AJ97: =+T97 -> 144504.59 | AK97: =AA97 -> 123198.4442 | AL97: =AK97-AJ97 -> -21306.14583 | AM97: 0
A98: 1027 | D98: Utah | H98: 21955443.8 | I98: 21955443.8 | J98: 21955970.75 | K98: 21960398.74 | L98: 21974813.48 | M98: 22021155.44 | N98: 22063883.04 | O98: 22063883.04 | P98: 22077663.79 | Q98: 22228818.09 | R98: 22264413.54 | S98: 22247453.11 | T98: 21551392.32 | V98: =(SUM(I98:S98)+(0.5*T98)+(0.5*H98))/12 -> 22047276.24 | Y98: =T98 -> 21551392.32 | Z98: 22047276.24 | AA98: 22047276.24 | AB98: =AA98-T98 -> 495883.92 | AC98: 91 | AD98: 86 | AE98: 1243046.617 | AH98: Distribution - Utah | AJ98: =+T98 -> 21551392.32 | AK98: =AA98 -> 22047276.24 | AL98: =AK98-AJ98 -> 495883.92 | AM98: 0
A99: 1028 | D99: General | H99: 46168575.52 | I99: 46168575.52 | J99: 46169039.52 | K99: 46169039.52 | L99: 46169039.52 | M99: 46172755.38 | N99: 46213378.45 | O99: 46213378.45 | P99: 46213378.45 | Q99: 46427958.53 | R99: 46556289.43 | S99: 46573249.86 | T99: 46578825.16 | V99: =(SUM(I99:S99)+(0.5*T99)+(0.5*H99))/12 -> 46284981.91 | Y99: =T99 -> 46578825.16 | Z99: 46284981.91 | AA99: 46284981.91 | AB99: =AA99-T99 -> -293843.2458 | AC99: 92 | AD99: 87 | AE99: -898441.755 | AH99: =D99 -> General | AJ99: =+T99 -> 46578825.16 | AK99: =AA99 -> 46284981.91 | AL99: =AK99-AJ99 -> -293843.2458 | AM99: 0
A100: 1029 | D100: Total | H100: =SUM(H97:H99) -> 68235769.03 | I100: =SUM(I97:I99) -> 68235769.03 | J100: 68236759.98 | K100: 68241187.97 | L100: 68255602.71 | M100: 68305660.53 | N100: 68398108.19 | O100: 68398108.19 | P100: 68411888.94 | Q100: 68799765.13 | R100: 68963691.48 | S100: 68963691.48 | T100: 68274722.07 | V100: =SUM(V97:V99) -> 68455456.6 | Y100: =SUM(Y97:Y99) -> 68274722.07 | Z100: =SUM(Z97:Z99) -> 68455456.6 | AA100: 68455456.6 | AB100: =AA100-T100 -> 180734.5283 | AC100: 93 | AD100: 88 | AE100: 344604.8617 | AH100: Total | AJ100: =+T100 -> 68274722.07 | AK100: =AA100 -> 68455456.6 | AL100: =AK100-AJ100 -> 180734.5283 | AM100: 0
A101: 1030 | AA101: 0 | AC101: 94 | AD101: 89 | AE101: 0 | AM101: 0
A102: 1031 | B102: 391 | C102: Office Furniture & Equipment | AA102: 0 | AC102: 95 | AD102: 90 | AE102: 0 | AF102: 391 | AG102: Office Furniture & Equipment | AM102: 0
A103: 1032 | D103: Wyoming | H103: 283272.01 | I103: 283272.01 | J103: 283272.01 | K103: 283272.01 | L103: 283272.01 | M103: 283272.01 | N103: 283272.01 | O103: 170254.98 | P103: 283272.01 | Q103: 207014.46 | R103: 207014.46 | S103: 207014.46 | T103: 204157.96 | V103: =(SUM(I103:S103)+(0.5*T103)+(0.5*H103))/12 -> 251493.1179 | Y103: =T103 -> 204157.96 | Z103: 251493.1179 | AA103: 251493.1179 | AB103: =AA103-T103 -> 47335.15792 | AC103: 96 | AD103: 91 | AE103: -21539.8225 | AH103: Distribution - Wyoming | AJ103: =+T103 -> 204157.96 | AK103: =AA103 -> 251493.1179 | AL103: =AK103-AJ103 -> 47335.15792 | AM103: 0
A104: 1033 | D104: Utah | H104: 16008844.39 | I104: 16067529.74 | J104: 16093616.42 | K104: 15375719.03 | L104: 15408548.1 | M104: 15442308.61 | N104: 15584975.47 | O104: 15697992.5 | P104: 15587146.11 | Q104: 13059346.36 | R104: 13140266.52 | S104: 13239159.64 | T104: 12996334.77 | V104: =(SUM(I104:S104)+(0.5*T104)+(0.5*H104))/12 -> 14933266.51 | Y104: =T104 -> 12996334.77 | Z104: 14933266.51 | AA104: 14933266.51 | AB104: =AA104-T104 -> 1936931.737 | AC104: 97 | AD104: 92 | AE104: 1649957.31 | AH104: Distribution - Utah | AJ104: =+T104 -> 12996334.77 | AK104: =AA104 -> 14933266.51 | AL104: =AK104-AJ104 -> 1936931.737 | AM104: 0
A105: 1034 | D105: General | H105: 45871376.65 | I105: 45874301.14 | J105: 45877079.56 | K105: 45873456.48 | L105: 45927316.79 | M105: 46988364.44 | N105: 47798062.23 | O105: 47969805.63 | P105: 47969805.63 | Q105: 48020097.33 | R105: 48056563.41 | S105: 48313346.39 | T105: 47857540.93 | V105: =(SUM(I105:S105)+(0.5*T105)+(0.5*H105))/12 -> 47127721.49 | Y105: =T105 -> 47857540.93 | Z105: 47127721.49 | AA105: 47127721.49 | AB105: =AA105-T105 -> -729819.445 | AC105: 98 | AD105: 93 | AE105: -827110.1296 | AH105: General | AJ105: =+T105 -> 47857540.93 | AK105: =AA105 -> 47127721.49 | AL105: =AK105-AJ105 -> -729819.445 | AM105: 0
A106: 1035 | D106: Total | H106: =SUM(H103:H105) -> 62163493.05 | I106: =SUM(I103:I105) -> 62225102.89 | J106: 62253967.99 | K106: 61532447.52 | L106: 61619136.9 | M106: 62713945.06 | N106: 63666309.71 | O106: 63838053.11 | P106: 63840223.75 | Q106: 61286458.15 | R106: 61403844.39 | S106: 61759520.49 | T106: 61058033.66 | V106: =SUM(V103:V105) -> 62312481.11 | Y106: =T106 -> 61058033.66 | Z106: 62312481.11 | AA106: 62312481.11 | AB106: =AA106-T106 -> 1254447.45 | AC106: 99 | AD106: 94 | AE106: 801307.3583 | AH106: Total | AJ106: =+T106 -> 61058033.66 | AK106: =AA106 -> 62312481.11 | AL106: =AK106-AJ106 -> 1254447.45 | AM106: 0
A107: 1036 | AA107: 0 | AC107: 100 | AD107: 95 | AE107: 0 | AM107: 0
A108: 1037 | B108: 392 | C108: Transportation Equipment | AA108: 0 | AC108: 101 | AD108: 96 | AE108: 0 | AF108: 392 | AG108: Transportation Equipment | AM108: 0
A109: 1038 | D109: Wyoming | H109: 1631659.35 | I109: 1729375.27 | J109: 1998763.81 | K109: 2035375.15 | L109: 2035375.15 | M109: 2168792.07 | N109: 2168792.07 | O109: 2280449.68 | P109: 2167432.65 | Q109: 2167432.65 | R109: 2167432.65 | S109: 2233933.58 | T109: 2233933.58 | V109: =(SUM(I109:S109)+(0.5*T109)+(0.5*H109))/12 -> 2090495.933 | Y109: =T109 -> 2233933.58 | Z109: 2090495.933 | AA109: 2090495.933 | AB109: =AA109-T109 -> -143437.6471 | AC109: 102 | AD109: 97 | AE109: -74623.42083 | AH109: Distribution - Wyoming | AJ109: =+T109 -> 2233933.58 | AK109: =AA109 -> 2090495.933 | AL109: =AK109-AJ109 -> -143437.6471 | AM109: 0
A110: 1039 | D110: Utah | H110: 40591130.13 | I110: 40725720.29 | J110: 41128133.28 | K110: 41722813.26 | L110: 41753243.97 | M110: 42562297.85 | N110: 43694185.34 | O110: 43360729.14 | P110: 43563343.76 | Q110: 43544494.33 | R110: 43658096.32 | S110: 43542625.08 | T110: 44123299.24 | V110: =(SUM(I110:S110)+(0.5*T110)+(0.5*H110))/12 -> 42634408.11 | Y110: =T110 -> 44123299.24 | Z110: 42634408.11 | AA110: 42634408.11 | AB110: =AA110-T110 -> -1488891.131 | AC110: 103 | AD110: 98 | AE110: -718557.9508 | AH110: Distribution - Utah | AJ110: =+T110 -> 44123299.24 | AK110: =AA110 -> 42634408.11 | AL110: =AK110-AJ110 -> -1488891.131 | AM110: 0
A111: 1040 | D111: General | H111: 0 | I111: 0 | J111: 0 | K111: 0 | L111: 0 | M111: 0 | N111: 0 | O111: 0 | P111: 0 | Q111: 0 | R111: 0 | S111: 0 | T111: 0 | V111: =(SUM(I111:S111)+(0.5*T111)+(0.5*H111))/12 -> 0 | Y111: =T111 -> 0 | Z111: 0 | AA111: 0 | AB111: =AA111-T111 -> 0 | AC111: 104 | AD111: 99 | AE111: 0 | AH111: General | AJ111: =+T111 -> 0 | AK111: =AA111 -> 0 | AL111: =AK111-AJ111 -> 0 | AM111: 0
A112: 1041 | D112: Total | H112: =SUM(H109:H111) -> 42222789.48 | I112: =SUM(I109:I111) -> 42455095.56 | J112: 43126897.09 | K112: 43758188.41 | L112: 43788619.12 | M112: 44731089.92 | N112: 45862977.41 | O112: 45641178.82 | P112: 45730776.41 | Q112: 45711926.98 | R112: 45825528.97 | S112: 45776558.66 | T112: 46357232.82 | V112: =(SUM(I112:S112)+(0.5*T112)+(0.5*H112))/12 -> 44724904.04 | Y112: =T112 -> 46357232.82 | Z112: 44724904.04 | AA112: 44724904.04 | AB112: =AA112-T112 -> -1632328.778 | AC112: =+AC111+1 -> 105 | AD112: =+AD111+1 -> 100 | AE112: -793181.3717 | AH112: Total | AJ112: =+T112 -> 46357232.82 | AK112: =AA112 -> 44724904.04 | AL112: =AK112-AJ112 -> -1632328.778 | AM112: 0
A113: 1042 | AA113: 0 | AC113: 106 | AD113: 101 | AE113: 0 | AM113: 0
A114: 1043 | B114: 393 | C114: Stores Equipment | AA114: 0 | AC114: 107 | AD114: 102 | AE114: 0 | AF114: 393 | AG114: Stores Equipment | AM114: 0
A115: 1044 | D115: Wyoming | H115: 12371.89 | I115: 12371.89 | J115: 12371.89 | K115: 12371.89 | L115: 12371.89 | M115: 12371.89 | N115: 12371.89 | O115: 12371.89 | P115: 12371.89 | Q115: 12371.89 | R115: 12371.89 | S115: 12371.89 | T115: 12371.89 | V115: =(SUM(I115:S115)+(0.5*T115)+(0.5*H115))/12 -> 12371.89 | Y115: =T115 -> 12371.89 | Z115: 12371.89 | AA115: 12371.89 | AB115: =AA115-T115 -> 0 | AC115: 108 | AD115: 103 | AE115: 0 | AH115: Distribution - Wyoming | AJ115: =+T115 -> 12371.89 | AK115: =AA115 -> 12371.89 | AL115: =AK115-AJ115 -> 0 | AM115: 0
A116: =+A115+1 -> 1045 | D116: Utah | H116: 45026.02 | I116: 45026.02 | J116: 45026.02 | K116: 45026.02 | L116: 45026.02 | M116: 45026.02 | N116: 45026.02 | O116: 45026.02 | P116: 45026.02 | Q116: 45026.02 | R116: 45026.02 | S116: 45026.02 | T116: 45026.02 | V116: =(SUM(I116:S116)+(0.5*T116)+(0.5*H116))/12 -> 45026.02 | Y116: =T116 -> 45026.02 | Z116: 45026.02 | AA116: 45026.02 | AB116: =AA116-T116 -> 0 | AC116: 109 | AD116: 104 | AE116: 0 | AH116: Distribution - Utah | AJ116: =+T116 -> 45026.02 | AK116: =AA116 -> 45026.02 | AL116: =AK116-AJ116 -> 0 | AM116: 0
A117: 1046 | D117: Total | H117: =SUM(H115:H116) -> 57397.91 | I117: =SUM(I115:I116) -> 57397.91 | J117: 57397.91 | K117: 57397.91 | L117: 57397.91 | M117: 57397.91 | N117: 57397.91 | O117: 57397.91 | P117: 57397.91 | Q117: 57397.91 | R117: 57397.91 | S117: 57397.91 | T117: 57397.91 | V117: =SUM(V115:V116) -> 57397.91 | Y117: =T117 -> 57397.91 | Z117: 57397.91 | AA117: 57397.91 | AB117: =AA117-T117 -> 0 | AC117: 110 | AD117: 105 | AE117: 0 | AH117: Total | AJ117: =+T117 -> 57397.91 | AK117: =AA117 -> 57397.91 | AL117: =AK117-AJ117 -> 0 | AM117: 0
A118: 1047 | AA118: 0 | AC118: 111 | AD118: 106 | AE118: 0 | AM118: 0
A119: 1048 | B119: 394 | C119: Tools, Shop & Garage Equipment | AA119: 0 | AC119: 112 | AD119: 107 | AE119: 0 | AF119: 394 | AG119: Tools, Shop & Garage Equipment | AM119: 0
A120: 1049 | D120: Wyoming | H120: 2071217.57 | I120: 2082758.46 | J120: 2088814.68 | K120: 2097310.91 | L120: 2107965.41 | M120: 2107965.41 | N120: 2109997.47 | O120: 2109997.47 | P120: 2136065.44 | Q120: 2168041.2 | R120: 2170719.34 | S120: 2169358.34 | T120: 2181233.93 | V120: =(SUM(I120:S120)+(0.5*T120)+(0.5*H120))/12 -> 2122934.99 | Y120: =T120 -> 2181233.93 | Z120: 2122934.99 | AA120: 2122934.99 | AB120: =AA120-T120 -> -58298.94 | AC120: 113 | AD120: 108 | AE120: -64580.44417 | AH120: Distribution - Wyoming | AJ120: =+T120 -> 2181233.93 | AK120: =AA120 -> 2122934.99 | AL120: =AK120-AJ120 -> -58298.94 | AM120: 0
A121: 1050 | D121: Utah | H121: 24562259.51 | I121: 24748129.26 | J121: 25026510.77 | K121: 24930664.77 | L121: 24970584.86 | M121: 25022950.34 | N121: 25233681.27 | O121: 26063720.79 | P121: 26187058.4 | Q121: 26287419.01 | R121: 26674200.83 | S121: 26729337.66 | T121: 26847830.33 | V121: =(SUM(I121:S121)+(0.5*T121)+(0.5*H121))/12 -> 25631608.57 | Y121: =T121 -> 26847830.33 | Z121: 25631608.57 | AA121: 25631608.57 | AB121: =AA121-T121 -> -1216221.757 | AC121: 114 | AD121: 109 | AE121: -1904880.111 | AH121: Distribution - Utah | AJ121: =+T121 -> 26847830.33 | AK121: =AA121 -> 25631608.57 | AL121: =AK121-AJ121 -> -1216221.757 | AM121: 0
A122: 1051 | D122: General | H122: 0 | I122: 0 | J122: 0 | K122: 0 | L122: 0 | M122: 0 | N122: 0 | O122: 0 | P122: 0 | Q122: 0 | R122: 0 | S122: 0 | T122: 0 | V122: =(SUM(I122:S122)+(0.5*T122)+(0.5*H122))/12 -> 0 | Y122: =T122 -> 0 | Z122: 0 | AA122: 0 | AB122: =AA122-T122 -> 0 | AC122: 115 | AD122: 110 | AE122: 0 | AH122: General | AJ122: =+T122 -> 0 | AK122: =AA122 -> 0 | AL122: =AK122-AJ122 -> 0 | AM122: 0
A123: 1052 | D123: Total | H123: =SUM(H120:H122) -> 26633477.08 | I123: =SUM(I120:I122) -> 26830887.72 | J123: 27115325.45 | K123: 27027975.68 | L123: 27078550.27 | M123: 27130915.75 | N123: 27343678.74 | O123: 28173718.26 | P123: 28323123.84 | Q123: 28455460.21 | R123: 28844920.17 | S123: 28898696 | T123: 29029064.26 | V123: =SUM(V120:V122) -> 27754543.56 | Y123: =T123 -> 29029064.26 | Z123: 27754543.56 | AA123: 27754543.56 | AB123: =AA123-T123 -> -1274520.697 | AC123: 116 | AD123: 111 | AE123: -1969460.555 | AH123: Total | AJ123: =+T123 -> 29029064.26 | AK123: =AA123 -> 27754543.56 | AL123: =AK123-AJ123 -> -1274520.697 | AM123: 0
A124: 1053 | AA124: 0 | AC124: 117 | AD124: 112 | AE124: 0 | AM124: 0
A125: 1054 | B125: 395 | C125: Laboratory Equipment | AA125: 0 | AC125: 118 | AD125: 113 | AE125: 0 | AF125: 395 | AG125: Laboratory Equipment | AM125: 0
A126: 1055 | D126: Wyoming | H126: 0 | I126: 0 | J126: 0 | K126: 0 | L126: 0 | M126: 0 | N126: 0 | O126: 0 | P126: 0 | Q126: 0 | R126: 0 | S126: 0 | T126: 0 | V126: =(SUM(I126:S126)+(0.5*T126)+(0.5*H126))/12 -> 0 | Y126: =T126 -> 0 | Z126: 0 | AA126: 0 | AB126: =AA126-T126 -> 0 | AC126: 119 | AD126: 114 | AE126: 0 | AH126: Distribution - Wyoming | AJ126: =+T126 -> 0 | AK126: =AA126 -> 0 | AL126: =AK126-AJ126 -> 0 | AM126: 0
A127: 1056 | D127: Utah | H127: 76245.36 | I127: 76245.36 | J127: 76245.36 | K127: 76245.36 | L127: 76245.36 | M127: 76245.36 | N127: 76245.36 | O127: 76245.36 | P127: 76245.36 | Q127: 76245.36 | R127: 76245.36 | S127: 76245.36 | T127: 76245.36 | V127: =(SUM(I127:S127)+(0.5*T127)+(0.5*H127))/12 -> 76245.36 | Y127: =T127 -> 76245.36 | Z127: 76245.36 | AA127: 76245.36 | AB127: =AA127-T127 -> 0 | AC127: 120 | AD127: 115 | AE127: 0 | AH127: Distribution - Utah | AJ127: =+T127 -> 76245.36 | AK127: =AA127 -> 76245.36 | AL127: =AK127-AJ127 -> 0 | AM127: 0
A128: 1057 | D128: General | H128: 0 | I128: 0 | J128: 0 | K128: 0 | L128: 0 | M128: 0 | N128: 0 | O128: 0 | P128: 0 | Q128: 0 | R128: 0 | S128: 0 | T128: 0 | V128: =(SUM(I128:S128)+(0.5*T128)+(0.5*H128))/12 -> 0 | Y128: =T128 -> 0 | Z128: 0 | AA128: 0 | AB128: =AA128-T128 -> 0 | AC128: 121 | AD128: 116 | AE128: 0 | AH128: General | AJ128: 0 | AK128: =AA128 -> 0 | AL128: =AK128-AJ128 -> 0 | AM128: 0
A129: 1058 | D129: Total | H129: =SUM(H126:H128) -> 76245.36 | I129: =SUM(I126:I128) -> 76245.36 | J129: 76245.36 | K129: 76245.36 | L129: 76245.36 | M129: 76245.36 | N129: 76245.36 | O129: 76245.36 | P129: 76245.36 | Q129: 76245.36 | R129: 76245.36 | S129: 76245.36 | T129: 76245.36 | V129: =SUM(V126:V128) -> 76245.36 | Y129: =T129 -> 76245.36 | Z129: 76245.36 | AA129: 76245.36 | AB129: =AA129-T129 -> 0 | AC129: 122 | AD129: 117 | AE129: 0 | AH129: Total | AJ129: =+T129 -> 76245.36 | AK129: =AA129 -> 76245.36 | AL129: =AK129-AJ129 -> 0 | AM129: 0
A130: 1059 | AA130: 0 | AC130: 123 | AD130: 118 | AE130: 0 | AM130: 0
A131: 1060 | B131: 396 | C131: Power Operated Equipment | AA131: 0 | AC131: 124 | AD131: 119 | AE131: 0 | AF131: 396 | AG131: Power Operated Equipment | AM131: 0
A132: 1061 | D132: Wyoming | H132: 695559.31 | I132: 695559.31 | J132: 695559.31 | K132: 695559.31 | L132: 695559.31 | M132: 695559.31 | N132: 695559.31 | O132: 695559.31 | P132: 695559.31 | Q132: 695559.31 | R132: 695559.31 | S132: 695559.31 | T132: 695559.31 | V132: =(SUM(I132:S132)+(0.5*T132)+(0.5*H132))/12 -> 695559.31 | Y132: =T132 -> 695559.31 | Z132: 695559.31 | AA132: 695559.31 | AB132: =AA132-T132 -> 0 | AC132: 125 | AD132: 120 | AE132: -115290.8237 | AH132: Distribution - Wyoming | AJ132: =+T132 -> 695559.31 | AK132: =AA132 -> 695559.31 | AL132: =AK132-AJ132 -> 0 | AM132: 0
A133: 1062 | D133: Utah | H133: 10418828.5 | I133: 10108382 | J133: 10095643.35 | K133: 10095643.35 | L133: 10095993.35 | M133: 10723219.85 | N133: 10734078.66 | O133: 10734078.66 | P133: 10734078.66 | Q133: 10740010.23 | R133: 11088327.41 | S133: 11065119.16 | T133: 11262941.73 | V133: =(SUM(I133:S133)+(0.5*T133)+(0.5*H133))/12 -> 10587954.98 | Y133: 11262941.73 | Z133: 10587954.98 | AA133: 10587954.98 | AB133: =AA133-T133 -> -674986.7471 | AC133: 126 | AD133: 121 | AE133: -35777.45667 | AH133: Distribution - Utah | AJ133: =+T133 -> 11262941.73 | AK133: =AA133 -> 10587954.98 | AL133: =AK133-AJ133 -> -674986.7471 | AM133: 0
A134: 1063 | D134: General | H134: 0 | I134: 0 | J134: 0 | K134: 0 | L134: 0 | M134: 0 | N134: 0 | O134: 0 | P134: 0 | Q134: 0 | R134: 0 | S134: 0 | T134: 0 | V134: =(SUM(I134:S134)+(0.5*T134)+(0.5*H134))/12 -> 0 | Y134: 0 | Z134: 0 | AA134: 0 | AB134: =AA134-T134 -> 0 | AC134: 127 | AD134: 122 | AE134: 0 | AH134: General | AJ134: =+T134 -> 0 | AK134: =AA134 -> 0 | AL134: =AK134-AJ134 -> 0 | AM134: 0
A135: 1064 | D135: Total | H135: =SUM(H132:H134) -> 11114387.81 | I135: =SUM(I132:I134) -> 10803941.31 | J135: 10791202.66 | K135: 10791202.66 | L135: 10791552.66 | M135: 11418779.16 | N135: 11429637.97 | O135: 11429637.97 | P135: 11429637.97 | Q135: 11435569.54 | R135: 11783886.72 | S135: 11760678.47 | T135: 11958501.04 | V135: =SUM(V132:V134) -> 11283514.29 | Y135: 11958501.04 | Z135: 11283514.29 | AA135: 11283514.29 | AB135: =AA135-T135 -> -674986.7471 | AC135: 128 | AD135: 123 | AE135: -151068.2804 | AH135: Total | AJ135: =+T135 -> 11958501.04 | AK135: =AA135 -> 11283514.29 | AL135: =AK135-AJ135 -> -674986.7471 | AM135: 0
A136: 1065 | Y136: 0 | Z136: 0 | AA136: 0 | AC136: 129 | AD136: 124 | AE136: 0 | AM136: 0
A137: 1066 | B137: 397 | C137: Communication Equipment | Y137: 0 | Z137: 0 | AA137: 0 | AC137: 130 | AD137: 125 | AE137: 0 | AF137: 397 | AG137: Communication Equipment | AM137: 0
A138: 1067 | D138: Wyoming | H138: 73309.11 | I138: 73309.11 | J138: 73309.11 | K138: 73309.11 | L138: 73309.11 | M138: 73309.11 | N138: 73309.11 | O138: 73309.11 | P138: 73309.11 | Q138: 49809.31 | R138: 49809.31 | S138: 49809.31 | T138: 49809.31 | V138: =(SUM(I138:S138)+(0.5*T138)+(0.5*H138))/12 -> 66455.00167 | Y138: 49809.31 | Z138: 66455.00167 | AA138: 66455.00167 | AB138: =AA138-T138 -> 16645.69167 | AC138: 131 | AD138: 126 | AE138: 45643.7575 | AH138: Distribution - Wyoming | AJ138: =+T138 -> 49809.31 | AK138: =AA138 -> 66455.00167 | AL138: =AK138-AJ138 -> 16645.69167 | AM138: 0
A139: 1068 | D139: Utah | H139: 4247958.07 | I139: 4874158.36 | J139: 5090656.64 | K139: 5184652.19 | L139: 5185613.75 | M139: 5186105.58 | N139: 5254778.85 | O139: 5254778.85 | P139: 5254778.85 | Q139: 5254778.85 | R139: 5257509.54 | S139: 5257509.54 | T139: 5257509.54 | V139: =(SUM(I139:S139)+(0.5*T139)+(0.5*H139))/12 -> 5150671.234 | Y139: 5257509.54 | Z139: 5150671.234 | AA139: 5150671.234 | AB139: =AA139-T139 -> -106838.3062 | AC139: 132 | AD139: 127 | AE139: 5757580.408 | AH139: Distribution - Utah | AJ139: =+T139 -> 5257509.54 | AK139: =AA139 -> 5150671.234 | AL139: =AK139-AJ139 -> -106838.3062 | AM139: 0
A140: 1069 | D140: Total | H140: =SUM(H138:H139) -> 4321267.18 | I140: =SUM(I138:I139) -> 4947467.47 | J140: 5163965.75 | K140: 5257961.3 | L140: 5258922.86 | M140: 5259414.69 | N140: 5328087.96 | O140: 5328087.96 | P140: 5328087.96 | Q140: 5304588.16 | R140: 5307318.85 | S140: 5307318.85 | T140: 5307318.85 | V140: =SUM(V138:V139) -> 5217126.235 | Y140: 5307318.85 | Z140: 5217126.235 | AA140: 5217126.235 | AB140: =AA140-T140 -> -90192.61458 | AC140: 133 | AD140: 128 | AE140: 5803224.166 | AH140: Total | AJ140: =+T140 -> 5307318.85 | AK140: =AA140 -> 5217126.235 | AL140: =AK140-AJ140 -> -90192.61458 | AM140: 0
A141: 1070 | AA141: 0 | AC141: 134 | AD141: 129 | AE141: 0 | AM141: 0
A142: 1071 | B142: 398 | C142: Miscellaneous Equipment | AA142: 0 | AC142: 135 | AD142: 130 | AE142: 0 | AF142: 398 | AG142: Miscellaneous Equipment | AM142: 0
A143: 1072 | D143: Wyoming | H143: 3863.92 | I143: 3863.92 | J143: 3863.92 | K143: 3863.92 | L143: 0 | M143: 3863.92 | N143: 3863.92 | O143: 3863.92 | P143: 3863.92 | Q143: 3863.92 | R143: 3863.92 | S143: 3863.92 | T143: 3863.92 | V143: =(SUM(I143:S143)+(0.5*T143)+(0.5*H143))/12 -> 3541.926667 | Y143: =T143 -> 3863.92 | Z143: 3541.926667 | AA143: =HLOOKUP($AA$8,RateBaseScenarios,AC143,FALSE) -> 3541.926667 | AB143: =AA143-T143 -> -321.9933333 | AC143: 136 | AD143: 131 | AE143: -2736.943333 | AH143: Distribution - Wyoming | AJ143: =+T143 -> 3863.92 | AK143: =AA143 -> 3541.926667 | AL143: =AK143-AJ143 -> -321.9933333 | AM143: =+AJ143-T143 -> 0
A144: 1073 | D144: Utah | H144: 246621.86 | I144: 246621.86 | J144: 246621.86 | K144: 246621.86 | L144: 250485.78 | M144: 264561.53 | N144: 265117.63 | O144: 265117.63 | P144: 265117.63 | Q144: 267617.63 | R144: 267617.63 | S144: 267617.63 | T144: 267617.63 | V144: =(SUM(I144:S144)+(0.5*T144)+(0.5*H144))/12 -> 259186.5346 | Y144: =T144 -> 267617.63 | Z144: =V144 -> 259186.5346 | AA144: 259186.5346 | AB144: =AA144-T144 -> -8431.095417 | AC144: 137 | AD144: 132 | AE144: -57224.49375 | AH144: Distribution - Utah | AJ144: =+T144 -> 267617.63 | AK144: =AA144 -> 259186.5346 | AL144: =AK144-AJ144 -> -8431.095417 | AM144: 0
A145: 1074 | D145: General | H145: 0 | I145: 0 | J145: 0 | K145: 0 | L145: 0 | M145: 0 | N145: 0 | O145: 0 | P145: 0 | Q145: 0 | R145: 0 | S145: 0 | T145: 0 | V145: =(SUM(I145:S145)+(0.5*T145)+(0.5*H145))/12 -> 0 | Y145: =T145 -> 0 | Z145: =V145 -> 0 | AA145: 0 | AB145: =AA145-T145 -> 0 | AC145: 138 | AD145: 133 | AE145: 0 | AH145: General | AJ145: =+T145 -> 0 | AK145: =AA145 -> 0 | AL145: =AK145-AJ145 -> 0 | AM145: 0
A146: 1075 | D146: Total | H146: =SUM(H143:H145) -> 250485.78 | I146: =SUM(I143:I145) -> 250485.78 | J146: 250485.78 | K146: 250485.78 | L146: 250485.78 | M146: 268425.45 | N146: 268981.55 | O146: 268981.55 | P146: 268981.55 | Q146: 271481.55 | R146: 271481.55 | S146: 271481.55 | T146: 271481.55 | V146: =SUM(V143:V145) -> 262728.4612 | Y146: =T146 -> 271481.55 | Z146: =V146 -> 262728.4612 | AA146: 262728.4612 | AB146: =AA146-T146 -> -8753.08875 | AC146: 139 | AD146: 134 | AE146: -59961.43708 | AH146: Total | AJ146: =+T146 -> 271481.55 | AK146: =AA146 -> 262728.4612 | AL146: =AK146-AJ146 -> -8753.08875 | AM146: 0
A147: 1076 | AA147: 0 | AC147: 140 | AD147: 135 | AE147: 0 | AM147: 0
A148: 1077 | B148: 399 | C148: Asset Retirement Costs | AA148: 0 | AC148: 141 | AD148: 136 | AE148: 0 | AF148: 393 | AG148: Stores Equipment | AM148: 0
A149: 1078 | D149: Wyoming | H149: 0 | I149: 0 | J149: 0 | K149: 0 | L149: 0 | M149: 0 | N149: 0 | O149: 0 | P149: 0 | Q149: 0 | R149: 0 | S149: 0 | T149: 0 | V149: =(SUM(I149:S149)+(0.5*T149)+(0.5*H149))/12 -> 0 | Y149: =T149 -> 0 | Z149: =V149 -> 0 | AA149: 0 | AB149: =AA149-T149 -> 0 | AC149: 142 | AD149: 137 | AE149: 0 | AH149: Distribution - Wyoming | AJ149: =+T149 -> 0 | AK149: =AA149 -> 0 | AL149: =AK149-AJ149 -> 0 | AM149: 0
A150: 1079 | D150: Utah | H150: 52300 | I150: 52300 | J150: 52300 | K150: 52300 | L150: 52300 | M150: 52300 | N150: 52300 | O150: 52300 | P150: 52300 | Q150: 52300 | R150: 52300 | S150: 52300 | T150: 52300 | V150: =(SUM(I150:S150)+(0.5*T150)+(0.5*H150))/12 -> 52300 | Y150: =T150 -> 52300 | Z150: =V150 -> 52300 | AA150: 52300 | AB150: =AA150-T150 -> 0 | AC150: 143 | AD150: 138 | AE150: -7636.666667 | AH150: Distribution - Utah | AJ150: =+T150 -> 52300 | AK150: =AA150 -> 52300 | AL150: =AK150-AJ150 -> 0 | AM150: 0
A151: 1080 | D151: Total | H151: =SUM(H149:H150) -> 52300 | I151: =SUM(I149:I150) -> 52300 | J151: 52300 | K151: 52300 | L151: 52300 | M151: 52300 | N151: 52300 | O151: 52300 | P151: 52300 | Q151: 52300 | R151: 52300 | S151: 52300 | T151: 52300 | V151: =SUM(V149:V150) -> 52300 | Y151: =T151 -> 52300 | Z151: =V151 -> 52300 | AA151: 52300 | AB151: =AA151-T151 -> 0 | AC151: 144 | AD151: 139 | AE151: -7636.666667 | AH151: Total | AJ151: =+T151 -> 52300 | AK151: =AA151 -> 52300 | AL151: =AK151-AJ151 -> 0 | AM151: 0
A152: 1081 | AA152: 0 | AC152: 145 | AD152: 140 | AE152: 0 | AM152: 0
A153: 1082 | C153: Total General Plant | H153: =H146+H140+H135+H129+H123+H117+H112+H106+H100+H94+H151 -> 217843146 | I153: =I146+I140+I135+I129+I123+I117+I112+I106+I100+I94+I151 -> 218654072.9 | J153: 219843927.8 | K153: 219764772.4 | L153: 219948193.4 | M153: 222733553.7 | N153: 225203104.6 | O153: 225983089 | P153: 226238043.5 | Q153: 224170572.8 | R153: 225305995.3 | S153: 226715300.3 | T153: 226233709 | V153: =V146+V140+V135+V129+V123+V117+V112+V106+V100+V94+V151 -> 223049921.1 | Y153: =Y146+Y140+Y135+Y129+Y123+Y117+Y112+Y106+Y100+Y94+Y151 -> 226233709 | Z153: =Z146+Z140+Z135+Z129+Z123+Z117+Z112+Z106+Z100+Z94+Z151 -> 223049921.1 | AA153: 223049921.1 | AB153: =AA153-T153 -> -3183787.938 | AC153: 146 | AD153: 141 | AE153: 3720438.714 | AG153: Total General Plant | AJ153: =+T153 -> 226233709 | AK153: =AA153 -> 223049921.1 | AL153: =AK153-AJ153 -> -3183787.938 | AM153: 0
A154: 1083 | AA154: 0 | AC154: 147 | AD154: 142 | AE154: 0 | AM154: 0
A155: 1084 | B155: 101 | C155: Gas Plant in Service | AA155: 0 | AC155: 148 | AD155: 143 | AE155: 0 | AM155: 0
A156: 1085 | D156: Production | H156: =H29 -> 79968136.83 | I156: =I29 -> 79968136.83 | J156: 79968136.83 | K156: 79968136.83 | L156: 79968136.83 | M156: 79968136.83 | N156: 79968136.83 | O156: 79968136.83 | P156: 79968136.83 | Q156: 79968136.83 | R156: 79968136.83 | S156: 79968136.83 | T156: 79968136.83 | V156: =(SUM(I156:S156)+(0.5*T156)+(0.5*H156))/12 -> 79968136.83 | Y156: =Y29 -> 79968136.83 | Z156: =Z29 -> 79968136.83 | AA156: 79968136.83 | AB156: =AA156-T156 -> 0 | AC156: 149 | AD156: 144 | AE156: 1209425.516 | AF156: 101 | AH156: Production | AJ156: =+T156 -> 79968136.83 | AK156: =AA156 -> 79968136.83 | AL156: =AK156-AJ156 -> 0 | AM156: 0
A157: 1086 | D157: Distribution - Wyoming | H157: =H15+H33+H38+H46+H54+H59+H64+H69+H74+H79+H84 -> 65458129.89 | I157: 65339562.28 | J157: 65320973.97 | K157: 66052639.17 | L157: 66116600.5 | M157: 67247791.37 | N157: 67932416.51 | O157: 68149103.02 | P157: 68460759.35 | Q157: 68957013.08 | R157: 69030274.6 | S157: 69361462 | T157: 69723224.69 | V157: =(SUM(I157:S157)+(0.5*T157)+(0.5*H157))/12 -> 67463272.77 | Y157: =Y15+Y33+Y38+Y46+Y54+Y59+Y64+Y69+Y74+Y79+Y84 -> 69723224.69 | Z157: =Z15+Z33+Z38+Z46+Z54+Z59+Z64+Z69+Z74+Z79+Z84 -> 67463272.77 | AA157: 67463272.77 | AB157: =AA157-T157 -> -2259951.928 | AC157: 150 | AD157: 145 | AE157: -3585042.22 | AH157: Distribution - Wyoming | AJ157: =+T157 -> 69723224.69 | AK157: =AA157 -> 67463272.77 | AL157: =AK157-AJ157 -> -2259951.928 | AM157: 0
A158: 1087 | D158: Distribution - Utah | H158: =H16+H34+H39+H50+H55+H60+H65+H70+H75+H80+H85 -> 1839338128 | I158: 1840571251 | J158: 1842551350 | K158: 1870196058 | L158: 1901238763 | M158: 1908640630 | N158: 1923777465 | O158: 1925595063 | P158: 1938454412 | Q158: 1960413130 | R158: 1968701209 | S158: 1978350642 | T158: 1982644949 | V158: =(SUM(I158:S158)+(0.5*T158)+(0.5*H158))/12 -> 1914123459 | Y158: =Y16+Y34+Y39+Y50+Y55+Y60+Y65+Y70+Y75+Y80+Y85 -> 1982644949 | Z158: =Z16+Z34+Z39+Z50+Z55+Z60+Z65+Z70+Z75+Z80+Z85 -> 1914123459 | AA158: 1914123459 | AB158: =AA158-T158 -> -68521489.57 | AC158: 151 | AD158: 146 | AE158: -60177632.85 | AH158: Distribution - Utah | AJ158: =+T158 -> 1982644949 | AK158: =AA158 -> 1914123459 | AL158: =AK158-AJ158 -> -68521489.57 | AM158: 0
A159: 1088 | D159: General | H159: =H153 -> 217843146 | I159: =I153 -> 218654072.9 | J159: 219843927.8 | K159: 219764772.4 | L159: 219948193.4 | M159: 222733553.7 | N159: 225203104.6 | O159: 225983089 | P159: 226238043.5 | Q159: 224170572.8 | R159: 225305995.3 | S159: 226715300.3 | T159: 226233709 | V159: =(SUM(I159:S159)+(0.5*T159)+(0.5*H159))/12 -> 223049921.1 | Y159: =Y153 -> 226233709 | Z159: =Z153 -> 223049921.1 | AA159: 223049921.1 | AB159: =AA159-T159 -> -3183787.938 | AC159: 152 | AD159: 147 | AE159: 3720438.714 | AH159: General | AJ159: =+T159 -> 226233709 | AK159: =AA159 -> 223049921.1 | AL159: =AK159-AJ159 -> -3183787.938 | AM159: 0
A160: 1089 | D160: Gas Plant in Service | H160: =SUM(H156:H159) -> 2202607541 | I160: =SUM(I156:I159) -> 2204533023 | J160: 2207684388 | K160: 2235981606 | L160: 2267271694 | M160: 2278590112 | N160: 2296881123 | O160: 2299695392 | P160: 2313121352 | Q160: 2333508853 | R160: 2343005615 | S160: 2354395541 | T160: 2358570019 | V160: =(SUM(I160:S160)+(0.5*T160)+(0.5*H160))/12 -> 2284604790 | Y160: =SUM(Y156:Y159) -> 2358570019 | Z160: =SUM(Z156:Z159) -> 2284604790 | AA160: 2284604790 | AB160: =AA160-T160 -> -73965229.44 | AC160: 153 | AD160: 148 | AE160: -58832810.84 | AH160: Gas Plant in Service | AJ160: =SUM(AJ156:AJ159) -> 2358570019 | AK160: =AA160 -> 2284604790 | AL160: =AK160-AJ160 -> -73965229.44 | AM160: 0
A161: 1090 | AA161: 0 | AC161: 154 | AD161: 149 | AE161: 0 | AM161: 0
A162: 1091 | B162: 105 | C162: Gas Plant Held For Future Use | AA162: 0 | AC162: 155 | AD162: 150 | AE162: 0 | AF162: 105 | AG162: Gas Plant Held For Future Use | AM162: 0
A163: 1092 | D163: Distribution - Utah | H163: 5036.83 | I163: 5036.83 | J163: 5036.83 | K163: 5036.83 | L163: 5036.83 | M163: 5036.83 | N163: 5036.83 | O163: 5036.83 | P163: 5036.83 | Q163: 5036.83 | R163: 5036.83 | S163: 5036.83 | T163: 5036.83 | V163: =(SUM(I163:S163)+(0.5*T163)+(0.5*H163))/12 -> 5036.83 | Y163: =T163 -> 5036.83 | Z163: =V163 -> 5036.83 | AA163: 5036.83 | AB163: =AA163-T163 -> 0 | AC163: 156 | AD163: 151 | AE163: 0 | AH163: Distribution - Utah | AJ163: =+T163 -> 5036.83 | AK163: =AA163 -> 5036.83 | AL163: =AK163-AJ163 -> 0 | AM163: 0
A164: 1093 | D164: Total | H164: =SUM(H163) -> 5036.83 | I164: =SUM(I163) -> 5036.83 | J164: 5036.83 | K164: 5036.83 | L164: 5036.83 | M164: 5036.83 | N164: 5036.83 | O164: 5036.83 | P164: 5036.83 | Q164: 5036.83 | R164: 5036.83 | S164: 5036.83 | T164: 5036.83 | V164: =(SUM(I164:S164)+(0.5*T164)+(0.5*H164))/12 -> 5036.83 | Y164: =T164 -> 5036.83 | Z164: =V164 -> 5036.83 | AA164: 5036.83 | AB164: =AA164-T164 -> 0 | AC164: 157 | AD164: 152 | AE164: 0 | AH164: Total | AJ164: =SUM(AJ163) -> 5036.83 | AK164: =AA164 -> 5036.83 | AL164: =AK164-AJ164 -> 0 | AM164: 0
A165: 1094 | AA165: 0 | AC165: 158 | AD165: 153 | AE165: 0 | AM165: 0
A166: 1095 | B166: 106 | C166: Complete Construction Not yet Classified | AA166: 0 | AC166: 159 | AD166: 154 | AE166: 0 | AF166: 106 | AG166: Complete Construction Not Yet Classified | AM166: 0
A167: 1096 | D167: Production | H167: 0 | I167: 0 | J167: 0 | K167: 0 | L167: 0 | M167: 0 | N167: 0 | O167: 0 | P167: 0 | Q167: 0 | R167: 0 | S167: 0 | T167: 0 | V167: =(SUM(I167:S167)+(0.5*T167)+(0.5*H167))/12 -> 0 | Y167: =T167 -> 0 | Z167: =V167 -> 0 | AA167: 0 | AB167: =AA167-T167 -> 0 | AC167: 160 | AD167: 155 | AE167: 0 | AH167: Production | AJ167: =+T167 -> 0 | AK167: =AA167 -> 0 | AL167: =AK167-AJ167 -> 0 | AM167: 0
A168: 1097 | D168: Distribution - Wyoming | H168: 176023.47 | I168: 727697.83 | J168: 936734.75 | K168: 612911.41 | L168: 717114.37 | M168: 471167.12 | N168: 856031.42 | O168: 572535.89 | P168: 676781.89 | Q168: 289153.15 | R168: 667825.68 | S168: 956737.71 | T168: 1508262.04 | V168: =(SUM(I168:S168)+(0.5*T168)+(0.5*H168))/12 -> 693902.8312 | Y168: =T168 -> 1508262.04 | Z168: =V168 -> 693902.8312 | AA168: 693902.8312 | AB168: =AA168-T168 -> -814359.2087 | AC168: 161 | AD168: 156 | AE168: 153652.1396 | AH168: Distribution - Wyoming | AJ168: =+T168 -> 1508262.04 | AK168: =AA168 -> 693902.8312 | AL168: =AK168-AJ168 -> -814359.2087 | AM168: 0
A169: 1098 | D169: Distribution - Utah | H169: 2956146.93 | I169: 6621971.27 | J169: 6552554.19 | K169: 3589531.54 | L169: 8717793.74 | M169: 10080220.33 | N169: 11425022.55 | O169: 10040972.04 | P169: 10918710.18 | Q169: 13760097.18 | R169: 9522833.352 | S169: 7737766.732 | T169: 13862795.64 | V169: =(SUM(I169:S169)+(0.5*T169)+(0.5*H169))/12 -> 8948078.7 | Y169: =T169 -> 13862795.64 | Z169: =V169 -> 8948078.7 | AA169: 8948078.7 | AB169: =AA169-T169 -> -4914716.942 | AC169: 162 | AD169: 157 | AE169: -5127067.263 | AH169: Distribution - Utah | AJ169: =+T169 -> 13862795.64 | AK169: =AA169 -> 8948078.7 | AL169: =AK169-AJ169 -> -4914716.942 | AM169: 0
A170: 1099 | D170: General | H170: 123926.41 | I170: 56308.06 | J170: 498002.79 | K170: 1833520.23 | L170: 2049390.4 | M170: 662094.31 | N170: 537703.08 | O170: 884000.03 | P170: 859857.44 | Q170: 1053175.86 | R170: 682449.07 | S170: 911863.45 | T170: 2598129.7 | V170: =(SUM(I170:S170)+(0.5*T170)+(0.5*H170))/12 -> 949116.0646 | Y170: =T170 -> 2598129.7 | Z170: =V170 -> 949116.0646 | AA170: 949116.0646 | AB170: =AA170-T170 -> -1649013.635 | AC170: 163 | AD170: 158 | AE170: 566482.3233 | AH170: General | AJ170: =+T170 -> 2598129.7 | AK170: =AA170 -> 949116.0646 | AL170: =AK170-AJ170 -> -1649013.635 | AM170: 0
A171: 1100 | D171: Total | H171: =SUM(H167:H170) -> 3256096.81 | I171: =SUM(I167:I170) -> 7405977.16 | J171: 7987291.73 | K171: 6035963.18 | L171: 11484298.51 | M171: 11213481.76 | N171: 12818757.05 | O171: 11497507.96 | P171: 12455349.51 | Q171: 15102426.19 | R171: 10873108.1 | S171: 9606367.892 | T171: 17969187.38 | V171: =(SUM(I171:S171)+(0.5*T171)+(0.5*H171))/12 -> 10591097.6 | Y171: =T171 -> 17969187.38 | Z171: =V171 -> 10591097.6 | AA171: 10591097.6 | AB171: =AA171-T171 -> -7378089.787 | AC171: 164 | AD171: 159 | AE171: -4406932.8 | AH171: Total | AJ171: =SUM(AJ167:AJ170) -> 17969187.38 | AK171: =AA171 -> 10591097.6 | AL171: =AK171-AJ171 -> -7378089.787 | AM171: 0
A172: 1101 | AA172: 0 | AC172: 165 | AD172: 160 | AE172: 0 | AM172: 0
A173: 1102 | B173: 108 | C173: Accum Prov For Deprec - Gas Plant In Svc | AA173: 0 | AC173: 166 | AD173: 161 | AE173: 0 | AF173: 108 | AG173: Accum Proy For Deprec - Gas Plant In Svc | AM173: 0
A174: 1103 | D174: Production | H174: -67171390.31 | I174: -67270278.51 | J174: -67313568.07 | K174: -67341847.47 | L174: -67370368.33 | M174: -67417957.61 | N174: -67503017.46 | O174: -67590733.85 | P174: -67644222.63 | Q174: -67710115.81 | R174: -67699242.67 | S174: -67761597.82 | T174: -67858205.05 | V174: =(SUM(I174:S174)+(0.5*T174)+(0.5*H174))/12 -> -67511478.99 | Y174: =T174 -> -67858205.05 | Z174: =V174 -> -67511478.99 | AA174: -67511478.99 | AB174: =AA174-T174 -> 346726.0575 | AC174: 167 | AD174: 162 | AE174: -878477.7888 | AH174: Production | AJ174: =+T174 -> -67858205.05 | AK174: =AA174 -> -67511478.99 | AL174: =AK174-AJ174 -> 346726.0575 | AM174: 0
A175: 1104 | D175: Distribution - Wyoming | H175: -25466096.44 | I175: -25610221.65 | J175: -25754337.31 | K175: -25899869.45 | L175: -26045556.85 | M175: -25546039.79 | N175: -25589774.88 | O175: -25733361.7 | P175: -25806711.9 | Q175: -25821750.13 | R175: -25964083.76 | S175: -26093076.63 | T175: -26359258.43 | V175: =(SUM(I175:S175)+(0.5*T175)+(0.5*H175))/12 -> -25814788.46 | Y175: =T175 -> -26359258.43 | Z175: =V175 -> -25814788.46 | AA175: -25814788.46 | AB175: =AA175-T175 -> 544469.9729 | AC175: 168 | AD175: 163 | AE175: 691381.9421 | AH175: Distribution - Wyoming | AJ175: =+T175 -> -26359258.43 | AK175: =AA175 -> -25814788.46 | AL175: =AK175-AJ175 -> 544469.9729 | AM175: 0
A176: 1105 | D176: Distribution - Utah | H176: -534715841 | I176: -537333079.5 | J176: -539740116.7 | K176: -541534169.1 | L176: -543764303.1 | M176: -546909546.5 | N176: -549129921 | O176: -551531433.8 | P176: -553795236.3 | Q176: -560148916.6 | R176: -562448282.5 | S176: -564514505 | T176: -567065029.4 | V176: =(SUM(I176:S176)+(0.5*T176)+(0.5*H176))/12 -> -550144995.4 | Y176: =T176 -> -567065029.4 | Z176: =V176 -> -550144995.4 | AA176: -550144995.4 | AB176: =AA176-T176 -> 16920033.97 | AC176: =+AC175+1 -> 169 | AD176: =+AD175+1 -> 164 | AE176: 6647600.337 | AH176: Distribution - Utah | AJ176: =+T176 -> -567065029.4 | AK176: =AA176 -> -550144995.4 | AL176: =AK176-AJ176 -> 16920033.97 | AM176: 0
A177: 1106 | D177: General | H177: -126814794.6 | I177: -127441864.8 | J177: -128335775.1 | K177: -128517505.2 | L177: -129387867.8 | M177: -130171341.4 | N177: -130905115.7 | O177: -131581541.3 | P177: -132558919.6 | Q177: -130642175.3 | R177: -131506354.9 | S177: -132028799.5 | T177: -131453701.5 | V177: =(SUM(I177:S177)+(0.5*T177)+(0.5*H177))/12 -> -130184292.4 | Y177: =T177 -> -131453701.5 | Z177: =V177 -> -130184292.4 | AA177: -130184292.4 | AB177: =AA177-T177 -> 1269409.099 | AC177: 170 | AD177: 165 | AE177: -4716338.402 | AH177: General | AJ177: =+T177 -> -131453701.5 | AK177: =AA177 -> -130184292.4 | AL177: =AK177-AJ177 -> 1269409.099 | AM177: 0
A178: 1107 | D178: Total | H178: =SUM(H174:H177) -> -754168122.4 | I178: =SUM(I174:I177) -> -757655444.5 | J178: -761143797.2 | K178: -763293391.2 | L178: -766568096.1 | M178: -770044885.2 | N178: -773127829 | O178: -776437070.6 | P178: -779805090.4 | Q178: -784322957.8 | R178: -787617963.8 | S178: =SUM(S174:S177) -> -790397978.9 | T178: -792736194.4 | V178: =(SUM(I178:S178)+(0.5*T178)+(0.5*H178))/12 -> -773655555.3 | Y178: =T178 -> -792736194.4 | Z178: =V178 -> -773655555.3 | AA178: -773655555.3 | AB178: =AA178-T178 -> 19080639.1 | AC178: 171 | AD178: 166 | AE178: 1744166.089 | AH178: Total | AJ178: =SUM(AJ174:AJ177) -> -792736194.4 | AK178: =AA178 -> -773655555.3 | AL178: =AK178-AJ178 -> 19080639.1 | AM178: 0
A179: 1108 | AA179: 0 | AC179: 172 | AD179: 167 | AE179: 0 | AM179: 0
A180: =+A179+1 -> 1109 | B180: 111 | C180: Accum Prov For Amort & Depl - Gas Plant In Svc | AA180: 0 | AC180: 173 | AD180: 168 | AE180: 0 | AF180: 111 | AG180: Accum Prov For Amort & Depl - Gas Plant In Svc | AM180: 0
A181: 1110 | D181: Production | H181: -6086682.23 | I181: -6089142.24 | J181: -6090167.45 | K181: -6090799.73 | L181: -6091526.41 | M181: -6092752.27 | N181: -6094959.03 | O181: -6097235.33 | P181: -6098547.69 | Q181: -6100221.03 | R181: -6102015.92 | S181: -6103594.58 | T181: -6105396.1 | V181: =(SUM(I181:S181)+(0.5*T181)+(0.5*H181))/12 -> -6095583.404 | Y181: =T181 -> -6105396.1 | Z181: =V181 -> -6095583.404 | AA181: -6095583.404 | AB181: =AA181-T181 -> 9812.69625 | AC181: 174 | AD181: 169 | AE181: 5442.15375 | AH181: Production | AJ181: =+T181 -> -6105396.1 | AK181: =AA181 -> -6095583.404 | AL181: =AK181-AJ181 -> 9812.69625 | AM181: 0
A182: 1111 | D182: Distribution - Wyoming | H182: -10883.08 | I182: -10883.08 | J182: -10883.08 | K182: -10883.08 | L182: -10883.08 | M182: -10883.08 | N182: -10883.08 | O182: -10883.08 | P182: -10883.08 | Q182: -10883.08 | R182: -10883.08 | S182: -10883.08 | T182: -10883.08 | V182: =(SUM(I182:S182)+(0.5*T182)+(0.5*H182))/12 -> -10883.08 | Y182: =T182 -> -10883.08 | Z182: =V182 -> -10883.08 | AA182: -10883.08 | AB182: =AA182-T182 -> 0 | AC182: 175 | AD182: 170 | AE182: 50 | AH182: Distribution - Wyoming | AJ182: =+T182 -> -10883.08 | AK182: =AA182 -> -10883.08 | AL182: =AK182-AJ182 -> 0 | AM182: 0
A183: 1112 | D183: Distribution - Utah | H183: -58742.89 | I183: -58742.89 | J183: -58742.89 | K183: -58742.89 | L183: -58742.89 | M183: -58742.88 | N183: -58742.89 | O183: -58742.89 | P183: -58742.89 | Q183: -58742.89 | R183: -58742.88 | S183: -58742.88 | T183: -58742.88 | V183: =(SUM(I183:S183)+(0.5*T183)+(0.5*H183))/12 -> -58742.88708 | Y183: =T183 -> -58742.88 | Z183: =V183 -> -58742.88708 | AA183: -58742.88708 | AB183: =AA183-T183 -> -0.007083333177 | AC183: 176 | AD183: 171 | AE183: -50 | AH183: Distribution - Utah | AJ183: =+T183 -> -58742.88 | AK183: =AA183 -> -58742.88708 | AL183: =AK183-AJ183 -> -0.007083333177 | AM183: 0
A184: 1113 | D184: General | H184: 0 | I184: 0 | J184: 0 | K184: 0 | L184: 0 | M184: 0 | N184: 0 | O184: 0 | P184: 0 | Q184: 0 | R184: 0 | S184: 0 | T184: 0 | V184: =(SUM(I184:S184)+(0.5*T184)+(0.5*H184))/12 -> 0 | Y184: =T184 -> 0 | Z184: =V184 -> 0 | AA184: 0 | AB184: =AA184-T184 -> 0 | AC184: 177 | AD184: 172 | AE184: 0 | AH184: General | AJ184: =+T184 -> 0 | AK184: =AA184 -> 0 | AL184: =AK184-AJ184 -> 0 | AM184: 0
A185: 1114 | D185: Total | H185: =SUM(H181:H184) -> -6156308.2 | I185: =SUM(I181:I184) -> -6158768.21 | J185: -6159793.42 | K185: -6160425.7 | L185: -6161152.38 | M185: -6162378.23 | N185: -6164585 | O185: -6166861.3 | P185: -6168173.66 | Q185: -6169847 | R185: -6171641.88 | S185: -6173220.54 | T185: -6175022.06 | V185: =(SUM(I185:S185)+(0.5*T185)+(0.5*H185))/12 -> -6165209.371 | Y185: =T185 -> -6175022.06 | Z185: =V185 -> -6165209.371 | AA185: -6165209.371 | AB185: =AA185-T185 -> 9812.689167 | AC185: 178 | AD185: 173 | AE185: 5442.15375 | AH185: Total | AJ185: =SUM(AJ181:AJ184) -> -6175022.06 | AK185: =AA185 -> -6165209.371 | AL185: =AK185-AJ185 -> 9812.689167 | AM185: 0
A186: 1115 | AA186: 0 | AC186: 179 | AD186: 174 | AE186: 0 | AM186: 0
A187: 1116 | B187: 254 | C187: Other Regulatory Liabilities | AA187: =HLOOKUP($AA$8,RateBaseScenarios,AC187,FALSE) -> 0 | AC187: 180 | AD187: 175 | AE187: 0 | AF187: 254 | AG187: Other Regulatory Liabilities | AM187: 0
A188: 1117 | D188: Production | H188: 0 | I188: 0 | J188: 0 | K188: 0 | L188: 0 | M188: 0 | N188: 0 | O188: 0 | P188: 0 | Q188: 0 | R188: 0 | S188: 0 | T188: 0 | V188: =(SUM(I188:S188)+(0.5*T188)+(0.5*H188))/12 -> 0 | Y188: =T188 -> 0 | Z188: =V188 -> 0 | AA188: 0 | AB188: =AA188-T188 -> 0 | AC188: 181 | AD188: 176 | AE188: 5442.15375 | AH188: Production | AJ188: =+T188 -> 0 | AK188: =AA188 -> 0 | AL188: =AK188-AJ188 -> 0 | AM188: 0
A189: 1118 | D189: Distribution - Wyoming | H189: 0 | I189: 0 | J189: 0 | K189: 0 | L189: -1873094.13 | M189: -1915245.14 | N189: -1939747.24 | O189: -1969165.41 | P189: -1992446.19 | Q189: -2012121.13 | R189: -2030096.24 | S189: -2030096.24 | T189: -2083090.31 | V189: =(SUM(I189:S189)+(0.5*T189)+(0.5*H189))/12 -> -1400296.406 | Y189: =T189 -> -2083090.31 | Z189: =V189 -> -1400296.406 | AA189: -1400296.406 | AB189: =AA189-T189 -> 682793.9038 | AC189: 182 | AD189: 177 | AE189: 50 | AH189: Distribution - Wyoming | AJ189: =+T189 -> -2083090.31 | AK189: =AA189 -> -1400296.406 | AL189: =AK189-AJ189 -> 682793.9038 | AM189: 0
A190: 1119 | D190: Distribution - Utah | H190: 0 | I190: 0 | J190: 0 | K190: 0 | L190: -57566301.87 | M190: -58099649.86 | N190: -58750167.76 | O190: -59536256.59 | P190: -60317643.81 | Q190: -61138251.87 | R190: -61829489.76 | S190: -62387505.76 | T190: -63198575.69 | V190: =(SUM(I190:S190)+(0.5*T190)+(0.5*H190))/12 -> -42602046.26 | Y190: =T190 -> -63198575.69 | Z190: =V190 -> -42602046.26 | AA190: -42602046.26 | AB190: =AA190-T190 -> 20596529.43 | AC190: 183 | AD190: 178 | AE190: -50 | AH190: Distribution - Utah | AJ190: =+T190 -> -63198575.69 | AK190: =AA190 -> -42602046.26 | AL190: =AK190-AJ190 -> 20596529.43 | AM190: 0
A191: 1120 | D191: General | H191: -56754824 | I191: -57507091 | J191: -58028227 | K191: -58875037 | L191: 0 | M191: 0 | N191: 0 | O191: 0 | P191: 0 | Q191: 0 | R191: 0 | S191: 0 | T191: 0 | V191: =(SUM(I191:S191)+(0.5*T191)+(0.5*H191))/12 -> -16898980.58 | Y191: =T191 -> 0 | Z191: =V191 -> -16898980.58 | AA191: =HLOOKUP($AA$8,RateBaseScenarios,AC191,FALSE) -> -16898980.58 | AB191: =AA191-T191 -> -16898980.58 | AC191: 184 | AD191: 179 | AE191: 0 | AH191: General | AJ191: =+T191 -> 0 | AK191: =AA191 -> -16898980.58 | AL191: =AK191-AJ191 -> -16898980.58 | AM191: 0
A192: 1121 | D192: Total | H192: -56754824 | I192: -57507091 | J192: -58028227 | K192: -58875037 | L192: -59439396 | M192: -60014895 | N192: -60689915 | O192: -61505422 | P192: -62310090 | Q192: -63150373 | R192: -63859586 | S192: -64417602 | T192: -65281666 | V192: =(SUM(I192:S192)+(0.5*T192)+(0.5*H192))/12 -> -60901323.25 | Y192: =T192 -> -65281666 | Z192: =V192 -> -60901323.25 | AA192: -60901323.25 | AB192: =AA192-T192 -> 4380342.75 | AC192: 185 | AD192: 180 | AE192: 5442.15375 | AH192: Total | AJ192: =SUM(AJ188:AJ191) -> -65281666 | AK192: =AA192 -> -60901323.25 | AL192: =AK192-AJ192 -> 4380342.75 | AM192: 0
A193: 1122 | AA193: 0 | AC193: 186 | AD193: 181 | AE193: 0 | AM193: 0
A194: =+A186+1 -> 1116 | AA194: 0 | AC194: 187 | AD194: =+AD186+1 -> 175 | AE194: 0 | AM194: 0
A195: 1117 | B195: System Net Utility Plant | AA195: 0 | AC195: 188 | AD195: 176 | AE195: 0 | AF195: System Net Utility Plant | AM195: 0
A196: 1118 | C196: Production | H196: =H156+H167+H174+H181+H188 -> 6710064.29 | I196: =I156+I167+I174+I181+I188 -> 6608716.08 | J196: 6564401.31 | K196: 6535489.63 | L196: 6506242.09 | M196: 6457426.95 | N196: 6370160.34 | O196: 6280167.65 | P196: 6225366.51 | Q196: 6157799.99 | R196: 6166878.24 | S196: 6102944.43 | T196: 6004535.68 | V196: =V156+V167+V174+V181+V188 -> 6361074.434 | Y196: =T196 -> 6004535.68 | Z196: =V196 -> 6361074.434 | AA196: 6361074.434 | AB196: =AA196-T196 -> 356538.7538 | AC196: 189 | AD196: 177 | AE196: 336389.8812 | AG196: Production | AJ196: =AJ156+AJ167+AJ174+AJ181 -> 6004535.68 | AK196: =AA196 -> 6361074.434 | AL196: =AK196-AJ196 -> 356538.7538 | AM196: 0
A197: 1119 | C197: Distribution - Wyoming | H197: =H157+H168+H175+H182+H189 -> 40157173.84 | I197: 40446155.38 | J197: 40492488.33 | K197: 40754798.05 | L197: 38904180.81 | M197: 40246790.48 | N197: 41248042.73 | O197: 41008228.72 | P197: 41327500.07 | Q197: 41401411.89 | R197: 41693037.2 | S197: 42184143.76 | T197: 42778254.91 | V197: =V157+V168+V175+V182+V189 -> 40931207.65 | Y197: =T197 -> 42778254.91 | Z197: =V197 -> 40931207.65 | AA197: 40931207.65 | AB197: =AA197-T197 -> -1847047.26 | AC197: 190 | AD197: 178 | AE197: -2739958.138 | AG197: Distribution - Wyoming | AJ197: =AJ157+AJ168+AJ175+AJ182 -> 44861345.22 | AK197: =AA197 -> 40931207.65 | AL197: =AK197-AJ197 -> -3930137.57 | AM197: 2083090.31
A198: 1120 | C198: Distribution - Utah | H198: 1307519691 | I198: 1309801399 | J198: 1309305044 | K198: 1332192677 | L198: 1308567209 | M198: 1313652911 | N198: 1327263656 | O198: 1324509602 | P198: 1335201499 | Q198: 1352827316 | R198: 1353887527 | S198: 1359127655 | T198: =T158+T169+T176+T183+T190+T163 -> 1366190433 | V198: =V158+V169+V176+V183+V190+V163 -> 1330270790 | Y198: =T198 -> 1366190433 | Z198: =V198 -> 1330270790 | AA198: 1330270790 | AB198: =AA198-T198 -> -35919643.12 | AC198: 191 | AD198: 179 | AE198: -58657149.77 | AG198: Distribution - Utah | AJ198: =AJ183+AJ176+AJ169+AJ163+AJ158 -> 1429389009 | AK198: =AA198 -> 1330270790 | AL198: =AK198-AJ198 -> -99118218.81 | AM198: 63198575.69
A199: 1121 | C199: General | H199: 34397453.8 | I199: 33761425.15 | J199: 33977928.52 | K199: 34205750.5 | L199: 92609716.03 | M199: 93224306.62 | N199: 94835692.06 | O199: 95285547.72 | P199: 94538981.42 | Q199: 94581573.39 | R199: 94482089.46 | S199: 95598364.25 | T199: =T159+T170+T177+T184+T191 -> 97378137.28 | V199: =V159+V170+V177+V184+V191 -> 76915764.22 | Y199: =T199 -> 97378137.28 | Z199: =V199 -> 76915764.22 | AA199: 76915764.22 | AB199: =AA199-T199 -> -20462373.06 | AC199: 192 | AD199: 180 | AE199: -429417.3646 | AG199: General | AJ199: =AJ184+AJ177+AJ170+AJ159+AJ191 -> 97378137.28 | AK199: =AA199 -> 76915764.22 | AL199: =AK199-AJ199 -> -20462373.06 | AM199: 0
A200: 1122 | AA200: 0 | AC200: 193 | AD200: 181 | AE200: 0 | AM200: 0
... 89 more rows

Sheet EXPENSES
B1: EXPENSES
B2: ='Control Panel'!$B$1 -> Questar Gas Company
B3: ='Control Panel'!$B$2 -> Utah - JUN 2015 Adjusted Avg Results
B4: ='Control Panel'!$B$3 -> 12 Months Ended : Jun-2015
I5: HOT
F6: QGC Expense June 2015 | I6: QGC Expense June 2015 | J6: Adjustment | K6: 1
K7: =+K6+1 -> 2
K8: =+K7+1 -> 3
A9: Line # | B9: FERC Acct | D9: Description | I9: Adjustment | K9: 4
A10: 510 | B10: UTILITY OPERATING EXPENSES | K10: 5
A11: =+A10+1 -> 511 | B11: GAS PURCHASE EXPENSES | F11: =SUM($F$380,$F$323,$F$295,$F$241)/$F$383 -> 0.9693274658 | K11: 6
A12: 512 | F12: =1-$F$11 -> 0.03067253416 | K12: 7
A13: 513 | C13: Utah % of Sales Dth from 191 Acct ===> | K13: 8
A14: 514 | K14: 9
A15: 515 | B15: 758 | C15: Gas Well Royalties | K15: 10
A16: 516 | D16: Utah | F16: 41398805.99 | I16: =HLOOKUP($I$6,EXPENSESCENARIO,K16,FALSE) -> 41398805.99 | J16: =+I16-F16 -> 0 | K16: 11
A17: 517 | D17: Wyoming | F17: 1549232.921 | I17: 1549232.921 | J17: =+I17-F17 -> 0 | K17: 12
A18: 518 | D18: Total | F18: =SUM(F16:F17) -> 42948038.91 | I18: 42948038.91 | J18: =+I18-F18 -> 0 | K18: 13
A19: 519 | I19: 0 | K19: 14
A20: 520 | B20: 7581 | C20: Gas Well Royalties - Other | I20: 0 | K20: 15
A21: 521 | D21: Utah | F21: 288478.55 | I21: 288478.55 | J21: =+I21-F21 -> 0 | K21: 16
A22: 522 | D22: Wyoming | F22: 0 | I22: 0 | J22: =+I22-F22 -> 0 | K22: 17
A23: 523 | D23: Total | F23: =SUM(F21:F22) -> 288478.55 | I23: 288478.55 | J23: =+I23-F23 -> 0 | K23: 18
A24: 524 | I24: 0 | K24: 19
A25: 525 | B25: 759 | C25: Gath by Others, GRI & ACA - Gas Cost | I25: 0 | K25: 20
A26: 526 | D26: Utah | F26: 22302837.82 | I26: 22302837.82 | J26: =+I26-F26 -> 0 | K26: 21
A27: 527 | D27: Wyoming | F27: 0 | I27: 0 | J27: =+I27-F27 -> 0 | K27: 22
A28: 528 | D28: Total | F28: =SUM(F26:F27) -> 22302837.82 | I28: 22302837.82 | J28: =+I28-F28 -> 0 | K28: 23
A29: 529 | I29: 0 | K29: 24
A30: 530 | B30: 759 | C30: Gathering by Others - SNG Cost | I30: 0 | K30: 25
A31: 531 | D31: Utah | F31: 0 | I31: 0 | J31: =+I31-F31 -> 0 | K31: 26
A32: 532 | E32: Demand | I32: 0 | J32: =+I32-F32 -> 0 | K32: 27
A33: 533 | E33: Commodity | I33: 0 | J33: =+I33-F33 -> 0 | K33: 28
A34: 534 | D34: Wyoming | F34: 0 | I34: 0 | J34: =+I34-F34 -> 0 | K34: 29
A35: 535 | D35: Total | F35: 0 | I35: 0 | J35: =+I35-F35 -> 0 | K35: 30
A36: 536 | I36: 0 | K36: 31
A37: 537 | B37: 800 | C37: Natural Gas Well Head Purchases | I37: 0 | K37: 32
A38: 538 | D38: Utah | F38: 252545.2547 | I38: 252545.2547 | J38: =+I38-F38 -> 0 | K38: 33
A39: 539 | D39: Wyoming | F39: 9493.93526 | I39: 9493.93526 | J39: =+I39-F39 -> 0 | K39: 34
A40: 540 | D40: Total | F40: =SUM(F38:F39) -> 262039.19 | I40: 262039.19 | J40: =+I40-F40 -> 0 | K40: 35
A41: 541 | I41: 0 | K41: 36
A42: 542 | B42: 801 | C42: Natural Gas Field Line Purchases | I42: 0 | K42: 37
A43: 543 | D43: Utah | F43: 0 | I43: 0 | J43: =+I43-F43 -> 0 | K43: 38
A44: 544 | D44: Wyoming | F44: 0 | I44: 0 | J44: =+I44-F44 -> 0 | K44: 39
A45: 545 | D45: Total | F45: =SUM(F43:F44) -> 0 | I45: 0 | J45: =+I45-F45 -> 0 | K45: 40
A46: 546 | I46: 0 | K46: 41
A47: 547 | B47: 802 | C47: Natural Gas Gasoline Plant Outlet Purch | I47: 0 | K47: 42
A48: 548 | D48: Utah | F48: 0 | I48: =HLOOKUP($I$6,EXPENSESCENARIO,K48,FALSE) -> 0 | J48: =+I48-F48 -> 0 | K48: 43
A49: 549 | D49: Wyoming | F49: 0 | I49: 0 | J49: =+I49-F49 -> 0 | K49: 44
A50: 550 | D50: Total | F50: =SUM(F48:F49) -> 0 | I50: 0 | J50: =+I50-F50 -> 0 | K50: 45
A51: 551 | I51: 0 | K51: 46
A52: 552 | B52: 803 | C52: Natural Gas Trans Line - Purchases | I52: 0 | K52: 47
A53: 553 | D53: Utah | F53: 76429647.59 | I53: 76429647.59 | J53: =+I53-F53 -> 0 | K53: 48
A54: 554 | D54: Wyoming | F54: 2897719.184 | I54: 2897719.184 | J54: =+I54-F54 -> 0 | K54: 49
A55: 555 | D55: Total | F55: =SUM(F53:F54) -> 79327366.77 | I55: 79327366.77 | J55: =+I55-F55 -> 0 | K55: 50
A56: 556 | I56: 0 | K56: 51
A57: 557 | B57: 804 | C57: Natural Gas City Gate Purch - Resources | I57: 0 | K57: 52
A58: 558 | D58: Utah | F58: 0 | I58: 0 | J58: =+I58-F58 -> 0 | K58: 53
A59: 559 | D59: Wyoming | F59: 0 | I59: 0 | J59: =+I59-F59 -> 0 | K59: 54
A60: 560 | D60: Total | F60: =SUM(F58:F59) -> 0 | I60: 0 | J60: =+I60-F60 -> 0 | K60: 55
A61: 561 | I61: 0 | K61: 56
A62: 562 | B62: 8041 | C62: Natural Gas City Gate Purch - Other | I62: 0 | K62: 57
A63: 563 | D63: Utah | F63: 3308137.413 | I63: 3308137.413 | J63: =+I63-F63 -> 0 | K63: 58
A64: 564 | D64: Wyoming | F64: 139262.4473 | I64: 139262.4473 | J64: =+I64-F64 -> 0 | K64: 59
A65: 565 | D65: Total | F65: =SUM(F63:F64) -> 3447399.86 | I65: 3447399.86 | J65: =+I65-F65 -> 0 | K65: 60
A66: 566 | I66: 0 | K66: 61
A67: 567 | B67: 805 | C67: Purchased Gas Cost Adj - Other | I67: 0 | K67: 62
A68: 568 | D68: Utah | F68: 0 | I68: 0 | J68: =+I68-F68 -> 0 | K68: 63
A69: 569 | D69: Wyoming | F69: 0 | I69: 0 | J69: =+I69-F69 -> 0 | K69: 64
A70: 570 | D70: Total | F70: =SUM(F68:F69) -> 0 | I70: 0 | J70: =+I70-F70 -> 0 | K70: 65
A71: 571 | I71: 0 | K71: 66
A72: 572 | B72: 8051 | C72: Purchased Gas Cost Adj - Utah | I72: 0 | K72: =+K71+1 -> 67
A73: 573 | D73: Utah | F73: 18911758.23 | I73: 18911758.23 | J73: =+I73-F73 -> 0 | K73: 68
A74: 574 | D74: Wyoming | F74: 667552.0726 | I74: 667552.0726 | J74: =+I74-F74 -> 0 | K74: 69
A75: 575 | D75: Total | F75: =SUM(F73:F74) -> 19579310.3 | I75: 19579310.3 | J75: =+I75-F75 -> 0 | K75: 70
A76: =+A75+1 -> 576 | I76: 0 | K76: 71
A77: 577 | B77: 806 | C77: Exchange Gas | I77: 0 | K77: 72
A78: 578 | D78: Utah | F78: 0 | I78: 0 | J78: =+I78-F78 -> 0 | K78: 73
A79: 579 | D79: Wyoming | F79: 0 | I79: 0 | J79: =+I79-F79 -> 0 | K79: 74
A80: 580 | D80: Total | F80: =SUM(F78:F79) -> 0 | I80: =HLOOKUP($I$6,EXPENSESCENARIO,K80,FALSE) -> 0 | J80: =+I80-F80 -> 0 | K80: 75
A81: 581 | I81: 0 | K81: 76
A82: 582 | B82: 8081 | C82: Gas Withdrawn Underground Storage | I82: 0 | K82: 77
A83: 583 | D83: Utah | F83: 76821761.25 | I83: 76821761.25 | J83: =+I83-F83 -> 0 | K83: 78
A84: 584 | D84: Wyoming | F84: 3055781.091 | I84: 3055781.091 | J84: =+I84-F84 -> 0 | K84: 79
A85: 585 | D85: Total | F85: =SUM(F83:F84) -> 79877542.34 | I85: 79877542.34 | J85: =+I85-F85 -> 0 | K85: 80
A86: 586 | I86: 0 | K86: 81
A87: 587 | B87: 8082 | C87: Gas Delivered to Underground Storage | I87: 0 | K87: 82
A88: 588 | D88: Utah | F88: -75589415.72 | I88: -75589415.72 | J88: =+I88-F88 -> 0 | K88: 83
A89: 589 | D89: Wyoming | F89: -2609623.74 | I89: -2609623.74 | J89: =+I89-F89 -> 0 | K89: 84
A90: 590 | D90: Total | F90: =SUM(F88:F89) -> -78199039.46 | I90: -78199039.46 | J90: =+I90-F90 -> 0 | K90: 85
A91: 591 | I91: 0 | K91: 86
A92: 592 | B92: 8083 | C92: Exchange Gas | I92: 0 | K92: 87
A93: 593 | D93: Utah | F93: 3712392.932 | I93: 3712392.932 | J93: =+I93-F93 -> 0 | K93: 88
A94: 594 | D94: Wyoming | F94: 142174.0683 | I94: 142174.0683 | J94: =+I94-F94 -> 0 | K94: 89
A95: 595 | D95: Total | F95: =SUM(F93:F94) -> 3854567 | I95: 3854567 | J95: =+I95-F95 -> 0 | K95: 90
A96: 596 | I96: 0 | K96: 91
A97: 597 | B97: 813 | C97: Other Gas Supply Expenses - Gas Cost | I97: 0 | K97: 92
A98: 598 | D98: Utah | F98: 330645941.8 | I98: 330645941.8 | J98: =+I98-F98 -> 0 | K98: 93
A99: 599 | D99: Wyoming | F99: 12650352.49 | I99: 12650352.49 | J99: =+I99-F99 -> 0 | K99: 94
A100: 600 | D100: Total | F100: =SUM(F98:F99) -> 343296294.3 | I100: 343296294.3 | J100: =+I100-F100 -> 0 | K100: 95
A101: 601 | I101: 0 | K101: 96
A102: 602 | B102: 813 | C102: Other Gas Supply Expenses - SNG Cost | I102: 0 | K102: 97
A103: 603 | D103: Utah | F103: 0 | I103: 0 | J103: =+I103-F103 -> 0 | K103: 98
A104: 604 | D104: Wyoming | F104: 0 | I104: 0 | J104: =+I104-F104 -> 0 | K104: 99
A105: 605 | D105: Total | F105: =SUM(F103:F104) -> 0 | I105: 0 | J105: =+I105-F105 -> 0 | K105: 100
A106: 606 | I106: 0 | K106: 101
A107: 607 | B107: 8135 | C107: CO2 Processing Expenses | I107: 0 | K107: 102
A108: 608 | D108: Utah | F108: 0 | I108: 0 | J108: =+I108-F108 -> 0 | K108: 103
A109: 609 | D109: Wyoming | F109: 0 | I109: 0 | J109: =+I109-F109 -> 0 | K109: 104
A110: 610 | D110: Total | F110: =SUM(F108:F109) -> 0 | I110: 0 | J110: =+I110-F110 -> 0 | K110: 105
A111: 611 | I111: 0 | K111: 106
A112: 612 | B112: 858 | C112: Transportation GRI & ACA - Gas Cost | I112: =HLOOKUP($I$6,EXPENSESCENARIO,K112,FALSE) -> 0 | K112: 107
A113: 613 | D113: Utah | F113: 61260152.09 | I113: 61260152.09 | J113: =+I113-F113 -> 0 | K113: 108
A114: 614 | D114: Wyoming | F114: 2345332.487 | I114: 2345332.487 | J114: =+I114-F114 -> 0 | K114: 109
A115: 615 | D115: Total | F115: =SUM(F113:F114) -> 63605484.58 | I115: 63605484.58 | J115: =+I115-F115 -> 0 | K115: 110
A116: 616 | I116: 0 | K116: 111
A117: 617 | B117: 858 | C117: Trans & Comp by Others - SNG Cost | I117: 0 | K117: 112
A118: 618 | D118: Utah | F118: 0 | I118: 0 | J118: =+I118-F118 -> 0 | K118: 113
A119: 619 | D119: Wyoming | F119: 0 | I119: 0 | J119: =+I119-F119 -> 0 | K119: 114
A120: 620 | D120: Total | F120: =SUM(F118:F119) -> 0 | I120: 0 | J120: =+I120-F120 -> 0 | K120: 115
A121: 621 | I121: 0 | J121: =+I121-F121 -> 0 | K121: 116
A122: 622 | B122: System Total Gas Purchase Expenses | I122: 0 | K122: 117
A123: 623 | C123: Utah General Gas Purchase Exp | F123: =F31 -> 0 | I123: 0 | J123: =+I123-F123 -> 0 | K123: 118
A124: 624 | C124: Utah Pass Through Gas Purchase Exp | F124: =F16+F21+F26+F38+F43+F48+F53+F58+F63+F68+F73+F78+F83+F88+F93+F98+F103++F108+F113+F118 -> 559743043.2 | I124: 559743043.2 | J124: 0 | K124: 119
A125: 625 | C125: Wyoming General Gas Purchase Exp | F125: =+F109 -> 0 | I125: 0 | J125: 0 | K125: 120
A126: 626 | C126: Wyoming Pass Through Gas Purch Exp | F126: =F17+F22+F27+F34+F39+F44+F49+F54+F59+F64+F69+F74+F79+F84+F89+F94+F99+F104+F114+F119 -> 20847276.96 | I126: 20847276.96 | J126: 0 | K126: 121
A127: 627 | C127: Utah Timing Differences | F127: =SNG_REV_UT+COMM_REV_UT+SNG_REV_ID+COMM_REV_ID+PT_OTH_REV_UT-F124 -> 451401.0748 | I127: 451401.0748 | J127: 0 | K127: 122
A128: 628 | C128: Wyoming Timing Differences | F128: =SNG_REV_WY+COMM_REV_WY+COMM_REV_CO+PT_OTH_REV_WY-F126 -> 147759.4104 | I128: 147759.4104 | J128: 0 | K128: 123
A129: 629 | I129: 0 | K129: 124
A130: 630 | I130: 0 | K130: 125
A131: 631 | C131: System Total Gas Purchase Expenses | F131: =F18+F23+F28+F35+F40+F45+F50+F55+F60+F65+F70+F75+F80+F85+F90+F95+F100+F105+F110+F115+F120+F127+F128 -> 581189480.6 | I131: 581189480.6 | J131: =+I131-F131 -> 0 | K131: 126
A132: 632 | F132: =SUM(F123:F126) -> 580590320.1 | I132: 580590320.1 | J132: =+I132-F132 -> 0 | K132: 127
A133: 633 | K133: 128
A134: 634 | B134: OPERATION AND MAINTENANCE EXPENSES | K134: 129
A135: 635 | K135: 130
A136: 636 | B136: Production Expenses | K136: =+K135+1 -> 131
A137: 637 | K137: 132
A138: 638 | B138: 810 | C138: Gas Used for Compressor Station Fuel | F138: -24798.98 | I138: =HLOOKUP($I$6,EXPENSESCENARIO,K138,FALSE) -> -24798.98 | J138: =+I138-F138 -> 0 | K138: 133
A139: 639 | B139: 812 | C139: Gas Used for Other Utility Operations | F139: -1148484.43 | I139: =HLOOKUP($I$6,EXPENSESCENARIO,K139,FALSE) -> -1148484.43 | J139: =+I139-F139 -> 0 | K139: 134
A140: =+A139+1 -> 640 | I140: 0 | K140: 135
A141: 641 | C141: Total Production Expenses | F141: -1173283.41 | I141: -1173283.41 | J141: =+I141-F141 -> 0 | K141: 136
A142: 642 | K142: 137
A143: 643 | B143: Distribution Operations & Maintenance Expenses | K143: 138
A144: 644 | K144: 139
A145: 645 | B145: 870 | C145: Operation Supervision & Engineering | K145: 140
A146: 646 | D146: Utah | F146: 11196759.01 | I146: 11196759.01 | J146: =+I146-F146 -> 0 | K146: 141
A147: 647 | D147: Wyoming | F147: 529715.6 | I147: 529715.6 | J147: =+I147-F147 -> 0 | K147: 142
A148: 648 | D148: Total | F148: =SUM(F146:F147) -> 11726474.61 | I148: 11726474.61 | J148: =+I148-F148 -> 0 | K148: 143
A149: 649 | K149: 144
A150: 650 | B150: 871 | C150: Distribution Load Dispatching | K150: 145
A151: 651 | D151: Utah | F151: 1975850.03 | I151: 1975850.03 | J151: =+I151-F151 -> 0 | K151: 146
A152: 652 | D152: Wyoming | F152: 53990.99 | I152: 53990.99 | J152: =+I152-F152 -> 0 | K152: 147
A153: 653 | D153: Total | F153: =SUM(F151:F152) -> 2029841.02 | I153: 2029841.02 | J153: =+I153-F153 -> 0 | K153: 148
A154: 654 | K154: 149
A155: 655 | B155: 872 | C155: Compressor Station Labor & Expenses | K155: 150
A156: 656 | D156: Utah | F156: 1099.31 | I156: 1099.31 | J156: =+I156-F156 -> 0 | K156: 151
A157: 657 | D157: Wyoming | F157: 0 | I157: 0 | J157: =+I157-F157 -> 0 | K157: 152
A158: 658 | D158: Total | F158: =SUM(F156:F157) -> 1099.31 | I158: 1099.31 | J158: =+I158-F158 -> 0 | K158: 153
A159: 659 | K159: 154
A160: 660 | B160: 873 | C160: Compressor Station Fuel & Power | K160: 155
A161: 661 | D161: Utah | F161: 25093.91 | I161: 25093.91 | J161: =+I161-F161 -> 0 | K161: 156
A162: 662 | D162: Wyoming | F162: 0 | I162: 0 | J162: =+I162-F162 -> 0 | K162: 157
A163: 663 | D163: Total | F163: =SUM(F161:F162) -> 25093.91 | I163: 25093.91 | J163: =+I163-F163 -> 0 | K163: 158
A164: 664 | K164: 159
A165: 665 | B165: 874 | C165: Mains & Service Expenses | K165: 160
A166: 666 | D166: Utah | F166: 9695905.68 | I166: 9695905.68 | J166: =+I166-F166 -> 0 | K166: 161
A167: 667 | D167: Wyoming | F167: 624700.07 | I167: 624700.07 | J167: =+I167-F167 -> 0 | K167: 162
A168: 668 | D168: Total | F168: =SUM(F166:F167) -> 10320605.75 | I168: 10320605.75 | J168: =+I168-F168 -> 0 | K168: 163
A169: 669 | K169: 164
A170: 670 | B170: 875 | C170: Measuring & Regulating Station Expenses | K170: 165
A171: 671 | D171: Utah | F171: 2350628.57 | I171: =HLOOKUP($I$6,EXPENSESCENARIO,K171,FALSE) -> 2350628.57 | J171: =+I171-F171 -> 0 | K171: 166
A172: 672 | D172: Wyoming | F172: 119555.6 | I172: 119555.6 | J172: =+I172-F172 -> 0 | K172: 167
A173: 673 | D173: Total | F173: =SUM(F171:F172) -> 2470184.17 | I173: 2470184.17 | J173: =+I173-F173 -> 0 | K173: 168
A174: 674 | K174: 169
A175: 675 | B175: 878 | C175: Meter & House Regulator Expenses | K175: 170
A176: 676 | D176: Utah | F176: 3603987.74 | I176: 3603987.74 | J176: =+I176-F176 -> 0 | K176: 171
A177: 677 | D177: Wyoming | F177: 148561.13 | I177: 148561.13 | J177: =+I177-F177 -> 0 | K177: 172
A178: 678 | D178: Total | F178: =SUM(F176:F177) -> 3752548.87 | I178: 3752548.87 | J178: =+I178-F178 -> 0 | K178: 173
A179: 679 | K179: 174
A180: 680 | B180: 879 | C180: Customer Installations Expenses | K180: 175
A181: 681 | D181: Utah | F181: 3219174.25 | I181: 3219174.25 | J181: =+I181-F181 -> 0 | K181: 176
A182: 682 | D182: Wyoming | F182: 143370.65 | I182: 143370.65 | J182: =+I182-F182 -> 0 | K182: 177
A183: 683 | D183: Total | F183: =SUM(F181:F182) -> 3362544.9 | I183: 3362544.9 | J183: =+I183-F183 -> 0 | K183: 178
A184: 684 | K184: 179
A185: 685 | B185: 880 | C185: Other Expenses | K185: 180
A186: 686 | D186: Utah | F186: 10057505.13 | I186: 10057505.13 | J186: =+I186-F186 -> 0 | K186: 181
A187: 687 | D187: Wyoming | F187: 968386.08 | I187: 968386.08 | J187: =+I187-F187 -> 0 | K187: 182
A188: 688 | D188: Total | F188: =SUM(F186:F187) -> 11025891.21 | I188: 11025891.21 | J188: =+I188-F188 -> 0 | K188: 183
A189: 689 | K189: 184
A190: 690 | B190: 881 | C190: Rents | K190: 185
A191: 691 | D191: Utah | F191: 20516.08 | I191: 20516.08 | J191: =+I191-F191 -> 0 | K191: 186
A192: 692 | D192: Wyoming | F192: 718.44 | I192: 718.44 | J192: =+I192-F192 -> 0 | K192: 187
A193: 693 | D193: Total | F193: =SUM(F191:F192) -> 21234.52 | I193: 21234.52 | J193: =+I193-F193 -> 0 | K193: 188
A194: 694 | K194: 189
A195: 695 | B195: 885 | C195: Maintenance Supervision & Engineering | K195: 190
A196: 696 | D196: Utah | F196: 619270.77 | I196: 619270.77 | J196: =+I196-F196 -> 0 | K196: 191
A197: 697 | D197: Wyoming | F197: 20239.06 | I197: 20239.06 | J197: =+I197-F197 -> 0 | K197: 192
A198: 698 | D198: Total | F198: =SUM(F196:F197) -> 639509.83 | I198: 639509.83 | J198: =+I198-F198 -> 0 | K198: 193
A199: 699 | K199: 194
A200: 700 | B200: 886 | C200: Maintenance of Structures & Improvements | K200: =+K199+1 -> 195
... 250 more rows

Sheet ENERGY EFFICIENCY SERVICES ADJ
A1: Energy Efficiency Accounting Adjustment
A2: ='Control Panel'!$B$1 -> Questar Gas Company
A3: ='Control Panel'!$B$2 -> Utah - JUN 2015 Adjusted Avg Results
A4: ='Control Panel'!$B$3 -> 12 Months Ended : Jun-2015
K6: Energy Efficiency Accounting Adjustment
E7: QGC Energy Efficiency Adjustment | G7: 1
E8: ='Control Panel'!F12 -> 2015-06-30 | G8: =+G7+1 -> 2
G9: 3 | L9: Utah | M9: Wyoming | N9: Total
G10: 4 | K10: ='Booked JUN 2015 Rev'!H9 -> 2014-07-31 | L10: ='Booked JUN 2015 Rev'!H196 -> 760668 | M10: ='Booked JUN 2015 Rev'!H320 -> 2196.33 | N10: =SUM(L10:M10) -> 762864.33
G11: 5 | K11: ='Booked JUN 2015 Rev'!I9 -> 2014-08-31 | L11: ='Booked JUN 2015 Rev'!I196 -> 810517 | M11: ='Booked JUN 2015 Rev'!I320 -> 2854.08 | N11: =SUM(L11:M11) -> 813371.08
A12: Revenue | C12: Utah | E12: =-L22 -> -26803015 | G12: 6 | K12: ='Booked JUN 2015 Rev'!J9 -> 2014-09-30 | L12: ='Booked JUN 2015 Rev'!J196 -> 968132 | M12: ='Booked JUN 2015 Rev'!J320 -> 4924.75 | N12: 973056.75
C13: Wyoming | E13: =-M22 -> -147660.52 | G13: 7 | K13: ='Booked JUN 2015 Rev'!K9 -> 2014-10-31 | L13: ='Booked JUN 2015 Rev'!K196 -> 2143258 | M13: ='Booked JUN 2015 Rev'!K320 -> 11445.15 | N13: 2154703.15
C14: Total | E14: =SUM(E12:E13) -> -26950675.52 | G14: 8 | K14: ='Booked JUN 2015 Rev'!L9 -> 2014-11-30 | L14: ='Booked JUN 2015 Rev'!L196 -> 3937665 | M14: ='Booked JUN 2015 Rev'!L320 -> 17588.95 | N14: 3955253.95
G15: 9 | K15: ='Booked JUN 2015 Rev'!M9 -> 2014-12-31 | L15: ='Booked JUN 2015 Rev'!M196 -> 5087722 | M15: ='Booked JUN 2015 Rev'!M320 -> 26498.43 | N15: 5114220.43
G16: 10 | K16: ='Booked JUN 2015 Rev'!N9 -> 2015-01-31 | L16: ='Booked JUN 2015 Rev'!N196 -> 4075504 | M16: ='Booked JUN 2015 Rev'!N320 -> 21474.81 | N16: 4096978.81
A17: 908 | B17: Customer Assistance Expense | G17: 11 | K17: ='Booked JUN 2015 Rev'!O9 -> 2015-02-28 | L17: ='Booked JUN 2015 Rev'!O196 -> 3891701 | M17: ='Booked JUN 2015 Rev'!O320 -> 24293.11 | N17: 3915994.11
C18: Utah | E18: =+E12 -> -26803015 | G18: 12 | K18: ='Booked JUN 2015 Rev'!P9 -> 2015-03-31 | L18: ='Booked JUN 2015 Rev'!P196 -> 1902553 | M18: ='Booked JUN 2015 Rev'!P320 -> 13435.8 | N18: 1915988.8
C19: Wyoming | E19: =+E13 -> -147660.52 | G19: 13 | K19: ='Booked JUN 2015 Rev'!Q9 -> 2015-04-30 | L19: ='Booked JUN 2015 Rev'!Q196 -> 1689528 | M19: ='Booked JUN 2015 Rev'!Q320 -> 11997.41 | N19: 1701525.41
C20: Total | E20: =SUM(E18:E19) -> -26950675.52 | G20: 14 | K20: ='Booked JUN 2015 Rev'!R9 -> 2015-05-31 | L20: ='Booked JUN 2015 Rev'!R196 -> 1041229 | M20: ='Booked JUN 2015 Rev'!R320 -> 8392.41 | N20: 1049621.41
K21: ='Booked JUN 2015 Rev'!S9 -> 2015-06-30 | L21: ='Booked JUN 2015 Rev'!S196 -> 494538 | M21: ='Booked JUN 2015 Rev'!S320 -> 2559.29 | N21: 497097.29
L22: =SUM(L10:L21) -> 26803015 | M22: =SUM(M10:M21) -> 147660.52 | N22: =SUM(N10:N21) -> 26950675.52

Sheet Und Stor
A1: Underground Storage
A2: ='Control Panel'!$B$1 -> Questar Gas Company
A3: ='Control Panel'!$B$2 -> Utah - JUN 2015 Adjusted Avg Results
A4: ='Control Panel'!$B$3 -> 12 Months Ended : Jun-2015
B7: Account 164 - Underground Storage
B9: A | D9: B
D10: Monthly
B11: Month | D11: Balance
A12: 1 | B12: ='Rate Base'!H9 -> 2014-06-20 | D12: ='Rate Base'!H213 -> 27776654.2
A13: 2 | B13: ='Rate Base'!I9 -> 2014-07-20 | D13: ='Rate Base'!I213 -> 42002346.57
A14: 3 | B14: ='Rate Base'!J9 -> 2014-08-19 | D14: ='Rate Base'!J213 -> 56135251.62
A15: 4 | B15: ='Rate Base'!K9 -> 2014-09-18 | D15: ='Rate Base'!K213 -> 66798582.12
A16: 5 | B16: ='Rate Base'!L9 -> 2014-10-18 | D16: ='Rate Base'!L213 -> 69627001.85
A17: 6 | B17: ='Rate Base'!M9 -> 2014-11-17 | D17: ='Rate Base'!M213 -> 59708122.01
A18: 7 | B18: ='Rate Base'!N9 -> 2014-12-17 | D18: ='Rate Base'!N213 -> 40325369.94
A19: 8 | B19: ='Rate Base'!O9 -> 2015-01-16 | D19: ='Rate Base'!O213 -> 30248596.29
A20: 9 | B20: ='Rate Base'!P9 -> 2015-02-15 | D20: ='Rate Base'!P213 -> 14896410.62
A21: 10 | B21: ='Rate Base'!Q9 -> 2015-03-17 | D21: ='Rate Base'!Q213 -> 9447138.71
A22: 11 | B22: ='Rate Base'!R9 -> 2015-04-16 | D22: ='Rate Base'!R213 -> 6488848.3
A23: 12 | B23: ='Rate Base'!S9 -> 2015-05-16 | D23: ='Rate Base'!S213 -> 11612623.98
A24: 13 | B24: ='Rate Base'!T9 -> 2015-06-15 | D24: ='Rate Base'!T214 -> 26098151.32
A25: 14 | B25: 13 Month Average | D25: =(SUM(D13:D23)+(D12*0.5)+(D24*0.5))/12 -> 36185641.23
A27: 14 | B27: Adjustment | D27: =-D24 -> -26098151.32

Sheet Wexpro
A1: Wexpro Plant Adjustment
A2: ='Control Panel'!$B$1 -> Questar Gas Company
A3: ='Control Panel'!$B$2 -> Utah - JUN 2015 Adjusted Avg Results
A4: ='Control Panel'!$B$3 -> 12 Months Ended : Jun-2015
B6: Wexpro Plant Adjustment
F8: B | G8: C | H8: D
F9: Production | G9: Allocation | H9: Adjustment
D10: Acct # and Description | F10: Amount \1 | G10: Factor \2 | H10: Amount \3
A11: 1 | B11: ADDITIONS TO RATE BASE
A12: 10 | C12: 101 | D12: Total Gas Plant In Service | E12: =+'Rate Base'!$N$156 -> 79968136.83 | F12: =+'Rate Base'!$AA$156 -> 79968136.83 | G12: 0.063 | H12: =-(F12*G12) -> -5037992.62
A13: 11 | C13: 105 | D13: Gas Plant Held For Future Use | E13: 0 | F13: 0 | G13: =$G$12 -> 0.063 | H13: =-ROUND(F13*G13,0) -> 0
A14: 12 | C14: 106 | D14: Completed Construction Not Classified | E14: 0 | F14: 0 | G14: 0.063 | H14: 0
A15: 13 | C15: 154 | D15: Materials & Supplies | E15: 0 | F15: 0 | G15: 0.063 | H15: 0
A16: 14 | C16: 164.1 | D16: Gas Stored Underground | E16: 0 | F16: 0 | G16: 0.063 | H16: 0
A17: 15 | C17: 165 | D17: Prepayments | E17: 0 | F17: 0 | G17: 0.063 | H17: 0
A18: 16 | D18: Working Capital - Cash | E18: 0 | F18: 0 | G18: 0.063 | H18: 0
A19: 17 | B19: Total Additions To Rate Base | E19: =SUM(E11:E17) -> 79968136.83 | F19: =SUM(F11:F17) -> 79968136.83 | H19: =SUM(H12:H18) -> -5037992.62
A21: 18 | B21: DEDUCTIONS FROM RATE BASE
A22: 19 | C22: 108 | D22: Accumulated Depreciation | E22: =+'Rate Base'!$N$174 -> -67503017.46 | F22: =+'Rate Base'!$AA$174 -> -67511478.99 | G22: =$G$12 -> 0.063 | H22: =-F22*G22 -> 4253223.177
A23: 20 | C23: 111 | D23: Accumulated Amort & Depletion | E23: =+'Rate Base'!$N$181 -> -6094959.03 | F23: =+'Rate Base'!$AA$181 -> -6095583.404 | G23: 0.063 | H23: =-F23*G23 -> 384021.7544
A24: 21 | C24: 235.1 | D24: Customer Deposits | E24: 0 | F24: 0 | G24: 0.063 | H24: =-ROUND(F24*G24,0) -> 0
A25: 22 | C25: 252 | D25: Misc Customer Credits | E25: 0 | F25: 0 | G25: 0.063 | H25: 0
A26: 23 | C26: 253.1 | D26: Unclaimed Customer Deposits | E26: 0 | F26: 0 | G26: 0.063 | H26: 0
A27: 24 | C27: 255 | D27: Deferred Investment Tax Credits | E27: 0 | F27: 0 | G27: 0.063 | H27: 0
A28: 25 | C28: 282.0 | D28: Accum Deferred Income Taxes - Federal | E28: 0 | F28: 0 | G28: 0.063 | H28: 0
A29: 26 | C29: 282.1 | D29: Accum Deferred Income Taxes - State | E29: 0 | F29: 0 | G29: 0.063 | H29: 0
A30: 27 | B30: Total Deductions From Rate Base | E30: =SUM(E22:E29) -> -73597976.49 | F30: =SUM(F22:F29) -> -73607062.4 | H30: =SUM(H22:H29) -> 4637244.931
A33: 28 | B33: TOTAL WEXPRO PLANT ADJUSTMENT | H33: =+H19+H30 -> -400747.6893
A37: \1 | B37: Test Period Production Rate Base
A38: \2 | B38: See Wexpro Stipulation and Agreement, Exhibit E, Section 5(b).
A39: \3 | B39: Column B x Column C.

Sheet Bad Debt
B1: Average Bad Debt Removal | I1: Average Bad Debt Removal
B2: ='Control Panel'!$B$2 -> Utah - JUN 2015 Adjusted Avg Results | I2: ='Control Panel'!$B$2 -> Utah - JUN 2015 Adjusted Avg Results
B3: ='Control Panel'!$B$3 -> 12 Months Ended : Jun-2015 | I3: ='Control Panel'!$B$3 -> 12 Months Ended : Jun-2015
B4: ='Control Panel'!$B$4 -> Capital Structure : AVG CAP STR | E4: HOT | I4: ='Control Panel'!$B$4 -> Capital Structure : AVG CAP STR
C5: Bad Debt | E5: =+'Control Panel'!B31 -> Bad Debt | G5: 1 | H5: 1 | L5: A | N5: B | O5: C | P5: D | Q5: E
G6: =+G5+1 -> 2 | H6: =+H5+1 -> 2 | L6: =Report!F8 -> 2015-06-30 | N6: Adjustment
G7: =+G6+1 -> 3 | H7: 3 | L7: 3 Year Average
C8: Bad Debt | E8: =HLOOKUP($E$5,BadDebtScenario,G8,FALSE) -> Bad Debt | G8: 4 | H8: 4 | L8: Bad Debt
C9: Ratio | E9: =HLOOKUP($E$5,BadDebtScenario,G9,FALSE) -> Ratio | G9: 5 | H9: 5 | L9: Ratio | U9: 0.003706885048
C10: Adjustment | E10: =HLOOKUP($E$5,BadDebtScenario,G10,FALSE) -> Adjustment | G10: 6 | H10: 6 | L10: Adjustment
G11: 7 | H11: 7 | I11: 904 | J11: Uncollectible Accounts
B12: Utah | C12: =P44 -> 9130.614917 | E12: =HLOOKUP($E$5,BadDebtScenario,G12,FALSE) -> 9130.614917 | G12: 8 | H12: 8 | K12: Utah | L12: =+P44 -> 9130.614917 | N12: =+L12 -> 9130.614917
B13: Wyoming | C13: =P45 -> -40853.75237 | E13: =HLOOKUP($E$5,BadDebtScenario,G13,FALSE) -> -40853.75237 | G13: 9 | H13: 9 | K13: Wyoming | L13: =+P45 -> -40853.75237 | N13: =+L13 -> -40853.75237
B14: Total | C14: =SUM(C12:C13) -> -31723.13745 | E14: =SUM(E12:E13) -> -31723.13745 | G14: 10 | H14: 10 | K14: Total | L14: =SUM(L12:L13) -> -31723.13745 | N14: =SUM(N12:N13) -> -31723.13745
G15: 11 | H15: 11
G16: 12 | H16: 12
B17: Bad Debt % | C17: =Q31 -> 0.001630842348 | D17: 1/ | E17: =HLOOKUP($E$5,BadDebtScenario,G17,FALSE) -> 0.001630842348 | F17: 1/ | G17: =+G16+1 -> 13 | H17: =+H16+1 -> 13 | I17: Revenues are lagging the Charge Offs by 6 Months. | N17: 12 MONTHS | O17: 12 MONTHS | P17: 12 MONTHS
G18: 14 | H18: 14 | I18: 6 Months af aging is required from time of billing to Charge Off. | N18: 2012 | O18: 2013 | P18: 2014 | Q18: 3 YR AVERAGE
G19: 15 | H19: 15
A20: SNG and Commodity of acc 904 Removal | G20: 16 | H20: 16
G21: =+G20+1 -> 17 | H21: =+H20+1 -> 17
C22: SNG | E22: SNG | G22: 18 | H22: 18 | I22: CHARGE OFFS (ACC 144004) Dec of Each Year | N22: 3440114.14 | O22: 3691373.66 | P22: 3909824.17 | Q22: =AVERAGE(N22:P22) -> 3680437.323
A23: 904.1 | B23: Uncollectible Accounts | G23: 19 | H23: 19 | I23: COLLECTED (ACC 144005) Dec of Each Year | N23: -2218828.44 | O23: -2206755.96 | P23: -2253448.29 | Q23: =AVERAGE(N23:P23) -> -2226344.23
B24: Utah | C24: =-EXPENSES!$I$279 -> -137840.83 | E24: =HLOOKUP($E$5,BadDebtScenario,G24,FALSE) -> -137840.83 | G24: 20 | H24: 20 | I24: NET CHARGE OFFS | N24: =SUM(N22:N23) -> 1221285.7 | O24: =SUM(O22:O23) -> 1484617.7 | P24: =SUM(P22:P23) -> 1656375.88 | Q24: =AVERAGE(N24:P24) -> 1454093.093
B25: Wyoming | C25: =-EXPENSES!$I$280 -> 0 | E25: =HLOOKUP($E$5,BadDebtScenario,G25,FALSE) -> 0 | G25: 21 | H25: 21
B26: Total | C26: =SUM(C24:C25) -> -137840.83 | E26: =HLOOKUP($E$5,BadDebtScenario,G26,FALSE) -> -137840.83 | G26: 22 | H26: 22 | I26: HISTORICAL BOOKED SYSTEM REVENUES (GREY BACK) June of Each Year | N26: 850945839.5 | O26: 890040282.1 | P26: 933876525.7 | Q26: =AVERAGE(N26:P26) -> 891620882.5
G27: 23 | H27: 23 | I27: NET CHARGE OFFS | N27: =N24 -> 1221285.7 | O27: =O24 -> 1484617.7 | P27: =P24 -> 1656375.88 | Q27: =AVERAGE(N27:P27) -> 1454093.093
A28: 904.2 | B28: Uncollectible Accounts | C28: Commodity | E28: Commodity | G28: 24 | H28: 24
B29: Utah | C29: =-EXPENSES!$I$284 -> -882348.91 | E29: =HLOOKUP($E$5,BadDebtScenario,G29,FALSE) -> -882348.91 | G29: 25 | H29: 25 | I29: % of Uncollectible Accounts to Total Revenues | N29: =N27/N26 -> 0.001435209673 | O29: =O27/O26 -> 0.001668034279 | P29: =P27/P26 -> 0.001773656189 | Q29: =Q27/Q26 -> 0.001630842348
B30: Wyoming | C30: =-EXPENSES!$I$285 -> 0 | E30: =HLOOKUP($E$5,BadDebtScenario,G30,FALSE) -> 0 | G30: 26 | H30: 26 | I30: Adjustment to Reflect change in Security Deposits
B31: Total | C31: =SUM(C29:C30) -> -882348.91 | E31: =HLOOKUP($E$5,BadDebtScenario,G31,FALSE) -> -882348.91 | G31: 27 | H31: 27 | I31: Adjusted % of Uncollectible Accounts to Total Revenues | Q31: =SUM(Q29:Q30) -> 0.001630842348
G32: 28 | H32: 28
A33: Total 904 | C33: =C31+C26+C14 -> -1051912.877 | E33: =E31+E26+E14 -> -1051912.877 | G33: 29 | H33: 29
G34: 30 | H34: 30 | N34: UT Distribution Non Gas Rev | P34: ='ROR-Model'!F200 -> 337954208.5
G35: 31 | H35: 31 | N35: WY Distribution Non Gas Rev | P35: ='ROR-Model'!F323 -> 12016598.45
G36: 32 | H36: 32 | N36: 3 YR BAD DEBT AVG FACTOR | P36: =Q31 -> 0.001630842348
A37: 1/ See Page 2, Column E, line 25 | G37: 33 | H37: 33 | N37: 3YR Average UT DNG Bad Debt | P37: =P34*P36 -> 551150.0349
G38: 34 | H38: 34 | N38: 3 YR Average WY DNG Bad Debt | P38: =P35*P36 -> 19597.17763
G39: 35 | H39: 35
G40: 36 | H40: 36 | N40: Less Booked System UT DNG Bad Debt | P40: ='ROR-Model'!F783 -> 542019.42
G41: 37 | H41: 37 | N41: Less Booked System WY DNG Bad Debt | P41: ='ROR-Model'!F784 -> 60450.93
G42: 38 | H42: 38 | N42: SYSTEM ADJUSTMENT | P42: =SUM(P40:P41) -> 602470.35
H43: =+H42+1 -> 39
H44: =+H43+1 -> 40 | N44: Utah | P44: =P37-P40 -> 9130.614917
H45: =+H44+1 -> 41 | N45: Wyoming | P45: =P38-P41 -> -40853.75237
H46: =+H45+1 -> 42 | N46: System Adjustment | P46: =SUM(P44:P45) -> -31723.13745

Sheet Incentive
A1: Incentive Compensation | G1: 1 | K1: Incentive Compensation | S1: Incentive Compensation | AC1: Incentive Compensation | BL1: Account | BM1: Dept | BN1: Amount | BO1: Line Description | BP1: Date | BQ1: Trans | BR1: Journal ID | BS1: Line | BT1: Unit | BV1: Account | BW1: Dept | BX1: Sum Amount | BY1: Line Descr | BZ1: Date | CA1: Trans | CB1: Journal ID | CC1: Line #
A2: =+'Control Panel'!$B$1 -> Questar Gas Company | F2: HOT | G2: =+G1+1 -> 2 | K2: =+'Control Panel'!$B$1 -> Questar Gas Company | S2: =+'Control Panel'!$B$1 -> Questar Gas Company | AC2: =+'Control Panel'!$B$1 -> Questar Gas Company | AM2: Sum of Oth Earns 2010 | AO2: Co | BC2: Account | BD2: Dept | BE2: Sum Amount | BF2: Line Descr | BG2: Date | BH2: Trans | BI2: Journal ID | BJ2: Line # | BL2: 920000 | BM2: 0011 | BN2: 350000 | BO2: 14Bonus Accrual | BP2: 2014-01-31 | BQ2: 402 | BR2: 520 | BS2: 50 | BT2: 07 | BV2: 921010 | BW2: 1010 | BX2: 10880.25 | BY2: Performance share amort-equity | BZ2: 2014-01-31 | CA2: 403 | CB2: 589 | CC2: 7
A3: =+'Control Panel'!$B$2 -> Utah - JUN 2015 Adjusted Avg Results | D3: QGC Incentives | F3: =+'Control Panel'!F32 -> QGC Incentives | G3: =+G2+1 -> 3 | K3: =+'Control Panel'!$B$2 -> Utah - JUN 2015 Adjusted Avg Results | S3: =+'Control Panel'!$B$2 -> Utah - JUN 2015 Adjusted Avg Results | AC3: =+'Control Panel'!$B$2 -> Utah - JUN 2015 Adjusted Avg Results | AM3: Earn Code | AO3: 1 | AP3: 7 | AQ3: Grand Total | AS3: Unit | AT3: Journal ID | AU3: Ledger | AV3: Account | AW3: Dept | AX3: Amount | AY3: Line Descr | AZ3: Date | BA3: Trans | BC3: 921010 | BD3: 0011 | BE3: 72327.71 | BF3: Performance Share Amort | BG3: 2014-01-31 | BH3: 403 | BI3: 589S | BJ3: 5 | BL3: 920000 | BM3: 0011 | BN3: 350000 | BO3: 14Bonus Accrual | BP3: 2014-02-28 | BQ3: 402 | BR3: 520 | BS3: 31 | BT3: 07 | BV3: 921010 | BW3: 1010 | BX3: 6502.2 | BY3: Performance share amort-equity | BZ3: 2014-02-28 | CA3: 403 | CB3: 589 | CC3: 7
A4: =+'Control Panel'!$B$3 -> 12 Months Ended : Jun-2015 | G4: 4 | K4: =+'Control Panel'!$B$3 -> 12 Months Ended : Jun-2015 | S4: =+'Control Panel'!$B$3 -> 12 Months Ended : Jun-2015 | AC4: =+'Control Panel'!$B$3 -> 12 Months Ended : Jun-2015 | AM4: AM1 | AN4: AMIP Incentive | AO4: 1354183 | AP4: 1781828.4 | AQ4: =SUM(AO4:AP4) -> 3136011.4 | AS4: 01 | AT4: 510 | AU4: ACTUALS | AV4: 920000 | AW4: 1010 | AX4: 400000 | AY4: Accrue QGC Incentive | AZ4: 2014-01-31 | BA4: 402 | BC4: 921010 | BD4: 0011 | BE4: 147878.74 | BF4: Performance Share Amort | BG4: 2014-02-28 | BH4: 403 | BI4: 589S | BJ4: 5 | BL4: 920000 | BM4: 0011 | BN4: 1300000 | BO4: 14Bonus Accrual | BP4: 2014-03-31 | BQ4: 402 | BR4: 520 | BS4: 79 | BT4: 07 | BV4: 921010 | BW4: 1010 | BX4: 4378.05 | BY4: Performance share amort-equity | BZ4: 2014-02-28 | CA4: 403 | CB4: 589CORR | CC4: 2
G5: 5 | AM5: AM4 | AN5: AMIP II Incentive | AP5: 949666 | AQ5: =SUM(AO5:AP5) -> 949666 | AS5: 01 | AT5: 510 | AU5: ACTUALS | AV5: 920000 | AW5: 1010 | AX5: 400000 | AY5: Accrue QGC Incentive | AZ5: 2014-02-28 | BA5: 402 | BC5: 921010 | BD5: 0011 | BE5: 156137.23 | BF5: Performance Share Amort | BG5: 2014-03-31 | BH5: 403 | BI5: 589S | BJ5: 5 | BL5: 920000 | BM5: 0011 | BN5: 350000 | BO5: 14Bonus Accrual | BP5: 2014-04-30 | BQ5: 402 | BR5: 520 | BS5: 18 | BT5: 07 | BV5: 921010 | BW5: 1010 | BX5: 22834.18 | BY5: Performance share amort-equity | BZ5: 2014-03-31 | CA5: 403 | CB5: 589 | CC5: 7
G6: 6 | AM6: INC | AN6: Incentive Paid_Less Safety | AO6: 3980406.32 | AP6: 407970.98 | AQ6: 4388377.3 | AS6: 01 | AT6: 510 | AU6: ACTUALS | AV6: 920000 | AW6: 1010 | AX6: 1100000 | AY6: Accrue QGC Incentive | AZ6: 2014-03-31 | BA6: 402 | BC6: 921010 | BD6: 0011 | BE6: 144161.67 | BF6: Performance Share Amort | BG6: 2014-04-30 | BH6: 403 | BI6: 589S | BJ6: 5 | BL6: 920000 | BM6: 0011 | BN6: 350000 | BO6: 13Bonus Accrual | BP6: 2014-05-31 | BQ6: 402 | BR6: 520 | BS6: 50 | BT6: 07 | BV6: 921010 | BW6: 1010 | BX6: 0 | BY6: Performance share amort-equity | BZ6: 2014-03-31 | CA6: 403 | CB6: 589B | CC6: 7
G7: 7 | AM7: INS | AN7: Incentive Paid_Safety Only | AO7: 1328782.2 | AP7: 375424.24 | AQ7: 1704206.44 | AS7: 01 | AT7: 510 | AU7: ACTUALS | AV7: 920000 | AW7: 1010 | AX7: 400000 | AY7: Accrue QGC Incentive | AZ7: 2014-04-30 | BA7: 402 | BC7: 921010 | BD7: 0011 | BE7: 144161.67 | BF7: Performance Share Amort | BG7: 2014-05-31 | BH7: 403 | BI7: 589S | BJ7: 5 | BL7: 920000 | BM7: 0011 | BN7: 870000 | BO7: 14Bonus Accrual | BP7: 2014-06-30 | BQ7: 402 | BR7: 520 | BS7: 31 | BT7: 07 | BV7: 921010 | BW7: 1010 | BX7: 22188 | BY7: Performance share amort | BZ7: 2014-03-31 | CA7: 403 | CB7: GLCOR17B | CC7: 2
B8: Incentive Compensation | G8: 8 | L8: Questar Corporation Incentive Pay Adjustment | S8: Questar Gas Incentive Pay Adjustment | AM8: Grand Total | AO8: =SUM(AO4:AO7) -> 6663371.52 | AP8: =SUM(AP4:AP7) -> 3514889.62 | AQ8: =SUM(AQ4:AQ7) -> 10178261.14 | AS8: 01 | AT8: 510 | AU8: ACTUALS | AV8: 920000 | AW8: 1010 | AX8: 400000 | AY8: Accrue QGC Incentive | AZ8: 2014-05-31 | BA8: 402 | BC8: 921010 | BD8: 0011 | BE8: 144161.67 | BF8: Performance Share Amort | BG8: 2014-06-30 | BH8: 403 | BI8: 589S | BJ8: 5 | BL8: 920000 | BM8: 0011 | BN8: 350000 | BO8: 13Bonus Accrual | BP8: 2014-07-31 | BQ8: 402 | BR8: 520 | BS8: 38 | BT8: 07 | BV8: 921010 | BW8: 1010 | BX8: -10880.25 | BY8: Performance share amort-equity | BZ8: 2014-03-31 | CA8: 403 | CB8: GLCOR17B | CC8: 1
B9: Removal of Financial Based Payouts | G9: 9 | L9: 12 Mos. Ending Dec. 2014. | S9: Actual Payout for 2014 (Paid in Feb 2015) | AD9: SWITCH | AE9: 1 | AS9: 01 | AT9: 510 | AU9: ACTUALS | AV9: 920000 | AW9: 1010 | AX9: 400000 | AY9: Accrue QGC Incentive | AZ9: 2014-06-30 | BA9: 402 | BC9: 921010 | BD9: 0011 | BE9: 144161.67 | BF9: Performance Share Amort | BG9: 2014-07-31 | BH9: 403 | BI9: 589S | BJ9: 5 | BL9: 920000 | BM9: 0011 | BN9: 350000 | BO9: 14Bonus Accrual | BP9: 2014-08-31 | BQ9: 402 | BR9: 520 | BS9: 13 | BT9: 07 | BV9: 921010 | BW9: 1010 | BX9: 22511.09 | BY9: Performance share amort-equity | BZ9: 2014-04-30 | CA9: 403 | CB9: 589 | CC9: 7
G10: 10 | L10: Workpaper A | U10: Workpaper B | AC10: AVERAGE INCENTIVE CALCULATION | AD10: AVERAGE (1) | AE10: 3-YR Average | AS10: 01 | AT10: 510A | AU10: ACTUALS | AV10: 920000 | AW10: 1010 | AX10: 685000 | AY10: Accrue QGC Incentive | AZ10: 2014-06-30 | BA10: 402 | BC10: 921010 | BD10: 0011 | BE10: 144161.67 | BF10: Performance Share Amort | BG10: 2014-08-31 | BH10: 403 | BI10: 589S | BJ10: 5 | BL10: 920000 | BM10: 0011 | BN10: 850000 | BO10: 14Bonus Accrual | BP10: 2014-09-30 | BQ10: 402 | BR10: 520 | BS10: 44 | BT10: 07 | BV10: 921010 | BW10: 1010 | BX10: 22511.09 | BY10: Performance share amort-equity | BZ10: 2014-05-31 | CA10: 403 | CB10: 589 | CC10: 7
B11: A | D11: B | G11: 11 | L11: A | N11: B | O11: C | P11: D | U11: A | V11: B | W11: C | X11: D | Y11: E | Z11: F | AD11: ACTUAL(2) | AE11: =AG12 -> Actual 2014 | AI11: HOT | AM11: Sum of Oth Earns 2011 | AO11: Co | AS11: 01 | AT11: 510B | AU11: ACTUALS | AV11: 920000 | AW11: 1010 | AX11: -1263208.88 | AY11: Adjust QGC Incentive | AZ11: 2014-06-30 | BA11: 402 | BC11: 921010 | BD11: 0011 | BE11: 144161.67 | BF11: Performance Share Amort | BG11: 2014-09-30 | BH11: 403 | BI11: 589S | BJ11: 5 | BL11: 920000 | BM11: 0011 | BN11: 350000 | BO11: 14Bonus Accrual | BP11: 2014-10-31 | BQ11: 402 | BR11: 520 | BS11: 25 | BT11: 07 | BV11: 921010 | BW11: 1010 | BX11: 22511.09 | BY11: Performance share amort-equity | BZ11: 2014-06-30 | CA11: 403 | CB11: 589 | CC11: 7
G12: 12 | N12: =+AI12 -> 3-YR Average | O12: Total | P12: Disallow | AC12: YEAR | AE12: Actual 2012 | AF12: Actual 2013 | AG12: Actual 2014 | AH12: 3-YR Average | AI12: =IF(AE9=1,AE10,AE11) -> 3-YR Average | AJ12: 1 | AM12: Earn Code | AO12: 1 | AP12: 7 | AQ12: Grand Total | AS12: 01 | AT12: 510 | AU12: ACTUALS | AV12: 920000 | AW12: 1010 | AX12: 400000 | AY12: Accrue QGC Incentive | AZ12: 2014-07-31 | BA12: 402 | BC12: 921010 | BD12: 0011 | BE12: 144161.67 | BF12: Performance Share Amort | BG12: 2014-10-31 | BH12: 403 | BI12: 589S | BJ12: 5 | BL12: 920000 | BM12: 0011 | BN12: 350000 | BO12: 14Bonus Accrual | BP12: 2014-11-30 | BQ12: 402 | BR12: 520 | BS12: 10 | BT12: 07 | BV12: 921010 | BW12: 1010 | BX12: 22511.09 | BY12: Performance share amort-equity | BZ12: 2014-07-31 | CA12: 403 | CB12: 589 | CC12: 7
A13: 1 | B13: Questar Corporation | C13: 1/ | D13: =P33 -> -2319842.892 | F13: =HLOOKUP($F$3,INSENTIVESCENARIO,G11,FALSE) -> -2319842.892 | G13: 13 | N13: Percentage | O13: Payout | P13: Adjustment | X13: % Payout | Y13: $ Payout | Z13: Allowed $ | AJ13: =+AJ12+1 -> 2 | AM13: AM1 | AN13: AMIP Incentive | AO13: 1092690 | AP13: 1457868.18 | AQ13: =SUM(AO13:AP13) -> 2550558.18 | AS13: 01 | AT13: 510 | AU13: ACTUALS | AV13: 920000 | AW13: 1010 | AX13: 400000 | AY13: Accrue QGC Incentive | AZ13: 2014-08-31 | BA13: 402 | BC13: 921010 | BD13: 0011 | BE13: 144161.67 | BF13: Performance Share Amort | BG13: 2014-11-30 | BH13: 403 | BI13: 589S | BJ13: 5 | BL13: 920000 | BM13: 0011 | BN13: 1503605 | BO13: 14Bonus Accrual | BP13: 2014-12-31 | BQ13: 402 | BR13: 520 | BS13: 112 | BT13: 07 | BV13: 921010 | BW13: 1010 | BX13: 22511.09 | BY13: Performance share amort-equity | BZ13: 2014-08-31 | CA13: 403 | CB13: 589 | CC13: 7
G14: 14 | J14: 1 | K14: Questar Corp Management and Employee Incentive Plans | R14: 1 | S14: QGC Management Incentive Plan (AMIP) | AC14: CORP AMIP (Financial Goals) | AE14: =+AE16*AE18 -> 2073927.024 | AF14: =+AF16*AF18 -> 2348925.002 | AG14: =+AG16*AG18 -> 1352896.34 | AH14: =AVERAGE(AE14:AG14) -> 1925249.455 | AI14: =HLOOKUP($AI$12,AVG_INCENTIVE,AJ14,FALSE) -> 1925249.455 | AJ14: =+AJ13+1 -> 3 | AM14: AM4 | AN14: AMIP II Incentive | AO14: 186760 | AP14: 1761837.1 | AQ14: 1948597.1 | AS14: 01 | AT14: 510 | AU14: ACTUALS | AV14: 920000 | AW14: 1010 | AX14: 400000 | AY14: Accrue QGC Incentive | AZ14: 2014-09-30 | BA14: 402 | BC14: 921010 | BD14: 0011 | BE14: 144161.31 | BF14: Performance Share Amort | BG14: 2014-12-31 | BH14: 403 | BI14: 589S | BJ14: 5 | BN14: =SUM(BN2:BN13) -> 7323605 | BV14: 921010 | BW14: 1010 | BX14: 22511.09 | BY14: Performance share amort-equity | BZ14: 2014-09-30 | CA14: 403 | CB14: 589 | CC14: 7
A15: 2 | B15: Questar Gas | C15: 2/ | D15: =Z34 -> -883885.7525 | F15: =HLOOKUP($F$3,INSENTIVESCENARIO,G13,FALSE) -> -883885.7525 | G15: 15 | J15: =+J14+1 -> 2 | L15: Bonus related to QGC Financial Goals & Affiliates | N15: =+AI18 -> 0.5483314887 | O15: =N15*O17 -> 2639982.703 | P15: =-O15 -> -2639982.703 | R15: =+R14+1 -> 2 | AC15: CORP AMIP (O&M Goals) | AE15: =+AE16*AE19 -> 743908.6063 | AF15: =+AF16*AF19 -> 1446397.348 | AG15: =+AG16*AG19 -> 2567260.81 | AH15: =AVERAGE(AE15:AG15) -> 1585855.588 | AI15: =HLOOKUP($AI$12,AVG_INCENTIVE,AJ15,FALSE) -> 1585855.588 | AJ15: 4 | AM15: INC | AN15: Incentive Paid_Less Safety | AO15: 4328316.09 | AP15: 1794813.47 | AQ15: 6123129.56 | AS15: 01 | AT15: 510A | AU15: ACTUALS | AV15: 920000 | AW15: 1010 | AX15: 550000 | AY15: Accrue QGC Incentive | AZ15: 2014-09-30 | BA15: 402 | BC15: 921011 | BD15: 0011 | BE15: 72327.71 | BF15: Performance Cash Amort | BG15: 2014-01-31 | BH15: 403 | BI15: 589C | BJ15: 3 | BV15: 921010 | BW15: 1010 | BX15: 22511.09 | BY15: Performance share amort-equity | BZ15: 2014-10-31 | CA15: 403 | CB15: 589 | CC15: 7
G16: 16 | J16: =+J15+1 -> 3 | L16: Bonus related to QGC O&M Goals | N16: =+AI19 -> 0.4516685113 | O16: =N16*O17 -> 2174591.615 | R16: =+R15+1 -> 3 | AC16: TOTAL | AE16: =+AP24+AP25 -> 2817835.63 | AF16: =AP33+AP34 -> 3795322.35 | AG16: =AP42+AP43 -> 3920157.15 | AH16: =SUM(AH14:AH15) -> 3511105.043 | AI16: =HLOOKUP($AI$12,AVG_INCENTIVE,AJ16,FALSE) -> 3511105.043 | AJ16: 5 | AM16: INS | AN16: Incentive Paid_Safety Only | AO16: 1005105.78 | AP16: 99092.37 | AQ16: 1104198.15 | AS16: 01 | AT16: 510B | AU16: ACTUALS | AV16: 920000 | AW16: 1010 | AX16: -606902.46 | AY16: Adjust QGC Incentive | AZ16: 2014-09-30 | BA16: 402 | BC16: 921011 | BD16: 0011 | BE16: 72327.71 | BF16: Performance Cash Amort | BG16: 2014-02-28 | BH16: 403 | BI16: 589C | BJ16: 3 | BL16: Regular incentive program is transaction 402. | BV16: 921010 | BW16: 1010 | BX16: 22511.09 | BY16: Performance share amort-equity | BZ16: 2014-11-30 | CA16: 403 | CB16: 589 | CC16: 7
G17: 17 | J17: 4 | L17: Total AMIP | N17: =SUM(N15:N16) -> 1 | O17: =BN14*(AI16/(AI16+AI24)) -> 4814574.318 | P17: =SUM(P15:P16) -> -2639982.703 | R17: 4 | T17: Amount Expensed to 921 Account | V17: =W38 -> 1377930.894 | AJ17: 6 | AM17: Grand Total | AO17: =SUM(AO13:AO16) -> 6612871.87 | AP17: =SUM(AP13:AP16) -> 5113611.12 | AQ17: =SUM(AQ13:AQ16) -> 11726482.99 | AS17: 01 | AT17: 510 | AU17: ACTUALS | AV17: 920000 | AW17: 1010 | AX17: 400000 | AY17: Accrue QGC Incentive | AZ17: 2014-10-31 | BA17: 402 | BC17: 921011 | BD17: 0011 | BE17: 73682.21 | BF17: Performance Cash Amort | BG17: 2014-03-31 | BH17: 403 | BI17: 589C | BJ17: 3 | BV17: 921010 | BW17: 1010 | BX17: 24745.69 | BY17: Performance share amort-equity | BZ17: 2014-12-31 | CA17: 403 | CB17: 589 | CC17: 7
A18: 3 | B18: Total | D18: =SUM(D13:D15) -> -3203728.645 | F18: =HLOOKUP($F$3,INSENTIVESCENARIO,G16,FALSE) -> -3203728.645 | G18: 18 | J18: 5 | L18: Long Term Incentive Plan (2014) | P18: =-BE28 -> -2516369.58 | R18: 5 | AC18: CORP AMIP (Financial Goals) % | AE18: 0.736 | AF18: 0.6189 | AG18: =1-AG19 -> 0.345112782 | AH18: =AH14/AH16 -> 0.5483314887 | AI18: =HLOOKUP($AI$12,AVG_INCENTIVE,AJ18,FALSE) -> 0.5483314887 | AJ18: 7 | AS18: 01 | AT18: 510 | AU18: ACTUALS | AV18: 920000 | AW18: 1010 | AX18: 400000 | AY18: Accrue QGC Incentive | AZ18: 2014-11-30 | BA18: 402 | BC18: 921011 | BD18: 0011 | BE18: 69359.32 | BF18: Performance Cash Amort | BG18: 2014-04-30 | BH18: 403 | BI18: 589C | BJ18: 3 | BV18: 921011 | BW18: 1010 | BX18: 10880.25 | BY18: Performance share amort | BZ18: 2014-01-31 | CA18: 403 | CB18: 589 | CC18: 8
G19: 19 | J19: 6 | R19: 6 | T19: O&M Goals | X19: =+AI35 -> 0.642915378 | Y19: =V17*X19 -> 885892.9617 | Z19: =Y19 -> 885892.9617 | AC19: CORP AMIP (O&M Goals) % | AE19: 0.264 | AF19: 0.3811 | AG19: =87.1/133 -> 0.654887218 | AH19: =AH15/AH16 -> 0.4516685113 | AI19: =HLOOKUP($AI$12,AVG_INCENTIVE,AJ19,FALSE) -> 0.4516685113 | AJ19: 8 | AS19: 01 | AT19: 510 | AU19: ACTUALS | AV19: 920000 | AW19: 1010 | AX19: 2508798 | AY19: Accrue QGC Incentive | AZ19: 2014-12-31 | BA19: 402 | BC19: 921011 | BD19: 0011 | BE19: 69359.32 | BF19: Performance Cash Amort | BG19: 2014-05-31 | BH19: 403 | BI19: 589C | BJ19: 3 | BV19: 921011 | BW19: 1010 | BX19: 22188 | BY19: Performance share amort | BZ19: 2014-02-28 | CA19: 403 | CB19: 589 | CC19: 8
A20: 4 | B20: Utah | D20: ='ROR-Model'!$M$2*D18 -> -3093698.815 | F20: =HLOOKUP($F$3,INSENTIVESCENARIO,G18,FALSE) -> -3093698.815 | G20: 20 | J20: 7 | R20: 7 | T20: Total AMIP Dollar Payout | X20: =SUM(X19:X19) -> 0.642915378 | Y20: =SUM(Y19:Y19) -> 885892.9617 | AC20: TOTAL | AE20: =SUM(AE18:AE19) -> 1 | AF20: 1 | AG20: 1 | AH20: =SUM(AH18:AH19) -> 1 | AI20: =HLOOKUP($AI$12,AVG_INCENTIVE,AJ20,FALSE) -> 1 | AJ20: 9 | AS20: 01 | AT20: 510B | AU20: ACTUALS | AV20: 920000 | AW20: 1010 | AX20: -1067798.36 | AY20: Adjust QGC Incentive | AZ20: 2014-12-31 | BA20: 402 | BC20: 921011 | BD20: 0011 | BE20: 69359.32 | BF20: Performance Cash Amort | BG20: 2014-06-30 | BH20: 403 | BI20: 589C | BJ20: 3 | BV20: 921011 | BW20: 1010 | BX20: 10880.25 | BY20: Performance share amort | BZ20: 2014-03-31 | CA20: 403 | CB20: 589 | CC20: 8
A21: 5 | B21: Wyoming | D21: ='ROR-Model'!$N$2*D18 -> -110029.8295 | F21: =HLOOKUP($F$3,INSENTIVESCENARIO,G19,FALSE) -> -110029.8295 | G21: 21 | J21: 8 | L21: PIPE Bonus related to QGC Financial Goals & Affiliates | N21: =+AG26 -> 0 | O21: =N21*O23 -> 0 | P21: =-O21 -> 0 | R21: 8 | AJ21: 10 | BC21: 921011 | BD21: 0011 | BE21: 69359.32 | BF21: Performance Cash Amort | BG21: 2014-07-31 | BH21: 403 | BI21: 589C | BJ21: 3 | BV21: 921011 | BW21: 1010 | BX21: 0 | BY21: Performance share amort | BZ21: 2014-03-31 | CA21: 403 | CB21: 589B | CC21: 8
B22: Total | D22: =SUM(D20:D21) -> -3203728.645 | F22: =SUM(F20:F21) -> -3203728.645 | G22: 22 | J22: 9 | L22: PIPE Bonus related to QGC O&M Goals | M22: 1/ | N22: =+AG27 -> 1 | O22: =N22*O23 -> 2509030.682 | R22: 9 | S22: QGC Employee Incentive Plan (PIPE) | AC22: CORP PIPE FINANCIAL GOALS | AE22: =+AE24*AE26 -> 1104123.52 | AF22: =+AF24*AF26 -> 1292803.21 | AG22: =+AG24*AG26 -> 0 | AH22: =AVERAGE(AE22:AG22) -> 798975.5769 | AI22: =HLOOKUP($AI$12,AVG_INCENTIVE,AJ22,FALSE) -> 798975.5769 | AJ22: 11 | AM22: Sum of Oth Earns2012 | AO22: Co | AX22: =SUM(AX4:AX20) -> 5905888.3 | BC22: 921011 | BD22: 0011 | BE22: 69359.32 | BF22: Performance Cash Amort | BG22: 2014-08-31 | BH22: 403 | BI22: 589C | BJ22: 3 | BV22: 921011 | BW22: 1010 | BX22: -22188 | BY22: Performance share amort | BZ22: 2014-03-31 | CA22: 403 | CB22: GLCOR17B | CC22: 4
A23: 1/ | B23: See Workpaper A | G23: 23 | J23: 10 | L23: TOTAL PIPE | N23: =SUM(N21:N22) -> 1 | O23: =BN14*(AI24/(AI24+AI16)) -> 2509030.682 | P23: =SUM(P21:P22) -> 0 | R23: 10 | AC23: CORP PIPE (O&M Goals) | AE23: =+AE24*AE27 -> 365073.0995 | AF23: =+AF24*AF27 -> 771548.6299 | AG23: =+AG24*AG27 -> 1955703.36 | AH23: =AVERAGE(AE23:AG23) -> 1030775.03 | AI23: =HLOOKUP($AI$12,AVG_INCENTIVE,AJ23,FALSE) -> 1030775.03 | AJ23: 12 | AM23: Earn Code | AO23: 01 | AP23: 07 | AQ23: Grand Total | BC23: 921011 | BD23: 0011 | BE23: 69359.32 | BF23: Performance Cash Amort | BG23: 2014-09-30 | BH23: 403 | BI23: 589C | BJ23: 3 | BV23: 921011 | BW23: 1010 | BX23: 10880.25 | BY23: Performance share amort-equity | BZ23: 2014-03-31 | CA23: 403 | CB23: GLCOR17B | CC23: 3
A24: 2/ | B24: See Workpaper B | G24: 24 | J24: 11 | R24: 11 | AC24: TOTAL | AE24: =+AP26+AP27 -> 1469196.62 | AF24: =AP35+AP36 -> 2064351.84 | AG24: =AP44+AP45 -> 1955703.36 | AH24: =SUM(AH22:AH23) -> 1829750.607 | AI24: =HLOOKUP($AI$12,AVG_INCENTIVE,AJ24,FALSE) -> 1829750.607 | AJ24: 13 | AM24: AM1 | AN24: AMIP Incentive | AO24: 934692.77 | AP24: 1276161.77 | AQ24: 2210854.54 | BC24: 921011 | BD24: 0011 | BE24: 69359.32 | BF24: Performance Cash Amort | BG24: 2014-10-31 | BH24: 403 | BI24: 589C | BJ24: 3 | BV24: 921011 | BW24: 1010 | BX24: 10880.25 | BY24: Performance share amort | BZ24: 2014-04-30 | CA24: 403 | CB24: 589 | CC24: 8
G25: 25 | J25: 12 | L25: Total Questar Corp AMIP and PIPE Plan Disallowed | P25: =P17+P18+P23 -> -5156352.283 | R25: 12 | T25: Amount Expensed to 921 Account | V25: =W39 -> 4527957.406 | AJ25: 14 | AM25: AM4 | AN25: AMIP II Incentive | AO25: 232838.1 | AP25: 1541673.86 | AQ25: 1918104.27 | BC25: 921011 | BD25: 0011 | BE25: 69359.32 | BF25: Performance Cash Amort | BG25: 2014-11-30 | BH25: 403 | BI25: 589C | BJ25: 3 | BV25: 921011 | BW25: 1010 | BX25: 10880.25 | BY25: Performance share amort | BZ25: 2014-05-31 | CA25: 403 | CB25: 589 | CC25: 8
G26: 26 | J26: 13 | R26: 13 | AC26: CORP PIPE FINANCIAL GOALS % | AE26: =AE50/AE48 -> 0.7515151515 | AF26: =AF50/AF48 -> 0.6262513904 | AG26: 0 | AH26: =AH22/AH24 -> 0.4366581839 | AI26: =HLOOKUP($AI$12,AVG_INCENTIVE,AJ26,FALSE) -> 0.4366581839 | AJ26: 15 | AM26: INC | AN26: Incentive Paid_Less Safety | AO26: 3550052.69 | AP26: 1193540.98 | AQ26: 4741991.25 | BC26: 921011 | BD26: 0011 | BE26: 69359.04 | BF26: Performance Cash Amort | BG26: 2014-12-31 | BH26: 403 | BI26: 589C | BJ26: 3 | BV26: 921011 | BW26: 1010 | BX26: 10880.25 | BY26: Performance share amort | BZ26: 2014-06-30 | CA26: 403 | CB26: 589 | CC26: 8
J27: 14 | R27: 14 | T27: Operating Goals | W27: 1/ | X27: =AG44 -> 1 | Y27: =V25*X27 -> 4527957.406 | Z27: =Y27 -> 4527957.406 | AC27: CORP PIPE (O&M Goals) % | AE27: =AE49/AE48 -> 0.2484848485 | AF27: =AF49/AF48 -> 0.3737486096 | AG27: 1 | AH27: =AH23/AH24 -> 0.5633418161 | AI27: =HLOOKUP($AI$12,AVG_INCENTIVE,AJ27,FALSE) -> 0.5633418161 | AJ27: 16 | AM27: INS | AN27: Incentive Paid_Safety Only | AO27: 1036751.74 | AP27: 275655.64 | AQ27: 1311926.61 | BV27: 921011 | BW27: 1010 | BX27: 10880.25 | BY27: Performance share amort | BZ27: 2014-07-31 | CA27: 403 | CB27: 589 | CC27: 8
J28: 15 | L28: Disallowed Allocation | R28: 15 | T28: Total PIPE % Payout | X28: =SUM(X27:X27) -> 1 | Y28: =SUM(Y27:Y27) -> 4527957.406 | AC28: TOTAL | AE28: =SUM(AE26:AE27) -> 1 | AF28: =SUM(AF26:AF27) -> 1 | AG28: =SUM(AG26:AG27) -> 1 | AH28: =SUM(AH26:AH27) -> 1 | AI28: =HLOOKUP($AI$12,AVG_INCENTIVE,AJ28,FALSE) -> 1 | AJ28: 17 | AM28: Grand Total | AN28: Incentive Paid_Safety Only | AO28: 5761847.96 | AP28: 4626375.13 | AQ28: 10388223.09 | BE28: =SUM(BE3:BE26) -> 2516369.58 | BV28: 921011 | BW28: 1010 | BX28: 10880.25 | BY28: Performance share amort | BZ28: 2014-08-31 | CA28: 403 | CB28: 589 | CC28: 8
J29: 16 | L29: Allocated Through Distrigas | R29: 16 | AJ29: 18 | BV29: 921011 | BW29: 1010 | BX29: 10880.25 | BY29: Performance share amort | BZ29: 2014-09-30 | CA29: 403 | CB29: 589 | CC29: 8
J30: 17 | R30: 17 | S30: Total AMIP and PIPE Allowed with Overheads (Line 6 + Line 14) | Z30: =SUM(Z19:Z27) -> 5413850.367 | AC30: QGC AMIP (Financial Goals) | AE30: =+AE32*AE34 -> 316860.849 | AF30: =+AF32*AF34 -> 583777.3331 | AG30: =+AG32*AG34 -> 575492.8366 | AH30: =AVERAGE(AE30:AG30) -> 492043.6729 | AI30: =HLOOKUP($AI$12,AVG_INCENTIVE,AJ30,FALSE) -> 492043.6729 | AJ30: 19 | AM30: From Donna P | BV30: 921011 | BW30: 1010 | BX30: 10880.25 | BY30: Performance share amort | BZ30: 2014-10-31 | CA30: 403 | CB30: 589 | CC30: 8
J31: 18 | L31: Allocated to QGC | R31: 18 | S31: Total Incentives | Z31: =V25+V17 -> 5905888.3 | AC31: QGC AMIP (O&M Goals) | AE31: =+AE32*AE35 -> 617831.921 | AF31: =+AF32*AF35 -> 922744.8169 | AG31: =+AG32*AG35 -> 1117133.153 | AH31: =AVERAGE(AE31:AG31) -> 885903.2971 | AI31: =HLOOKUP($AI$12,AVG_INCENTIVE,AJ31,FALSE) -> 885903.2971 | AJ31: 20 | AM31: Payments in 2014 for 2013 Incentive | AO31: Co | BV31: 921011 | BW31: 1010 | BX31: 10880.25 | BY31: Performance share amort | BZ31: 2014-11-30 | CA31: 403 | CB31: 589 | CC31: 8
J32: 19 | L32: Percent to QGC | O32: =+'ALLOCATIONS&PRETAX'!$G$8 -> 0.4499 | R32: =+R31+1 -> 19 | S32: Total Adjustment | Z32: =Z30-Z31 -> -492037.9325 | AC32: TOTAL | AE32: =+AO24 -> 934692.77 | AF32: =AO33 -> 1506522.15 | AG32: =AO42+AO43 -> 1692625.99 | AH32: =SUM(AH30:AH31) -> 1377946.97 | AI32: =SUM(AI30:AI31) -> 1377946.97 | AJ32: 21 | AM32: Earn Code | AO32: 01 | AP32: 07 | AQ32: Grand Total | BV32: 921011 | BW32: 1010 | BX32: 10880.25 | BY32: Performance share amort | BZ32: 2014-12-31 | CA32: 403 | CB32: 589 | CC32: 8
J33: 20 | L33: Total to QGC | O33: =P25*O32 -> -2319842.892 | P33: =SUM(M33:O33) -> -2319842.892 | R33: 20 | S33: Long Term Incentive Plan (2014) | Z33: =-BX34 -> -391847.82 | AJ33: 22 | AM33: AM1 | AN33: AMIP Incentive | AO33: 1506522.15 | AP33: 1892115.57 | AQ33: =SUM(AO33:AP33) -> 3398637.72 | BV33: 921011 | BW33: 1010 | BX33: 547.98 | BY33: Performance share amort | BZ33: 2014-12-31 | CA33: 403 | CB33: 589COR | CC33: 2
R34: 21 | S34: Total Adjustment | Z34: =SUM(Z32:Z33) -> -883885.7525 | AC34: QGC AMIP (Financial Goals)% | AE34: =1-AE35 -> 0.339 | AF34: 0.3875 | AG34: =1-AG35 -> 0.34 | AH34: =AH30/AH32 -> 0.357084622 | AI34: =HLOOKUP($AI$12,AVG_INCENTIVE,AJ34,FALSE) -> 0.357084622 | AJ34: 23 | AM34: AM4 | AN34: AMIP II Incentive | AP34: 1903206.78 | AQ34: =SUM(AO34:AP34) -> 1903206.78 | BX34: =SUM(BX2:BX33) -> 391847.82
AC35: QGC AMIP (O&M Goals)% | AE35: 0.661 | AF35: =1-AF34 -> 0.6125 | AG35: =99/150 -> 0.66 | AH35: =AH31/AH32 -> 0.642915378 | AI35: =HLOOKUP($AI$12,AVG_INCENTIVE,AJ35,FALSE) -> 0.642915378 | AJ35: 24 | AM35: INC | AN35: Incentive Paid_Less Safety | AO35: 3919940.28 | AP35: 1756871.9 | AQ35: 5676812.18 | BV35: Other incentives are transaction 403.
AC36: TOTAL | AE36: =SUM(AE34:AE35) -> 1 | AF36: =SUM(AF34:AF35) -> 1 | AG36: =SUM(AG34:AG35) -> 1 | AH36: =SUM(AH34:AH35) -> 1 | AI36: =HLOOKUP($AI$12,AVG_INCENTIVE,AJ36,FALSE) -> 1 | AJ36: 25 | AM36: INS | AN36: Incentive Paid_Safety Only | AO36: 1030575.13 | AP36: 307479.94 | AQ36: 1338055.07
AJ37: 26 | AM37: Grand Total | AN37: Incentive Paid_Safety Only | AO37: =SUM(AO33:AO36) -> 6457037.56 | AP37: =SUM(AP33:AP36) -> 5859674.19 | AQ37: =SUM(AQ33:AQ36) -> 12316711.75
K38: 1/ There is no longer a financial incentive included in the PIPE payout in 2014. 100% of PIPE is based on operating goals. | V38: Total AMIP Expense | W38: =(AO33+AO34)/(AO33+AO34+AO35+AO36)*W40 -> 1377930.894 | AJ38: 27
V39: Total PIPE | W39: =W40-W38 -> 4527957.406 | AC39: QGC PIPE (Financial Goals) | AE39: =+AE43*AE41 -> 1617281.279 | AF39: =+AF43*AF41 -> 1269222.042 | AG39: =+AG43*AG41 -> 0 | AH39: =AVERAGE(AE39:AG39) -> 962167.7736 | AI39: =HLOOKUP($AI$12,AVG_INCENTIVE,AJ39,FALSE) -> 962167.7736 | AJ39: 28 | AM39: From Donna P
V40: Total Incentive Expense | W40: =AX22 -> 5905888.3 | X40: UPDATED FOR 2014 | AC40: QGC PIPE (O&M Goals) | AE40: =+AE44*AE41 -> 2969523.151 | AF40: =+AF44*AF41 -> 3681293.368 | AG40: =+AG44*AG41 -> 5763248.46 | AH40: =AVERAGE(AE40:AG40) -> 4138021.66 | AI40: =HLOOKUP($AI$12,AVG_INCENTIVE,AJ40,FALSE) -> 4138021.66 | AJ40: 29 | AM40: Payments in 2015 for 2014 Incentive | AO40: Co
AC41: TOTAL | AE41: =+AO26+AO27 -> 4586804.43 | AF41: =AO35+AO36 -> 4950515.41 | AG41: =AO44+AO45 -> 5763248.46 | AH41: =SUM(AH39:AH40) -> 5100189.433 | AI41: =SUM(AI39:AI40) -> 5100189.433 | AJ41: 30 | AM41: Earn Code | AO41: 01 | AP41: 07 | AQ41: Grand Total
AJ42: 31 | AM42: AM1 | AN42: AMIP Incentive | AO42: 1366141.75 | AP42: 1942159.54 | AQ42: =SUM(AO42:AP42) -> 3308301.29
S43: 1/ There is no longer a financial incentive included in the PIPE payout in 2014. 100% of PIPE is based on operating goals. | AC43: QGC PIPE (Financial Goals)% | AE43: =AE52/AE54 -> 0.3525943396 | AF43: =AF52/AF54 -> 0.256381798 | AG43: 0 | AH43: =+AH39/AH41 -> 0.1886533405 | AI43: =HLOOKUP($AI$12,AVG_INCENTIVE,AJ43,FALSE) -> 0.1886533405 | AJ43: 32 | AM43: AM4 | AN43: AMIP II Incentive | AO43: 326484.24 | AP43: 1977997.61 | AQ43: =SUM(AO43:AP43) -> 2304481.85
AC44: QGC PIPE (O&M Goals)% | AE44: =AE53/AE54 -> 0.6474056604 | AF44: =AF53/AF54 -> 0.743618202 | AG44: 1 | AH44: =+AH40/AH41 -> 0.8113466595 | AI44: =HLOOKUP($AI$12,AVG_INCENTIVE,AJ44,FALSE) -> 0.8113466595 | AJ44: 33 | AM44: INC | AN44: Incentive Paid_Less Safety | AO44: 4704097.67 | AP44: 1570607.61 | AQ44: 6274705.28
AC45: TOTAL | AE45: =SUM(AE43:AE44) -> 1 | AF45: =SUM(AF43:AF44) -> 1 | AG45: 1 | AH45: =SUM(AH43:AH44) -> 1 | AI45: =SUM(AI43:AI44) -> 1 | AJ45: 34 | AM45: INS | AN45: Incentive Paid_Safety Only | AO45: 1059150.79 | AP45: 385095.75 | AQ45: 1444246.54
AJ46: 35 | AM46: Grand Total | AN46: Incentive Paid_Safety Only | AO46: =SUM(AO42:AO45) -> 7455874.45 | AP46: =SUM(AP42:AP45) -> 5875860.51 | AQ46: =SUM(AQ42:AQ45) -> 13331734.96
AC47: CORP PIPE | AJ47: 36
AC48: Total Corporate Payout | AE48: 0.066 | AF48: 0.0899 | AG48: 0.0887 | AJ48: 37
AC49: Total related to QGC O&M Goals | AE49: 0.0164 | AF49: =0.81%+0.81%+0.7%+0.29%+0.25%+0.5% -> 0.0336 | AG49: 0.0225 | AJ49: 38
AC50: Excluded amount | AE50: =AE48-AE49 -> 0.0496 | AF50: =AF48-AF49 -> 0.0563 | AG50: =AG48-AG49 -> 0.0662 | AJ50: 39
AJ51: 40
AC52: QGC PIPE (FINANCIAL GOALS PAYOUT)% | AE52: 0.0299 | AF52: =0.81%+1.5% -> 0.0231 | AG52: 0 | AJ52: 41
AC53: QGC PIPE (OPERATIONAL GOALS PAYOUT)% | AE53: 0.0549 | AF53: 0.067 | AG53: 0.0998 | AJ53: 42
AC54: TOTAL QGC PIPE (GOALS PAYOUT)% | AE54: =SUM(AE52:AE53) -> 0.0848 | AF54: =SUM(AF52:AF53) -> 0.0901 | AG54: =SUM(AG52:AG53) -> 0.0998 | AJ54: 43
AJ55: 44

Sheet Sporting Events
B1: Event Tickets | J1: Event Tickets
B2: =+'Control Panel'!$B$1 -> Questar Gas Company | J2: =+'Control Panel'!$B$1 -> Questar Gas Company
B3: =+'Control Panel'!$B$2 -> Utah - JUN 2015 Adjusted Avg Results | J3: =+'Control Panel'!$B$2 -> Utah - JUN 2015 Adjusted Avg Results
B4: =+'Control Panel'!$B$3 -> 12 Months Ended : Jun-2015 | J4: =+'Control Panel'!$B$3 -> 12 Months Ended : Jun-2015 | Q4: QGC JAN TO DEC 2014
Q5: Unit | R5: Voucher | S5: Account | T5: Amount | U5: ShortName | V5: Period | W5: Year | X5: Vendor | Z5: CORP JAN TO DEC 2014
F6: HOT | Q6: 01 | R6: 00449226 | S6: 909001 | T6: 512.07 | U6: UTAHJAZZ-001 | V6: 12 | W6: 2014 | X6: 0000002923 | Y6: 4420 | Z6: No Results - 2014
C7: QGC Sporting Events | F7: =+'Control Panel'!B33 -> QGC Sporting Events | G7: 1 | Q7: 01 | R7: 00448524 | S7: 909001 | T7: 140000 | U7: UTAHJAZZ-001 | V7: 12 | W7: 2014 | X7: 0000002923 | Y7: 4420
G8: =+G7+1 -> 2 | I8: 1 | K8: Event Tickets | Q8: 01 | R8: 00429181 | S8: 909001 | T8: 22000 | U8: UTAHJAZZ-001 | V8: 5 | W8: 2014 | X8: 0000002923 | Y8: 4263
G9: =+G8+1 -> 3 | I9: =I8+1 -> 2 | Q9: 01 | R9: 00428108 | S9: 909001 | T9: 22000 | U9: UTAHJAZZ-001 | V9: 4 | W9: 2014 | X9: 0000002923 | Y9: 4263
G10: 4 | I10: =I9+1 -> 3 | Q10: 01 | R10: 00420740 | S10: 909001 | T10: 139600 | U10: UTAHJAZZ-001 | V10: 1 | W10: 2014 | X10: 0000002923 | Y10: 4420 | AC10: =SUM(AC6:AC9) -> 0
G11: 5 | I11: 4 | L11: A | N11: B | O11: C | Q11: 01 | R11: 00424667 | S11: 921000 | T11: 18000 | U11: ENERGYSOLU-002 | V11: 3 | W11: 2014 | X11: 0000015660 | Y11: 5140
A12: 1 | B12: Total Expenses | C12: =$O$29 -> -81518.74371 | F12: =HLOOKUP($F$7,events,G12,FALSE) -> -81518.74371 | G12: 6 | I12: 5 | O12: Adjustment | Q12: 01 | R12: 00424370 | S12: 921000 | T12: 5000 | U12: ENERGYSOLU-002 | V12: 2 | W12: 2014 | X12: 0000015660 | Y12: 5140
G13: 7 | I13: 6 | K13: Company | N13: Amounts | O13: Amount
A14: 2 | B14: Utah Adjustment | C14: ='ROR-Model'!$M$2*C12*(1+C13) -> -78719.03922 | F14: ='ROR-Model'!$M$2*F12*(1+F13) -> -78719.03922 | G14: 8 | I14: 7
A15: 3 | B15: Wyoming Adjustment | C15: ='ROR-Model'!$N$2*C12*(1+C13) -> -2799.704491 | F15: ='ROR-Model'!$N$2*F12*(1+F13) -> -2799.704491 | G15: 9 | I15: 8 | K15: Total Disallowed QC Sporting Events Expense | N15: =R57 -> 0 | R15: GRAND TOTAL | T15: =SUM(T6:T14) -> 347112.07
I16: 9
I17: 10 | M17: Allocation | N17: Allocated | O17: Adjustment
I18: 11 | K18: Company and Allocation Amounts | M18: Calculations | N18: Amount | O18: Amount
I19: 12
I20: 13 | K20: Allocated to QGC
I21: 14 | K21: Percent to QGC | M21: =+'ALLOCATIONS&PRETAX'!G8 -> 0.4499
I22: 15 | K22: Total to QGC | M22: =+N15*M21 -> 0 | N22: =+M22 -> 0 | O22: =+N22 -> 0
I23: 16
I24: 17
I25: 18 | J25: Total Disallowed QGC Sporting Events Expense | O25: =P54 -> 81518.74371
I26: 19
I27: 20 | J27: Total Expenses | O27: =O25+O22 -> 81518.74371
I28: 21 | J28: Escalation Factor
I29: 22 | J29: Total Adjustment | O29: =-O27*(1+O28) -> -81518.74371
I30: 23
I31: 24 | K31: Utah Adjustment | O31: =O29*'ROR-Model'!M2 -> -78719.03922
I32: 25 | K32: Wyoming Adjusment | O32: =O29*'ROR-Model'!N2 -> -2799.704491
I33: 26 | K33: Total | O33: =SUM(O31:O32) -> -81518.74371
K41: Event Tickets
K42: Questar Gas Company
K43: Utah - Average Adjusted Results Of Operations
K44: =+B4 -> 12 Months Ended : Jun-2015
J46: 1 | K46: SPORTING EVENT TICKETS
J47: =J46+1 -> 2 | O47: QGC Direct
J48: =J47+1 -> 3 | K48: Vendor | L48: Questar Gas | M48: Allocated from | N48: Based on | O48: Employee | P48: Mkting
J49: 4 | L49: Direct | M49: Corp | N49: 2014 Data | O49: Recognition | P49: PR
J50: 5 | K50: Energy Solutions Arena | L50: =SUM(T11:T12) -> 23000 | M50: 0 | N50: =L62/N62 -> 0.7651515152 | O50: =N50*L50 -> 17598.48485 | P50: =L50-O50 -> 5401.515152 | Q50: Allocated from Corp
J51: 6 | K51: Utah Jazz | L51: =SUM(T6:T10) -> 324112.07 | M51: =SUM(AC7:AC8) -> 0 | N51: =L62/N62 -> 0.7651515152 | O51: =N51*L51 -> 247994.8414 | P51: =L51-O51 -> 76117.22856 | Q51: Employee | R51: Mkting
J52: 7 | K52: Real Salt Lake | L52: 0 | M52: =AC6 -> 0 | N52: 0 | O52: =N52*L52 -> 0 | P52: =L52-O52 -> 0 | Q52: Recognition | R52: PR
J53: 8
J54: 9 | K54: Total | L54: =SUM(L50:L52) -> 347112.07 | M54: =SUM(M50:M52) -> 0 | O54: =SUM(O50:O52) -> 265593.3263 | P54: =SUM(P50:P52) -> 81518.74371 | Q54: =N50*M50 -> 0 | R54: =M50-Q54 -> 0
J55: 10 | Q55: =N51*M51 -> 0 | R55: =M51-Q55 -> 0
J56: 11 | Q56: =N52*M52 -> 0 | R56: =M52-Q56 -> 0
J57: 12 | Q57: =SUM(Q54:Q56) -> 0 | R57: =SUM(R54:R56) -> 0
J58: 13 | L58: Tickets Used for Employee Recognition - % Calculation 2014
J59: 14
J60: 15 | L60: Employee
J61: 16 | L61: Recognition | M61: Pub. Relations | N61: Total
J62: 17 | K62: Jazz Tickets | L62: 404 | M62: 124 | N62: =L62+M62 -> 528
J63: 18 | K63: Real Salt Lake | L63: 0 | M63: 0 | N63: =SUM(L63:M63) -> 0 | O63: *No Real tickets were charged to expense accounts included in this adjustment. Percentage is calculated on Jazz only.
J64: 19 | K64: Total Tickets | L64: =SUM(L62:L63) -> 404 | M64: =SUM(M62:M63) -> 124 | N64: =SUM(N62:N63) -> 528
J65: 20 | K65: Total Percentage: | L65: =L64/$N$64 -> 0.7651515152 | M65: =M64/$N$64 -> 0.2348484848 | N65: =N64/$N$64 -> 1

Sheet Advertising
A1: Advertising | H1: Advertising | S1: =Z1 -> Advertising | Z1: =AF1 -> Advertising | AF1: =H1 -> Advertising | AL1: ='Control Panel'!$B$2 -> Utah - JUN 2015 Adjusted Avg Results | AT1: QGC DIRECT ADVERTISING JAN TO DEC 2014 | BA1: CORP ADVERTISING JAN TO DEC 2014
A2: ='Control Panel'!$B$1 -> Questar Gas Company | H2: ='Control Panel'!$B$1 -> Questar Gas Company | S2: =Z2 -> Questar Gas Company | Z2: =AF2 -> Questar Gas Company | AF2: =H2 -> Questar Gas Company | AL2: =AF4 -> 0 | AT2: Account | AV2: Amount | BA2: Account | BB2: Dept | BC2: Amount
A3: ='Control Panel'!$B$2 -> Utah - JUN 2015 Adjusted Avg Results | H3: ='Control Panel'!$B$2 -> Utah - JUN 2015 Adjusted Avg Results | S3: =Z3 -> Utah - JUN 2015 Adjusted Avg Results | Z3: =AF3 -> Utah - JUN 2015 Adjusted Avg Results | AF3: =H3 -> Utah - JUN 2015 Adjusted Avg Results | AT3: 909003 Total | AV3: 0 | BA3: 930100 Total | BC3: 0
A4: ='Control Panel'!$B$3 -> 12 Months Ended : Jun-2015 | H4: ='Control Panel'!$B$3 -> 12 Months Ended : Jun-2015 | AT4: 909004 Total | AV4: =AV15 -> 0 | BA4: 930101 Total | BC4: =BB20 -> 10913.28
S5: Workpaper | Z5: Workpaper 1 | AF5: Workpaper 2 | AT5: 909005 Total | AV5: =AV31 -> 18031.16 | BA5: 930102 Total | BC5: 0
AL6: FINANCIAL ADVERTISING ADJUSTMENT | AT6: 921000 Total | AV6: =AV44 -> 3224.44 | BA6: Grand Total | BC6: =SUM(BC3:BC5) -> 10913.28
S7: General Advertising Expenses | Y7: 1 | Z7: Institutional Advertising | AF7: Financial Advertising | AT7: 923000 Total | AV7: =AV62 -> 11653.26
I8: Advertising Adjustment | Y8: =Y7+1 -> 2 | AT8: 930100 Total | AV8: =+AV151 -> 0
E9: HOT | F9: 1 | G9: 1 | S9: Total QC General Advertising Expenses | U9: =K16 -> 0 | Y9: =Y8+1 -> 3 | Z9: Total QC Institutional Advertising | AB9: =BC4 -> 10913.28 | AF9: Total Corporate Financial Advertising | AH9: =K41 -> 0 | AL9: Total QC Outside Services | AN9: 0 | AT9: Grand Total | AV9: =SUM(AV3:AV8) -> 32908.86
C10: QGC Advertising | E10: =+'Control Panel'!F34 -> QGC Advertising | F10: 2 | G10: 2 | I10: A | J10: B | K10: C | L10: D | M10: E | N10: F | Y10: 4
F11: 3 | G11: 3 | J11: Direct | K11: Direct | L11: Allocated | M11: Total | N11: Removed | U11: Allocation | V11: Allocated | W11: Adjustment | Y11: 5 | AT11: Query: QGC Direct Advertising | BA11: Query: Corp_Advertising
F12: 4 | G12: 4 | J12: Charges | K12: Charges | L12: From Corp | M12: (B+D) | N12: Amount | T12: Company and Allocation Amounts | U12: Calculations | V12: Amount | W12: Amount | Y12: 6 | AB12: Allocation | AC12: Allocated | AD12: Adjustment | AF12: Allocated to QGC | AH12: Allocation | AI12: Allocated | AJ12: Adjustment | AL12: Allocated to QGC | AN12: Allocation | AO12: Allocated | AP12: Adjustment
A13: Account | B13: Type | F13: 5 | G13: 5 | H13: Account | I13: Type | J13: To QGC | K13: To QC | L13: To QGC | Y13: 7 | AA13: Company and Allocation Amounts | AB13: Calculations | AC13: Amount | AD13: Amount | AG13: Company and Allocation Amounts | AH13: Calculations | AI13: Amount | AJ13: Amount | AM13: Company and Allocation Amounts | AN13: Calculations | AO13: Amount | AP13: Amount | AT13: Account | AU13: Dept | AV13: Sum Amount | AW13: Line Descr | AX13: Date | AY13: Unit | BA13: Account | BB13: Sum Amount | BC13: Oper Unit | BD13: Trans | BE13: Date | BF13: Line Descr
A14: 909003 | B14: Promotional Advertising-Dealer | C14: =N14 -> 0 | E14: =HLOOKUP($E$10,Advertisingscenario,F13,FALSE) -> 0 | F14: 6 | G14: 6 | H14: 909003 | I14: Promotional Advertising-Dealer | J14: =AV3 -> 0 | K14: 0 | L14: 0 | M14: =+L14+J14 -> 0 | N14: =J14 -> 0 | T14: Allocated to QGC | Y14: 8 | BA14: 930101 | BB14: 2950 | BD14: 531 | BE14: 2014-02-28 | BF14: EXORO GROUP
A15: 909005 | B15: Adv Exp - Parade of Homes | C15: =N15 -> 18031.16 | E15: =HLOOKUP($E$10,Advertisingscenario,F14,FALSE) -> 18031.16 | F15: 7 | G15: 7 | H15: 909005 | I15: Adv Exp - Parade of Homes | J15: =AV5 -> 18031.16 | K15: 0 | L15: 0 | M15: =+L15+J15 -> 18031.16 | N15: =J15 -> 18031.16 | T15: Percent to QGC | U15: =+'ALLOCATIONS&PRETAX'!$G$8 -> 0.4499 | Y15: 9 | AA15: Allocated to QGC | AG15: Allocated to QGC | AM15: Allocated to QGC | AT15: 909004 Total | AV15: =SUM(AV14) -> 0 | BA15: 930101 | BB15: 3950 | BD15: 531 | BE15: 2014-02-28 | BF15: UTAH BUSINESS MAGAZINE
A16: 930100 | B16: General Advertising Expenses | C16: =N16 -> 0 | E16: =HLOOKUP($E$10,Advertisingscenario,F15,FALSE) -> 0 | F16: 8 | G16: 8 | H16: 930100 | I16: General Advertising Expenses | J16: =AV8 -> 0 | K16: =+BC3 -> 0 | L16: =W28 -> 0 | M16: =+L16+J16 -> 0 | N16: =M16 -> 0 | T16: Total to QGC | U16: =+U9*U15 -> 0 | V16: =+U16 -> 0 | W16: =+V16 -> 0 | Y16: 10 | AA16: Percent to QGC | AB16: =+'ALLOCATIONS&PRETAX'!$G$8 -> 0.4499 | AG16: Percent to QGC | AH16: =+'ALLOCATIONS&PRETAX'!$G$8 -> 0.4499 | AM16: Percent to QGC | AN16: =+'ALLOCATIONS&PRETAX'!$G$8 -> 0.4499 | AT16: 909005 | AU16: 4263 | AV16: 500 | AW16: S & S HOMES | AX16: 2014-03-31 | AY16: 01 | BA16: 930101 | BB16: 209.28 | BD16: 531 | BE16: 2014-05-31 | BF16: ALPHAGRAPHICS
A17: 930101 | B17: Institutional Advertising | C17: =N17 -> 4909.884672 | E17: =HLOOKUP($E$10,Advertisingscenario,F16,FALSE) -> 4909.884672 | F17: 9 | G17: 9 | H17: 930101 | I17: Institutional Advertising | J17: 0 | K17: =+BC4 -> 10913.28 | L17: =AD17 -> 4909.884672 | M17: =+L17+J17 -> 4909.884672 | N17: =+M17 -> 4909.884672 | O17: \1 | Y17: 11 | AA17: Total to QGC | AB17: =+AB9*AB16 -> 4909.884672 | AC17: =+AB17 -> 4909.884672 | AD17: =+AC17 -> 4909.884672 | AG17: Total to QGC | AH17: =+AH9*AH16 -> 0 | AI17: =+AH17 -> 0 | AJ17: =+AI17 -> 0 | AM17: Total to QGC | AN17: =+AN9*AN16 -> 0 | AO17: =+AN17 -> 0 | AP17: =+AO17 -> 0 | AT17: 909005 | AU17: 4263 | AV17: 1995 | AW17: THE SPECTRUM | AX17: 2014-03-31 | AY17: 01 | BA17: 930101 | BB17: 2810 | BD17: 531 | BE17: 2014-06-30 | BF17: UTAH BUSINESS MAGAZINE
A18: 930102 | B18: Financial Advertising | C18: =N41 -> 0 | E18: =HLOOKUP($E$10,Advertisingscenario,F17,FALSE) -> 0 | F18: 10 | G18: 10 | H18: 930102 | I18: Financial Advertising | J18: 0 | K18: 0 | L18: 0 | M18: 0 | N18: 0 | AT18: 909005 | AU18: 4263 | AV18: 500 | AW18: REGAL HOMES, LC | AX18: 2014-11-30 | AY18: 01 | BA18: 930101 | BB18: 399 | BD18: 531 | BE18: 2014-11-30 | BF18: CHAMBER OF COMMERCE MAP PROJEC
F19: 11 | G19: 12 | AT19: 909005 | AU19: 4263 | AV19: 500 | AW19: SPLIT ROCK FINE HOMES | AX19: 2014-03-31 | AY19: 01 | BA19: 930101 | BB19: 595 | BD19: 531 | BE19: 2014-12-31 | BF19: UTAH BUSINESS MAGAZINE
F20: 12 | G20: 13 | I20: Total | J20: =SUM(J14:J18) -> 18031.16 | K20: =SUM(K14:K18) -> 10913.28 | L20: =SUM(L14:L18) -> 4909.884672 | M20: =SUM(M14:M18) -> 22941.04467 | N20: =SUM(N14:N18) -> 22941.04467 | AT20: 909005 | AU20: 4263 | AV20: 500 | AW20: INFINITY BUILDERS, INC | AX20: 2014-12-31 | AY20: 01 | BA20: 930101 Total | BB20: =SUM(BB14:BB19) -> 10913.28
B21: Total | C21: =SUM(C14:C19) -> 22941.04467 | E21: =HLOOKUP($E$10,Advertisingscenario,F20,FALSE) -> 22941.04467 | F21: 13 | G21: 14 | AT21: 909005 | AU21: 4263 | AV21: 999 | AW21: FORRENT MEDIA SOLUTIONS | AX21: 2014-11-30 | AY21: 01
F22: 14 | G22: 15 | AT22: 909005 | AU22: 4263 | AV22: 1595 | AW22: PAULA BELL COMMUNICATIONS | AX22: 2014-08-31 | AY22: 01
F23: 15 | G23: 16 | I23: Adjustment | N23: =-N20 -> -22941.04467 | AT23: 909005 | AU23: 4263 | AV23: 500 | AW23: HAVENWOOD CUSTOM HOMES LLC | AX23: 2014-10-31 | AY23: 01
B24: Adjustment | C24: =-C21 -> -22941.04467 | E24: =HLOOKUP($E$10,Advertisingscenario,F23,FALSE) -> -22941.04467 | F24: 16 | G24: 17 | AT24: 909005 | AU24: 4263 | AV24: 952.16 | AW24: INTERMOUNTAIN BUSINESS FORMS | AX24: 2014-04-30 | AY24: 01
F25: 17 | G25: 18 | I25: Utah Adjustment | N25: ='ROR-Model'!$M$2*N23 -> -22153.15047 | AT25: 909005 | AU25: 4263 | AV25: 500 | AW25: GORDON MILAR CONSTRUCTION, INC | AX25: 2014-05-31 | AY25: 01
A26: 909 | B26: Utah Adjustment | C26: ='ROR-Model'!$M$2*C24 -> -22153.15047 | E26: =HLOOKUP($E$10,Advertisingscenario,F25,FALSE) -> -22153.15047 | F26: 18 | G26: 19 | I26: Wyoming Adjustment | N26: ='ROR-Model'!$N$2*N23 -> -787.8942052 | AT26: 909005 | AU26: 4263 | AV26: 495 | AW26: PARK CITY AREA HOME BUILDERS A | AX26: 2014-03-31 | AY26: 01
A27: 909 | B27: Wyoming Adjustment | C27: ='ROR-Model'!$N$2*C24 -> -787.8942052 | E27: =HLOOKUP($E$10,Advertisingscenario,F26,FALSE) -> -787.8942052 | F27: 19 | G27: 20 | I27: Total Adjustment | N27: =SUM(N25:N26) -> -22941.04467 | AT27: 909005 | AU27: 4263 | AV27: 495 | AW27: PARK CITY AREA HOME BUILDERS A | AX27: 2014-05-31 | AY27: 01
F28: 20 | G28: 21 | AT28: 909005 | AU28: 4263 | AV28: 2000 | AW28: SALT LAKE HOME BUILDERS ASSOCI | AX28: 2014-07-31 | AY28: 01
F29: 21 | G29: 22 | I29: Workpaper 1 | AT29: 909005 | AU29: 4263 | AV29: 6000 | AW29: SOUTHERN UTAH HOME BUILDERS AS | AX29: 2014-05-31 | AY29: 01
F30: 22 | G30: 23 | AT30: 909005 | AU30: 4263 | AV30: 500 | AW30: SPLIT ROCK DEVELOPMENT/CONSTRU | AX30: 2014-03-31 | AY30: 01
F31: 23 | G31: 24 | AT31: 909005 Total | AV31: =SUM(AV16:AV30) -> 18031.16
F32: 24 | G32: 25 | AT32: 921000 | AU32: 1070 | AV32: 275 | AW32: KMER-AM | AX32: 2014-01-31 | AY32: 01
F33: 25 | G33: 26 | AT33: 921000 | AU33: 1070 | AV33: 660 | AW33: KEVA/KOTB RADIO | AX33: 2014-02-28 | AY33: 01
F34: 26 | G34: 27 | AT34: 921000 | AU34: 1070 | AV34: 70.2 | AW34: KEMMERER GAZETTE | AX34: 2014-02-28 | AY34: 01
F35: 27 | G35: 28 | AT35: 921000 | AU35: 1070 | AV35: 0 | AW35: KEMMERER GAZETTE | AX35: 2014-03-31 | AY35: 01
F36: 28 | G36: 29 | AT36: 921000 | AU36: 1070 | AV36: 816 | AW36: KEMMERER GAZETTE | AX36: 2014-12-31 | AY36: 01
F37: 29 | G37: 30 | AT37: 921000 | AU37: 1070 | AV37: 260 | AW37: PINEDALE ROUNDUP | AX37: 2014-03-31 | AY37: 01
F38: 30 | G38: 31 | AT38: 921000 | AU38: 1070 | AV38: 138 | AW38: PINEDALE ROUNDUP | AX38: 2014-08-31 | AY38: 01
F39: 31 | G39: 32 | AT39: 921000 | AU39: 1070 | AV39: 0 | AW39: PINEDALE ROUNDUP | AX39: 2014-09-30 | AY39: 01
F40: 32 | G40: 33 | AT40: 921000 | AU40: 1070 | AV40: 96.2 | AW40: MEDIA ONE OF UTAH | AX40: 2014-09-30 | AY40: 01
F41: 33 | G41: 34 | H41: 930102 | I41: Financial Advertising | J41: 0 | K41: =+BC5 -> 0 | L41: =AJ29 -> 0 | M41: =+L41+J41 -> 0 | N41: 0 | AT41: 921000 | AU41: 1465 | AV41: 709.04 | AW41: CASPER STAR - TRIBUNE | AX41: 2014-03-31 | AY41: 01
F42: 34 | G42: 34 | AT42: 921000 | AU42: 1465 | AV42: 0 | AW42: CASPER STAR - TRIBUNE | AX42: 2014-04-30 | AY42: 01
F43: 35 | G43: 35 | AT43: 921000 | AU43: 4000 | AV43: 200 | AW43: K H TRAVELLER DEVELOPMENT | AX43: 2014-02-28 | AY43: 01
F44: 43 | G44: 43 | AT44: 921000 Total | AV44: =SUM(AV32:AV43) -> 3224.44
F45: 44 | G45: 44 | AT45: 923000 | AU45: 1070 | AV45: 195 | AW45: PINEDALE ROUNDUP | AX45: 2014-11-30 | AY45: 01
F46: 45 | G46: 45 | AT46: 923000 | AU46: 1070 | AV46: 1273.02 | AW46: PINEDALE ROUNDUP | AX46: 2014-12-31 | AY46: 01
F47: 46 | G47: 46 | AT47: 923000 | AU47: 1070 | AV47: 0 | AW47: RAWLINS DAILY TIMES | AX47: 2014-01-31 | AY47: 01
F48: 47 | G48: 47 | AT48: 923000 | AU48: 1070 | AV48: 129.6 | AW48: RAWLINS DAILY TIMES | AX48: 2014-06-30 | AY48: 01
F49: 48 | G49: 48 | AT49: 923000 | AU49: 1070 | AV49: 118.8 | AW49: RAWLINS DAILY TIMES | AX49: 2014-07-31 | AY49: 01
AT50: 923000 | AU50: 1070 | AV50: 129.6 | AW50: RAWLINS DAILY TIMES | AX50: 2014-08-31 | AY50: 01
AT51: 923000 | AU51: 1070 | AV51: 409.2 | AW51: RAWLINS DAILY TIMES | AX51: 2014-12-31 | AY51: 01
AT52: 923000 | AU52: 1070 | AV52: 385.2 | AW52: UINTA COUNTY HERALD | AX52: 2014-03-31 | AY52: 01
AT53: 923000 | AU53: 1070 | AV53: 315 | AW53: UINTA COUNTY HERALD | AX53: 2014-08-31 | AY53: 01
AT54: 923000 | AU54: 1070 | AV54: 1548.75 | AW54: UINTA COUNTY HERALD | AX54: 2014-12-31 | AY54: 01
AT55: 923000 | AU55: 1070 | AV55: 118.86 | AW55: ROCKET MINER NEWSPAPER | AX55: 2014-01-31 | AY55: 01
AT56: 923000 | AU56: 1070 | AV56: 118.87 | AW56: ROCKET MINER NEWSPAPER | AX56: 2014-02-28 | AY56: 01
AT57: 923000 | AU57: 1070 | AV57: 120.65 | AW57: ROCKET MINER NEWSPAPER | AX57: 2014-03-31 | AY57: 01
AT58: 923000 | AU58: 1070 | AV58: 195.47 | AW58: ROCKET MINER NEWSPAPER | AX58: 2014-05-31 | AY58: 01
AT59: 923000 | AU59: 1070 | AV59: 600.3 | AW59: ROCKET MINER NEWSPAPER | AX59: 2014-08-31 | AY59: 01
AT60: 923000 | AU60: 1070 | AV60: 194.94 | AW60: ROCK SPRINGS NEWSPAPERS INC | AX60: 2014-07-31 | AY60: 01
AT61: 923000 | AU61: 4263 | AV61: 5800 | AW61: MEDIA ONE OF UTAH | AX61: 2014-08-31 | AY61: 01
AT62: 923000 Total | AV62: =SUM(AV45:AV61) -> 11653.26
Z104: Allocated to QGC
AA105: Percent | AB105: =+'ALLOCATIONS&PRETAX'!#REF! -> 
AA106: Billed From QC to QGC

Sheet Donations
A1: Donations and Memberships Adjustment | M1: Donations and Memberships Adjustment | S1: Donations and Memberships Adjustment | AB1: CORP DUES AND DONATIONS | AI1: QGC DUES AND DONATIONS | AO1: Corp Government affairs | AU1: QGC AGA DUES
